Workbook

Sheet Main
B1: Klasse | C1: Rijnr. | D1: Zeilnr | E1: NAAM | F1: TYPE | G1: YEAR | H1: LOA | I1: IMSL | J1: BMAX | K1: DRAFT | L1: DSPL | M1: CREW | N1: GPH | O1: TMF | P1: WL | Q1: NSP | R1: UpAngl | S1: DwnA | T1: DA(%) | V1: 0 | W1: V@UA | X1: 52 | Y1: 60 | Z1: 75 | AA1: 90 | AB1: 110 | AC1: 120 | AD1: 135 | AE1: 150 | AF1: 180
A2: Bootindex 1: | B2: 2 | C2: 1001 | D2: =IF($B2=1,D51,D61) -> FRA- 5862 | E2: YALLAH V | F2: SAGITTA 35 Short M | G2: 1969 | H2: 10.45 | I2: 8.469 | J2: 3.08 | K2: 1.928 | L2: 5990 | M2: 531 | N2: 715 | O2: 0.8751 | P2: 615.4 | Q2: 533.5 | R2: 39.3 | S2: 179 | T2: 0.65 | V2: =IF($B2=1,V51,V61) -> 4.934210526 | W2: 6.376265364 | X2: 6.972690296 | Y2: 7.204322594 | Z2: 7.578947368 | AA2: 7.641689662 | AB2: 7.926023778 | AC2: 8.060904613 | AD2: 7.822685789 | AE2: 7.510953474 | AF2: 7.182761373
A3: Bootindex 2: | B3: 2 | C3: 1068 | D3: FRA-13547 | E3: SCHMILBLICK | F3: DELPH 32 Grand Mat | G3: 1973 | H3: 9.57 | I3: 8.232 | J3: 2.86 | K3: 1.757 | L3: 4535 | M3: 560 | N3: 690.3 | O3: 0.9066 | P3: 618.2 | Q3: 535.1 | R3: 38.9 | S3: 178.8 | T3: 0.2 | V3: 4.882017901 | W3: 6.273126734 | X3: 6.848012174 | Y3: 7.061592781 | Z3: 7.465781833 | AA3: 7.667731629 | AB3: 7.809110629 | AC3: 8.028545941 | AD3: 7.912087912 | AE3: 7.577352136 | AF3: 7.215874925
A4: Bootindex 3: | B4: 2 | C4: 1026 | D4: FRA- 9010 | E4: PICHENETTE 3 | F4: GIB'SEA 90 Plus | G4: 1982 | H4: 9.092 | I4: 7.438 | J4: 3.17 | K4: 1.659 | L4: 3050 | M4: 480 | N4: 700.2 | O4: 0.8898 | P4: 639.3 | Q4: 545.5 | R4: 40.9 | S4: 179.1 | T4: 0.03 | V4: 4.609475032 | W4: 6.098371206 | X4: 6.650655829 | Y4: 6.900517539 | Z4: 7.3755378 | AA4: 7.720351705 | AB4: 7.978723404 | AC4: 8.178100863 | AD4: 7.927769214 | AE4: 7.59333474 | AF4: 7.234726688
A5: Bootindex 4: | B5: 2 | C5: 1066 | D5: FRA-13123 | E5: STELLA MARINA | F5: FIRST 325 GTE | G5: 1986 | H5: 9.906 | I5: 8.138 | J5: 3.38 | K5: 1.816 | L5: 4409 | M5: 360 | N5: 702 | O5: 0.8931 | P5: 625.6 | Q5: 538.5 | R5: 39.7 | S5: 179.2 | T5: 0.4 | V5: 4.795524177 | W5: 6.232813817 | X5: 6.815600151 | Y5: 7.057439718 | Z5: 7.498437825 | AA5: 7.680819287 | AB5: 7.899934167 | AC5: 8.071748879 | AD5: 7.846556234 | AE5: 7.52980548 | AF5: 7.192807193
A6: Bootindex 5: | B6: 2 | C6: 617 | D6: ESP-5749 | E6: SIRPY | F6: FIRST 31.7 | G6: 1998 | H6: 9.49 | I6: 8.91 | J6: 3.22 | K6: 1.958 | L6: 3542 | M6: 450 | N6: 675.6 | O6: 0.9267 | P6: 601.3 | Q6: 516.1 | R6: 38.2 | S6: 178.7 | T6: 0.31 | V6: 4.982698962 | W6: 6.340466063 | X6: 7.016176184 | Y6: 7.233273056 | Z6: 7.698887938 | AA6: 8.137432188 | AB6: 8.415147265 | AC6: 8.729388943 | AD6: 8.454673556 | AE6: 7.96460177 | AF6: 7.498437825
A7: Bootindex 6: | B7: 2 | C7: 0
A8: Wind:1..7, (C8=kn) | B8: 7 | C8: =IF(B8=7,20,B8*2+4) -> 20 | D8: Knopen | P8: Windsterkte afhankelijk
A9: Favorieten | B9: Klasse | C9: Rijnr. | N9: =CONCATENATE(C8," Nœuds") -> 20 Nœuds
A10: =IF(B10=1,OFFSET(IMS!$D$1,(C10-1),1),OFFSET(ORC!$D$1,(C10-1),1)) -> SAGITTA 35 Short M | B10: 2 | C10: 1001
A11: =IF(B11=1,OFFSET(IMS!$D$1,(C11-1),1),OFFSET(ORC!$D$1,(C11-1),1)) -> FIRST 31.7 | B11: 2 | C11: 617
A12: =IF(B12=1,OFFSET(IMS!$D$1,(C12-1),1),OFFSET(ORC!$D$1,(C12-1),1)) ->  | B12: 2 | C12: 0
A13: =IF(B13=1,OFFSET(IMS!$D$1,(C13-1),1),OFFSET(ORC!$D$1,(C13-1),1)) ->  | B13: 1 | C13: 0
A14: =IF(B14=1,OFFSET(IMS!$D$1,(C14-1),1),OFFSET(ORC!$D$1,(C14-1),1)) ->  | B14: 2 | C14: 0
A15: =IF(B15=1,OFFSET(IMS!$D$1,(C15-1),1),OFFSET(ORC!$D$1,(C15-1),1)) ->  | B15: 2 | C15: 0
A16: =IF(B16=1,OFFSET(IMS!$D$1,(C16-1),1),OFFSET(ORC!$D$1,(C16-1),1)) ->  | B16: 2 | C16: 0
A17: =IF(B17=1,OFFSET(IMS!$D$1,(C17-1),1),OFFSET(ORC!$D$1,(C17-1),1)) ->  | B17: 2 | C17: 0
A18: =IF(B18=1,OFFSET(IMS!$D$1,(C18-1),1),OFFSET(ORC!$D$1,(C18-1),1)) ->  | B18: 1 | C18: 0
A19: =IF(B19=1,OFFSET(IMS!$D$1,(C19-1),1),OFFSET(ORC!$D$1,(C19-1),1)) ->  | B19: 1 | C19: 0
A20: =IF(B20=1,OFFSET(IMS!$D$1,(C20-1),1),OFFSET(ORC!$D$1,(C20-1),1)) ->  | B20: 1 | C20: 0
A21: =IF(B21=1,OFFSET(IMS!$D$1,(C21-1),1),OFFSET(ORC!$D$1,(C21-1),1)) ->  | B21: 1 | C21: 0
A22: =IF(B22=1,OFFSET(IMS!$D$1,(C22-1),1),OFFSET(ORC!$D$1,(C22-1),1)) ->  | B22: 1 | C22: 0
A23: =IF(B23=1,OFFSET(IMS!$D$1,(C23-1),1),OFFSET(ORC!$D$1,(C23-1),1)) ->  | B23: 1 | C23: 0
A24: =IF(B24=1,OFFSET(IMS!$D$1,(C24-1),1),OFFSET(ORC!$D$1,(C24-1),1)) ->  | B24: 1 | C24: 0
A25: =IF(B25=1,OFFSET(IMS!$D$1,(C25-1),1),OFFSET(ORC!$D$1,(C25-1),1)) ->  | B25: 1 | C25: 0
A26: =IF(B26=1,OFFSET(IMS!$D$1,(C26-1),1),OFFSET(ORC!$D$1,(C26-1),1)) ->  | B26: 1 | C26: 0
A27: =IF(B27=1,OFFSET(IMS!$D$1,(C27-1),1),OFFSET(ORC!$D$1,(C27-1),1)) ->  | B27: 1 | C27: 0
A28: =IF(B28=1,OFFSET(IMS!$D$1,(C28-1),1),OFFSET(ORC!$D$1,(C28-1),1)) ->  | B28: 1 | C28: 0
A29: =IF(B29=1,OFFSET(IMS!$D$1,(C29-1),1),OFFSET(ORC!$D$1,(C29-1),1)) ->  | B29: 1 | C29: 0
A30: =IF(B30=1,OFFSET(IMS!$D$1,(C30-1),1),OFFSET(ORC!$D$1,(C30-1),1)) ->  | B30: 1 | C30: 0
A31: =IF(B31=1,OFFSET(IMS!$D$1,(C31-1),1),OFFSET(ORC!$D$1,(C31-1),1)) ->  | B31: 1 | C31: 0
A32: =IF(B32=1,OFFSET(IMS!$D$1,(C32-1),1),OFFSET(ORC!$D$1,(C32-1),1)) ->  | B32: 1 | C32: 0
A33: =IF(B33=1,OFFSET(IMS!$D$1,(C33-1),1),OFFSET(ORC!$D$1,(C33-1),1)) ->  | B33: 1 | C33: 0
A34: =IF(B34=1,OFFSET(IMS!$D$1,(C34-1),1),OFFSET(ORC!$D$1,(C34-1),1)) ->  | B34: 1 | C34: 0 | E34: Opmerkingen:
A35: =IF(B35=1,OFFSET(IMS!$D$1,(C35-1),1),OFFSET(ORC!$D$1,(C35-1),1)) ->  | B35: 1 | C35: 0 | E35: Hoogste rijnummer in IMS: | F35: =IMS!$EQ$1 -> 396
E36: Hoogste rijnummer in ORC: | F36: =ORC!$EQ$1 -> rang
A39: 1
A40: 2
A41: 3
A42: 4
A43: 5
A44: 6
A45: 7
D48: Hulptabel met gegevens voor de 6 bootnummers uit de IMS tabel
D49: met B2..7 wordt bepaald of de regel uit deze tabel de ORC tabel hieronder wordt gebruikt
D50: ZEILNR | E50: NAAM | F50: TYPE | G50: YEAR | H50: LOA | I50: IMSL | J50: BMAX | K50: DRAFT | L50: DSPL | M50: CREW | N50: GPH | O50: TMF | P50: WL | Q50: NSP | R50: UpAngl | S50: DwnA | T50: DA(%) | V50: 0 | W50: V@UA | X50: 52 | Y50: 60 | Z50: 75 | AA50: 90 | AB50: 110 | AC50: 120 | AD50: 135 | AE50: 150 | AF50: 180
D51: =OFFSET(IMS!$C$1,($C2-1),0) -> 0 | E51: =OFFSET(IMS!$D$1,($C2-1),0) -> 0 | F51: =OFFSET(IMS!$E$1,($C2-1),0) -> 0 | G51: =OFFSET(IMS!$H$1,($C2-1),0) -> 0 | H51: =OFFSET(IMS!$P$1,($C2-1),0) -> 0 | I51: =OFFSET(IMS!$Q$1,($C2-1),0) -> 0 | J51: =OFFSET(IMS!$S$1,($C2-1),0) -> 0 | K51: =OFFSET(IMS!$R$1,($C2-1),0) -> 0 | L51: =OFFSET(IMS!$T$1,($C2-1),0) -> 0 | M51: =OFFSET(IMS!$M$1,($C2-1),0) -> 0 | N51: =OFFSET(IMS!$W$1,($C2-1),0) -> 0 | O51: =OFFSET(IMS!$X$1,($C2-1),0) -> 0 | P51: =OFFSET(IMS!$AB$1,($C2-1),($B$8-1)) -> 0 | Q51: =OFFSET(IMS!$AW$1,($C2-1),($B$8-1)) -> 0 | R51: =OFFSET(IMS!$BK$1,($C2-1),($B$8-1)) -> 0 | S51: =OFFSET(IMS!$BR$1,($C2-1),($B$8-1)) -> 0 | T51: =OFFSET(IMS!$V$1,($C2-1),0) -> 0 | V51: =3600/OFFSET(IMS!$BY$1,($C2-1),($B$8-1)) ->  | W51: =(3600/OFFSET(IMS!$BY$1,($C2-1),($B$8-1)))/COS(R51/180*PI()) ->  | X51: =3600/OFFSET(IMS!$CF$1,($C2-1),($B$8-1)) ->  | Y51: =3600/OFFSET(IMS!$CM$1,($C2-1),($B$8-1)) ->  | Z51: =3600/OFFSET(IMS!$CT$1,($C2-1),($B$8-1)) ->  | AA51: =3600/OFFSET(IMS!$DA$1,($C2-1),($B$8-1)) ->  | AB51: =3600/OFFSET(IMS!$DH$1,($C2-1),($B$8-1)) ->  | AC51: =3600/OFFSET(IMS!$DO$1,($C2-1),($B$8-1)) ->  | AD51: =3600/OFFSET(IMS!$DV$1,($C2-1),($B$8-1)) ->  | AE51: =3600/OFFSET(IMS!$EC$1,($C2-1),($B$8-1)) ->  | AF51: =3600/OFFSET(IMS!$EJ$1,($C2-1),($B$8-1)) -> 
D52: =OFFSET(IMS!$C$1,($C3-1),0) -> 0 | E52: =OFFSET(IMS!$D$1,($C3-1),0) -> 0 | F52: =OFFSET(IMS!$E$1,($C3-1),0) -> 0 | G52: =OFFSET(IMS!$H$1,($C3-1),0) -> 0 | H52: =OFFSET(IMS!$P$1,($C3-1),0) -> 0 | I52: =OFFSET(IMS!$Q$1,($C3-1),0) -> 0 | J52: =OFFSET(IMS!$S$1,($C3-1),0) -> 0 | K52: =OFFSET(IMS!$R$1,($C3-1),0) -> 0 | L52: =OFFSET(IMS!$T$1,($C3-1),0) -> 0 | M52: =OFFSET(IMS!$M$1,($C3-1),0) -> 0 | N52: =OFFSET(IMS!$W$1,($C3-1),0) -> 0 | O52: =OFFSET(IMS!$X$1,($C3-1),0) -> 0 | P52: =OFFSET(IMS!$AB$1,($C3-1),($B$8-1)) -> 0 | Q52: =OFFSET(IMS!$AW$1,($C3-1),($B$8-1)) -> 0 | R52: =OFFSET(IMS!$BK$1,($C3-1),($B$8-1)) -> 0 | S52: =OFFSET(IMS!$BR$1,($C3-1),($B$8-1)) -> 0 | T52: =OFFSET(IMS!$V$1,($C3-1),0) -> 0 | V52: =3600/OFFSET(IMS!$BY$1,($C3-1),($B$8-1)) ->  | W52: =(3600/OFFSET(IMS!$BY$1,($C3-1),($B$8-1)))/COS(R52/180*PI()) ->  | X52: =3600/OFFSET(IMS!$CF$1,($C3-1),($B$8-1)) ->  | Y52: =3600/OFFSET(IMS!$CM$1,($C3-1),($B$8-1)) ->  | Z52: =3600/OFFSET(IMS!$CT$1,($C3-1),($B$8-1)) ->  | AA52: =3600/OFFSET(IMS!$DA$1,($C3-1),($B$8-1)) ->  | AB52: =3600/OFFSET(IMS!$DH$1,($C3-1),($B$8-1)) ->  | AC52: =3600/OFFSET(IMS!$DO$1,($C3-1),($B$8-1)) ->  | AD52: =3600/OFFSET(IMS!$DV$1,($C3-1),($B$8-1)) ->  | AE52: =3600/OFFSET(IMS!$EC$1,($C3-1),($B$8-1)) ->  | AF52: =3600/OFFSET(IMS!$EJ$1,($C3-1),($B$8-1)) -> 
D53: =OFFSET(IMS!$C$1,($C4-1),0) -> 0 | E53: =OFFSET(IMS!$D$1,($C4-1),0) -> 0 | F53: =OFFSET(IMS!$E$1,($C4-1),0) -> 0 | G53: =OFFSET(IMS!$H$1,($C4-1),0) -> 0 | H53: =OFFSET(IMS!$P$1,($C4-1),0) -> 0 | I53: =OFFSET(IMS!$Q$1,($C4-1),0) -> 0 | J53: =OFFSET(IMS!$S$1,($C4-1),0) -> 0 | K53: =OFFSET(IMS!$R$1,($C4-1),0) -> 0 | L53: =OFFSET(IMS!$T$1,($C4-1),0) -> 0 | M53: =OFFSET(IMS!$M$1,($C4-1),0) -> 0 | N53: =OFFSET(IMS!$W$1,($C4-1),0) -> 0 | O53: =OFFSET(IMS!$X$1,($C4-1),0) -> 0 | P53: =OFFSET(IMS!$AB$1,($C4-1),($B$8-1)) -> 0 | Q53: =OFFSET(IMS!$AW$1,($C4-1),($B$8-1)) -> 0 | R53: =OFFSET(IMS!$BK$1,($C4-1),($B$8-1)) -> 0 | S53: =OFFSET(IMS!$BR$1,($C4-1),($B$8-1)) -> 0 | T53: =OFFSET(IMS!$V$1,($C4-1),0) -> 0 | V53: =3600/OFFSET(IMS!$BY$1,($C4-1),($B$8-1)) ->  | W53: =(3600/OFFSET(IMS!$BY$1,($C4-1),($B$8-1)))/COS(R53/180*PI()) ->  | X53: =3600/OFFSET(IMS!$CF$1,($C4-1),($B$8-1)) ->  | Y53: =3600/OFFSET(IMS!$CM$1,($C4-1),($B$8-1)) ->  | Z53: =3600/OFFSET(IMS!$CT$1,($C4-1),($B$8-1)) ->  | AA53: =3600/OFFSET(IMS!$DA$1,($C4-1),($B$8-1)) ->  | AB53: =3600/OFFSET(IMS!$DH$1,($C4-1),($B$8-1)) ->  | AC53: =3600/OFFSET(IMS!$DO$1,($C4-1),($B$8-1)) ->  | AD53: =3600/OFFSET(IMS!$DV$1,($C4-1),($B$8-1)) ->  | AE53: =3600/OFFSET(IMS!$EC$1,($C4-1),($B$8-1)) ->  | AF53: =3600/OFFSET(IMS!$EJ$1,($C4-1),($B$8-1)) -> 
D54: =OFFSET(IMS!$C$1,($C5-1),0) -> 0 | E54: =OFFSET(IMS!$D$1,($C5-1),0) -> 0 | F54: =OFFSET(IMS!$E$1,($C5-1),0) -> 0 | G54: =OFFSET(IMS!$H$1,($C5-1),0) -> 0 | H54: =OFFSET(IMS!$P$1,($C5-1),0) -> 0 | I54: =OFFSET(IMS!$Q$1,($C5-1),0) -> 0 | J54: =OFFSET(IMS!$S$1,($C5-1),0) -> 0 | K54: =OFFSET(IMS!$R$1,($C5-1),0) -> 0 | L54: =OFFSET(IMS!$T$1,($C5-1),0) -> 0 | M54: =OFFSET(IMS!$M$1,($C5-1),0) -> 0 | N54: =OFFSET(IMS!$W$1,($C5-1),0) -> 0 | O54: =OFFSET(IMS!$X$1,($C5-1),0) -> 0 | P54: =OFFSET(IMS!$AB$1,($C5-1),($B$8-1)) -> 0 | Q54: =OFFSET(IMS!$AW$1,($C5-1),($B$8-1)) -> 0 | R54: =OFFSET(IMS!$BK$1,($C5-1),($B$8-1)) -> 0 | S54: =OFFSET(IMS!$BR$1,($C5-1),($B$8-1)) -> 0 | T54: =OFFSET(IMS!$V$1,($C5-1),0) -> 0 | V54: =3600/OFFSET(IMS!$BY$1,($C5-1),($B$8-1)) ->  | W54: =(3600/OFFSET(IMS!$BY$1,($C5-1),($B$8-1)))/COS(R54/180*PI()) ->  | X54: =3600/OFFSET(IMS!$CF$1,($C5-1),($B$8-1)) ->  | Y54: =3600/OFFSET(IMS!$CM$1,($C5-1),($B$8-1)) ->  | Z54: =3600/OFFSET(IMS!$CT$1,($C5-1),($B$8-1)) ->  | AA54: =3600/OFFSET(IMS!$DA$1,($C5-1),($B$8-1)) ->  | AB54: =3600/OFFSET(IMS!$DH$1,($C5-1),($B$8-1)) ->  | AC54: =3600/OFFSET(IMS!$DO$1,($C5-1),($B$8-1)) ->  | AD54: =3600/OFFSET(IMS!$DV$1,($C5-1),($B$8-1)) ->  | AE54: =3600/OFFSET(IMS!$EC$1,($C5-1),($B$8-1)) ->  | AF54: =3600/OFFSET(IMS!$EJ$1,($C5-1),($B$8-1)) -> 
D55: =OFFSET(IMS!$C$1,($C6-1),0) -> 0 | E55: =OFFSET(IMS!$D$1,($C6-1),0) -> 0 | F55: =OFFSET(IMS!$E$1,($C6-1),0) -> 0 | G55: =OFFSET(IMS!$H$1,($C6-1),0) -> 0 | H55: =OFFSET(IMS!$P$1,($C6-1),0) -> 0 | I55: =OFFSET(IMS!$Q$1,($C6-1),0) -> 0 | J55: =OFFSET(IMS!$S$1,($C6-1),0) -> 0 | K55: =OFFSET(IMS!$R$1,($C6-1),0) -> 0 | L55: =OFFSET(IMS!$T$1,($C6-1),0) -> 0 | M55: =OFFSET(IMS!$M$1,($C6-1),0) -> 0 | N55: =OFFSET(IMS!$W$1,($C6-1),0) -> 0 | O55: =OFFSET(IMS!$X$1,($C6-1),0) -> 0 | P55: =OFFSET(IMS!$AB$1,($C6-1),($B$8-1)) -> 0 | Q55: =OFFSET(IMS!$AW$1,($C6-1),($B$8-1)) -> 0 | R55: =OFFSET(IMS!$BK$1,($C6-1),($B$8-1)) -> 0 | S55: =OFFSET(IMS!$BR$1,($C6-1),($B$8-1)) -> 0 | T55: =OFFSET(IMS!$V$1,($C6-1),0) -> 0 | V55: =3600/OFFSET(IMS!$BY$1,($C6-1),($B$8-1)) ->  | W55: =(3600/OFFSET(IMS!$BY$1,($C6-1),($B$8-1)))/COS(R55/180*PI()) ->  | X55: =3600/OFFSET(IMS!$CF$1,($C6-1),($B$8-1)) ->  | Y55: =3600/OFFSET(IMS!$CM$1,($C6-1),($B$8-1)) ->  | Z55: =3600/OFFSET(IMS!$CT$1,($C6-1),($B$8-1)) ->  | AA55: =3600/OFFSET(IMS!$DA$1,($C6-1),($B$8-1)) ->  | AB55: =3600/OFFSET(IMS!$DH$1,($C6-1),($B$8-1)) ->  | AC55: =3600/OFFSET(IMS!$DO$1,($C6-1),($B$8-1)) ->  | AD55: =3600/OFFSET(IMS!$DV$1,($C6-1),($B$8-1)) ->  | AE55: =3600/OFFSET(IMS!$EC$1,($C6-1),($B$8-1)) ->  | AF55: =3600/OFFSET(IMS!$EJ$1,($C6-1),($B$8-1)) -> 
D56: =OFFSET(IMS!$C$1,($C7-1),0) ->  | E56: =OFFSET(IMS!$D$1,($C7-1),0) ->  | F56: =OFFSET(IMS!$E$1,($C7-1),0) ->  | G56: =OFFSET(IMS!$H$1,($C7-1),0) ->  | H56: =OFFSET(IMS!$P$1,($C7-1),0) ->  | I56: =OFFSET(IMS!$Q$1,($C7-1),0) ->  | J56: =OFFSET(IMS!$S$1,($C7-1),0) ->  | K56: =OFFSET(IMS!$R$1,($C7-1),0) ->  | L56: =OFFSET(IMS!$T$1,($C7-1),0) ->  | M56: =OFFSET(IMS!$M$1,($C7-1),0) ->  | N56: =OFFSET(IMS!$W$1,($C7-1),0) ->  | O56: =OFFSET(IMS!$X$1,($C7-1),0) ->  | P56: =OFFSET(IMS!$AB$1,($C7-1),($B$8-1)) ->  | Q56: =OFFSET(IMS!$AW$1,($C7-1),($B$8-1)) ->  | R56: =OFFSET(IMS!$BK$1,($C7-1),($B$8-1)) ->  | S56: =OFFSET(IMS!$BR$1,($C7-1),($B$8-1)) ->  | T56: =OFFSET(IMS!$V$1,($C7-1),0) ->  | V56: =3600/OFFSET(IMS!$BY$1,($C7-1),($B$8-1)) ->  | W56: =(3600/OFFSET(IMS!$BY$1,($C7-1),($B$8-1)))/COS(R56/180*PI()) ->  | X56: =3600/OFFSET(IMS!$CF$1,($C7-1),($B$8-1)) ->  | Y56: =3600/OFFSET(IMS!$CM$1,($C7-1),($B$8-1)) ->  | Z56: =3600/OFFSET(IMS!$CT$1,($C7-1),($B$8-1)) ->  | AA56: =3600/OFFSET(IMS!$DA$1,($C7-1),($B$8-1)) ->  | AB56: =3600/OFFSET(IMS!$DH$1,($C7-1),($B$8-1)) ->  | AC56: =3600/OFFSET(IMS!$DO$1,($C7-1),($B$8-1)) ->  | AD56: =3600/OFFSET(IMS!$DV$1,($C7-1),($B$8-1)) ->  | AE56: =3600/OFFSET(IMS!$EC$1,($C7-1),($B$8-1)) ->  | AF56: =3600/OFFSET(IMS!$EJ$1,($C7-1),($B$8-1)) -> 
C57: IMS
C58: ORC
D59: Hulptabel met gegevens voor de 6 bootnummers uit de ORC tabel
D60: ZEILNR | E60: NAAM | F60: TYPE | G60: YEAR | H60: LOA | I60: IMSL | J60: BMAX | K60: DRAFT | L60: DSPL | M60: CREW | N60: GPH | O60: TMF | P60: WL | Q60: NSP | R60: UpAngl | S60: DwnA | T60: DA(%) | V60: 0 | W60: V@UA | X60: 52 | Y60: 60 | Z60: 75 | AA60: 90 | AB60: 110 | AC60: 120 | AD60: 135 | AE60: 150 | AF60: 180
D61: =OFFSET(ORC!$C$1,($C2-1),0) -> FRA- 5862 | E61: =OFFSET(ORC!$D$1,($C2-1),0) -> YALLAH V | F61: =OFFSET(ORC!$E$1,($C2-1),0) -> SAGITTA 35 Short M | G61: =OFFSET(ORC!$H$1,($C2-1),0) -> 1969 | H61: =OFFSET(ORC!$P$1,($C2-1),0) -> 10.45 | I61: =OFFSET(ORC!$Q$1,($C2-1),0) -> 8.469 | J61: =OFFSET(ORC!$S$1,($C2-1),0) -> 3.08 | K61: =OFFSET(ORC!$R$1,($C2-1),0) -> 1.928 | L61: =OFFSET(ORC!$T$1,($C2-1),0) -> 5990 | M61: =OFFSET(ORC!$M$1,($C2-1),0) -> 531 | N61: =OFFSET(ORC!$W$1,($C2-1),0) -> 715 | O61: =OFFSET(ORC!$X$1,($C2-1),0) -> 0.8751 | P61: =OFFSET(ORC!$AB$1,($C2-1),($B$8-1)) -> 615.4 | Q61: =OFFSET(ORC!$AW$1,($C2-1),($B$8-1)) -> 533.5 | R61: =OFFSET(ORC!$BK$1,($C2-1),($B$8-1)) -> 39.3 | S61: =OFFSET(ORC!$BR$1,($C2-1),($B$8-1)) -> 179 | T61: =OFFSET(ORC!$V$1,($C2-1),0) -> 0.65 | V61: =3600/OFFSET(ORC!$BY$1,($C2-1),($B$8-1)) -> 4.934210526 | W61: =(3600/OFFSET(ORC!$BY$1,($C2-1),($B$8-1)))/COS(R61/180*PI()) -> 6.376265364 | X61: =3600/OFFSET(ORC!$CF$1,($C2-1),($B$8-1)) -> 6.972690296 | Y61: =3600/OFFSET(ORC!$CM$1,($C2-1),($B$8-1)) -> 7.204322594 | Z61: =3600/OFFSET(ORC!$CT$1,($C2-1),($B$8-1)) -> 7.578947368 | AA61: =3600/OFFSET(ORC!$DA$1,($C2-1),($B$8-1)) -> 7.641689662 | AB61: =3600/OFFSET(ORC!$DH$1,($C2-1),($B$8-1)) -> 7.926023778 | AC61: =3600/OFFSET(ORC!$DO$1,($C2-1),($B$8-1)) -> 8.060904613 | AD61: =3600/OFFSET(ORC!$DV$1,($C2-1),($B$8-1)) -> 7.822685789 | AE61: =3600/OFFSET(ORC!$EC$1,($C2-1),($B$8-1)) -> 7.510953474 | AF61: =3600/OFFSET(ORC!$EJ$1,($C2-1),($B$8-1)) -> 7.182761373
D62: =OFFSET(ORC!$C$1,($C3-1),0) -> FRA-13547 | E62: =OFFSET(ORC!$D$1,($C3-1),0) -> SCHMILBLICK | F62: =OFFSET(ORC!$E$1,($C3-1),0) -> DELPH 32 Grand Mat | G62: =OFFSET(ORC!$H$1,($C3-1),0) -> 1973 | H62: =OFFSET(ORC!$P$1,($C3-1),0) -> 9.57 | I62: =OFFSET(ORC!$Q$1,($C3-1),0) -> 8.232 | J62: =OFFSET(ORC!$S$1,($C3-1),0) -> 2.86 | K62: =OFFSET(ORC!$R$1,($C3-1),0) -> 1.757 | L62: =OFFSET(ORC!$T$1,($C3-1),0) -> 4535 | M62: =OFFSET(ORC!$M$1,($C3-1),0) -> 560 | N62: =OFFSET(ORC!$W$1,($C3-1),0) -> 690.3 | O62: =OFFSET(ORC!$X$1,($C3-1),0) -> 0.9066 | P62: =OFFSET(ORC!$AB$1,($C3-1),($B$8-1)) -> 618.2 | Q62: =OFFSET(ORC!$AW$1,($C3-1),($B$8-1)) -> 535.1 | R62: =OFFSET(ORC!$BK$1,($C3-1),($B$8-1)) -> 38.9 | S62: =OFFSET(ORC!$BR$1,($C3-1),($B$8-1)) -> 178.8 | T62: =OFFSET(ORC!$V$1,($C3-1),0) -> 0.2 | V62: =3600/OFFSET(ORC!$BY$1,($C3-1),($B$8-1)) -> 4.882017901 | W62: =(3600/OFFSET(ORC!$BY$1,($C3-1),($B$8-1)))/COS(R62/180*PI()) -> 6.273126734 | X62: =3600/OFFSET(ORC!$CF$1,($C3-1),($B$8-1)) -> 6.848012174 | Y62: =3600/OFFSET(ORC!$CM$1,($C3-1),($B$8-1)) -> 7.061592781 | Z62: =3600/OFFSET(ORC!$CT$1,($C3-1),($B$8-1)) -> 7.465781833 | AA62: =3600/OFFSET(ORC!$DA$1,($C3-1),($B$8-1)) -> 7.667731629 | AB62: =3600/OFFSET(ORC!$DH$1,($C3-1),($B$8-1)) -> 7.809110629 | AC62: =3600/OFFSET(ORC!$DO$1,($C3-1),($B$8-1)) -> 8.028545941 | AD62: =3600/OFFSET(ORC!$DV$1,($C3-1),($B$8-1)) -> 7.912087912 | AE62: =3600/OFFSET(ORC!$EC$1,($C3-1),($B$8-1)) -> 7.577352136 | AF62: =3600/OFFSET(ORC!$EJ$1,($C3-1),($B$8-1)) -> 7.215874925
D63: =OFFSET(ORC!$C$1,($C4-1),0) -> FRA- 9010 | E63: =OFFSET(ORC!$D$1,($C4-1),0) -> PICHENETTE 3 | F63: =OFFSET(ORC!$E$1,($C4-1),0) -> GIB'SEA 90 Plus | G63: =OFFSET(ORC!$H$1,($C4-1),0) -> 1982 | H63: =OFFSET(ORC!$P$1,($C4-1),0) -> 9.092 | I63: =OFFSET(ORC!$Q$1,($C4-1),0) -> 7.438 | J63: =OFFSET(ORC!$S$1,($C4-1),0) -> 3.17 | K63: =OFFSET(ORC!$R$1,($C4-1),0) -> 1.659 | L63: =OFFSET(ORC!$T$1,($C4-1),0) -> 3050 | M63: =OFFSET(ORC!$M$1,($C4-1),0) -> 480 | N63: =OFFSET(ORC!$W$1,($C4-1),0) -> 700.2 | O63: =OFFSET(ORC!$X$1,($C4-1),0) -> 0.8898 | P63: =OFFSET(ORC!$AB$1,($C4-1),($B$8-1)) -> 639.3 | Q63: =OFFSET(ORC!$AW$1,($C4-1),($B$8-1)) -> 545.5 | R63: =OFFSET(ORC!$BK$1,($C4-1),($B$8-1)) -> 40.9 | S63: =OFFSET(ORC!$BR$1,($C4-1),($B$8-1)) -> 179.1 | T63: =OFFSET(ORC!$V$1,($C4-1),0) -> 0.03 | V63: =3600/OFFSET(ORC!$BY$1,($C4-1),($B$8-1)) -> 4.609475032 | W63: =(3600/OFFSET(ORC!$BY$1,($C4-1),($B$8-1)))/COS(R63/180*PI()) -> 6.098371206 | X63: =3600/OFFSET(ORC!$CF$1,($C4-1),($B$8-1)) -> 6.650655829 | Y63: =3600/OFFSET(ORC!$CM$1,($C4-1),($B$8-1)) -> 6.900517539 | Z63: =3600/OFFSET(ORC!$CT$1,($C4-1),($B$8-1)) -> 7.3755378 | AA63: =3600/OFFSET(ORC!$DA$1,($C4-1),($B$8-1)) -> 7.720351705 | AB63: =3600/OFFSET(ORC!$DH$1,($C4-1),($B$8-1)) -> 7.978723404 | AC63: =3600/OFFSET(ORC!$DO$1,($C4-1),($B$8-1)) -> 8.178100863 | AD63: =3600/OFFSET(ORC!$DV$1,($C4-1),($B$8-1)) -> 7.927769214 | AE63: =3600/OFFSET(ORC!$EC$1,($C4-1),($B$8-1)) -> 7.59333474 | AF63: =3600/OFFSET(ORC!$EJ$1,($C4-1),($B$8-1)) -> 7.234726688
D64: =OFFSET(ORC!$C$1,($C5-1),0) -> FRA-13123 | E64: =OFFSET(ORC!$D$1,($C5-1),0) -> STELLA MARINA | F64: =OFFSET(ORC!$E$1,($C5-1),0) -> FIRST 325 GTE | G64: =OFFSET(ORC!$H$1,($C5-1),0) -> 1986 | H64: =OFFSET(ORC!$P$1,($C5-1),0) -> 9.906 | I64: =OFFSET(ORC!$Q$1,($C5-1),0) -> 8.138 | J64: =OFFSET(ORC!$S$1,($C5-1),0) -> 3.38 | K64: =OFFSET(ORC!$R$1,($C5-1),0) -> 1.816 | L64: =OFFSET(ORC!$T$1,($C5-1),0) -> 4409 | M64: =OFFSET(ORC!$M$1,($C5-1),0) -> 360 | N64: =OFFSET(ORC!$W$1,($C5-1),0) -> 702 | O64: =OFFSET(ORC!$X$1,($C5-1),0) -> 0.8931 | P64: =OFFSET(ORC!$AB$1,($C5-1),($B$8-1)) -> 625.6 | Q64: =OFFSET(ORC!$AW$1,($C5-1),($B$8-1)) -> 538.5 | R64: =OFFSET(ORC!$BK$1,($C5-1),($B$8-1)) -> 39.7 | S64: =OFFSET(ORC!$BR$1,($C5-1),($B$8-1)) -> 179.2 | T64: =OFFSET(ORC!$V$1,($C5-1),0) -> 0.4 | V64: =3600/OFFSET(ORC!$BY$1,($C5-1),($B$8-1)) -> 4.795524177 | W64: =(3600/OFFSET(ORC!$BY$1,($C5-1),($B$8-1)))/COS(R64/180*PI()) -> 6.232813817 | X64: =3600/OFFSET(ORC!$CF$1,($C5-1),($B$8-1)) -> 6.815600151 | Y64: =3600/OFFSET(ORC!$CM$1,($C5-1),($B$8-1)) -> 7.057439718 | Z64: =3600/OFFSET(ORC!$CT$1,($C5-1),($B$8-1)) -> 7.498437825 | AA64: =3600/OFFSET(ORC!$DA$1,($C5-1),($B$8-1)) -> 7.680819287 | AB64: =3600/OFFSET(ORC!$DH$1,($C5-1),($B$8-1)) -> 7.899934167 | AC64: =3600/OFFSET(ORC!$DO$1,($C5-1),($B$8-1)) -> 8.071748879 | AD64: =3600/OFFSET(ORC!$DV$1,($C5-1),($B$8-1)) -> 7.846556234 | AE64: =3600/OFFSET(ORC!$EC$1,($C5-1),($B$8-1)) -> 7.52980548 | AF64: =3600/OFFSET(ORC!$EJ$1,($C5-1),($B$8-1)) -> 7.192807193
D65: =OFFSET(ORC!$C$1,($C6-1),0) -> ESP-5749 | E65: =OFFSET(ORC!$D$1,($C6-1),0) -> SIRPY | F65: =OFFSET(ORC!$E$1,($C6-1),0) -> FIRST 31.7 | G65: =OFFSET(ORC!$H$1,($C6-1),0) -> 1998 | H65: =OFFSET(ORC!$P$1,($C6-1),0) -> 9.49 | I65: =OFFSET(ORC!$Q$1,($C6-1),0) -> 8.91 | J65: =OFFSET(ORC!$S$1,($C6-1),0) -> 3.22 | K65: =OFFSET(ORC!$R$1,($C6-1),0) -> 1.958 | L65: =OFFSET(ORC!$T$1,($C6-1),0) -> 3542 | M65: =OFFSET(ORC!$M$1,($C6-1),0) -> 450 | N65: =OFFSET(ORC!$W$1,($C6-1),0) -> 675.6 | O65: =OFFSET(ORC!$X$1,($C6-1),0) -> 0.9267 | P65: =OFFSET(ORC!$AB$1,($C6-1),($B$8-1)) -> 601.3 | Q65: =OFFSET(ORC!$AW$1,($C6-1),($B$8-1)) -> 516.1 | R65: =OFFSET(ORC!$BK$1,($C6-1),($B$8-1)) -> 38.2 | S65: =OFFSET(ORC!$BR$1,($C6-1),($B$8-1)) -> 178.7 | T65: =OFFSET(ORC!$V$1,($C6-1),0) -> 0.31 | V65: =3600/OFFSET(ORC!$BY$1,($C6-1),($B$8-1)) -> 4.982698962 | W65: =(3600/OFFSET(ORC!$BY$1,($C6-1),($B$8-1)))/COS(R65/180*PI()) -> 6.340466063 | X65: =3600/OFFSET(ORC!$CF$1,($C6-1),($B$8-1)) -> 7.016176184 | Y65: =3600/OFFSET(ORC!$CM$1,($C6-1),($B$8-1)) -> 7.233273056 | Z65: =3600/OFFSET(ORC!$CT$1,($C6-1),($B$8-1)) -> 7.698887938 | AA65: =3600/OFFSET(ORC!$DA$1,($C6-1),($B$8-1)) -> 8.137432188 | AB65: =3600/OFFSET(ORC!$DH$1,($C6-1),($B$8-1)) -> 8.415147265 | AC65: =3600/OFFSET(ORC!$DO$1,($C6-1),($B$8-1)) -> 8.729388943 | AD65: =3600/OFFSET(ORC!$DV$1,($C6-1),($B$8-1)) -> 8.454673556 | AE65: =3600/OFFSET(ORC!$EC$1,($C6-1),($B$8-1)) -> 7.96460177 | AF65: =3600/OFFSET(ORC!$EJ$1,($C6-1),($B$8-1)) -> 7.498437825
D66: =OFFSET(ORC!$C$1,($C7-1),0) ->  | E66: =OFFSET(ORC!$D$1,($C7-1),0) ->  | F66: =OFFSET(ORC!$E$1,($C7-1),0) ->  | G66: =OFFSET(ORC!$H$1,($C7-1),0) ->  | H66: =OFFSET(ORC!$P$1,($C7-1),0) ->  | I66: =OFFSET(ORC!$Q$1,($C7-1),0) ->  | J66: =OFFSET(ORC!$S$1,($C7-1),0) ->  | K66: =OFFSET(ORC!$R$1,($C7-1),0) ->  | L66: =OFFSET(ORC!$T$1,($C7-1),0) ->  | M66: =OFFSET(ORC!$M$1,($C7-1),0) ->  | N66: =OFFSET(ORC!$W$1,($C7-1),0) ->  | O66: =OFFSET(ORC!$X$1,($C7-1),0) ->  | P66: =OFFSET(ORC!$AB$1,($C7-1),($B$8-1)) ->  | Q66: =OFFSET(ORC!$AW$1,($C7-1),($B$8-1)) ->  | R66: =OFFSET(ORC!$BK$1,($C7-1),($B$8-1)) ->  | S66: =OFFSET(ORC!$BR$1,($C7-1),($B$8-1)) ->  | T66: =OFFSET(ORC!$V$1,($C7-1),0) ->  | V66: =3600/OFFSET(ORC!$BY$1,($C7-1),($B$8-1)) ->  | W66: =(3600/OFFSET(ORC!$BY$1,($C7-1),($B$8-1)))/COS(R66/180*PI()) ->  | X66: =3600/OFFSET(ORC!$CF$1,($C7-1),($B$8-1)) ->  | Y66: =3600/OFFSET(ORC!$CM$1,($C7-1),($B$8-1)) ->  | Z66: =3600/OFFSET(ORC!$CT$1,($C7-1),($B$8-1)) ->  | AA66: =3600/OFFSET(ORC!$DA$1,($C7-1),($B$8-1)) ->  | AB66: =3600/OFFSET(ORC!$DH$1,($C7-1),($B$8-1)) ->  | AC66: =3600/OFFSET(ORC!$DO$1,($C7-1),($B$8-1)) ->  | AD66: =3600/OFFSET(ORC!$DV$1,($C7-1),($B$8-1)) ->  | AE66: =3600/OFFSET(ORC!$EC$1,($C7-1),($B$8-1)) ->  | AF66: =3600/OFFSET(ORC!$EJ$1,($C7-1),($B$8-1)) -> 
E69: Hulptabel met gegevens en berekeningen voor het Polair diagram
E70: True Wind | O70: Apparent Wind
D71: UpAngl | E71: V@UA | F71: 52 | G71: 60 | H71: 75 | I71: 90 | J71: 110 | K71: 120 | L71: 135 | M71: 150 | N71: VMG180 | O71: 150 | P71: 135 | Q71: 120 | R71: 110 | S71: 90 | T71: 75 | U71: 60 | V71: 52 | W71: V@UA
D72: =R2 -> 39.3 | E72: =W2*SIN(D72/180*PI()) -> 4.03860452 | F72: =X2*SIN(F$71/180*PI()) -> 5.494554935 | G72: 6.239126383 | H72: 7.320700999 | I72: 7.641689662 | J72: 7.448026056 | K72: 6.980948172 | L72: 5.531474168 | M72: 3.755476737 | N72: 0 | O72: =-AE2*SIN((O$71/180*PI())-ATAN((AE2*SIN(O$71/180*PI())/($C$8+AE2*COS(O$71/180*PI()))))) -> -5.361857771 | P72: =-AD2*SIN((P$71/180*PI())-ATAN((AD2*SIN(P$71/180*PI())/($C$8+AD2*COS(P$71/180*PI()))))) -> -7.142063024 | Q72: =-AC2*SIN((Q$71/180*PI())-ATAN((AC2*SIN(Q$71/180*PI())/($C$8+AC2*COS(Q$71/180*PI()))))) -> -8.010858347 | R72: =-AB2*SIN((R$71/180*PI())-ATAN((AB2*SIN(R$71/180*PI())/($C$8+AB2*COS(R$71/180*PI()))))) -> -7.912833166 | S72: =-AA2*SIN((S$71/180*PI())-ATAN((AA2*SIN(S$71/180*PI())/($C$8+AA2*COS(S$71/180*PI()))))) -> -7.138373321 | T72: =-Z2*SIN((T$71/180*PI())-ATAN((Z2*SIN(T$71/180*PI())/($C$8+Z2*COS(T$71/180*PI()))))) -> -6.32469193 | U72: =-Y2*SIN((U$71/180*PI())-ATAN((Y2*SIN(U$71/180*PI())/($C$8+Y2*COS(U$71/180*PI()))))) -> -5.111339876 | V72: =-X2*SIN((V$71/180*PI())-ATAN((X2*SIN(V$71/180*PI())/($C$8+X2*COS(V$71/180*PI()))))) -> -4.412154833 | W72: =-W2*SIN((D72/180*PI())-ATAN((W2*SIN(D72/180*PI())/($C$8+W2*COS(D72/180*PI()))))) -> -3.197734577
E73: =V2 -> 4.934210526 | F73: =X2*COS(F$71/180*PI()) -> 4.292816795 | G73: 3.602161297 | H73: 1.961575921 | I73: 4.681102141e-16 | J73: -2.710859789 | K73: -4.030452306 | L73: -5.531474168 | M73: -6.504676515 | N73: =-AF2 -> -7.182761373 | O73: =AE2*COS((O$71/180*PI())-ATAN((AE2*SIN(O$71/180*PI())/($C$8+AE2*COS(O$71/180*PI()))))) -> -5.259743657 | P73: =AD2*COS((P$71/180*PI())-ATAN((AD2*SIN(P$71/180*PI())/($C$8+AD2*COS(P$71/180*PI()))))) -> -3.191449312 | Q73: =AC2*COS((Q$71/180*PI())-ATAN((AC2*SIN(Q$71/180*PI())/($C$8+AC2*COS(Q$71/180*PI()))))) -> -0.8968454275 | R73: =AB2*COS((R$71/180*PI())-ATAN((AB2*SIN(R$71/180*PI())/($C$8+AB2*COS(R$71/180*PI()))))) -> 0.4570822929 | S73: =AA2*COS((S$71/180*PI())-ATAN((AA2*SIN(S$71/180*PI())/($C$8+AA2*COS(S$71/180*PI()))))) -> 2.727461681 | T73: =Z2*COS((T$71/180*PI())-ATAN((Z2*SIN(T$71/180*PI())/($C$8+Z2*COS(T$71/180*PI()))))) -> 4.175968774 | U73: =Y2*COS((U$71/180*PI())-ATAN((Y2*SIN(U$71/180*PI())/($C$8+Y2*COS(U$71/180*PI()))))) -> 5.077053152 | V73: =X2*COS((V$71/180*PI())-ATAN((X2*SIN(V$71/180*PI())/($C$8+X2*COS(V$71/180*PI()))))) -> 5.399194356 | W73: =W2*COS((D72/180*PI())-ATAN((W2*SIN(D72/180*PI())/($C$8+W2*COS(D72/180*PI()))))) -> 5.516452987
D74: =R3 -> 38.9 | E74: =W3*SIN(D74/180*PI()) -> 3.939291845 | F74: =X3*SIN(F$71/180*PI()) -> 5.396307234 | G74: 6.11551874 | H74: 7.211391486 | I74: 7.667731629 | J74: 7.338163633 | K74: 6.95292474 | L74: 5.594691016 | M74: 3.788676068 | N74: 0 | O74: =-AE3*SIN((O$71/180*PI())-ATAN((AE3*SIN(O$71/180*PI())/($C$8+AE3*COS(O$71/180*PI()))))) -> -5.427241477 | P74: =-AD3*SIN((P$71/180*PI())-ATAN((AD3*SIN(P$71/180*PI())/($C$8+AD3*COS(P$71/180*PI()))))) -> -7.240635248 | Q74: =-AC3*SIN((Q$71/180*PI())-ATAN((AC3*SIN(Q$71/180*PI())/($C$8+AC3*COS(Q$71/180*PI()))))) -> -7.977039213 | R74: =-AB3*SIN((R$71/180*PI())-ATAN((AB3*SIN(R$71/180*PI())/($C$8+AB3*COS(R$71/180*PI()))))) -> -7.798757749 | S74: =-AA3*SIN((S$71/180*PI())-ATAN((AA3*SIN(S$71/180*PI())/($C$8+AA3*COS(S$71/180*PI()))))) -> -7.159587213 | T74: =-Z3*SIN((T$71/180*PI())-ATAN((Z3*SIN(T$71/180*PI())/($C$8+Z3*COS(T$71/180*PI()))))) -> -6.247028728 | U74: =-Y3*SIN((U$71/180*PI())-ATAN((Y3*SIN(U$71/180*PI())/($C$8+Y3*COS(U$71/180*PI()))))) -> -5.030759675 | V74: =-X3*SIN((V$71/180*PI())-ATAN((X3*SIN(V$71/180*PI())/($C$8+X3*COS(V$71/180*PI()))))) -> -4.350101432 | W74: =-W3*SIN((D74/180*PI())-ATAN((W3*SIN(D74/180*PI())/($C$8+W3*COS(D74/180*PI()))))) -> -3.127424857
E75: =V3 -> 4.882017901 | F75: =X3*COS(F$71/180*PI()) -> 4.216057278 | G75: 3.530796391 | H75: 1.932286525 | I75: 4.697054779e-16 | J75: -2.670873137 | K75: -4.014272971 | L75: -5.594691016 | M75: -6.562179444 | N75: =-AF3 -> -7.215874925 | O75: =AE3*COS((O$71/180*PI())-ATAN((AE3*SIN(O$71/180*PI())/($C$8+AE3*COS(O$71/180*PI()))))) -> -5.287846003 | P75: =AD3*COS((P$71/180*PI())-ATAN((AD3*SIN(P$71/180*PI())/($C$8+AD3*COS(P$71/180*PI()))))) -> -3.189723551 | Q75: =AC3*COS((Q$71/180*PI())-ATAN((AC3*SIN(Q$71/180*PI())/($C$8+AC3*COS(Q$71/180*PI()))))) -> -0.9079621836 | R75: =AB3*COS((R$71/180*PI())-ATAN((AB3*SIN(R$71/180*PI())/($C$8+AB3*COS(R$71/180*PI()))))) -> 0.4019781044 | S75: =AA3*COS((S$71/180*PI())-ATAN((AA3*SIN(S$71/180*PI())/($C$8+AA3*COS(S$71/180*PI()))))) -> 2.744889666 | T75: =Z3*COS((T$71/180*PI())-ATAN((Z3*SIN(T$71/180*PI())/($C$8+Z3*COS(T$71/180*PI()))))) -> 4.088096189 | U75: =Y3*COS((U$71/180*PI())-ATAN((Y3*SIN(U$71/180*PI())/($C$8+Y3*COS(U$71/180*PI()))))) -> 4.955557457 | V75: =X3*COS((V$71/180*PI())-ATAN((X3*SIN(V$71/180*PI())/($C$8+X3*COS(V$71/180*PI()))))) -> 5.288845646 | W75: =W3*COS((D74/180*PI())-ATAN((W3*SIN(D74/180*PI())/($C$8+W3*COS(D74/180*PI()))))) -> 5.437952996
D76: =R4 -> 40.9 | E76: =W4*SIN(D76/180*PI()) -> 3.992852525 | F76: =X4*SIN(F$71/180*PI()) -> 5.240788311 | G76: 5.976023488 | H76: 7.124222443 | I76: 7.720351705 | J76: 7.497547506 | K76: 7.082443102 | L76: 5.605779371 | M76: 3.79666737 | N76: 0 | O76: =-AE4*SIN((O$71/180*PI())-ATAN((AE4*SIN(O$71/180*PI())/($C$8+AE4*COS(O$71/180*PI()))))) -> -5.443035329 | P76: =-AD4*SIN((P$71/180*PI())-ATAN((AD4*SIN(P$71/180*PI())/($C$8+AD4*COS(P$71/180*PI()))))) -> -7.257951765 | Q76: =-AC4*SIN((Q$71/180*PI())-ATAN((AC4*SIN(Q$71/180*PI())/($C$8+AC4*COS(Q$71/180*PI()))))) -> -8.133230032 | R76: =-AB4*SIN((R$71/180*PI())-ATAN((AB4*SIN(R$71/180*PI())/($C$8+AB4*COS(R$71/180*PI()))))) -> -7.964128273 | S76: =-AA4*SIN((S$71/180*PI())-ATAN((AA4*SIN(S$71/180*PI())/($C$8+AA4*COS(S$71/180*PI()))))) -> -7.202367231 | T76: =-Z4*SIN((T$71/180*PI())-ATAN((Z4*SIN(T$71/180*PI())/($C$8+Z4*COS(T$71/180*PI()))))) -> -6.184721037 | U76: =-Y4*SIN((U$71/180*PI())-ATAN((Y4*SIN(U$71/180*PI())/($C$8+Y4*COS(U$71/180*PI()))))) -> -4.938915125 | V76: =-X4*SIN((V$71/180*PI())-ATAN((X4*SIN(V$71/180*PI())/($C$8+X4*COS(V$71/180*PI()))))) -> -4.250794055 | W76: =-W4*SIN((D76/180*PI())-ATAN((W4*SIN(D76/180*PI())/($C$8+W4*COS(D76/180*PI()))))) -> -3.203085608
E77: =V4 -> 4.609475032 | F77: =X4*COS(F$71/180*PI()) -> 4.094552579 | G77: 3.450258769 | H77: 1.90892965 | I77: 4.729288481e-16 | J77: -2.728884122 | K77: -4.089050432 | L77: -5.605779371 | M77: -6.576020784 | N77: =-AF4 -> -7.234726688 | O77: =AE4*COS((O$71/180*PI())-ATAN((AE4*SIN(O$71/180*PI())/($C$8+AE4*COS(O$71/180*PI()))))) -> -5.294534812 | P77: =AD4*COS((P$71/180*PI())-ATAN((AD4*SIN(P$71/180*PI())/($C$8+AD4*COS(P$71/180*PI()))))) -> -3.189304137 | Q77: =AC4*COS((Q$71/180*PI())-ATAN((AC4*SIN(Q$71/180*PI())/($C$8+AC4*COS(Q$71/180*PI()))))) -> -0.8555132857 | R77: =AB4*COS((R$71/180*PI())-ATAN((AB4*SIN(R$71/180*PI())/($C$8+AB4*COS(R$71/180*PI()))))) -> 0.4823774593 | S77: =AA4*COS((S$71/180*PI())-ATAN((AA4*SIN(S$71/180*PI())/($C$8+AA4*COS(S$71/180*PI()))))) -> 2.780240407 | T77: =Z4*COS((T$71/180*PI())-ATAN((Z4*SIN(T$71/180*PI())/($C$8+Z4*COS(T$71/180*PI()))))) -> 4.018430481 | U77: =Y4*COS((U$71/180*PI())-ATAN((Y4*SIN(U$71/180*PI())/($C$8+Y4*COS(U$71/180*PI()))))) -> 4.819155496 | V77: =X4*COS((V$71/180*PI())-ATAN((X4*SIN(V$71/180*PI())/($C$8+X4*COS(V$71/180*PI()))))) -> 5.114877599 | W77: =W4*COS((D76/180*PI())-ATAN((W4*SIN(D76/180*PI())/($C$8+W4*COS(D76/180*PI()))))) -> 5.189448328
D78: =R5 -> 39.7 | E78: =W5*SIN(D78/180*PI()) -> 3.981320879 | F78: =X5*SIN(F$71/180*PI()) -> 5.370766212 | G78: 6.111922081 | H78: 7.242934752 | I78: 7.680819287 | J78: 7.423509842 | K78: 6.990339582 | L78: 5.548353122 | M78: 3.76490274 | N78: 0 | O78: =-AE5*SIN((O$71/180*PI())-ATAN((AE5*SIN(O$71/180*PI())/($C$8+AE5*COS(O$71/180*PI()))))) -> -5.380383815 | P78: =-AD5*SIN((P$71/180*PI())-ATAN((AD5*SIN(P$71/180*PI())/($C$8+AD5*COS(P$71/180*PI()))))) -> -7.168356257 | Q78: =-AC5*SIN((Q$71/180*PI())-ATAN((AC5*SIN(Q$71/180*PI())/($C$8+AC5*COS(Q$71/180*PI()))))) -> -8.022189096 | R78: =-AB5*SIN((R$71/180*PI())-ATAN((AB5*SIN(R$71/180*PI())/($C$8+AB5*COS(R$71/180*PI()))))) -> -7.887409803 | S78: =-AA5*SIN((S$71/180*PI())-ATAN((AA5*SIN(S$71/180*PI())/($C$8+AA5*COS(S$71/180*PI()))))) -> -7.170238023 | T78: =-Z5*SIN((T$71/180*PI())-ATAN((Z5*SIN(T$71/180*PI())/($C$8+Z5*COS(T$71/180*PI()))))) -> -6.269493545 | U78: =-Y5*SIN((U$71/180*PI())-ATAN((Y5*SIN(U$71/180*PI())/($C$8+Y5*COS(U$71/180*PI()))))) -> -5.028403727 | V78: =-X5*SIN((V$71/180*PI())-ATAN((X5*SIN(V$71/180*PI())/($C$8+X5*COS(V$71/180*PI()))))) -> -4.333883394 | W78: =-W5*SIN((D78/180*PI())-ATAN((W5*SIN(D78/180*PI())/($C$8+W5*COS(D78/180*PI()))))) -> -3.170709526
E79: =V5 -> 4.795524177 | F79: =X5*COS(F$71/180*PI()) -> 4.196102444 | G79: 3.528719859 | H79: 1.940738518 | I79: 4.705071941e-16 | J79: -2.701936616 | K79: -4.035874439 | L79: -5.548353122 | M79: -6.521002831 | N79: =-AF5 -> -7.192807193 | O79: =AE5*COS((O$71/180*PI())-ATAN((AE5*SIN(O$71/180*PI())/($C$8+AE5*COS(O$71/180*PI()))))) -> -5.267773778 | P79: =AD5*COS((P$71/180*PI())-ATAN((AD5*SIN(P$71/180*PI())/($C$8+AD5*COS(P$71/180*PI()))))) -> -3.191099075 | Q79: =AC5*COS((Q$71/180*PI())-ATAN((AC5*SIN(Q$71/180*PI())/($C$8+AC5*COS(Q$71/180*PI()))))) -> -0.8930913025 | R79: =AB5*COS((R$71/180*PI())-ATAN((AB5*SIN(R$71/180*PI())/($C$8+AB5*COS(R$71/180*PI()))))) -> 0.4446644244 | S79: =AA5*COS((S$71/180*PI())-ATAN((AA5*SIN(S$71/180*PI())/($C$8+AA5*COS(S$71/180*PI()))))) -> 2.753665125 | T79: =Z5*COS((T$71/180*PI())-ATAN((Z5*SIN(T$71/180*PI())/($C$8+Z5*COS(T$71/180*PI()))))) -> 4.113395254 | U79: =Y5*COS((U$71/180*PI())-ATAN((Y5*SIN(U$71/180*PI())/($C$8+Y5*COS(U$71/180*PI()))))) -> 4.95203103 | V79: =X5*COS((V$71/180*PI())-ATAN((X5*SIN(V$71/180*PI())/($C$8+X5*COS(V$71/180*PI()))))) -> 5.260214839 | W79: =W5*COS((D78/180*PI())-ATAN((W5*SIN(D78/180*PI())/($C$8+W5*COS(D78/180*PI()))))) -> 5.366057135
D80: =R6 -> 38.2 | E80: =W6*SIN(D80/180*PI()) -> 3.920997444 | F80: =X6*SIN(F$71/180*PI()) -> 5.528822282 | G80: 6.264198219 | H80: 7.436554693 | I80: 8.137432188 | J80: 7.907651788 | K80: 7.559872584 | L80: 5.978357004 | M80: 3.982300885 | N80: 0 | O80: =-AE6*SIN((O$71/180*PI())-ATAN((AE6*SIN(O$71/180*PI())/($C$8+AE6*COS(O$71/180*PI()))))) -> -5.816011215 | P80: =-AD6*SIN((P$71/180*PI())-ATAN((AD6*SIN(P$71/180*PI())/($C$8+AD6*COS(P$71/180*PI()))))) -> -7.844099551 | Q80: =-AC6*SIN((Q$71/180*PI())-ATAN((AC6*SIN(Q$71/180*PI())/($C$8+AC6*COS(Q$71/180*PI()))))) -> -8.705994684 | R80: =-AB6*SIN((R$71/180*PI())-ATAN((AB6*SIN(R$71/180*PI())/($C$8+AB6*COS(R$71/180*PI()))))) -> -8.385761247 | S80: =-AA6*SIN((S$71/180*PI())-ATAN((AA6*SIN(S$71/180*PI())/($C$8+AA6*COS(S$71/180*PI()))))) -> -7.537424094 | T80: =-Z6*SIN((T$71/180*PI())-ATAN((Z6*SIN(T$71/180*PI())/($C$8+Z6*COS(T$71/180*PI()))))) -> -6.40643468 | U80: =-Y6*SIN((U$71/180*PI())-ATAN((Y6*SIN(U$71/180*PI())/($C$8+Y6*COS(U$71/180*PI()))))) -> -5.12759273 | V80: =-X6*SIN((V$71/180*PI())-ATAN((X6*SIN(V$71/180*PI())/($C$8+X6*COS(V$71/180*PI()))))) -> -4.433674811 | W80: =-W6*SIN((D80/180*PI())-ATAN((W6*SIN(D80/180*PI())/($C$8+W6*COS(D80/180*PI()))))) -> -3.101009277
E81: =V6 -> 4.982698962 | F81: =X6*COS(F$71/180*PI()) -> 4.319589381 | G81: 3.616636528 | H81: 1.992618825 | I81: 4.984781236e-16 | J81: -2.878149874 | K81: -4.364694471 | L81: -5.978357004 | M81: -6.897547464 | N81: =-AF6 -> -7.498437825 | O81: =AE6*COS((O$71/180*PI())-ATAN((AE6*SIN(O$71/180*PI())/($C$8+AE6*COS(O$71/180*PI()))))) -> -5.4414056 | P81: =AD6*COS((P$71/180*PI())-ATAN((AD6*SIN(P$71/180*PI())/($C$8+AD6*COS(P$71/180*PI()))))) -> -3.154616802 | Q81: =AC6*COS((Q$71/180*PI())-ATAN((AC6*SIN(Q$71/180*PI())/($C$8+AC6*COS(Q$71/180*PI()))))) -> -0.6386610058 | R81: =AB6*COS((R$71/180*PI())-ATAN((AB6*SIN(R$71/180*PI())/($C$8+AB6*COS(R$71/180*PI()))))) -> 0.7026462834 | S81: =AA6*COS((S$71/180*PI())-ATAN((AA6*SIN(S$71/180*PI())/($C$8+AA6*COS(S$71/180*PI()))))) -> 3.066763872 | T81: =Z6*COS((T$71/180*PI())-ATAN((Z6*SIN(T$71/180*PI())/($C$8+Z6*COS(T$71/180*PI()))))) -> 4.269715468 | U81: =Y6*COS((U$71/180*PI())-ATAN((Y6*SIN(U$71/180*PI())/($C$8+Y6*COS(U$71/180*PI()))))) -> 5.101767527 | V81: =X6*COS((V$71/180*PI())-ATAN((X6*SIN(V$71/180*PI())/($C$8+X6*COS(V$71/180*PI()))))) -> 5.437762032 | W81: =W6*COS((D80/180*PI())-ATAN((W6*SIN(D80/180*PI())/($C$8+W6*COS(D80/180*PI()))))) -> 5.530393419
D82: =R7 ->  | E82: =W7*SIN(D82/180*PI()) ->  | F82: =X7*SIN(F$71/180*PI()) ->  | N82: 0 | O82: =-AE7*SIN((O$71/180*PI())-ATAN((AE7*SIN(O$71/180*PI())/($C$8+AE7*COS(O$71/180*PI()))))) ->  | P82: =-AD7*SIN((P$71/180*PI())-ATAN((AD7*SIN(P$71/180*PI())/($C$8+AD7*COS(P$71/180*PI()))))) ->  | Q82: =-AC7*SIN((Q$71/180*PI())-ATAN((AC7*SIN(Q$71/180*PI())/($C$8+AC7*COS(Q$71/180*PI()))))) ->  | R82: =-AB7*SIN((R$71/180*PI())-ATAN((AB7*SIN(R$71/180*PI())/($C$8+AB7*COS(R$71/180*PI()))))) ->  | S82: =-AA7*SIN((S$71/180*PI())-ATAN((AA7*SIN(S$71/180*PI())/($C$8+AA7*COS(S$71/180*PI()))))) ->  | T82: =-Z7*SIN((T$71/180*PI())-ATAN((Z7*SIN(T$71/180*PI())/($C$8+Z7*COS(T$71/180*PI()))))) ->  | U82: =-Y7*SIN((U$71/180*PI())-ATAN((Y7*SIN(U$71/180*PI())/($C$8+Y7*COS(U$71/180*PI()))))) ->  | V82: =-X7*SIN((V$71/180*PI())-ATAN((X7*SIN(V$71/180*PI())/($C$8+X7*COS(V$71/180*PI()))))) ->  | W82: =-W7*SIN((D82/180*PI())-ATAN((W7*SIN(D82/180*PI())/($C$8+W7*COS(D82/180*PI()))))) -> 
E83: =V7 ->  | F83: =X7*COS(F$71/180*PI()) ->  | N83: =-AF7 ->  | O83: =AE7*COS((O$71/180*PI())-ATAN((AE7*SIN(O$71/180*PI())/($C$8+AE7*COS(O$71/180*PI()))))) ->  | P83: =AD7*COS((P$71/180*PI())-ATAN((AD7*SIN(P$71/180*PI())/($C$8+AD7*COS(P$71/180*PI()))))) ->  | Q83: =AC7*COS((Q$71/180*PI())-ATAN((AC7*SIN(Q$71/180*PI())/($C$8+AC7*COS(Q$71/180*PI()))))) ->  | R83: =AB7*COS((R$71/180*PI())-ATAN((AB7*SIN(R$71/180*PI())/($C$8+AB7*COS(R$71/180*PI()))))) ->  | S83: =AA7*COS((S$71/180*PI())-ATAN((AA7*SIN(S$71/180*PI())/($C$8+AA7*COS(S$71/180*PI()))))) ->  | T83: =Z7*COS((T$71/180*PI())-ATAN((Z7*SIN(T$71/180*PI())/($C$8+Z7*COS(T$71/180*PI()))))) ->  | U83: =Y7*COS((U$71/180*PI())-ATAN((Y7*SIN(U$71/180*PI())/($C$8+Y7*COS(U$71/180*PI()))))) ->  | V83: =X7*COS((V$71/180*PI())-ATAN((X7*SIN(V$71/180*PI())/($C$8+X7*COS(V$71/180*PI()))))) ->  | W83: =W7*COS((D82/180*PI())-ATAN((W7*SIN(D82/180*PI())/($C$8+W7*COS(D82/180*PI()))))) -> 
D86: Hulptabel voor snelheid t.o.v. ware wind voor boot 1 | S86: Tabel met de schijnbare windsnelheden voor de verschillende ware- windhoeken en snelheden | AD86: Tabel met de schijnbare windhoeken voor de verschillende ware- windhoeken en snelheden
C87: Wind(kn) | D87: Up Angle | E87: 0 | F87: V@UA | G87: 52 | H87: 60 | I87: 75 | J87: 90 | K87: 110 | L87: 120 | M87: 135 | N87: 150 | O87: 180 | P87: V@DA | Q87: DA | S87: UA | T87: 52 | U87: 60 | V87: 75 | W87: 90 | X87: 110 | Y87: 120 | Z87: 135 | AA87: 150 | AB87: DA | AD87: UA | AE87: 52 | AF87: 60 | AG87: 75 | AH87: 90 | AI87: 110 | AJ87: 120 | AK87: 135 | AL87: 150 | AM87: DA
B88: Wind=1 | C88: 6 | D88: =IF($B$2=1,(OFFSET(IMS!$BK$1,($C$2-1),(0))),(OFFSET(ORC!$BK$1,($C$2-1),(0)))) -> 44.9 | E88: =IF($B$2=1,(3600/OFFSET(IMS!$BY$1,($C$2-1),(0))),(3600/OFFSET(ORC!$BY$1,($C$2-1),(0)))) -> 2.870355605 | F88: =IF($B$2=1,((3600/OFFSET(IMS!$BY$1,($C$2-1),(0)))/COS(D88/180*PI())),((3600/OFFSET(ORC!$BY$1,($C$2-1),(0)))/COS(D88/180*PI()))) -> 4.052229526 | G88: =IF($B$2=1,(3600/OFFSET(IMS!$CF$1,($C$2-1),(0))),(3600/OFFSET(ORC!$CF$1,($C$2-1),(0)))) -> 4.463732176 | H88: =IF($B$2=1,(3600/OFFSET(IMS!$CM$1,($C$2-1),(0))),(3600/OFFSET(ORC!$CM$1,($C$2-1),(0)))) -> 4.760015867 | I88: =IF($B$2=1,(3600/OFFSET(IMS!$CT$1,($C$2-1),(0))),(3600/OFFSET(ORC!$CT$1,($C$2-1),(0)))) -> 5.020920502 | J88: =IF($B$2=1,(3600/OFFSET(IMS!$DA$1,($C$2-1),(0))),(3600/OFFSET(ORC!$DA$1,($C$2-1),(0)))) -> 4.98132005 | K88: =IF($B$2=1,(3600/OFFSET(IMS!$DH$1,($C$2-1),(0))),(3600/OFFSET(ORC!$DH$1,($C$2-1),(0)))) -> 4.847831942 | L88: =IF($B$2=1,(3600/OFFSET(IMS!$DO$1,($C$2-1),(0))),(3600/OFFSET(ORC!$DO$1,($C$2-1),(0)))) -> 4.666234608 | M88: =IF($B$2=1,(3600/OFFSET(IMS!$DV$1,($C$2-1),(0))),(3600/OFFSET(ORC!$DV$1,($C$2-1),(0)))) -> 4.192872117 | N88: =IF($B$2=1,(3600/OFFSET(IMS!$EC$1,($C$2-1),(0))),(3600/OFFSET(ORC!$EC$1,($C$2-1),(0)))) -> 3.558015418 | O88: =IF($B$2=1,(3600/OFFSET(IMS!$EJ$1,($C$2-1),(0))),(3600/OFFSET(ORC!$EJ$1,($C$2-1),(0)))) -> 3.081400325 | P88: =Main!O88/COS((180-Main!Q88)/180*PI()) -> 3.649530274 | Q88: =IF($B$2=1,(OFFSET(IMS!$BR$1,($C$2-1),(0))),(OFFSET(ORC!$BR$1,($C$2-1),(0)))) -> 147.6 | S88: =SQRT(SUMSQ(($C88*SIN(D88/180*PI())),(F88+$C88*COS(D88/180*PI())))) -> 9.320130439 | T88: =SQRT(SUMSQ(($C88*SIN(G$87/180*PI())),(G88+$C88*COS(G$87/180*PI())))) -> 9.428821781 | U88: 9.339049537 | V88: 8.763775493 | W88: 7.798304267 | X88: 6.293234497 | Y88: 5.456769902 | Z88: 4.242932584 | AA88: 3.418112468 | AB88: =SQRT(SUMSQ(($C88*SIN(Q88/180*PI())),(P88+$C88*COS(Q88/180*PI())))) -> 3.513156318 | AD88: =DEGREES(ACOS((F88+$C88*COS(D88/180*PI()))/S88)) -> 27.02745486 | AE88: =DEGREES(ACOS((G88+$C88*COS(G$87/180*PI()))/T88)) -> 30.09585013 | AF88: 33.80649803 | AG88: 41.39970575 | AH88: 50.29986389 | AI88: 63.62522893 | AJ88: 72.22066866 | AK88: 90.672081 | AL88: 118.6365559 | AM88: =DEGREES(ACOS((P88+$C88*COS(Q88/180*PI()))/AB88)) -> 113.7771787
B89: Wind=2 | C89: 8 | D89: =IF($B$2=1,(OFFSET(IMS!$BK$1,($C$2-1),(1))),(OFFSET(ORC!$BK$1,($C$2-1),(1)))) -> 43.2 | E89: =IF($B$2=1,(3600/OFFSET(IMS!$BY$1,($C$2-1),(1))),(3600/OFFSET(ORC!$BY$1,($C$2-1),(1)))) -> 3.455889412 | F89: =IF($B$2=1,((3600/OFFSET(IMS!$BY$1,($C$2-1),(1)))/COS(D89/180*PI())),((3600/OFFSET(ORC!$BY$1,($C$2-1),(1)))/COS(D89/180*PI()))) -> 4.740793062 | G89: =IF($B$2=1,(3600/OFFSET(IMS!$CF$1,($C$2-1),(1))),(3600/OFFSET(ORC!$CF$1,($C$2-1),(1)))) -> 5.289450485 | H89: =IF($B$2=1,(3600/OFFSET(IMS!$CM$1,($C$2-1),(1))),(3600/OFFSET(ORC!$CM$1,($C$2-1),(1)))) -> 5.628517824 | I89: =IF($B$2=1,(3600/OFFSET(IMS!$CT$1,($C$2-1),(1))),(3600/OFFSET(ORC!$CT$1,($C$2-1),(1)))) -> 5.944517834 | J89: =IF($B$2=1,(3600/OFFSET(IMS!$DA$1,($C$2-1),(1))),(3600/OFFSET(ORC!$DA$1,($C$2-1),(1)))) -> 5.889088827 | K89: =IF($B$2=1,(3600/OFFSET(IMS!$DH$1,($C$2-1),(1))),(3600/OFFSET(ORC!$DH$1,($C$2-1),(1)))) -> 5.893909627 | L89: =IF($B$2=1,(3600/OFFSET(IMS!$DO$1,($C$2-1),(1))),(3600/OFFSET(ORC!$DO$1,($C$2-1),(1)))) -> 5.708848716 | M89: =IF($B$2=1,(3600/OFFSET(IMS!$DV$1,($C$2-1),(1))),(3600/OFFSET(ORC!$DV$1,($C$2-1),(1)))) -> 5.1494779 | N89: =IF($B$2=1,(3600/OFFSET(IMS!$EC$1,($C$2-1),(1))),(3600/OFFSET(ORC!$EC$1,($C$2-1),(1)))) -> 4.525455688 | O89: =IF($B$2=1,(3600/OFFSET(IMS!$EJ$1,($C$2-1),(1))),(3600/OFFSET(ORC!$EJ$1,($C$2-1),(1)))) -> 3.934856268 | P89: =Main!O89/COS((180-Main!Q89)/180*PI()) -> 4.341633521 | Q89: =IF($B$2=1,(OFFSET(IMS!$BR$1,($C$2-1),(1))),(OFFSET(ORC!$BR$1,($C$2-1),(1)))) -> 155 | S89: 11.90669347 | T89: 12.00343537 | U89: 11.86205528 | V89: 11.1334704 | W89: 9.933849567 | X89: 8.153821046 | Y89: 7.135836597 | Z89: 5.67956255 | AA89: 4.666175709 | AB89: =SQRT(SUMSQ(($C89*SIN(Q89/180*PI())),(P89+$C89*COS(Q89/180*PI())))) -> 4.460053961 | AD89: 27.38330228 | AE89: 31.68104498 | AF89: 35.73691586 | AG89: 43.95314598 | AH89: 53.64187387 | AI89: 67.21512413 | AJ89: 76.14449106 | AK89: 95.12527663 | AL89: 120.9926857 | AM89: =DEGREES(ACOS((P89+$C89*COS(Q89/180*PI()))/AB89)) -> 130.7073664
B90: Wind=3 | C90: 10 | D90: =IF($B$2=1,(OFFSET(IMS!$BK$1,($C$2-1),(2))),(OFFSET(ORC!$BK$1,($C$2-1),(2)))) -> 43.5 | E90: =IF($B$2=1,(3600/OFFSET(IMS!$BY$1,($C$2-1),(2))),(3600/OFFSET(ORC!$BY$1,($C$2-1),(2)))) -> 3.894418001 | F90: =IF($B$2=1,((3600/OFFSET(IMS!$BY$1,($C$2-1),(2)))/COS(D90/180*PI())),((3600/OFFSET(ORC!$BY$1,($C$2-1),(2)))/COS(D90/180*PI()))) -> 5.368838708 | G90: =IF($B$2=1,(3600/OFFSET(IMS!$CF$1,($C$2-1),(2))),(3600/OFFSET(ORC!$CF$1,($C$2-1),(2)))) -> 5.997001499 | H90: =IF($B$2=1,(3600/OFFSET(IMS!$CM$1,($C$2-1),(2))),(3600/OFFSET(ORC!$CM$1,($C$2-1),(2)))) -> 6.316897701 | I90: =IF($B$2=1,(3600/OFFSET(IMS!$CT$1,($C$2-1),(2))),(3600/OFFSET(ORC!$CT$1,($C$2-1),(2)))) -> 6.549026742 | J90: =IF($B$2=1,(3600/OFFSET(IMS!$DA$1,($C$2-1),(2))),(3600/OFFSET(ORC!$DA$1,($C$2-1),(2)))) -> 6.559766764 | K90: =IF($B$2=1,(3600/OFFSET(IMS!$DH$1,($C$2-1),(2))),(3600/OFFSET(ORC!$DH$1,($C$2-1),(2)))) -> 6.612784717 | L90: =IF($B$2=1,(3600/OFFSET(IMS!$DO$1,($C$2-1),(2))),(3600/OFFSET(ORC!$DO$1,($C$2-1),(2)))) -> 6.495849874 | M90: =IF($B$2=1,(3600/OFFSET(IMS!$DV$1,($C$2-1),(2))),(3600/OFFSET(ORC!$DV$1,($C$2-1),(2)))) -> 6.059585928 | N90: =IF($B$2=1,(3600/OFFSET(IMS!$EC$1,($C$2-1),(2))),(3600/OFFSET(ORC!$EC$1,($C$2-1),(2)))) -> 5.371530886 | O90: =IF($B$2=1,(3600/OFFSET(IMS!$EJ$1,($C$2-1),(2))),(3600/OFFSET(ORC!$EJ$1,($C$2-1),(2)))) -> 4.695448024 | P90: =Main!O90/COS((180-Main!Q90)/180*PI()) -> 4.805761519 | Q90: =IF($B$2=1,(OFFSET(IMS!$BR$1,($C$2-1),(2))),(OFFSET(ORC!$BR$1,($C$2-1),(2)))) -> 167.7 | S90: 14.37750984 | T90: 14.48469823 | U90: 14.25033942 | V90: 13.29624038 | W90: 11.95953762 | X90: 9.924455158 | Y90: 8.78849059 | Z90: 7.143045261 | AA90: 5.984621957 | AB90: 5.402442346 | AD90: 28.60521472 | AE90: 32.95838873 | AF90: 37.42501728 | AG90: 46.59088671 | AH90: 56.73605956 | AI90: 71.23492985 | AJ90: 80.20022963 | AK90: 98.14065808 | AL90: 123.3347045 | AM90: 156.7762814
B91: Wind=4 | C91: 12 | D91: =IF($B$2=1,(OFFSET(IMS!$BK$1,($C$2-1),(3))),(OFFSET(ORC!$BK$1,($C$2-1),(3)))) -> 43.5 | E91: =IF($B$2=1,(3600/OFFSET(IMS!$BY$1,($C$2-1),(3))),(3600/OFFSET(ORC!$BY$1,($C$2-1),(3)))) -> 4.305190146 | F91: =IF($B$2=1,((3600/OFFSET(IMS!$BY$1,($C$2-1),(3)))/COS(D91/180*PI())),((3600/OFFSET(ORC!$BY$1,($C$2-1),(3)))/COS(D91/180*PI()))) -> 5.93512856 | G91: =IF($B$2=1,(3600/OFFSET(IMS!$CF$1,($C$2-1),(3))),(3600/OFFSET(ORC!$CF$1,($C$2-1),(3)))) -> 6.473655817 | H91: =IF($B$2=1,(3600/OFFSET(IMS!$CM$1,($C$2-1),(3))),(3600/OFFSET(ORC!$CM$1,($C$2-1),(3)))) -> 6.688963211 | I91: =IF($B$2=1,(3600/OFFSET(IMS!$CT$1,($C$2-1),(3))),(3600/OFFSET(ORC!$CT$1,($C$2-1),(3)))) -> 6.853226728 | J91: =IF($B$2=1,(3600/OFFSET(IMS!$DA$1,($C$2-1),(3))),(3600/OFFSET(ORC!$DA$1,($C$2-1),(3)))) -> 6.923076923 | K91: =IF($B$2=1,(3600/OFFSET(IMS!$DH$1,($C$2-1),(3))),(3600/OFFSET(ORC!$DH$1,($C$2-1),(3)))) -> 6.971340046 | L91: =IF($B$2=1,(3600/OFFSET(IMS!$DO$1,($C$2-1),(3))),(3600/OFFSET(ORC!$DO$1,($C$2-1),(3)))) -> 6.88731586 | M91: =IF($B$2=1,(3600/OFFSET(IMS!$DV$1,($C$2-1),(3))),(3600/OFFSET(ORC!$DV$1,($C$2-1),(3)))) -> 6.632277082 | N91: =IF($B$2=1,(3600/OFFSET(IMS!$EC$1,($C$2-1),(3))),(3600/OFFSET(ORC!$EC$1,($C$2-1),(3)))) -> 6.152794394 | O91: =IF($B$2=1,(3600/OFFSET(IMS!$EJ$1,($C$2-1),(3))),(3600/OFFSET(ORC!$EJ$1,($C$2-1),(3)))) -> 5.447941889 | P91: =Main!O91/COS((180-Main!Q91)/180*PI()) -> 5.522091643 | Q91: =IF($B$2=1,(OFFSET(IMS!$BR$1,($C$2-1),(3))),(OFFSET(ORC!$BR$1,($C$2-1),(3)))) -> 170.6 | S91: 16.80923301 | T91: 16.77981381 | U91: 16.40151784 | V91: 15.28190469 | W91: 13.85384402 | X91: 11.63509573 | Y91: 10.43011646 | Z91: 8.685253301 | AA91: 7.34666243 | AB91: 6.61384085 | AD91: 29.43341527 | AE91: 34.30110306 | AF91: 39.31759506 | AG91: 49.33090332 | AH91: 60.01836063 | AI91: 75.73434475 | AJ91: 85.11980731 | AK91: 102.3187806 | AL91: 125.2444571 | AM91: 162.7624018
B92: Wind=5 | C92: 14 | D92: =IF($B$2=1,(OFFSET(IMS!$BK$1,($C$2-1),(4))),(OFFSET(ORC!$BK$1,($C$2-1),(4)))) -> 42 | E92: =IF($B$2=1,(3600/OFFSET(IMS!$BY$1,($C$2-1),(4))),(3600/OFFSET(ORC!$BY$1,($C$2-1),(4)))) -> 4.593594488 | F92: =IF($B$2=1,((3600/OFFSET(IMS!$BY$1,($C$2-1),(4)))/COS(D92/180*PI())),((3600/OFFSET(ORC!$BY$1,($C$2-1),(4)))/COS(D92/180*PI()))) -> 6.181291089 | G92: =IF($B$2=1,(3600/OFFSET(IMS!$CF$1,($C$2-1),(4))),(3600/OFFSET(ORC!$CF$1,($C$2-1),(4)))) -> 6.726457399 | H92: =IF($B$2=1,(3600/OFFSET(IMS!$CM$1,($C$2-1),(4))),(3600/OFFSET(ORC!$CM$1,($C$2-1),(4)))) -> 6.908462867 | I92: =IF($B$2=1,(3600/OFFSET(IMS!$CT$1,($C$2-1),(4))),(3600/OFFSET(ORC!$CT$1,($C$2-1),(4)))) -> 7.072691552 | J92: =IF($B$2=1,(3600/OFFSET(IMS!$DA$1,($C$2-1),(4))),(3600/OFFSET(ORC!$DA$1,($C$2-1),(4)))) -> 7.096392667 | K92: =IF($B$2=1,(3600/OFFSET(IMS!$DH$1,($C$2-1),(4))),(3600/OFFSET(ORC!$DH$1,($C$2-1),(4)))) -> 7.265388496 | L92: =IF($B$2=1,(3600/OFFSET(IMS!$DO$1,($C$2-1),(4))),(3600/OFFSET(ORC!$DO$1,($C$2-1),(4)))) -> 7.17560295 | M92: =IF($B$2=1,(3600/OFFSET(IMS!$DV$1,($C$2-1),(4))),(3600/OFFSET(ORC!$DV$1,($C$2-1),(4)))) -> 6.956521739 | N92: =IF($B$2=1,(3600/OFFSET(IMS!$EC$1,($C$2-1),(4))),(3600/OFFSET(ORC!$EC$1,($C$2-1),(4)))) -> 6.654343808 | O92: =IF($B$2=1,(3600/OFFSET(IMS!$EJ$1,($C$2-1),(4))),(3600/OFFSET(ORC!$EJ$1,($C$2-1),(4)))) -> 6.12244898 | P92: =Main!O92/COS((180-Main!Q92)/180*PI()) -> 6.15617314 | Q92: =IF($B$2=1,(OFFSET(IMS!$BR$1,($C$2-1),(4))),(OFFSET(ORC!$BR$1,($C$2-1),(4)))) -> 174 | S92: 19.0480709 | T92: 18.8997198 | U92: 18.45116092 | V92: 17.24176005 | W92: 15.69582075 | X92: 13.38687462 | Y92: 12.12562726 | Z92: 10.32768567 | AA92: 8.883750874 | AB92: 7.903789996 | AD92: 29.45891501 | AE92: 35.71263808 | AF92: 41.07947847 | AG92: 51.65731777 | AH92: 63.12022489 | AI92: 79.33653894 | AJ92: 89.17021533 | AK92: 106.5564338 | AL92: 128.0051456 | AM92: 169.3300353
B93: Wind=6 | C93: 16 | D93: =IF($B$2=1,(OFFSET(IMS!$BK$1,($C$2-1),(5))),(OFFSET(ORC!$BK$1,($C$2-1),(5)))) -> 40.7 | E93: =IF($B$2=1,(3600/OFFSET(IMS!$BY$1,($C$2-1),(5))),(3600/OFFSET(ORC!$BY$1,($C$2-1),(5)))) -> 4.772636882 | F93: =IF($B$2=1,((3600/OFFSET(IMS!$BY$1,($C$2-1),(5)))/COS(D93/180*PI())),((3600/OFFSET(ORC!$BY$1,($C$2-1),(5)))/COS(D93/180*PI()))) -> 6.295239055 | G93: =IF($B$2=1,(3600/OFFSET(IMS!$CF$1,($C$2-1),(5))),(3600/OFFSET(ORC!$CF$1,($C$2-1),(5)))) -> 6.861063465 | H93: =IF($B$2=1,(3600/OFFSET(IMS!$CM$1,($C$2-1),(5))),(3600/OFFSET(ORC!$CM$1,($C$2-1),(5)))) -> 7.061592781 | I93: =IF($B$2=1,(3600/OFFSET(IMS!$CT$1,($C$2-1),(5))),(3600/OFFSET(ORC!$CT$1,($C$2-1),(5)))) -> 7.265388496 | J93: =IF($B$2=1,(3600/OFFSET(IMS!$DA$1,($C$2-1),(5))),(3600/OFFSET(ORC!$DA$1,($C$2-1),(5)))) -> 7.249295207 | K93: =IF($B$2=1,(3600/OFFSET(IMS!$DH$1,($C$2-1),(5))),(3600/OFFSET(ORC!$DH$1,($C$2-1),(5)))) -> 7.566204288 | L93: =IF($B$2=1,(3600/OFFSET(IMS!$DO$1,($C$2-1),(5))),(3600/OFFSET(ORC!$DO$1,($C$2-1),(5)))) -> 7.467330429 | M93: =IF($B$2=1,(3600/OFFSET(IMS!$DV$1,($C$2-1),(5))),(3600/OFFSET(ORC!$DV$1,($C$2-1),(5)))) -> 7.231820008 | N93: =IF($B$2=1,(3600/OFFSET(IMS!$EC$1,($C$2-1),(5))),(3600/OFFSET(ORC!$EC$1,($C$2-1),(5)))) -> 6.96190292 | O93: =IF($B$2=1,(3600/OFFSET(IMS!$EJ$1,($C$2-1),(5))),(3600/OFFSET(ORC!$EJ$1,($C$2-1),(5)))) -> 6.607929515 | P93: =Main!O93/COS((180-Main!Q93)/180*PI()) -> 6.611564448 | Q93: =IF($B$2=1,(OFFSET(IMS!$BR$1,($C$2-1),(5))),(OFFSET(ORC!$BR$1,($C$2-1),(5)))) -> 178.1 | S93: 21.1743811 | T93: 20.93430559 | U93: 20.4658637 | V93: 19.20831433 | W93: 17.56565629 | X93: 15.18018546 | Y93: 13.86664115 | Z93: 12.02754396 | AA93: 10.56097434 | AB93: 9.39462825 | AD93: 29.52117528 | AE93: 37.03288056 | AF93: 42.61352256 | AG93: 53.57065582 | AH93: 65.62562534 | AI93: 82.07161697 | AJ93: 92.20148692 | AK93: 109.8390067 | AL93: 130.755189 | AM93: 176.7629795
B94: Wind=7 | C94: 20 | D94: =IF($B$2=1,(OFFSET(IMS!$BK$1,($C$2-1),(6))),(OFFSET(ORC!$BK$1,($C$2-1),(6)))) -> 39.3 | E94: =IF($B$2=1,(3600/OFFSET(IMS!$BY$1,($C$2-1),(6))),(3600/OFFSET(ORC!$BY$1,($C$2-1),(6)))) -> 4.934210526 | F94: =IF($B$2=1,((3600/OFFSET(IMS!$BY$1,($C$2-1),(6)))/COS(D94/180*PI())),((3600/OFFSET(ORC!$BY$1,($C$2-1),(6)))/COS(D94/180*PI()))) -> 6.376265364 | G94: =IF($B$2=1,(3600/OFFSET(IMS!$CF$1,($C$2-1),(6))),(3600/OFFSET(ORC!$CF$1,($C$2-1),(6)))) -> 6.972690296 | H94: =IF($B$2=1,(3600/OFFSET(IMS!$CM$1,($C$2-1),(6))),(3600/OFFSET(ORC!$CM$1,($C$2-1),(6)))) -> 7.204322594 | I94: =IF($B$2=1,(3600/OFFSET(IMS!$CT$1,($C$2-1),(6))),(3600/OFFSET(ORC!$CT$1,($C$2-1),(6)))) -> 7.578947368 | J94: =IF($B$2=1,(3600/OFFSET(IMS!$DA$1,($C$2-1),(6))),(3600/OFFSET(ORC!$DA$1,($C$2-1),(6)))) -> 7.641689662 | K94: =IF($B$2=1,(3600/OFFSET(IMS!$DH$1,($C$2-1),(6))),(3600/OFFSET(ORC!$DH$1,($C$2-1),(6)))) -> 7.926023778 | L94: =IF($B$2=1,(3600/OFFSET(IMS!$DO$1,($C$2-1),(6))),(3600/OFFSET(ORC!$DO$1,($C$2-1),(6)))) -> 8.060904613 | M94: =IF($B$2=1,(3600/OFFSET(IMS!$DV$1,($C$2-1),(6))),(3600/OFFSET(ORC!$DV$1,($C$2-1),(6)))) -> 7.822685789 | N94: =IF($B$2=1,(3600/OFFSET(IMS!$EC$1,($C$2-1),(6))),(3600/OFFSET(ORC!$EC$1,($C$2-1),(6)))) -> 7.510953474 | O94: =IF($B$2=1,(3600/OFFSET(IMS!$EJ$1,($C$2-1),(6))),(3600/OFFSET(ORC!$EJ$1,($C$2-1),(6)))) -> 7.182761373 | P94: =Main!O94/COS((180-Main!Q94)/180*PI()) -> 7.183855509 | Q94: =IF($B$2=1,(OFFSET(IMS!$BR$1,($C$2-1),(6))),(OFFSET(ORC!$BR$1,($C$2-1),(6)))) -> 179 | S94: 25.25916034 | T94: 24.90644659 | U94: 24.41288012 | V94: 23.1495892 | W94: 21.41017097 | X94: 18.82518158 | Y94: 17.42871455 | Z94: 15.48984978 | AA94: 14.0081177 | AB94: 12.81785181 | AD94: 30.09967838 | AE94: 39.25526892 | AF94: 45.19281521 | AG94: 56.56463865 | AH94: 69.0889191 | AI94: 86.69400135 | AJ94: 96.38787675 | AK94: 114.0776032 | AL94: 134.4491859 | AM94: 178.4395625
D96: Hulptabel voor het Polair diagram van boot 1
E97: True Wind | O97: Apparent Wind
E98: V@UA | F98: 52 | G98: 60 | H98: 75 | I98: 90 | J98: 110 | K98: 120 | L98: 135 | M98: 150 | N98: VMG180 | O98: 150 | P98: 135 | Q98: 120 | R98: 110 | S98: 90 | T98: 75 | U98: 60 | V98: 52 | W98: V@UA
E99: =F88*SIN(D88/180*PI()) -> 2.860353621 | F99: =G88*SIN(G$87/180*PI()) -> 3.517468956 | G99: =H88*SIN(H$87/180*PI()) -> 4.122294663 | H99: 4.849836785 | I99: 4.98132005 | J99: 4.555471903 | K99: 4.04107771 | L99: 2.964808307 | M99: 1.779007709 | N99: 0 | O99: =-N88*SIN((O$98/180*PI())-ATAN((N88*SIN(O$98/180*PI())/(C88+N88*COS(O$98/180*PI()))))) -> -3.122789655 | P99: =-M88*SIN((P$98/180*PI())-ATAN((M88*SIN(P$98/180*PI())/(C88+M88*COS(P$98/180*PI()))))) -> -4.192583665 | Q99: =-L88*SIN((Q$98/180*PI())-ATAN((L88*SIN(Q$98/180*PI())/(C88+L88*COS(Q$98/180*PI()))))) -> -4.443373405 | R99: =-K88*SIN((R$98/180*PI())-ATAN((K88*SIN(R$98/180*PI())/(C88+K88*COS(R$98/180*PI()))))) -> -4.343208795 | S99: =-J88*SIN((S$98/180*PI())-ATAN((J88*SIN(S$98/180*PI())/(C88+J88*COS(S$98/180*PI()))))) -> -3.832617871 | T99: =-I88*SIN((T$98/180*PI())-ATAN((I88*SIN(T$98/180*PI())/(C88+I88*COS(T$98/180*PI()))))) -> -3.320374961 | U99: =-H88*SIN((U$98/180*PI())-ATAN((H88*SIN(U$98/180*PI())/(C88+H88*COS(U$98/180*PI()))))) -> -2.64842454 | V99: =-G88*SIN((V$98/180*PI())-ATAN((G88*SIN(V$98/180*PI())/(C88+G88*COS(V$98/180*PI()))))) -> -2.238329902 | W99: =-F88*SIN((D88/180*PI())-ATAN((F88*SIN(D88/180*PI())/(C88+F88*COS(D88/180*PI()))))) -> -1.841403598
E100: =E88 -> 2.870355605 | F100: =G88*COS(G$87/180*PI()) -> 2.748147937 | G100: =H88*COS(H$87/180*PI()) -> 2.380007933 | H100: 1.29950985 | I100: 3.051428281e-16 | J100: -1.658056176 | K100: -2.333117304 | L100: -2.964808307 | M100: -3.081331739 | N100: =-O88 -> -3.081400325 | O100: =N88*COS((O$98/180*PI())-ATAN((N88*SIN(O$98/180*PI())/(C88+N88*COS(O$98/180*PI()))))) -> -1.705185764 | P100: =M88*COS((P$98/180*PI())-ATAN((M88*SIN(P$98/180*PI())/(C88+M88*COS(P$98/180*PI()))))) -> -0.04918137259 | Q100: =L88*COS((Q$98/180*PI())-ATAN((L88*SIN(Q$98/180*PI())/(C88+L88*COS(Q$98/180*PI()))))) -> 1.424843219 | R100: =K88*COS((R$98/180*PI())-ATAN((K88*SIN(R$98/180*PI())/(C88+K88*COS(R$98/180*PI()))))) -> 2.153604397 | S100: =J88*COS((S$98/180*PI())-ATAN((J88*SIN(S$98/180*PI())/(C88+J88*COS(S$98/180*PI()))))) -> 3.181916041 | T100: =I88*COS((T$98/180*PI())-ATAN((I88*SIN(T$98/180*PI())/(C88+I88*COS(T$98/180*PI()))))) -> 3.766265101 | U100: =H88*COS((U$98/180*PI())-ATAN((H88*SIN(U$98/180*PI())/(C88+H88*COS(U$98/180*PI()))))) -> 3.955198921 | V100: =G88*COS((V$98/180*PI())-ATAN((G88*SIN(V$98/180*PI())/(C88+G88*COS(V$98/180*PI()))))) -> 3.861966363 | W100: =F88*COS((D88/180*PI())-ATAN((F88*SIN(D88/180*PI())/(C88+F88*COS(D88/180*PI()))))) -> 3.609681
E101: =F89*SIN(D89/180*PI()) -> 3.245296171 | F101: =G89*SIN(G$87/180*PI()) -> 4.168143863 | G101: 4.874439421 | H101: 5.7419633 | I101: 5.889088827 | J101: 5.538463384 | K101: 4.944008014 | L101: 3.641230743 | M101: 2.262727844 | N101: 0 | O101: =-N89*SIN((O$98/180*PI())-ATAN((N89*SIN(O$98/180*PI())/(C89+N89*COS(O$98/180*PI()))))) -> -3.879370148 | P101: =-M89*SIN((P$98/180*PI())-ATAN((M89*SIN(P$98/180*PI())/(C89+M89*COS(P$98/180*PI()))))) -> -5.12888901 | Q101: =-L89*SIN((Q$98/180*PI())-ATAN((L89*SIN(Q$98/180*PI())/(C89+L89*COS(Q$98/180*PI()))))) -> -5.542736801 | R101: =-K89*SIN((R$98/180*PI())-ATAN((K89*SIN(R$98/180*PI())/(C89+K89*COS(R$98/180*PI()))))) -> -5.433980808 | S101: =-J89*SIN((S$98/180*PI())-ATAN((J89*SIN(S$98/180*PI())/(C89+J89*COS(S$98/180*PI()))))) -> -4.742643856 | T101: =-I89*SIN((T$98/180*PI())-ATAN((I89*SIN(T$98/180*PI())/(C89+I89*COS(T$98/180*PI()))))) -> -4.125910857 | U101: =-H89*SIN((U$98/180*PI())-ATAN((H89*SIN(U$98/180*PI())/(C89+H89*COS(U$98/180*PI()))))) -> -3.287416425 | V101: =-G89*SIN((V$98/180*PI())-ATAN((G89*SIN(V$98/180*PI())/(C89+G89*COS(V$98/180*PI()))))) -> -2.777967297 | W101: =-F89*SIN((D89/180*PI())-ATAN((F89*SIN(D89/180*PI())/(C89+F89*COS(D89/180*PI()))))) -> -2.180485239
E102: =E89 -> 3.455889412 | F102: =G89*COS(G$87/180*PI()) -> 3.256510889 | G102: 2.814258912 | H102: 1.538554429 | I102: 3.607504039e-16 | J102: -2.015835815 | K102: -2.854424358 | L102: -3.641230743 | M102: -3.91915959 | N102: =-O89 -> -3.934856268 | O102: =N89*COS((O$98/180*PI())-ATAN((N89*SIN(O$98/180*PI())/(C89+N89*COS(O$98/180*PI()))))) -> -2.330286772 | P102: =M89*COS((P$98/180*PI())-ATAN((M89*SIN(P$98/180*PI())/(C89+M89*COS(P$98/180*PI()))))) -> -0.4600219251 | Q102: =L89*COS((Q$98/180*PI())-ATAN((L89*SIN(Q$98/180*PI())/(C89+L89*COS(Q$98/180*PI()))))) -> 1.367121943 | R102: =K89*COS((R$98/180*PI())-ATAN((K89*SIN(R$98/180*PI())/(C89+K89*COS(R$98/180*PI()))))) -> 2.28254754 | S102: =J89*COS((S$98/180*PI())-ATAN((J89*SIN(S$98/180*PI())/(C89+J89*COS(S$98/180*PI()))))) -> 3.491231368 | T102: =I89*COS((T$98/180*PI())-ATAN((I89*SIN(T$98/180*PI())/(C89+I89*COS(T$98/180*PI()))))) -> 4.279503694 | U102: =H89*COS((U$98/180*PI())-ATAN((H89*SIN(U$98/180*PI())/(C89+H89*COS(U$98/180*PI()))))) -> 4.568709461 | V102: =G89*COS((V$98/180*PI())-ATAN((G89*SIN(V$98/180*PI())/(C89+G89*COS(V$98/180*PI()))))) -> 4.50124251 | W102: =F89*COS((D89/180*PI())-ATAN((F89*SIN(D89/180*PI())/(C89+F89*COS(D89/180*PI()))))) -> 4.209584657
E103: =F90*SIN(D90/180*PI()) -> 3.695664691 | F103: =G90*SIN(G$87/180*PI()) -> 4.725701671 | G103: 5.470593882 | H103: 6.325874067 | I103: 6.559766764 | J103: 6.213985002 | K103: 5.62557101 | L103: 4.284774301 | M103: 2.685765443 | N103: 0 | O103: =-N90*SIN((O$98/180*PI())-ATAN((N90*SIN(O$98/180*PI())/(C90+N90*COS(O$98/180*PI()))))) -> -4.487777946 | P103: =-M90*SIN((P$98/180*PI())-ATAN((M90*SIN(P$98/180*PI())/(C90+M90*COS(P$98/180*PI()))))) -> -5.998526041 | Q103: =-L90*SIN((Q$98/180*PI())-ATAN((L90*SIN(Q$98/180*PI())/(C90+L90*COS(Q$98/180*PI()))))) -> -6.401066204 | R103: =-K90*SIN((R$98/180*PI())-ATAN((K90*SIN(R$98/180*PI())/(C90+K90*COS(R$98/180*PI()))))) -> -6.261285786 | S103: =-J90*SIN((S$98/180*PI())-ATAN((J90*SIN(S$98/180*PI())/(C90+J90*COS(S$98/180*PI()))))) -> -5.484966873 | T103: =-I90*SIN((T$98/180*PI())-ATAN((I90*SIN(T$98/180*PI())/(C90+I90*COS(T$98/180*PI()))))) -> -4.757641173 | U103: =-H90*SIN((U$98/180*PI())-ATAN((H90*SIN(U$98/180*PI())/(C90+H90*COS(U$98/180*PI()))))) -> -3.838921812 | V103: =-G90*SIN((V$98/180*PI())-ATAN((G90*SIN(V$98/180*PI())/(C90+G90*COS(V$98/180*PI()))))) -> -3.262547549 | W103: =-F90*SIN((D90/180*PI())-ATAN((F90*SIN(D90/180*PI())/(C90+F90*COS(D90/180*PI()))))) -> -2.570448383
E104: =E90 -> 3.894418001 | F104: =G90*COS(G$87/180*PI()) -> 3.692122791 | G104: 3.158448851 | H104: 1.695012848 | I104: 4.018344058e-16 | J104: -2.261705577 | K104: -3.247924937 | L104: -4.284774301 | M104: -4.651882205 | N104: =-O90 -> -4.695448024 | O104: =N90*COS((O$98/180*PI())-ATAN((N90*SIN(O$98/180*PI())/(C90+N90*COS(O$98/180*PI()))))) -> -2.951811846 | P104: =M90*COS((P$98/180*PI())-ATAN((M90*SIN(P$98/180*PI())/(C90+M90*COS(P$98/180*PI()))))) -> -0.858059996 | Q104: =L90*COS((Q$98/180*PI())-ATAN((L90*SIN(Q$98/180*PI())/(C90+L90*COS(Q$98/180*PI()))))) -> 1.1056297 | R104: =K90*COS((R$98/180*PI())-ATAN((K90*SIN(R$98/180*PI())/(C90+K90*COS(R$98/180*PI()))))) -> 2.127256924 | S104: =J90*COS((S$98/180*PI())-ATAN((J90*SIN(S$98/180*PI())/(C90+J90*COS(S$98/180*PI()))))) -> 3.598010339 | T104: =I90*COS((T$98/180*PI())-ATAN((I90*SIN(T$98/180*PI())/(C90+I90*COS(T$98/180*PI()))))) -> 4.500511275 | U104: =H90*COS((U$98/180*PI())-ATAN((H90*SIN(U$98/180*PI())/(C90+H90*COS(U$98/180*PI()))))) -> 5.016560165 | V104: =G90*COS((V$98/180*PI())-ATAN((G90*SIN(V$98/180*PI())/(C90+G90*COS(V$98/180*PI()))))) -> 5.031879417 | W104: =F90*COS((D90/180*PI())-ATAN((F90*SIN(D90/180*PI())/(C90+F90*COS(D90/180*PI()))))) -> 4.713515056
E105: =F91*SIN(D91/180*PI()) -> 4.085472901 | F105: =G91*SIN(G$87/180*PI()) -> 5.101310399 | G105: 5.792812065 | H105: 6.61970869 | I105: 6.923076923 | J105: 6.550916799 | K105: 5.964590499 | L105: 4.689728099 | M105: 3.076397197 | N105: 0 | O105: =-N91*SIN((O$98/180*PI())-ATAN((N91*SIN(O$98/180*PI())/(C91+N91*COS(O$98/180*PI()))))) -> -5.024971096 | P105: =-M91*SIN((P$98/180*PI())-ATAN((M91*SIN(P$98/180*PI())/(C91+M91*COS(P$98/180*PI()))))) -> -6.479573507 | Q105: =-L91*SIN((Q$98/180*PI())-ATAN((L91*SIN(Q$98/180*PI())/(C91+L91*COS(Q$98/180*PI()))))) -> -6.862347725 | R105: =-K91*SIN((R$98/180*PI())-ATAN((K91*SIN(R$98/180*PI())/(C91+K91*COS(R$98/180*PI()))))) -> -6.756369126 | S105: =-J91*SIN((S$98/180*PI())-ATAN((J91*SIN(S$98/180*PI())/(C91+J91*COS(S$98/180*PI()))))) -> -5.996669442 | T105: =-I91*SIN((T$98/180*PI())-ATAN((I91*SIN(T$98/180*PI())/(C91+I91*COS(T$98/180*PI()))))) -> -5.198076149 | U105: =-H91*SIN((U$98/180*PI())-ATAN((H91*SIN(U$98/180*PI())/(C91+H91*COS(U$98/180*PI()))))) -> -4.23825072 | V105: =-G91*SIN((V$98/180*PI())-ATAN((G91*SIN(V$98/180*PI())/(C91+G91*COS(V$98/180*PI()))))) -> -3.648176642 | W105: =-F91*SIN((D91/180*PI())-ATAN((F91*SIN(D91/180*PI())/(C91+F91*COS(D91/180*PI()))))) -> -2.916592017
E106: =E91 -> 4.305190146 | F106: =G91*COS(G$87/180*PI()) -> 3.985580491 | G106: 3.344481605 | H106: 1.773745598 | I106: 4.240898498e-16 | J106: -2.384338722 | K106: -3.44365793 | L106: -4.689728099 | M106: -5.32847625 | N106: =-O91 -> -5.447941889 | O106: =N91*COS((O$98/180*PI())-ATAN((N91*SIN(O$98/180*PI())/(C91+N91*COS(O$98/180*PI()))))) -> -3.55056958 | P106: =M91*COS((P$98/180*PI())-ATAN((M91*SIN(P$98/180*PI())/(C91+M91*COS(P$98/180*PI()))))) -> -1.415000516 | Q106: =L91*COS((Q$98/180*PI())-ATAN((L91*SIN(Q$98/180*PI())/(C91+L91*COS(Q$98/180*PI()))))) -> 0.5859210313 | R106: =K91*COS((R$98/180*PI())-ATAN((K91*SIN(R$98/180*PI())/(C91+K91*COS(R$98/180*PI()))))) -> 1.717864454 | S106: =J91*COS((S$98/180*PI())-ATAN((J91*SIN(S$98/180*PI())/(C91+J91*COS(S$98/180*PI()))))) -> 3.459616986 | T106: =I91*COS((T$98/180*PI())-ATAN((I91*SIN(T$98/180*PI())/(C91+I91*COS(T$98/180*PI()))))) -> 4.466175201 | U106: =H91*COS((U$98/180*PI())-ATAN((H91*SIN(U$98/180*PI())/(C91+H91*COS(U$98/180*PI()))))) -> 5.174887406 | V106: =G91*COS((V$98/180*PI())-ATAN((G91*SIN(V$98/180*PI())/(C91+G91*COS(V$98/180*PI()))))) -> 5.347805796 | W106: =F91*COS((D91/180*PI())-ATAN((F91*SIN(D91/180*PI())/(C91+F91*COS(D91/180*PI()))))) -> 5.169065876
E107: =F92*SIN(D92/180*PI()) -> 4.136091055 | F107: =G92*SIN(G$87/180*PI()) -> 5.300520764 | G107: 5.982904344 | H107: 6.831695432 | I107: 7.096392667 | J107: 6.827231957 | K107: 6.214254442 | L107: 4.919003695 | M107: 3.327171904 | N107: 0 | O107: =-N92*SIN((O$98/180*PI())-ATAN((N92*SIN(O$98/180*PI())/(C92+N92*COS(O$98/180*PI()))))) -> -5.243326531 | P107: =-M92*SIN((P$98/180*PI())-ATAN((M92*SIN(P$98/180*PI())/(C92+M92*COS(P$98/180*PI()))))) -> -6.668101059 | Q107: =-L92*SIN((Q$98/180*PI())-ATAN((L92*SIN(Q$98/180*PI())/(C92+L92*COS(Q$98/180*PI()))))) -> -7.17485045 | R107: =-K92*SIN((R$98/180*PI())-ATAN((K92*SIN(R$98/180*PI())/(C92+K92*COS(R$98/180*PI()))))) -> -7.139922509 | S107: =-J92*SIN((S$98/180*PI())-ATAN((J92*SIN(S$98/180*PI())/(C92+J92*COS(S$98/180*PI()))))) -> -6.329678387 | T107: =-I92*SIN((T$98/180*PI())-ATAN((I92*SIN(T$98/180*PI())/(C92+I92*COS(T$98/180*PI()))))) -> -5.547214193 | U107: =-H92*SIN((U$98/180*PI())-ATAN((H92*SIN(U$98/180*PI())/(C92+H92*COS(U$98/180*PI()))))) -> -4.539587573 | V107: =-G92*SIN((V$98/180*PI())-ATAN((G92*SIN(V$98/180*PI())/(C92+G92*COS(V$98/180*PI()))))) -> -3.926369888 | W107: =-F92*SIN((D92/180*PI())-ATAN((F92*SIN(D92/180*PI())/(C92+F92*COS(D92/180*PI()))))) -> -3.03995481
E108: =E92 -> 4.593594488 | F108: =G92*COS(G$87/180*PI()) -> 4.141220686 | G108: 3.454231434 | H108: 1.830547274 | I108: 4.347067256e-16 | J108: -2.484909215 | K108: -3.587801475 | L108: -4.919003695 | M108: -5.762830783 | N108: =-O92 -> -6.12244898 | O108: =N92*COS((O$98/180*PI())-ATAN((N92*SIN(O$98/180*PI())/(C92+N92*COS(O$98/180*PI()))))) -> -4.097294034 | P108: =M92*COS((P$98/180*PI())-ATAN((M92*SIN(P$98/180*PI())/(C92+M92*COS(P$98/180*PI()))))) -> -1.982327666 | Q108: =L92*COS((Q$98/180*PI())-ATAN((L92*SIN(Q$98/180*PI())/(C92+L92*COS(Q$98/180*PI()))))) -> 0.1039168547 | R108: =K92*COS((R$98/180*PI())-ATAN((K92*SIN(R$98/180*PI())/(C92+K92*COS(R$98/180*PI()))))) -> 1.344387059 | S108: =J92*COS((S$98/180*PI())-ATAN((J92*SIN(S$98/180*PI())/(C92+J92*COS(S$98/180*PI()))))) -> 3.208420235 | T108: =I92*COS((T$98/180*PI())-ATAN((I92*SIN(T$98/180*PI())/(C92+I92*COS(T$98/180*PI()))))) -> 4.387639512 | U108: =H92*COS((U$98/180*PI())-ATAN((H92*SIN(U$98/180*PI())/(C92+H92*COS(U$98/180*PI()))))) -> 5.207590984 | V108: =G92*COS((V$98/180*PI())-ATAN((G92*SIN(V$98/180*PI())/(C92+G92*COS(V$98/180*PI()))))) -> 5.461579318 | W108: =F92*COS((D92/180*PI())-ATAN((F92*SIN(D92/180*PI())/(C92+F92*COS(D92/180*PI()))))) -> 5.382103147
E109: =F93*SIN(D93/180*PI()) -> 4.105115339 | F109: =G93*SIN(G$87/180*PI()) -> 5.406591791 | G109: 6.11551874 | H109: 7.017826387 | I109: 7.249295207 | J109: 7.109906336 | K109: 6.46689785 | L109: 5.113668968 | M109: 3.48095146 | N109: 0 | O109: =-N93*SIN((O$98/180*PI())-ATAN((N93*SIN(O$98/180*PI())/(C93+N93*COS(O$98/180*PI()))))) -> -5.27368229 | P109: =-M93*SIN((P$98/180*PI())-ATAN((M93*SIN(P$98/180*PI())/(C93+M93*COS(P$98/180*PI()))))) -> -6.802611055 | Q109: =-L93*SIN((Q$98/180*PI())-ATAN((L93*SIN(Q$98/180*PI())/(C93+L93*COS(Q$98/180*PI()))))) -> -7.461818941 | R109: =-K93*SIN((R$98/180*PI())-ATAN((K93*SIN(R$98/180*PI())/(C93+K93*COS(R$98/180*PI()))))) -> -7.493880869 | S109: =-J93*SIN((S$98/180*PI())-ATAN((J93*SIN(S$98/180*PI())/(C93+J93*COS(S$98/180*PI()))))) -> -6.603153414 | T109: =-I93*SIN((T$98/180*PI())-ATAN((I93*SIN(T$98/180*PI())/(C93+I93*COS(T$98/180*PI()))))) -> -5.845657265 | U109: =-H93*SIN((U$98/180*PI())-ATAN((H93*SIN(U$98/180*PI())/(C93+H93*COS(U$98/180*PI()))))) -> -4.781049129 | V109: =-G93*SIN((V$98/180*PI())-ATAN((G93*SIN(V$98/180*PI())/(C93+G93*COS(V$98/180*PI()))))) -> -4.132234924 | W109: =-F93*SIN((D93/180*PI())-ATAN((F93*SIN(D93/180*PI())/(C93+F93*COS(D93/180*PI()))))) -> -3.101948771
E110: =E93 -> 4.772636882 | F110: =G93*COS(G$87/180*PI()) -> 4.224092455 | G110: 3.530796391 | H110: 1.880420913 | I110: 4.440731411e-16 | J110: -2.587794275 | K110: -3.733665215 | L110: -5.113668968 | M110: -6.029184788 | N110: =-O93 -> -6.607929515 | O110: =N93*COS((O$98/180*PI())-ATAN((N93*SIN(O$98/180*PI())/(C93+N93*COS(O$98/180*PI()))))) -> -4.544927653 | P110: =M93*COS((P$98/180*PI())-ATAN((M93*SIN(P$98/180*PI())/(C93+M93*COS(P$98/180*PI()))))) -> -2.454323423 | Q110: =L93*COS((Q$98/180*PI())-ATAN((L93*SIN(Q$98/180*PI())/(C93+L93*COS(Q$98/180*PI()))))) -> -0.2868481018 | R110: =K93*COS((R$98/180*PI())-ATAN((K93*SIN(R$98/180*PI())/(C93+K93*COS(R$98/180*PI()))))) -> 1.04364594 | S110: =J93*COS((S$98/180*PI())-ATAN((J93*SIN(S$98/180*PI())/(C93+J93*COS(S$98/180*PI()))))) -> 2.991763025 | T110: =I93*COS((T$98/180*PI())-ATAN((I93*SIN(T$98/180*PI())/(C93+I93*COS(T$98/180*PI()))))) -> 4.314413186 | U110: =H93*COS((U$98/180*PI())-ATAN((H93*SIN(U$98/180*PI())/(C93+H93*COS(U$98/180*PI()))))) -> 5.196889631 | V110: =G93*COS((V$98/180*PI())-ATAN((G93*SIN(V$98/180*PI())/(C93+G93*COS(V$98/180*PI()))))) -> 5.477118439 | W110: =F93*COS((D93/180*PI())-ATAN((F93*SIN(D93/180*PI())/(C93+F93*COS(D93/180*PI()))))) -> 5.47795113
E111: =F94*SIN(D94/180*PI()) -> 4.03860452 | F111: =G94*SIN(G$87/180*PI()) -> 5.494554935 | G111: 6.239126383 | H111: 7.320700999 | I111: 7.641689662 | J111: 7.448026056 | K111: 6.980948172 | L111: 5.531474168 | M111: 3.755476737 | N111: 0 | O111: =-N94*SIN((O$98/180*PI())-ATAN((N94*SIN(O$98/180*PI())/(C94+N94*COS(O$98/180*PI()))))) -> -5.361857771 | P111: =-M94*SIN((P$98/180*PI())-ATAN((M94*SIN(P$98/180*PI())/(C94+M94*COS(P$98/180*PI()))))) -> -7.142063024 | Q111: =-L94*SIN((Q$98/180*PI())-ATAN((L94*SIN(Q$98/180*PI())/(C94+L94*COS(Q$98/180*PI()))))) -> -8.010858347 | R111: =-K94*SIN((R$98/180*PI())-ATAN((K94*SIN(R$98/180*PI())/(C94+K94*COS(R$98/180*PI()))))) -> -7.912833166 | S111: =-J94*SIN((S$98/180*PI())-ATAN((J94*SIN(S$98/180*PI())/(C94+J94*COS(S$98/180*PI()))))) -> -7.138373321 | T111: =-I94*SIN((T$98/180*PI())-ATAN((I94*SIN(T$98/180*PI())/(C94+I94*COS(T$98/180*PI()))))) -> -6.32469193 | U111: =-H94*SIN((U$98/180*PI())-ATAN((H94*SIN(U$98/180*PI())/(C94+H94*COS(U$98/180*PI()))))) -> -5.111339876 | V111: =-G94*SIN((V$98/180*PI())-ATAN((G94*SIN(V$98/180*PI())/(C94+G94*COS(V$98/180*PI()))))) -> -4.412154833 | W111: =-F94*SIN((D94/180*PI())-ATAN((F94*SIN(D94/180*PI())/(C94+F94*COS(D94/180*PI()))))) -> -3.197734577
E112: =E94 -> 4.934210526 | F112: =G94*COS(G$87/180*PI()) -> 4.292816795 | G112: 3.602161297 | H112: 1.961575921 | I112: 4.681102141e-16 | J112: -2.710859789 | K112: -4.030452306 | L112: -5.531474168 | M112: -6.504676515 | N112: =-O94 -> -7.182761373 | O112: =N94*COS((O$98/180*PI())-ATAN((N94*SIN(O$98/180*PI())/(C94+N94*COS(O$98/180*PI()))))) -> -5.259743657 | P112: =M94*COS((P$98/180*PI())-ATAN((M94*SIN(P$98/180*PI())/(C94+M94*COS(P$98/180*PI()))))) -> -3.191449312 | Q112: =L94*COS((Q$98/180*PI())-ATAN((L94*SIN(Q$98/180*PI())/(C94+L94*COS(Q$98/180*PI()))))) -> -0.8968454275 | R112: =K94*COS((R$98/180*PI())-ATAN((K94*SIN(R$98/180*PI())/(C94+K94*COS(R$98/180*PI()))))) -> 0.4570822929 | S112: =J94*COS((S$98/180*PI())-ATAN((J94*SIN(S$98/180*PI())/(C94+J94*COS(S$98/180*PI()))))) -> 2.727461681 | T112: =I94*COS((T$98/180*PI())-ATAN((I94*SIN(T$98/180*PI())/(C94+I94*COS(T$98/180*PI()))))) -> 4.175968774 | U112: =H94*COS((U$98/180*PI())-ATAN((H94*SIN(U$98/180*PI())/(C94+H94*COS(U$98/180*PI()))))) -> 5.077053152 | V112: =G94*COS((V$98/180*PI())-ATAN((G94*SIN(V$98/180*PI())/(C94+G94*COS(V$98/180*PI()))))) -> 5.399194356 | W112: =F94*COS((D94/180*PI())-ATAN((F94*SIN(D94/180*PI())/(C94+F94*COS(D94/180*PI()))))) -> 5.516452987
F115: Hulptabel voor TN berekening
G116: CR6 | H116: CR8 | I116: CR10 | J116: CR12 | K116: CR14 | L116: CR16 | M116: CR20 | O116: WL6 | P116: WL8 | Q116: WL10 | R116: WL12 | S116: WL14 | T116: WL16 | U116: WL20
G117: =IF($B$2=1,(0.242*OFFSET(IMS!BY1,($C$2-1),(0))+0.0455*OFFSET(IMS!CF1,($C$2-1),(0))+0.0657*OFFSET(IMS!CM1,($C$2-1),(0))+0.0859*OFFSET(IMS!CT1,($C$2-1),(0))+0.1002*OFFSET(IMS!DA1,($C$2-1),(0))+0.0859*OFFSET(IMS!DH1,($C$2-1),(0))+0.0716*OFFSET(IMS!DO1,($C$2-1),(0))+0.0859*OFFSET(IMS!DV1,($C$2-1),(0))+0.1301*OFFSET(IMS!EC1,($C$2-1),(0))+0.0872*OFFSET(IMS!EJ1,($C$2-1),(0))),(0)) -> 0 | H117: =IF($B$2=1,(0.242*OFFSET(IMS!BZ1,($C$2-1),(0))+0.0455*OFFSET(IMS!CG1,($C$2-1),(0))+0.0657*OFFSET(IMS!CN1,($C$2-1),(0))+0.0859*OFFSET(IMS!CU1,($C$2-1),(0))+0.1002*OFFSET(IMS!DB1,($C$2-1),(0))+0.0859*OFFSET(IMS!DI1,($C$2-1),(0))+0.0716*OFFSET(IMS!DP1,($C$2-1),(0))+0.0859*OFFSET(IMS!DW1,($C$2-1),(0))+0.1301*OFFSET(IMS!ED1,($C$2-1),(0))+0.0872*OFFSET(IMS!EK1,($C$2-1),(0))),(0)) -> 0 | I117: =IF($B$2=1,(0.242*OFFSET(IMS!CA1,($C$2-1),(0))+0.0455*OFFSET(IMS!CH1,($C$2-1),(0))+0.0657*OFFSET(IMS!CO1,($C$2-1),(0))+0.0859*OFFSET(IMS!CV1,($C$2-1),(0))+0.1002*OFFSET(IMS!DC1,($C$2-1),(0))+0.0859*OFFSET(IMS!DJ1,($C$2-1),(0))+0.0716*OFFSET(IMS!DQ1,($C$2-1),(0))+0.0859*OFFSET(IMS!DX1,($C$2-1),(0))+0.1301*OFFSET(IMS!EE1,($C$2-1),(0))+0.0872*OFFSET(IMS!EL1,($C$2-1),(0))),(0)) -> 0 | J117: =IF($B$2=1,(0.242*OFFSET(IMS!CB1,($C$2-1),(0))+0.0455*OFFSET(IMS!CI1,($C$2-1),(0))+0.0657*OFFSET(IMS!CP1,($C$2-1),(0))+0.0859*OFFSET(IMS!CW1,($C$2-1),(0))+0.1002*OFFSET(IMS!DD1,($C$2-1),(0))+0.0859*OFFSET(IMS!DK1,($C$2-1),(0))+0.0716*OFFSET(IMS!DR1,($C$2-1),(0))+0.0859*OFFSET(IMS!DY1,($C$2-1),(0))+0.1301*OFFSET(IMS!EF1,($C$2-1),(0))+0.0872*OFFSET(IMS!EM1,($C$2-1),(0))),(0)) -> 0 | K117: =IF($B$2=1,(0.242*OFFSET(IMS!CC1,($C$2-1),(0))+0.0455*OFFSET(IMS!CJ1,($C$2-1),(0))+0.0657*OFFSET(IMS!CQ1,($C$2-1),(0))+0.0859*OFFSET(IMS!CX1,($C$2-1),(0))+0.1002*OFFSET(IMS!DE1,($C$2-1),(0))+0.0859*OFFSET(IMS!DL1,($C$2-1),(0))+0.0716*OFFSET(IMS!DS1,($C$2-1),(0))+0.0859*OFFSET(IMS!DZ1,($C$2-1),(0))+0.1301*OFFSET(IMS!EG1,($C$2-1),(0))+0.0872*OFFSET(IMS!EN1,($C$2-1),(0))),(0)) -> 0 | L117: =IF($B$2=1,(0.242*OFFSET(IMS!CD1,($C$2-1),(0))+0.0455*OFFSET(IMS!CK1,($C$2-1),(0))+0.0657*OFFSET(IMS!CR1,($C$2-1),(0))+0.0859*OFFSET(IMS!CY1,($C$2-1),(0))+0.1002*OFFSET(IMS!DF1,($C$2-1),(0))+0.0859*OFFSET(IMS!DM1,($C$2-1),(0))+0.0716*OFFSET(IMS!DT1,($C$2-1),(0))+0.0859*OFFSET(IMS!EA1,($C$2-1),(0))+0.1301*OFFSET(IMS!EH1,($C$2-1),(0))+0.0872*OFFSET(IMS!EO1,($C$2-1),(0))),(0)) -> 0 | M117: =IF($B$2=1,(0.242*OFFSET(IMS!CE1,($C$2-1),(0))+0.0455*OFFSET(IMS!CL1,($C$2-1),(0))+0.0657*OFFSET(IMS!CS1,($C$2-1),(0))+0.0859*OFFSET(IMS!CZ1,($C$2-1),(0))+0.1002*OFFSET(IMS!DG1,($C$2-1),(0))+0.0859*OFFSET(IMS!DN1,($C$2-1),(0))+0.0716*OFFSET(IMS!DU1,($C$2-1),(0))+0.0859*OFFSET(IMS!EB1,($C$2-1),(0))+0.1301*OFFSET(IMS!EI1,($C$2-1),(0))+0.0872*OFFSET(IMS!EP1,($C$2-1),(0))),(0)) -> 0 | O117: =IF($B$2=1,(0.5*OFFSET(IMS!BY1,($C$2-1),(0))+0.5*OFFSET(IMS!EJ1,($C$2-1),(0))),(0)) -> 0 | P117: =IF($B$2=1,(0.5*OFFSET(IMS!BZ1,($C$2-1),(0))+0.5*OFFSET(IMS!EK1,($C$2-1),(0))),(0)) -> 0 | Q117: =IF($B$2=1,(0.5*OFFSET(IMS!CA1,($C$2-1),(0))+0.5*OFFSET(IMS!EL1,($C$2-1),(0))),(0)) -> 0 | R117: =IF($B$2=1,(0.5*OFFSET(IMS!CB1,($C$2-1),(0))+0.5*OFFSET(IMS!EM1,($C$2-1),(0))),(0)) -> 0 | S117: =IF($B$2=1,(0.5*OFFSET(IMS!CC1,($C$2-1),(0))+0.5*OFFSET(IMS!EN1,($C$2-1),(0))),(0)) -> 0 | T117: =IF($B$2=1,(0.5*OFFSET(IMS!CD1,($C$2-1),(0))+0.5*OFFSET(IMS!EO1,($C$2-1),(0))),(0)) -> 0 | U117: =IF($B$2=1,(0.5*OFFSET(IMS!CE1,($C$2-1),(0))+0.5*OFFSET(IMS!EP1,($C$2-1),(0))),(0)) -> 0
G119: CR-L | I119: CR-M | K119: CR-H | O119: WL-L | Q119: WL-M | S119: WL-H
E120: Tripple Numbers voor IMS boot op 1 => | G120: =IF($B$2=1,(675/(G117/2+H117/2)),(0)) -> 0 | I120: =IF($B$2=1,(675/(H117/12+I117/3+J117/3+K117/4)),(0)) -> 0 | K120: =IF($B$2=1,(675/(K117/4+3*L117/8+3*M117/8)),(0)) -> 0 | O120: =IF($B$2=1,(675/(O117/2+P117/2)),(0)) -> 0 | Q120: =IF($B$2=1,(675/(P117/12+Q117/3+R117/3+S117/4)),(0)) -> 0 | S120: =IF($B$2=1,(675/(S117/4+3*T117/8+3*U117/8)),(0)) -> 0

Sheet Detail 1
A2: Zeilnummer: | C2: =Main!$D$2 -> FRA- 5862 | G2: GPH: | H2: =Main!$N$2 -> 715
A3: Naam: | C3: =Main!$E$2 -> YALLAH V | G3: TMF: | H3: =Main!$O$2 -> 0.8751
A4: Type: | C4: =Main!$F$2 -> SAGITTA 35 Short M
A6: Hieronder staan tabellen en grafieken van bootindex 1 (Tabblad Main)
A7: Om gedeeltes te printen, bijvoorbeeld voor gebruik aan boord; selecteer het gewenste gedeelte, ga
A8: naar "Bestand/afdrukbereik/afdrukbereik bepalen". Met "Bestand/afdrukvoorbeeld" kan bekeken worden
A9: hoe het er uit gaat zien en eventueel onder "instellen" nog aangepast worden.
A11: VENT REEL | B11: ANGLE OPTIMAL | F11: VITESSE | O11: ANGLE OPTIMAL
B12: UA | C12: VMG | D12: V@UA | E12: 52 | F12: 60 | G12: 75 | H12: 90 | I12: 110 | J12: 120 | K12: 135 | L12: 150 | M12: V@DA | N12: VMG | O12: DA
A13: 6 | B13: =Main!D88 -> 44.9 | C13: =Main!E88 -> 2.870355605 | D13: =Main!F88 -> 4.052229526 | E13: =Main!G88 -> 4.463732176 | F13: =Main!H88 -> 4.760015867 | G13: =Main!I88 -> 5.020920502 | H13: =Main!J88 -> 4.98132005 | I13: =Main!K88 -> 4.847831942 | J13: =Main!L88 -> 4.666234608 | K13: =Main!M88 -> 4.192872117 | L13: =Main!N88 -> 3.558015418 | M13: =Main!P88 -> 3.649530274 | N13: =Main!O88 -> 3.081400325 | O13: =Main!Q88 -> 147.6
A14: 8 | B14: =Main!D89 -> 43.2 | C14: =Main!E89 -> 3.455889412 | D14: =Main!F89 -> 4.740793062 | E14: =Main!G89 -> 5.289450485 | F14: =Main!H89 -> 5.628517824 | G14: =Main!I89 -> 5.944517834 | H14: =Main!J89 -> 5.889088827 | I14: =Main!K89 -> 5.893909627 | J14: =Main!L89 -> 5.708848716 | K14: =Main!M89 -> 5.1494779 | L14: =Main!N89 -> 4.525455688 | M14: =Main!P89 -> 4.341633521 | N14: =Main!O89 -> 3.934856268 | O14: =Main!Q89 -> 155
A15: 10 | B15: =Main!D90 -> 43.5 | C15: =Main!E90 -> 3.894418001 | D15: =Main!F90 -> 5.368838708 | E15: =Main!G90 -> 5.997001499 | F15: =Main!H90 -> 6.316897701 | G15: =Main!I90 -> 6.549026742 | H15: =Main!J90 -> 6.559766764 | I15: =Main!K90 -> 6.612784717 | J15: =Main!L90 -> 6.495849874 | K15: =Main!M90 -> 6.059585928 | L15: =Main!N90 -> 5.371530886 | M15: =Main!P90 -> 4.805761519 | N15: =Main!O90 -> 4.695448024 | O15: =Main!Q90 -> 167.7
A16: 12 | B16: =Main!D91 -> 43.5 | C16: =Main!E91 -> 4.305190146 | D16: =Main!F91 -> 5.93512856 | E16: =Main!G91 -> 6.473655817 | F16: =Main!H91 -> 6.688963211 | G16: =Main!I91 -> 6.853226728 | H16: =Main!J91 -> 6.923076923 | I16: =Main!K91 -> 6.971340046 | J16: =Main!L91 -> 6.88731586 | K16: =Main!M91 -> 6.632277082 | L16: =Main!N91 -> 6.152794394 | M16: =Main!P91 -> 5.522091643 | N16: =Main!O91 -> 5.447941889 | O16: =Main!Q91 -> 170.6
A17: 14 | B17: =Main!D92 -> 42 | C17: =Main!E92 -> 4.593594488 | D17: =Main!F92 -> 6.181291089 | E17: =Main!G92 -> 6.726457399 | F17: =Main!H92 -> 6.908462867 | G17: =Main!I92 -> 7.072691552 | H17: =Main!J92 -> 7.096392667 | I17: =Main!K92 -> 7.265388496 | J17: =Main!L92 -> 7.17560295 | K17: =Main!M92 -> 6.956521739 | L17: =Main!N92 -> 6.654343808 | M17: =Main!P92 -> 6.15617314 | N17: =Main!O92 -> 6.12244898 | O17: =Main!Q92 -> 174
A18: 16 | B18: =Main!D93 -> 40.7 | C18: =Main!E93 -> 4.772636882 | D18: =Main!F93 -> 6.295239055 | E18: =Main!G93 -> 6.861063465 | F18: =Main!H93 -> 7.061592781 | G18: =Main!I93 -> 7.265388496 | H18: =Main!J93 -> 7.249295207 | I18: =Main!K93 -> 7.566204288 | J18: =Main!L93 -> 7.467330429 | K18: =Main!M93 -> 7.231820008 | L18: =Main!N93 -> 6.96190292 | M18: =Main!P93 -> 6.611564448 | N18: =Main!O93 -> 6.607929515 | O18: =Main!Q93 -> 178.1
A19: 20 | B19: =Main!D94 -> 39.3 | C19: =Main!E94 -> 4.934210526 | D19: =Main!F94 -> 6.376265364 | E19: =Main!G94 -> 6.972690296 | F19: =Main!H94 -> 7.204322594 | G19: =Main!I94 -> 7.578947368 | H19: =Main!J94 -> 7.641689662 | I19: =Main!K94 -> 7.926023778 | J19: =Main!L94 -> 8.060904613 | K19: =Main!M94 -> 7.822685789 | L19: =Main!N94 -> 7.510953474 | M19: =Main!P94 -> 7.183855509 | N19: =Main!O94 -> 7.182761373 | O19: =Main!Q94 -> 179
A20: Snelheden in knopen | D20: UA=Up Angle, VMG=resulterende snelheid recht tegen de wind (bijUA), V@UA=snelheid bij optimale opkruishoek
A21: Hoeken in graden | D21: DA=Down Angle, VMG=resulterende snelheid recht voor de wind (bijDA), V@DA=snelheid bij afkruis opkruishoek
A22: Vent réel | B22: ANGLE OPTIMAL | D22: vitesse du bateau en vent réel / vitesse du vent apparent et l'angle | M22: Optimale afkruis hoek / VMG
B23: UA/VMG | C23: V@UA | D23: 52 | E23: 60 | F23: 75 | G23: 90 | H23: 110 | I23: 120 | J23: 135 | K23: 150 | L23: V@DA | M23: DA/VMG | N23: Ware windhoek
A24: 6 | B24: =Main!D88 -> 44.9 | C24: =Main!F88 -> 4.052229526 | D24: =Main!G88 -> 4.463732176 | E24: =Main!H88 -> 4.760015867 | F24: =Main!I88 -> 5.020920502 | G24: =Main!J88 -> 4.98132005 | H24: =Main!K88 -> 4.847831942 | I24: =Main!L88 -> 4.666234608 | J24: =Main!M88 -> 4.192872117 | K24: =Main!N88 -> 3.558015418 | L24: =Main!P88 -> 3.649530274 | M24: =Main!Q88 -> 147.6 | N24: Bootsnelheid
B25: =Main!E88 -> 2.870355605 | C25: =Main!S88 -> 9.320130439 | D25: =Main!T88 -> 9.428821781 | E25: =Main!U88 -> 9.339049537 | F25: =Main!V88 -> 8.763775493 | G25: =Main!W88 -> 7.798304267 | H25: =Main!X88 -> 6.293234497 | I25: =Main!Y88 -> 5.456769902 | J25: =Main!Z88 -> 4.242932584 | K25: =Main!AA88 -> 3.418112468 | L25: =Main!AB88 -> 3.513156318 | M25: =Main!O88 -> 3.081400325 | N25: Schijnbare windsnelheid
C26: =Main!AD88 -> 27.02745486 | D26: =Main!AE88 -> 30.09585013 | E26: =Main!AF88 -> 33.80649803 | F26: =Main!AG88 -> 41.39970575 | G26: =Main!AH88 -> 50.29986389 | H26: =Main!AI88 -> 63.62522893 | I26: =Main!AJ88 -> 72.22066866 | J26: =Main!AK88 -> 90.672081 | K26: =Main!AL88 -> 118.6365559 | L26: =Main!AM88 -> 113.7771787 | N26: Schijnbare Windhoek
A27: 8 | B27: =Main!D89 -> 43.2 | C27: =Main!F89 -> 4.740793062 | D27: =Main!G89 -> 5.289450485 | E27: =Main!H89 -> 5.628517824 | F27: =Main!I89 -> 5.944517834 | G27: =Main!J89 -> 5.889088827 | H27: =Main!K89 -> 5.893909627 | I27: =Main!L89 -> 5.708848716 | J27: =Main!M89 -> 5.1494779 | K27: =Main!N89 -> 4.525455688 | L27: =Main!P89 -> 4.341633521 | M27: =Main!Q89 -> 155
B28: =Main!E89 -> 3.455889412 | C28: =Main!S89 -> 11.90669347 | D28: =Main!T89 -> 12.00343537 | E28: =Main!U89 -> 11.86205528 | F28: =Main!V89 -> 11.1334704 | G28: =Main!W89 -> 9.933849567 | H28: =Main!X89 -> 8.153821046 | I28: =Main!Y89 -> 7.135836597 | J28: =Main!Z89 -> 5.67956255 | K28: =Main!AA89 -> 4.666175709 | L28: =Main!AB89 -> 4.460053961 | M28: =Main!O89 -> 3.934856268
C29: =Main!AD89 -> 27.38330228 | D29: =Main!AE89 -> 31.68104498 | E29: =Main!AF89 -> 35.73691586 | F29: =Main!AG89 -> 43.95314598 | G29: =Main!AH89 -> 53.64187387 | H29: =Main!AI89 -> 67.21512413 | I29: =Main!AJ89 -> 76.14449106 | J29: =Main!AK89 -> 95.12527663 | K29: =Main!AL89 -> 120.9926857 | L29: =Main!AM89 -> 130.7073664
A30: 10 | B30: =Main!D90 -> 43.5 | C30: =Main!F90 -> 5.368838708 | D30: =Main!G90 -> 5.997001499 | E30: =Main!H90 -> 6.316897701 | F30: =Main!I90 -> 6.549026742 | G30: =Main!J90 -> 6.559766764 | H30: =Main!K90 -> 6.612784717 | I30: =Main!L90 -> 6.495849874 | J30: =Main!M90 -> 6.059585928 | K30: =Main!N90 -> 5.371530886 | L30: =Main!P90 -> 4.805761519 | M30: =Main!Q90 -> 167.7
B31: =Main!E90 -> 3.894418001 | C31: =Main!S90 -> 14.37750984 | D31: =Main!T90 -> 14.48469823 | E31: =Main!U90 -> 14.25033942 | F31: =Main!V90 -> 13.29624038 | G31: =Main!W90 -> 11.95953762 | H31: =Main!X90 -> 9.924455158 | I31: =Main!Y90 -> 8.78849059 | J31: =Main!Z90 -> 7.143045261 | K31: =Main!AA90 -> 5.984621957 | L31: =Main!AB90 -> 5.402442346 | M31: =Main!O90 -> 4.695448024
C32: =Main!AD90 -> 28.60521472 | D32: =Main!AE90 -> 32.95838873 | E32: =Main!AF90 -> 37.42501728 | F32: =Main!AG90 -> 46.59088671 | G32: =Main!AH90 -> 56.73605956 | H32: =Main!AI90 -> 71.23492985 | I32: =Main!AJ90 -> 80.20022963 | J32: =Main!AK90 -> 98.14065808 | K32: =Main!AL90 -> 123.3347045 | L32: =Main!AM90 -> 156.7762814
A33: 12 | B33: =Main!D91 -> 43.5 | C33: =Main!F91 -> 5.93512856 | D33: =Main!G91 -> 6.473655817 | E33: =Main!H91 -> 6.688963211 | F33: =Main!I91 -> 6.853226728 | G33: =Main!J91 -> 6.923076923 | H33: =Main!K91 -> 6.971340046 | I33: =Main!L91 -> 6.88731586 | J33: =Main!M91 -> 6.632277082 | K33: =Main!N91 -> 6.152794394 | L33: =Main!P91 -> 5.522091643 | M33: =Main!Q91 -> 170.6
B34: =Main!E91 -> 4.305190146 | C34: =Main!S91 -> 16.80923301 | D34: =Main!T91 -> 16.77981381 | E34: =Main!U91 -> 16.40151784 | F34: =Main!V91 -> 15.28190469 | G34: =Main!W91 -> 13.85384402 | H34: =Main!X91 -> 11.63509573 | I34: =Main!Y91 -> 10.43011646 | J34: =Main!Z91 -> 8.685253301 | K34: =Main!AA91 -> 7.34666243 | L34: =Main!AB91 -> 6.61384085 | M34: =Main!O91 -> 5.447941889
C35: =Main!AD91 -> 29.43341527 | D35: =Main!AE91 -> 34.30110306 | E35: =Main!AF91 -> 39.31759506 | F35: =Main!AG91 -> 49.33090332 | G35: =Main!AH91 -> 60.01836063 | H35: =Main!AI91 -> 75.73434475 | I35: =Main!AJ91 -> 85.11980731 | J35: =Main!AK91 -> 102.3187806 | K35: =Main!AL91 -> 125.2444571 | L35: =Main!AM91 -> 162.7624018
A36: 14 | B36: =Main!D92 -> 42 | C36: =Main!F92 -> 6.181291089 | D36: =Main!G92 -> 6.726457399 | E36: =Main!H92 -> 6.908462867 | F36: =Main!I92 -> 7.072691552 | G36: =Main!J92 -> 7.096392667 | H36: =Main!K92 -> 7.265388496 | I36: =Main!L92 -> 7.17560295 | J36: =Main!M92 -> 6.956521739 | K36: =Main!N92 -> 6.654343808 | L36: =Main!P92 -> 6.15617314 | M36: =Main!Q92 -> 174
B37: =Main!E92 -> 4.593594488 | C37: =Main!S92 -> 19.0480709 | D37: =Main!T92 -> 18.8997198 | E37: =Main!U92 -> 18.45116092 | F37: =Main!V92 -> 17.24176005 | G37: =Main!W92 -> 15.69582075 | H37: =Main!X92 -> 13.38687462 | I37: =Main!Y92 -> 12.12562726 | J37: =Main!Z92 -> 10.32768567 | K37: =Main!AA92 -> 8.883750874 | L37: =Main!AB92 -> 7.903789996 | M37: =Main!O92 -> 6.12244898
C38: =Main!AD92 -> 29.45891501 | D38: =Main!AE92 -> 35.71263808 | E38: =Main!AF92 -> 41.07947847 | F38: =Main!AG92 -> 51.65731777 | G38: =Main!AH92 -> 63.12022489 | H38: =Main!AI92 -> 79.33653894 | I38: =Main!AJ92 -> 89.17021533 | J38: =Main!AK92 -> 106.5564338 | K38: =Main!AL92 -> 128.0051456 | L38: =Main!AM92 -> 169.3300353
A39: 16 | B39: =Main!D93 -> 40.7 | C39: =Main!F93 -> 6.295239055 | D39: =Main!G93 -> 6.861063465 | E39: =Main!H93 -> 7.061592781 | F39: =Main!I93 -> 7.265388496 | G39: =Main!J93 -> 7.249295207 | H39: =Main!K93 -> 7.566204288 | I39: =Main!L93 -> 7.467330429 | J39: =Main!M93 -> 7.231820008 | K39: =Main!N93 -> 6.96190292 | L39: =Main!P93 -> 6.611564448 | M39: =Main!Q93 -> 178.1
B40: =Main!E93 -> 4.772636882 | C40: =Main!S93 -> 21.1743811 | D40: =Main!T93 -> 20.93430559 | E40: =Main!U93 -> 20.4658637 | F40: =Main!V93 -> 19.20831433 | G40: =Main!W93 -> 17.56565629 | H40: =Main!X93 -> 15.18018546 | I40: =Main!Y93 -> 13.86664115 | J40: =Main!Z93 -> 12.02754396 | K40: =Main!AA93 -> 10.56097434 | L40: =Main!AB93 -> 9.39462825 | M40: =Main!O93 -> 6.607929515
C41: =Main!AD93 -> 29.52117528 | D41: =Main!AE93 -> 37.03288056 | E41: =Main!AF93 -> 42.61352256 | F41: =Main!AG93 -> 53.57065582 | G41: =Main!AH93 -> 65.62562534 | H41: =Main!AI93 -> 82.07161697 | I41: =Main!AJ93 -> 92.20148692 | J41: =Main!AK93 -> 109.8390067 | K41: =Main!AL93 -> 130.755189 | L41: =Main!AM93 -> 176.7629795
A42: 20 | B42: =Main!D94 -> 39.3 | C42: =Main!F94 -> 6.376265364 | D42: =Main!G94 -> 6.972690296 | E42: =Main!H94 -> 7.204322594 | F42: =Main!I94 -> 7.578947368 | G42: =Main!J94 -> 7.641689662 | H42: =Main!K94 -> 7.926023778 | I42: =Main!L94 -> 8.060904613 | J42: =Main!M94 -> 7.822685789 | K42: =Main!N94 -> 7.510953474 | L42: =Main!P94 -> 7.183855509 | M42: =Main!Q94 -> 179
B43: =Main!E94 -> 4.934210526 | C43: =Main!S94 -> 25.25916034 | D43: =Main!T94 -> 24.90644659 | E43: =Main!U94 -> 24.41288012 | F43: =Main!V94 -> 23.1495892 | G43: =Main!W94 -> 21.41017097 | H43: =Main!X94 -> 18.82518158 | I43: =Main!Y94 -> 17.42871455 | J43: =Main!Z94 -> 15.48984978 | K43: =Main!AA94 -> 14.0081177 | L43: =Main!AB94 -> 12.81785181 | M43: =Main!O94 -> 7.182761373
C44: =Main!AD94 -> 30.09967838 | D44: =Main!AE94 -> 39.25526892 | E44: =Main!AF94 -> 45.19281521 | F44: =Main!AG94 -> 56.56463865 | G44: =Main!AH94 -> 69.0889191 | H44: =Main!AI94 -> 86.69400135 | I44: =Main!AJ94 -> 96.38787675 | J44: =Main!AK94 -> 114.0776032 | K44: =Main!AL94 -> 134.4491859 | L44: =Main!AM94 -> 178.4395625
A45: Snelheden in knopen | D45: UA=Up Angle, VMG=resulterende snelheid recht tegen de wind (bijUA), V@UA=snelheid bij optimale opkruishoek
A46: Hoeken in graden | D46: DA=Down Angle, VMG=resulterende snelheid recht voor de wind (bijDA), V@DA=snelheid bij afkruis opkruishoek

Sheet IMS
A1: NATCERTN. | B1: FILE_ID | C1: SAILNUMB | D1: NAME | E1: TYPE | F1: BUILDER | G1: DESIGNER | H1: YEAR | I1: CLUB | J1: OWNER ADRS1 ADRS2 | K1: C_Type | L1: D | M1: CREW | N1: DD-MM-yyYY | O1: HH:MM:SS | P1: LOA | Q1: IMSL | R1: DRAFT | S1: BMAX | T1: DSPL | U1: INDEX | V1: DA | W1: GPH | X1: TMF | Y1: ILCGA | Z1: PLT-O | AA1: PLD-O | AB1: WL6 | AC1: WL8 | AD1: WL10 | AE1: WL12 | AF1: WL14 | AG1: WL16 | AH1: WL20 | AI1: OL6 | AJ1: OL8 | AK1: OL10 | AL1: OL12 | AM1: OL14 | AN1: OL16 | AO1: OL20 | AP1: CR6 | AQ1: CR8 | AR1: CR10 | AS1: CR12 | AT1: CR14 | AU1: CR16 | AV1: CR20 | AW1: NSP6 | AX1: NSP8 | AY1: NSP10 | AZ1: NSP12 | BA1: NSP14 | BB1: NSP16 | BC1: NSP20 | BD1: OC6 | BE1: OC8 | BF1: OC10 | BG1: OC12 | BH1: OC14 | BI1: OC16 | BJ1: OC20 | BK1: UA6 | BL1: UA8 | BM1: UA10 | BN1: UA12 | BO1: UA14 | BP1: UA16 | BQ1: UA20 | BR1: DA6 | BS1: DA8 | BT1: DA10 | BU1: DA12 | BV1: DA14 | BW1: DA16 | BX1: DA20 | BY1: UP6 | BZ1: UP8 | CA1: UP10 | CB1: UP12 | CC1: UP14 | CD1: UP16 | CE1: UP20 | CF1: R526 | CG1: R528 | CH1: R5210 | CI1: R5212 | CJ1: R5214 | CK1: R5216 | CL1: R5220 | CM1: R606 | CN1: R608 | CO1: R6010 | CP1: R6012 | CQ1: R6014 | CR1: R6016 | CS1: R6020 | CT1: R756 | CU1: R758 | CV1: R7510 | CW1: R7512 | CX1: R7514 | CY1: R7516 | CZ1: R7520 | DA1: R906 | DB1: R908 | DC1: R9010 | DD1: R9012 | DE1: R9014 | DF1: R9016 | DG1: R9020 | DH1: R1106 | DI1: R1108 | DJ1: R11010 | DK1: R11012 | DL1: R11014 | DM1: R11016 | DN1: R11020 | DO1: R1206 | DP1: R1208 | DQ1: R12010 | DR1: R12012 | DS1: R12014 | DT1: R12016 | DU1: R12020 | DV1: R1356 | DW1: R1358 | DX1: R13510 | DY1: R13512 | DZ1: R13514 | EA1: R13516 | EB1: R13520 | EC1: R1506 | ED1: R1508 | EE1: R15010 | EF1: R15012 | EG1: R15014 | EH1: R15016 | EI1: R15020 | EJ1: D6 | EK1: D8 | EL1: D10 | EM1: D12 | EN1: D14 | EO1: D16 | EP1: D20 | EQ1: =COUNT(EP:EP) -> 396
A2: NED2/04 | B2: BEL_735 | C2: BEL_735 | D2: BON VIVANT | E2: First 36.7 | F2: Beneteau | G2: B. Farr | H2: 2001 | I2: 4003842 | J2: M.J.G.V.,van Rompaey | K2: IMS | L2: C | M2: 610 | N2: 20 4 2004 | O2: 11:38:49 | P2: 10.64 | Q2: 9.783 | R2: 2.271 | S2: 3.45 | T2: 6587 | U2: 112.1 | V2: 0.63 | W2: 644.9 | X2: 0.9306 | Y2: 725.3 | Z2: 0.725 | AA2: 62.6 | AB2: 1113.7 | AC2: 888.7 | AD2: 763 | AE2: 691.9 | AF2: 649.7 | AG2: 622.8 | AH2: 592.4 | AI2: 1041.3 | AJ2: 837.6 | AK2: 729 | AL2: 672 | AM2: 639 | AN2: 617.4 | AO2: 592.5 | AP2: 894.2 | AQ2: 719.1 | AR2: 624.9 | AS2: 570.6 | AT2: 537.5 | AU2: 516.2 | AV2: 489.8 | AW2: 986.8 | AX2: 783 | AY2: 671.3 | AZ2: 605.1 | BA2: 564.2 | BB2: 537.8 | BC2: 506.5 | BD2: 1010 | BE2: 789.7 | BF2: 665.1 | BG2: 587.7 | BH2: 536.3 | BI2: 500.1 | BJ2: 450.5 | BK2: 43.9 | BL2: 42.8 | BM2: 41.9 | BN2: 40.3 | BO2: 39.3 | BP2: 38.7 | BQ2: 38.6 | BR2: 142.7 | BS2: 147.8 | BT2: 150.9 | BU2: 161.7 | BV2: 170 | BW2: 173.6 | BX2: 175 | BY2: 1132.7 | BZ2: 925.3 | CA2: 810.5 | CB2: 763.8 | CC2: 738.7 | CD2: 724.3 | CE2: 716.7 | CF2: 732.7 | CG2: 601.9 | CH2: 544.6 | CI2: 521.3 | CJ2: 510.4 | CK2: 503.8 | CL2: 498.5 | CM2: 685.8 | CN2: 569.7 | CO2: 523.9 | CP2: 500.3 | CQ2: 489.9 | CR2: 483.7 | CS2: 477.8 | CT2: 647.9 | CU2: 537.1 | CV2: 498.5 | CW2: 482.9 | CX2: 466.1 | CY2: 456.9 | CZ2: 448.8 | DA2: 596.1 | DB2: 516.4 | DC2: 482 | DD2: 464.1 | DE2: 455 | DF2: 447.8 | DG2: 428.4 | DH2: 616.1 | DI2: 527.7 | DJ2: 488.3 | DK2: 461.2 | DL2: 440.7 | DM2: 425.8 | DN2: 409.1 | DO2: 660.6 | DP2: 547.5 | DQ2: 500.6 | DR2: 469.9 | DS2: 445.8 | DT2: 425.8 | DU2: 395.7 | DV2: 762.8 | DW2: 608.5 | DX2: 532.9 | DY2: 494.1 | DZ2: 466.1 | EA2: 442.9 | EB2: 403.1 | EC2: 913.8 | ED2: 716.7 | EE2: 597.4 | EF2: 532.8 | EG2: 496 | EH2: 468.9 | EI2: 426.1 | EJ2: 1055.2 | EK2: 827.6 | EL2: 689.7 | EM2: 601.7 | EN2: 544.8 | EO2: 507.4 | EP2: 457.1
A3: NED2/04 | B3: BEL_746 | C3: BEL- 746 | D3: EOS | E3: IONIC 39 | F3: H2 O | G3: VATON/LALLEMAND | H3: 2002 | I3: 4009304 | J3: ,IONIC SA | K3: IMS | L3: C | M3: 760 | N3: 20 4 2004 | O3: 11:38:50 | P3: 11.74 | Q3: 11.271 | R3: 2.654 | S3: 3.839 | T3: 7287 | U3: 120.6 | V3: 0.14 | W3: 590.1 | X3: 1.0172 | Y3: 663.6 | Z3: 0.808 | AA3: 71.6 | AB3: 993.4 | AC3: 806.7 | AD3: 706.8 | AE3: 646.4 | AF3: 607.1 | AG3: 581.1 | AH3: 552.4 | AI3: 921.1 | AJ3: 755.6 | AK3: 671 | AL3: 622.8 | AM3: 592.5 | AN3: 572.5 | AO3: 549.8 | AP3: 808.9 | AQ3: 655 | AR3: 572.8 | AS3: 525.2 | AT3: 496 | AU3: 476.9 | AV3: 453.4 | AW3: 876.5 | AX3: 702.5 | AY3: 607.8 | AZ3: 551.7 | BA3: 516.5 | BB3: 493.4 | BC3: 465.7 | BD3: 916 | BE3: 719.8 | BF3: 608.8 | BG3: 539.4 | BH3: 492.9 | BI3: 459.9 | BJ3: 414.4 | BK3: 43.4 | BL3: 42.2 | BM3: 40.8 | BN3: 39.7 | BO3: 39.1 | BP3: 38.8 | BQ3: 39.1 | BR3: 141.9 | BS3: 146 | BT3: 149.1 | BU3: 156.4 | BV3: 163.7 | BW3: 168.8 | BX3: 172 | BY3: 967.2 | BZ3: 814.1 | CA3: 745.7 | CB3: 709.7 | CC3: 689.6 | CD3: 679.2 | CE3: 677.6 | CF3: 628.8 | CG3: 534.6 | CH3: 500.9 | CI3: 484.1 | CJ3: 474.6 | CK3: 469.6 | CL3: 466.3 | CM3: 589.8 | CN3: 506.3 | CO3: 477.5 | CP3: 463.5 | CQ3: 455.2 | CR3: 450.5 | CS3: 446 | CT3: 558.7 | CU3: 484.5 | CV3: 452.8 | CW3: 439 | CX3: 430.6 | CY3: 425.1 | CZ3: 418.3 | DA3: 562 | DB3: 478.1 | DC3: 448 | DD3: 427.4 | DE3: 413.9 | DF3: 406.5 | DG3: 397.4 | DH3: 573.2 | DI3: 484.1 | DJ3: 443.3 | DK3: 418.8 | DL3: 403.9 | DM3: 394.5 | DN3: 378.7 | DO3: 610.3 | DP3: 505.3 | DQ3: 454.7 | DR3: 423.8 | DS3: 401.3 | DT3: 384.6 | DU3: 363.2 | DV3: 706.5 | DW3: 566.9 | DX3: 490.8 | DY3: 448.5 | DZ3: 419 | EA3: 395 | EB3: 353.1 | EC3: 848.5 | ED3: 668.6 | EE3: 561.4 | EF3: 494.4 | EG3: 453.8 | EH3: 424.7 | EI3: 379.4 | EJ3: 979.7 | EK3: 772 | EL3: 648.2 | EM3: 567.2 | EN3: 510.3 | EO3: 470 | EP3: 415.9
A4: NED2/04 | B4: BEL_774 | C4: BEL 774 | D4: EXASTER | E4: X362-sport | F4: X-Yachts | G4: Jeppesen | H4: 1993 | I4: 4005467 | J4: F.,de Pot | K4: IMS | L4: C | M4: 680 | N4: 20 4 2004 | O4: 11:38:51 | P4: 10.72 | Q4: 9.853 | R4: 2.297 | S4: 3.472 | T4: 6266 | U4: 115.4 | V4: 0.26 | W4: 630.5 | X4: 0.9618 | Y4: 701.8 | Z4: 0.754 | AA4: 70.4 | AB4: 1067.1 | AC4: 859.3 | AD4: 747.6 | AE4: 680.3 | AF4: 637.2 | AG4: 609.1 | AH4: 576.8 | AI4: 988.1 | AJ4: 804 | AK4: 710 | AL4: 657.1 | AM4: 623.9 | AN4: 601.6 | AO4: 574.6 | AP4: 867.6 | AQ4: 701.1 | AR4: 611.9 | AS4: 560.1 | AT4: 527.8 | AU4: 506.5 | AV4: 479.4 | AW4: 927.2 | AX4: 742.6 | AY4: 642.2 | AZ4: 582.9 | BA4: 545.9 | BB4: 521.5 | BC4: 491.5 | BD4: 981 | BE4: 769.7 | BF4: 650.3 | BG4: 575.8 | BH4: 526.3 | BI4: 491.2 | BJ4: 443.5 | BK4: 43.5 | BL4: 42.4 | BM4: 40.7 | BN4: 39.1 | BO4: 38.1 | BP4: 37.6 | BQ4: 37.3 | BR4: 142.9 | BS4: 147.9 | BT4: 152.2 | BU4: 161.5 | BV4: 169.1 | BW4: 173.2 | BX4: 174.9 | BY4: 1029.9 | BZ4: 855.8 | CA4: 776.3 | CB4: 735.2 | CC4: 710.8 | CD4: 696.4 | CE4: 686.3 | CF4: 668.9 | CG4: 566.4 | CH4: 526.5 | CI4: 508.9 | CJ4: 498.2 | CK4: 491.7 | CL4: 486.1 | CM4: 628 | CN4: 541.4 | CO4: 505.8 | CP4: 490.1 | CQ4: 480.6 | CR4: 474.5 | CS4: 468.4 | CT4: 596.9 | CU4: 523.2 | CV4: 489.2 | CW4: 468.9 | CX4: 457.9 | CY4: 451 | CZ4: 442.7 | DA4: 601.3 | DB4: 516.9 | DC4: 480.4 | DD4: 459.9 | DE4: 449.4 | DF4: 436.6 | DG4: 422.8 | DH4: 622.3 | DI4: 530.4 | DJ4: 488 | DK4: 460.2 | DL4: 438.7 | DM4: 422 | DN4: 402.3 | DO4: 664.9 | DP4: 552.7 | DQ4: 501.4 | DR4: 469.4 | DS4: 444.7 | DT4: 423.8 | DU4: 390.7 | DV4: 769.2 | DW4: 616.4 | DX4: 536.9 | DY4: 495 | DZ4: 465.9 | EA4: 442 | EB4: 400.5 | EC4: 921.5 | ED4: 721.9 | EE4: 604.9 | EF4: 536.6 | EG4: 496.9 | EH4: 468.8 | EI4: 424.4 | EJ4: 1064 | EK4: 833.6 | EL4: 697.9 | EM4: 608.1 | EN4: 548.2 | EO4: 508.2 | EP4: 456.2
A5: NED2/04 | B5: GBR_9006 | C5: K 9006 | D5: CORNISCH COVE | E5: Lightwave 395 | F5: Oyster | G5: Schumacher | H5: 1988 | I5: 192589 | J5: W.N.,van Dolder | K5: IMS | L5: C | M5: 713 | N5: 20 4 2004 | O5: 11:38:52 | P5: 12.029 | Q5: 10.786 | R5: 2.183 | S5: 3.598 | T5: 7716 | U5: 107.8 | V5: 0.18 | W5: 616.3 | X5: 0.9739 | Y5: 693.1 | Z5: 0.783 | AA5: 78.5 | AB5: 1039.6 | AC5: 840.2 | AD5: 734.1 | AE5: 671.2 | AF5: 631.2 | AG5: 605.1 | AH5: 575.6 | AI5: 965.6 | AJ5: 788.9 | AK5: 700 | AL5: 650.3 | AM5: 619.1 | AN5: 598.4 | AO5: 575.5 | AP5: 842.3 | AQ5: 683 | AR5: 598.3 | AS5: 549.7 | AT5: 519.7 | AU5: 500.3 | AV5: 476.3 | AW5: 909.5 | AX5: 729.6 | AY5: 632 | AZ5: 574.7 | BA5: 539 | BB5: 515.8 | BC5: 488.1 | BD5: 956.1 | BE5: 751.9 | BF5: 636.7 | BG5: 565 | BH5: 517.3 | BI5: 483.6 | BJ5: 438 | BK5: 45.7 | BL5: 43.9 | BM5: 42.1 | BN5: 40.8 | BO5: 39.9 | BP5: 39.4 | BQ5: 39.4 | BR5: 142.5 | BS5: 145.2 | BT5: 149.9 | BU5: 159.2 | BV5: 167.2 | BW5: 171.6 | BX5: 173.7 | BY5: 1021 | BZ5: 857.3 | CA5: 781.4 | CB5: 741.6 | CC5: 718.6 | CD5: 705.7 | CE5: 700.1 | CF5: 649.7 | CG5: 556.1 | CH5: 521.8 | CI5: 504.8 | CJ5: 494.9 | CK5: 489.1 | CL5: 484.7 | CM5: 603.6 | CN5: 526 | CO5: 499.1 | CP5: 484.8 | CQ5: 476.1 | CR5: 470.5 | CS5: 465.4 | CT5: 568.5 | CU5: 504.5 | CV5: 476.1 | CW5: 461.5 | CX5: 452.5 | CY5: 446.2 | CZ5: 438.7 | DA5: 573 | DB5: 501.8 | DC5: 471.8 | DD5: 452.8 | DE5: 438.5 | DF5: 429.1 | DG5: 418.9 | DH5: 591.6 | DI5: 507.1 | DJ5: 470 | DK5: 445.9 | DL5: 429.1 | DM5: 417.8 | DN5: 402.1 | DO5: 629.9 | DP5: 525.4 | DQ5: 479.8 | DR5: 451 | DS5: 429 | DT5: 411.6 | DU5: 388 | DV5: 734.1 | DW5: 582.8 | DX5: 511.1 | DY5: 473 | DZ5: 445.2 | EA5: 422.4 | EB5: 385.5 | EC5: 881.4 | ED5: 687.8 | EE5: 576.4 | EF5: 513.2 | EG5: 476.5 | EH5: 449.4 | EI5: 406.2 | EJ5: 1017.7 | EK5: 794.2 | EL5: 665.6 | EM5: 584.1 | EN5: 528.8 | EO5: 491 | EP5: 439.9
A6: NED2/04 | B6: NED_1215 | C6: NED 1215 | D6: KANALOA | E6: Melody | F6: Jeanneau | G6: Andre Mauric | H6: 1977 | I6: 123288 | J6: R.,Hanemaaijer | K6: IMS | M6: 738 | N6: 20 4 2004 | O6: 11:38:54 | P6: 10.16 | Q6: 8.753 | R6: 1.973 | S6: 3.368 | T6: 7809 | U6: 129.6 | V6: 0.73 | W6: 701.5 | X6: 0.8562 | Y6: 788.4 | Z6: 0.681 | AA6: 72.7 | AB6: 1181.6 | AC6: 955.9 | AD6: 832.5 | AE6: 758.3 | AF6: 711.8 | AG6: 681.8 | AH6: 647 | AI6: 1109.5 | AJ6: 905.5 | AK6: 799.2 | AL6: 738.8 | AM6: 701.2 | AN6: 676.5 | AO6: 649 | AP6: 965.1 | AQ6: 779.8 | AR6: 680.7 | AS6: 623.4 | AT6: 588 | AU6: 565 | AV6: 536.7 | AW6: 1059.1 | AX6: 845.6 | AY6: 728.8 | AZ6: 659.4 | BA6: 615.9 | BB6: 587.3 | BC6: 552.9 | BD6: 1090.2 | BE6: 856 | BF6: 723.6 | BG6: 641.1 | BH6: 586.2 | BI6: 547.5 | BJ6: 494.9 | BK6: 44.3 | BL6: 43.2 | BM6: 42.9 | BN6: 41.5 | BO6: 40.5 | BP6: 39.9 | BQ6: 39.6 | BR6: 144.5 | BS6: 149.2 | BT6: 153.2 | BU6: 161.3 | BV6: 166.8 | BW6: 169.9 | BX6: 171.9 | BY6: 1209.1 | BZ6: 1004.6 | CA6: 903.9 | CB6: 851.1 | CC6: 819.4 | CD6: 800.4 | CE6: 786.6 | CF6: 780.7 | CG6: 654.6 | CH6: 597.3 | CI6: 573.1 | CJ6: 559.2 | CK6: 550.5 | CL6: 542.5 | CM6: 732 | CN6: 618.7 | CO6: 571.2 | CP6: 548.7 | CQ6: 536.7 | CR6: 528.8 | CS6: 520.7 | CT6: 694.5 | CU6: 593 | CV6: 550.3 | CW6: 526 | CX6: 510.9 | CY6: 501.7 | CZ6: 491.6 | DA6: 665.4 | DB6: 571.2 | DC6: 533.8 | DD6: 514.2 | DE6: 503 | DF6: 492 | DG6: 473.9 | DH6: 682.3 | DI6: 578.2 | DJ6: 532.4 | DK6: 504.4 | DL6: 485.2 | DM6: 471.4 | DN6: 454.4 | DO6: 720 | DP6: 597.5 | DQ6: 542 | DR6: 508.5 | DS6: 484.6 | DT6: 466.8 | DU6: 442.6 | DV6: 811.2 | DW6: 655.1 | DX6: 574.2 | DY6: 531.1 | DZ6: 500.8 | EA6: 476.6 | EB6: 441.5 | EC6: 959.4 | ED6: 759 | EE6: 639.9 | EF6: 572.4 | EG6: 532.4 | EH6: 503.3 | EI6: 459.5 | EJ6: 1107.8 | EK6: 876.4 | EL6: 737.6 | EM6: 645.6 | EN6: 587.3 | EO6: 548 | EP6: 494.9
A7: NED2/04 | B7: NED_145 | C7: NED 145 | D7: MODALIMAR | E7: --- | F7: A'damse Scheepsw. | G7: G.de Vries Lentsch | H7: 1938 | I7: 104275 | J7: J.Th.,Bernard | K7: IMS | M7: 542 | N7: 20 4 2004 | O7: 11:38:57 | P7: 10.34 | Q7: 8.294 | R7: 1.611 | S7: 2.673 | T7: 8110 | U7: 154.6 | V7: 1.18 | W7: 787 | X7: 0.7555 | Y7: 893.4 | Z7: 0.586 | AA7: 54.8 | AB7: 1355.7 | AC7: 1092.7 | AD7: 947.5 | AE7: 846.7 | AF7: 784.1 | AG7: 749.3 | AH7: 714 | AI7: 1276.4 | AJ7: 1041.3 | AK7: 911.5 | AL7: 828.2 | AM7: 778.7 | AN7: 749.8 | AO7: 720.4 | AP7: 1098.2 | AQ7: 880.5 | AR7: 762.5 | AS7: 693.5 | AT7: 651.2 | AU7: 624.5 | AV7: 593.7 | AW7: 1179.4 | AX7: 938.5 | AY7: 805.5 | AZ7: 725.5 | BA7: 675.4 | BB7: 643.4 | BC7: 607.3 | BD7: 1234.9 | BE7: 964.2 | BF7: 810.1 | BG7: 713.9 | BH7: 650 | BI7: 605.7 | BJ7: 547.6 | BK7: 45.8 | BL7: 43.5 | BM7: 48.7 | BN7: 46.2 | BO7: 44.2 | BP7: 43.1 | BQ7: 42.5 | BR7: 146.2 | BS7: 156.2 | BT7: 162.3 | BU7: 157.8 | BV7: 170.3 | BW7: 175.1 | BX7: 176.1 | BY7: 1398.6 | BZ7: 1165 | CA7: 1053.2 | CB7: 960.2 | CC7: 913.8 | CD7: 887.7 | CE7: 869.8 | CF7: 891.7 | CG7: 755.7 | CH7: 657.8 | CI7: 621.9 | CJ7: 606.7 | CK7: 597.8 | CL7: 589.8 | CM7: 833.8 | CN7: 700.1 | CO7: 620.2 | CP7: 595.4 | CQ7: 583 | CR7: 575.4 | CS7: 567.4 | CT7: 790 | CU7: 645.7 | CV7: 596.4 | CW7: 574 | CX7: 558.8 | CY7: 548.3 | CZ7: 537.5 | DA7: 766.8 | DB7: 623.3 | DC7: 582.8 | DD7: 561.2 | DE7: 546.9 | DF7: 537.7 | DG7: 523.2 | DH7: 793.5 | DI7: 639.4 | DJ7: 586.5 | DK7: 559.1 | DL7: 538.4 | DM7: 522.3 | DN7: 499.9 | DO7: 831 | DP7: 675.1 | DQ7: 597 | DR7: 565.4 | DS7: 541.7 | DT7: 522.6 | DU7: 493.9 | DV7: 926.6 | DW7: 755.7 | DX7: 631.2 | DY7: 586.1 | DZ7: 558.6 | EA7: 536 | EB7: 499.5 | EC7: 1091.8 | ED7: 852.8 | EE7: 725.2 | EF7: 623.7 | EG7: 584.4 | EH7: 558.3 | EI7: 517.3 | EJ7: 1260.7 | EK7: 980.6 | EL7: 826.7 | EM7: 707.5 | EN7: 632.8 | EO7: 593.3 | EP7: 545.7
A8: NED2/04 | B8: NED_1499 | C8: NED 1499 | D8: BELUGA | E8: Baltic 45 | F8: Baltic OY | G8: D.Peterson | H8: 1980 | I8: 180688 | J8: F.C.,Ingen Housz | K8: IMS | L8: C | M8: 951 | N8: 20 4 2004 | O8: 11:38:57 | P8: 13.868 | Q8: 11.778 | R8: 2.382 | S8: 4.221 | T8: 13572 | U8: 132 | V8: 0.49 | W8: 604.1 | X8: 0.999 | Y8: 675.7 | Z8: 0.775 | AA8: 63.3 | AB8: 1040.2 | AC8: 833.7 | AD8: 718.5 | AE8: 650.2 | AF8: 607.5 | AG8: 579.7 | AH8: 546.4 | AI8: 968.9 | AJ8: 783 | AK8: 683.9 | AL8: 628.7 | AM8: 594.8 | AN8: 572.1 | AO8: 544 | AP8: 835.7 | AQ8: 673.2 | AR8: 585.9 | AS8: 535 | AT8: 503.5 | AU8: 482.6 | AV8: 455.9 | AW8: 907.6 | AX8: 723.2 | AY8: 622.1 | AZ8: 561.9 | BA8: 524.1 | BB8: 499.2 | BC8: 468.8 | BD8: 945.1 | BE8: 739.5 | BF8: 623.2 | BG8: 550.8 | BH8: 502.6 | BI8: 468.6 | BJ8: 422.8 | BK8: 46.1 | BL8: 45.7 | BM8: 43.5 | BN8: 41.1 | BO8: 39.5 | BP8: 38.5 | BQ8: 37.6 | BR8: 142.2 | BS8: 145.5 | BT8: 147.9 | BU8: 157.6 | BV8: 166.7 | BW8: 171.9 | BX8: 174.2 | BY8: 1038.3 | BZ8: 855.9 | CA8: 758.6 | CB8: 708.4 | CC8: 678.9 | CD8: 660.6 | CE8: 643 | CF8: 658.3 | CG8: 545.2 | CH8: 503 | CI8: 484.2 | CJ8: 472.6 | CK8: 464.8 | CL8: 456.2 | CM8: 608.5 | CN8: 515.2 | CO8: 482.9 | CP8: 466.4 | CQ8: 456.1 | CR8: 448.9 | CS8: 440.3 | CT8: 568 | CU8: 496 | CV8: 467.1 | CW8: 448.6 | CX8: 436.4 | CY8: 428.4 | CZ8: 418.3 | DA8: 573.1 | DB8: 492.1 | DC8: 460.2 | DD8: 441.7 | DE8: 430.4 | DF8: 420.5 | DG8: 404.3 | DH8: 589.2 | DI8: 498.4 | DJ8: 463.3 | DK8: 439.6 | DL8: 421.7 | DM8: 407.9 | DN8: 389.3 | DO8: 627.6 | DP8: 515.7 | DQ8: 473.3 | DR8: 446.2 | DS8: 425.2 | DT8: 408 | DU8: 382.6 | DV8: 724.8 | DW8: 576.1 | DX8: 501.7 | DY8: 467.1 | DZ8: 442.4 | EA8: 421.9 | EB8: 388.2 | EC8: 869.4 | ED8: 681.6 | EE8: 568.6 | EF8: 504.4 | EG8: 471 | EH8: 446.7 | EI8: 408.7 | EJ8: 1003.9 | EK8: 787 | EL8: 656.5 | EM8: 575.2 | EN8: 521.4 | EO8: 486 | EP8: 439.7
A9: NED2/04 | B9: NED_1749 | C9: NED 1749 | D9: DE RODE PIMPERNEL | E9: Pimpernel | F9: Van Dam | G9: Stadt van de | H9: 1971 | I9: 141881 | J9: S.H.M.,van der Mast | K9: IMS | L9: C | M9: 843 | N9: 20 4 2004 | O9: 11:38:58 | P9: 13.21 | Q9: 10.54 | R9: 1.808 | S9: 3.659 | T9: 11085 | U9: 125.2 | V9: 0.69 | W9: 673.4 | X9: 0.8821 | Y9: 765.2 | Z9: 0.673 | AA9: 46 | AB9: 1176.9 | AC9: 947.9 | AD9: 814.6 | AE9: 730.3 | AF9: 678.5 | AG9: 646.6 | AH9: 609.8 | AI9: 1108 | AJ9: 899.5 | AK9: 781.7 | AL9: 712.4 | AM9: 670.3 | AN9: 643.4 | AO9: 611.5 | AP9: 938.4 | AQ9: 753.2 | AR9: 652.7 | AS9: 593.6 | AT9: 556.8 | AU9: 532.6 | AV9: 502.4 | AW9: 1009.3 | AX9: 802.7 | AY9: 688.8 | AZ9: 620.6 | BA9: 577.6 | BB9: 549.4 | BC9: 515.6 | BD9: 1059.7 | BE9: 826.6 | BF9: 693.6 | BG9: 610 | BH9: 554.1 | BI9: 514.4 | BJ9: 460.5 | BK9: 48.5 | BL9: 47.3 | BM9: 48.5 | BN9: 45.8 | BO9: 44 | BP9: 42.8 | BQ9: 41.7 | BR9: 143.7 | BS9: 148.4 | BT9: 146.9 | BU9: 158.1 | BV9: 168.8 | BW9: 173.8 | BX9: 175.3 | BY9: 1228.4 | BZ9: 1020.2 | CA9: 898.9 | CB9: 827.2 | CC9: 786.4 | CD9: 761.7 | CE9: 739.4 | CF9: 766 | CG9: 637.3 | CH9: 564.3 | CI9: 536.4 | CJ9: 521.7 | CK9: 512.3 | CL9: 502.5 | CM9: 698.6 | CN9: 574.7 | CO9: 530.6 | CP9: 511.3 | CQ9: 499.2 | CR9: 491 | CS9: 481.3 | CT9: 644.9 | CU9: 540.6 | CV9: 507.8 | CW9: 487.5 | CX9: 473.6 | CY9: 464.6 | CZ9: 453.5 | DA9: 637 | DB9: 531.5 | DC9: 497.6 | DD9: 477.3 | DE9: 464.9 | DF9: 455.1 | DG9: 436.5 | DH9: 653.4 | DI9: 538.9 | DJ9: 500.4 | DK9: 474.7 | DL9: 455.2 | DM9: 440 | DN9: 418.5 | DO9: 692.1 | DP9: 558.2 | DQ9: 510.3 | DR9: 481.3 | DS9: 458.8 | DT9: 440.6 | DU9: 411.5 | DV9: 786.6 | DW9: 630.4 | DX9: 538.9 | DY9: 502.4 | DZ9: 476.3 | EA9: 454.9 | EB9: 418.8 | EC9: 935.5 | ED9: 736.4 | EE9: 613.8 | EF9: 539.1 | EG9: 504.4 | EH9: 479.1 | EI9: 439.7 | EJ9: 1080.3 | EK9: 850.4 | EL9: 708.8 | EM9: 612.9 | EN9: 553.3 | EO9: 516.7 | EP9: 469.2
A10: NED2/04 | B10: NED_1862 | C10: NED 1862 | D10: ISKANDER | E10: Swan 36 | F10: Nautor | G10: S & S | H10: 1969 | I10: 156786 | J10: M.,Schutte | K10: IMS | M10: 587 | N10: 20 4 2004 | O10: 11:38:59 | P10: 10.893 | Q10: 8.169 | R10: 1.897 | S10: 2.952 | T10: 7640 | U10: 146.6 | V10: 0.61 | W10: 722.5 | X10: 0.8357 | Y10: 807.7 | Z10: 0.676 | AA10: 85 | AB10: 1203.1 | AC10: 981 | AD10: 852.1 | AE10: 774.7 | AF10: 728.8 | AG10: 700.1 | AH10: 665.5 | AI10: 1131.4 | AJ10: 930.9 | AK10: 821.7 | AL10: 759.8 | AM10: 722.5 | AN10: 697.8 | AO10: 668.5 | AP10: 986.2 | AQ10: 800.5 | AR10: 701.6 | AS10: 644.5 | AT10: 609.2 | AU10: 586.1 | AV10: 556.7 | AW10: 1051.5 | AX10: 845.7 | AY10: 734.4 | AZ10: 668.9 | BA10: 628.4 | BB10: 602.2 | BC10: 569.6 | BD10: 1116.9 | BE10: 879.7 | BF10: 746 | BG10: 663.1 | BH10: 608 | BI10: 569.2 | BJ10: 516.6 | BK10: 45.4 | BL10: 45.5 | BM10: 44.3 | BN10: 42.1 | BO10: 40.6 | BP10: 39.7 | BQ10: 39 | BR10: 145.8 | BS10: 151.8 | BT10: 152.9 | BU10: 165.6 | BV10: 173.3 | BW10: 175.1 | BX10: 175.8 | BY10: 1230.1 | BZ10: 1039.8 | CA10: 927.7 | CB10: 870.7 | CC10: 837 | CD10: 816.2 | CE10: 798.6 | CF10: 788.1 | CG10: 660.3 | CH10: 611.8 | CI10: 590.6 | CJ10: 577.3 | CK10: 568.3 | CL10: 559.1 | CM10: 734.4 | CN10: 624.3 | CO10: 588.3 | CP10: 568.9 | CQ10: 556.7 | CR10: 548.1 | CS10: 538.4 | CT10: 687 | CU10: 601.9 | CV10: 569.7 | CW10: 548.5 | CX10: 533.1 | CY10: 522.2 | CZ10: 510.2 | DA10: 678.6 | DB10: 592.1 | DC10: 558.3 | DD10: 536.3 | DE10: 520.9 | DF10: 511.4 | DG10: 494 | DH10: 700.9 | DI10: 600 | DJ10: 560.9 | DK10: 533.7 | DL10: 512.9 | DM10: 496.2 | DN10: 472.1 | DO10: 741.7 | DP10: 616 | DQ10: 570.1 | DR10: 539.4 | DS10: 515.8 | DT10: 496.5 | DU10: 467.4 | DV10: 831 | DW10: 670.3 | DX10: 596.5 | DY10: 560.1 | DZ10: 532.5 | EA10: 509.4 | EB10: 473.1 | EC10: 975.2 | ED10: 777.2 | EE10: 652.1 | EF10: 593.2 | EG10: 559.3 | EH10: 533 | EI10: 491 | EJ10: 1126 | EK10: 897.1 | EL10: 751 | EM10: 657.2 | EN10: 603.1 | EO10: 568.9 | EP10: 520.4
A11: NED2/04 | B11: NED_1869 | C11: NED 1869 | D11: DOBBE | E11: Halcyon II 27'std | F11: Offshor Y. | G11: A. Buchanan | H11: 1972 | I11: 160103 | J11: D.,Steenhuizen | K11: IMS | L11: C | M11: 393 | N11: 20 4 2004 | O11: 11:38:59 | P11: 8.07 | Q11: 6.648 | R11: 1.403 | S11: 2.332 | T11: 4229 | U11: 129.8 | V11: 1.16 | W11: 847.1 | X11: 0.7033 | Y11: 959.8 | Z11: 0.546 | AA11: 55.3 | AB11: 1442.7 | AC11: 1166.3 | AD11: 1015.3 | AE11: 918.1 | AF11: 856.1 | AG11: 817.4 | AH11: 773.4 | AI11: 1364.9 | AJ11: 1115.8 | AK11: 982.8 | AL11: 901.9 | AM11: 850.6 | AN11: 817.5 | AO11: 780.9 | AP11: 1174.7 | AQ11: 945.4 | AR11: 821.4 | AS11: 748.7 | AT11: 703.6 | AU11: 674.1 | AV11: 638.1 | AW11: 1266.3 | AX11: 1010.7 | AY11: 870 | AZ11: 785.5 | BA11: 732 | BB11: 696.7 | BC11: 654 | BD11: 1323.1 | BE11: 1035.5 | BF11: 871.7 | BG11: 768.9 | BH11: 699.9 | BI11: 650.8 | BJ11: 584.3 | BK11: 45.6 | BL11: 43.9 | BM11: 45.1 | BN11: 44.5 | BO11: 43.2 | BP11: 42.4 | BQ11: 41.8 | BR11: 147.9 | BS11: 157.8 | BT11: 161.3 | BU11: 164.4 | BV11: 171.7 | BW11: 174.2 | BX11: 175.5 | BY11: 1512 | BZ11: 1261.6 | CA11: 1139 | CB11: 1060.2 | CC11: 1012 | CD11: 982.6 | CE11: 959 | CF11: 965.3 | CG11: 813.6 | CH11: 725.8 | CI11: 689.6 | CJ11: 669.6 | CK11: 657.3 | CL11: 645.8 | CM11: 902.8 | CN11: 756.1 | CO11: 683.6 | CP11: 653.6 | CQ11: 637.7 | CR11: 627.1 | CS11: 616 | CT11: 854.8 | CU11: 707.9 | CV11: 653.1 | CW11: 620.9 | CX11: 601.3 | CY11: 590.2 | CZ11: 577.5 | DA11: 809.3 | DB11: 677.7 | DC11: 628.2 | DD11: 602.3 | DE11: 588.2 | DF11: 577.1 | DG11: 554.9 | DH11: 839.7 | DI11: 692.7 | DJ11: 630.5 | DK11: 594 | DL11: 568.4 | DM11: 550.8 | DN11: 530 | DO11: 879.8 | DP11: 718.3 | DQ11: 643.7 | DR11: 600.9 | DS11: 570.8 | DT11: 547.9 | DU11: 517.9 | DV11: 976.8 | DW11: 793.9 | DX11: 682 | DY11: 628.2 | DZ11: 591.6 | EA11: 562.8 | EB11: 520.5 | EC11: 1140.6 | ED11: 899.1 | EE11: 758.9 | EF11: 672.2 | EG11: 624.8 | EH11: 590.5 | EI11: 540.1 | EJ11: 1317 | EK11: 1031.2 | EL11: 868 | EM11: 751 | EN11: 679 | EO11: 633.8 | EP11: 573.1
A12: NED2/04 | B12: NED_1942 | C12: NED 1942 | D12: MAFALDA | E12: Pion (OOD) | F12: v.d.Stadt | G12: v/d Stadt & Prtnrs | H12: 1973 | I12: 173669 | J12: H.,Woudenberg | K12: IMS_1DSN | L12: C | M12: 467 | N12: 20 4 2004 | O12: 11:39:00 | P12: 9.084 | Q12: 7.54 | R12: 1.779 | S12: 2.896 | T12: 4280 | U12: 127 | V12: 0.71 | W12: 735.7 | X12: 0.8198 | Y12: 823.4 | Z12: 0.659 | AA12: 81.1 | AB12: 1237.7 | AC12: 995.7 | AD12: 864.3 | AE12: 788.8 | AF12: 744 | AG12: 715.4 | AH12: 681 | AI12: 1158.4 | AJ12: 941 | AK12: 831.3 | AL12: 772.1 | AM12: 736.2 | AN12: 712 | AO12: 683.3 | AP12: 1008 | AQ12: 816 | AR12: 714.1 | AS12: 655.5 | AT12: 619.6 | AU12: 596.3 | AV12: 566.6 | AW12: 1083.4 | AX12: 868.1 | AY12: 751.6 | AZ12: 683.8 | BA12: 642 | BB12: 614.9 | BC12: 581.6 | BD12: 1141.1 | BE12: 897 | BF12: 759.5 | BG12: 674.5 | BH12: 618.1 | BI12: 578.3 | BJ12: 524.3 | BK12: 44.7 | BL12: 44.9 | BM12: 42.8 | BN12: 41 | BO12: 39.9 | BP12: 39.2 | BQ12: 39 | BR12: 145.5 | BS12: 149.9 | BT12: 154.3 | BU12: 166 | BV12: 172.8 | BW12: 174.6 | BX12: 175.3 | BY12: 1246.4 | BZ12: 1032.5 | CA12: 930.6 | CB12: 881.6 | CC12: 852.4 | CD12: 834.5 | CE12: 821.6 | CF12: 799.1 | CG12: 667.9 | CH12: 622.6 | CI12: 602.4 | CJ12: 589.7 | CK12: 581.3 | CL12: 573 | CM12: 743.9 | CN12: 636.9 | CO12: 599.6 | CP12: 579.2 | CQ12: 567.5 | CR12: 559.3 | CS12: 550.6 | CT12: 699.4 | CU12: 615.3 | CV12: 580.3 | CW12: 557.1 | CX12: 541.2 | CY12: 530.8 | CZ12: 519.5 | DA12: 685.3 | DB12: 601.4 | DC12: 564.8 | DD12: 541.4 | DE12: 526 | DF12: 516.8 | DG12: 500.8 | DH12: 712.5 | DI12: 613.6 | DJ12: 570.4 | DK12: 540.2 | DL12: 517.1 | DM12: 499 | DN12: 474.4 | DO12: 760.2 | DP12: 631.9 | DQ12: 582.3 | DR12: 548.2 | DS12: 521.5 | DT12: 499.8 | DU12: 467.6 | DV12: 866 | DW12: 689.3 | DX12: 612.5 | DY12: 572.3 | DZ12: 541.8 | EA12: 516.1 | EB12: 474.4 | EC12: 1024 | ED12: 803 | EE12: 670.6 | EF12: 608.4 | EG12: 571.2 | EH12: 542.1 | EI12: 495.5 | EJ12: 1182.4 | EK12: 927.2 | EL12: 771.3 | EM12: 674.5 | EN12: 617.9 | EO12: 580.9 | EP12: 527.8
A13: NED2/04 | B13: NED_1944 | C13: NED 1944 | D13: MESJEU | E13: Pion (OOD) | F13: v.d.Stadt | G13: v/d Stadt & Prtnrs | H13: 1973 | I13: 167085 | J13: F.L.,Visser | K13: IMS_1DSN | L13: C | M13: 467 | N13: 20 4 2004 | O13: 11:39:01 | P13: 9.084 | Q13: 7.54 | R13: 1.779 | S13: 2.896 | T13: 4280 | U13: 127 | V13: 0.71 | W13: 735.7 | X13: 0.8198 | Y13: 823.4 | Z13: 0.659 | AA13: 81.1 | AB13: 1237.7 | AC13: 995.7 | AD13: 864.3 | AE13: 788.8 | AF13: 744 | AG13: 715.4 | AH13: 681 | AI13: 1158.4 | AJ13: 941 | AK13: 831.3 | AL13: 772.1 | AM13: 736.2 | AN13: 712 | AO13: 683.3 | AP13: 1008 | AQ13: 816 | AR13: 714.1 | AS13: 655.5 | AT13: 619.6 | AU13: 596.3 | AV13: 566.6 | AW13: 1083.4 | AX13: 868.1 | AY13: 751.6 | AZ13: 683.8 | BA13: 642 | BB13: 614.9 | BC13: 581.6 | BD13: 1141.1 | BE13: 897 | BF13: 759.5 | BG13: 674.5 | BH13: 618.1 | BI13: 578.3 | BJ13: 524.3 | BK13: 44.7 | BL13: 44.9 | BM13: 42.8 | BN13: 41 | BO13: 39.9 | BP13: 39.2 | BQ13: 39 | BR13: 145.5 | BS13: 149.9 | BT13: 154.3 | BU13: 166 | BV13: 172.8 | BW13: 174.6 | BX13: 175.3 | BY13: 1246.4 | BZ13: 1032.5 | CA13: 930.6 | CB13: 881.6 | CC13: 852.4 | CD13: 834.5 | CE13: 821.6 | CF13: 799.1 | CG13: 667.9 | CH13: 622.6 | CI13: 602.4 | CJ13: 589.7 | CK13: 581.3 | CL13: 573 | CM13: 743.9 | CN13: 636.9 | CO13: 599.6 | CP13: 579.2 | CQ13: 567.5 | CR13: 559.3 | CS13: 550.6 | CT13: 699.4 | CU13: 615.3 | CV13: 580.3 | CW13: 557.1 | CX13: 541.2 | CY13: 530.8 | CZ13: 519.5 | DA13: 685.3 | DB13: 601.4 | DC13: 564.8 | DD13: 541.4 | DE13: 526 | DF13: 516.8 | DG13: 500.8 | DH13: 712.5 | DI13: 613.6 | DJ13: 570.4 | DK13: 540.2 | DL13: 517.1 | DM13: 499 | DN13: 474.4 | DO13: 760.2 | DP13: 631.9 | DQ13: 582.3 | DR13: 548.2 | DS13: 521.5 | DT13: 499.8 | DU13: 467.6 | DV13: 866 | DW13: 689.3 | DX13: 612.5 | DY13: 572.3 | DZ13: 541.8 | EA13: 516.1 | EB13: 474.4 | EC13: 1024 | ED13: 803 | EE13: 670.6 | EF13: 608.4 | EG13: 571.2 | EH13: 542.1 | EI13: 495.5 | EJ13: 1182.4 | EK13: 927.2 | EL13: 771.3 | EM13: 674.5 | EN13: 617.9 | EO13: 580.9 | EP13: 527.8
A14: NED2/04 | B14: NED_2035 | C14: NED 2035 | D14: MARINA | E14: Pion (OOD) | F14: Lewin B.V. | G14: v/d Stadt & Prtnrs | H14: 1973 | I14: 169596 | J14: J.H.,van der Waals | K14: IMS_1DSN | L14: C | M14: 467 | N14: 20 4 2004 | O14: 11:39:01 | P14: 9.084 | Q14: 7.54 | R14: 1.779 | S14: 2.896 | T14: 4280 | U14: 127 | V14: 0.71 | W14: 735.7 | X14: 0.8198 | Y14: 823.4 | Z14: 0.659 | AA14: 81.1 | AB14: 1237.7 | AC14: 995.7 | AD14: 864.3 | AE14: 788.8 | AF14: 744 | AG14: 715.4 | AH14: 681 | AI14: 1158.4 | AJ14: 941 | AK14: 831.3 | AL14: 772.1 | AM14: 736.2 | AN14: 712 | AO14: 683.3 | AP14: 1008 | AQ14: 816 | AR14: 714.1 | AS14: 655.5 | AT14: 619.6 | AU14: 596.3 | AV14: 566.6 | AW14: 1083.4 | AX14: 868.1 | AY14: 751.6 | AZ14: 683.8 | BA14: 642 | BB14: 614.9 | BC14: 581.6 | BD14: 1141.1 | BE14: 897 | BF14: 759.5 | BG14: 674.5 | BH14: 618.1 | BI14: 578.3 | BJ14: 524.3 | BK14: 44.7 | BL14: 44.9 | BM14: 42.8 | BN14: 41 | BO14: 39.9 | BP14: 39.2 | BQ14: 39 | BR14: 145.5 | BS14: 149.9 | BT14: 154.3 | BU14: 166 | BV14: 172.8 | BW14: 174.6 | BX14: 175.3 | BY14: 1246.4 | BZ14: 1032.5 | CA14: 930.6 | CB14: 881.6 | CC14: 852.4 | CD14: 834.5 | CE14: 821.6 | CF14: 799.1 | CG14: 667.9 | CH14: 622.6 | CI14: 602.4 | CJ14: 589.7 | CK14: 581.3 | CL14: 573 | CM14: 743.9 | CN14: 636.9 | CO14: 599.6 | CP14: 579.2 | CQ14: 567.5 | CR14: 559.3 | CS14: 550.6 | CT14: 699.4 | CU14: 615.3 | CV14: 580.3 | CW14: 557.1 | CX14: 541.2 | CY14: 530.8 | CZ14: 519.5 | DA14: 685.3 | DB14: 601.4 | DC14: 564.8 | DD14: 541.4 | DE14: 526 | DF14: 516.8 | DG14: 500.8 | DH14: 712.5 | DI14: 613.6 | DJ14: 570.4 | DK14: 540.2 | DL14: 517.1 | DM14: 499 | DN14: 474.4 | DO14: 760.2 | DP14: 631.9 | DQ14: 582.3 | DR14: 548.2 | DS14: 521.5 | DT14: 499.8 | DU14: 467.6 | DV14: 866 | DW14: 689.3 | DX14: 612.5 | DY14: 572.3 | DZ14: 541.8 | EA14: 516.1 | EB14: 474.4 | EC14: 1024 | ED14: 803 | EE14: 670.6 | EF14: 608.4 | EG14: 571.2 | EH14: 542.1 | EI14: 495.5 | EJ14: 1182.4 | EK14: 927.2 | EL14: 771.3 | EM14: 674.5 | EN14: 617.9 | EO14: 580.9 | EP14: 527.8
A15: NED2/04 | B15: NED_2122 | C15: NED 2122 | D15: JAN HAGEL | E15: Pion (OOD) | F15: Lewin B.V. | G15: v/d Stadt & Prtnrs | H15: 1973 | I15: 145178 | J15: H.D.,Nanninga | K15: IMS_1DSN | L15: C | M15: 467 | N15: 20 4 2004 | O15: 11:39:02 | P15: 9.084 | Q15: 7.54 | R15: 1.779 | S15: 2.896 | T15: 4280 | U15: 127 | V15: 0.71 | W15: 735.7 | X15: 0.8198 | Y15: 823.4 | Z15: 0.659 | AA15: 81.1 | AB15: 1237.7 | AC15: 995.7 | AD15: 864.3 | AE15: 788.8 | AF15: 744 | AG15: 715.4 | AH15: 681 | AI15: 1158.4 | AJ15: 941 | AK15: 831.3 | AL15: 772.1 | AM15: 736.2 | AN15: 712 | AO15: 683.3 | AP15: 1008 | AQ15: 816 | AR15: 714.1 | AS15: 655.5 | AT15: 619.6 | AU15: 596.3 | AV15: 566.6 | AW15: 1083.4 | AX15: 868.1 | AY15: 751.6 | AZ15: 683.8 | BA15: 642 | BB15: 614.9 | BC15: 581.6 | BD15: 1141.1 | BE15: 897 | BF15: 759.5 | BG15: 674.5 | BH15: 618.1 | BI15: 578.3 | BJ15: 524.3 | BK15: 44.7 | BL15: 44.9 | BM15: 42.8 | BN15: 41 | BO15: 39.9 | BP15: 39.2 | BQ15: 39 | BR15: 145.5 | BS15: 149.9 | BT15: 154.3 | BU15: 166 | BV15: 172.8 | BW15: 174.6 | BX15: 175.3 | BY15: 1246.4 | BZ15: 1032.5 | CA15: 930.6 | CB15: 881.6 | CC15: 852.4 | CD15: 834.5 | CE15: 821.6 | CF15: 799.1 | CG15: 667.9 | CH15: 622.6 | CI15: 602.4 | CJ15: 589.7 | CK15: 581.3 | CL15: 573 | CM15: 743.9 | CN15: 636.9 | CO15: 599.6 | CP15: 579.2 | CQ15: 567.5 | CR15: 559.3 | CS15: 550.6 | CT15: 699.4 | CU15: 615.3 | CV15: 580.3 | CW15: 557.1 | CX15: 541.2 | CY15: 530.8 | CZ15: 519.5 | DA15: 685.3 | DB15: 601.4 | DC15: 564.8 | DD15: 541.4 | DE15: 526 | DF15: 516.8 | DG15: 500.8 | DH15: 712.5 | DI15: 613.6 | DJ15: 570.4 | DK15: 540.2 | DL15: 517.1 | DM15: 499 | DN15: 474.4 | DO15: 760.2 | DP15: 631.9 | DQ15: 582.3 | DR15: 548.2 | DS15: 521.5 | DT15: 499.8 | DU15: 467.6 | DV15: 866 | DW15: 689.3 | DX15: 612.5 | DY15: 572.3 | DZ15: 541.8 | EA15: 516.1 | EB15: 474.4 | EC15: 1024 | ED15: 803 | EE15: 670.6 | EF15: 608.4 | EG15: 571.2 | EH15: 542.1 | EI15: 495.5 | EJ15: 1182.4 | EK15: 927.2 | EL15: 771.3 | EM15: 674.5 | EN15: 617.9 | EO15: 580.9 | EP15: 527.8
A16: NED2/04 | B16: NED_2146 | C16: NED 2146 | D16: PONZIANI | E16: Pion (OOD) | F16: Lewin B.V. | G16: v/d Stadt & Prtnrs | H16: 1973 | I16: 236251 | J16: A.P.,Brouwer | K16: IMS_1DSN | L16: C | M16: 467 | N16: 20 4 2004 | O16: 11:39:03 | P16: 9.084 | Q16: 7.54 | R16: 1.779 | S16: 2.896 | T16: 4280 | U16: 127 | V16: 0.71 | W16: 735.7 | X16: 0.8198 | Y16: 823.4 | Z16: 0.659 | AA16: 81.1 | AB16: 1237.7 | AC16: 995.7 | AD16: 864.3 | AE16: 788.8 | AF16: 744 | AG16: 715.4 | AH16: 681 | AI16: 1158.4 | AJ16: 941 | AK16: 831.3 | AL16: 772.1 | AM16: 736.2 | AN16: 712 | AO16: 683.3 | AP16: 1008 | AQ16: 816 | AR16: 714.1 | AS16: 655.5 | AT16: 619.6 | AU16: 596.3 | AV16: 566.6 | AW16: 1083.4 | AX16: 868.1 | AY16: 751.6 | AZ16: 683.8 | BA16: 642 | BB16: 614.9 | BC16: 581.6 | BD16: 1141.1 | BE16: 897 | BF16: 759.5 | BG16: 674.5 | BH16: 618.1 | BI16: 578.3 | BJ16: 524.3 | BK16: 44.7 | BL16: 44.9 | BM16: 42.8 | BN16: 41 | BO16: 39.9 | BP16: 39.2 | BQ16: 39 | BR16: 145.5 | BS16: 149.9 | BT16: 154.3 | BU16: 166 | BV16: 172.8 | BW16: 174.6 | BX16: 175.3 | BY16: 1246.4 | BZ16: 1032.5 | CA16: 930.6 | CB16: 881.6 | CC16: 852.4 | CD16: 834.5 | CE16: 821.6 | CF16: 799.1 | CG16: 667.9 | CH16: 622.6 | CI16: 602.4 | CJ16: 589.7 | CK16: 581.3 | CL16: 573 | CM16: 743.9 | CN16: 636.9 | CO16: 599.6 | CP16: 579.2 | CQ16: 567.5 | CR16: 559.3 | CS16: 550.6 | CT16: 699.4 | CU16: 615.3 | CV16: 580.3 | CW16: 557.1 | CX16: 541.2 | CY16: 530.8 | CZ16: 519.5 | DA16: 685.3 | DB16: 601.4 | DC16: 564.8 | DD16: 541.4 | DE16: 526 | DF16: 516.8 | DG16: 500.8 | DH16: 712.5 | DI16: 613.6 | DJ16: 570.4 | DK16: 540.2 | DL16: 517.1 | DM16: 499 | DN16: 474.4 | DO16: 760.2 | DP16: 631.9 | DQ16: 582.3 | DR16: 548.2 | DS16: 521.5 | DT16: 499.8 | DU16: 467.6 | DV16: 866 | DW16: 689.3 | DX16: 612.5 | DY16: 572.3 | DZ16: 541.8 | EA16: 516.1 | EB16: 474.4 | EC16: 1024 | ED16: 803 | EE16: 670.6 | EF16: 608.4 | EG16: 571.2 | EH16: 542.1 | EI16: 495.5 | EJ16: 1182.4 | EK16: 927.2 | EL16: 771.3 | EM16: 674.5 | EN16: 617.9 | EO16: 580.9 | EP16: 527.8
A17: NED2/04 | B17: NED_2154 | C17: NED 2154 | D17: TOERMALIJN | E17: S & S 34 | F17: Aquafibre | G17: S & S | H17: 1974 | I17: 124069 | J17: F.D.,ten Hallers | K17: IMS | L17: C | M17: 603 | N17: 20 4 2004 | O17: 11:39:03 | P17: 10.12 | Q17: 7.866 | R17: 1.896 | S17: 3.044 | T17: 5756 | U17: 142.4 | V17: 1.02 | W17: 734.4 | X17: 0.8237 | Y17: 819.5 | Z17: 0.64 | AA17: 63.6 | AB17: 1242.3 | AC17: 1006.5 | AD17: 870.9 | AE17: 787.6 | AF17: 736.3 | AG17: 703.2 | AH17: 663 | AI17: 1167.4 | AJ17: 954.5 | AK17: 836.8 | AL17: 768.4 | AM17: 726.5 | AN17: 698.2 | AO17: 663.6 | AP17: 1014.1 | AQ17: 818.4 | AR17: 712.7 | AS17: 650.4 | AT17: 611.4 | AU17: 585.4 | AV17: 552.5 | AW17: 1099.2 | AX17: 878.2 | AY17: 756.9 | AZ17: 684.3 | BA17: 638.2 | BB17: 607.6 | BC17: 569.3 | BD17: 1143.5 | BE17: 896.5 | BF17: 756.1 | BG17: 668.2 | BH17: 609.5 | BI17: 568.3 | BJ17: 513.4 | BK17: 44.4 | BL17: 43.6 | BM17: 43.4 | BN17: 41.7 | BO17: 40.3 | BP17: 39.3 | BQ17: 38.5 | BR17: 145.2 | BS17: 152.6 | BT17: 155.1 | BU17: 163.8 | BV17: 170.8 | BW17: 173.6 | BX17: 175 | BY17: 1270 | BZ17: 1061.6 | CA17: 940 | CB17: 875.9 | CC17: 837.8 | CD17: 813.1 | CE17: 788.6 | CF17: 820.1 | CG17: 685.5 | CH17: 623.2 | CI17: 592.3 | CJ17: 574.7 | CK17: 563.7 | CL17: 551.3 | CM17: 768.6 | CN17: 647.4 | CO17: 598.3 | CP17: 570.7 | CQ17: 552.8 | CR17: 542.1 | CS17: 530 | CT17: 726.4 | CU17: 621.7 | CV17: 575.9 | CW17: 550.2 | CX17: 532.5 | CY17: 518.1 | CZ17: 501.6 | DA17: 701.5 | DB17: 600.9 | DC17: 559.1 | DD17: 533 | DE17: 515.3 | DF17: 503.6 | DG17: 491.4 | DH17: 725.4 | DI17: 613.6 | DJ17: 565.7 | DK17: 534.1 | DL17: 510.4 | DM17: 491.7 | DN17: 465.8 | DO17: 765.8 | DP17: 633.5 | DQ17: 577.5 | DR17: 542.6 | DS17: 515.8 | DT17: 494.3 | DU17: 462.2 | DV17: 856.8 | DW17: 695.1 | DX17: 609.7 | DY17: 566.6 | DZ17: 536.1 | EA17: 511.4 | EB17: 472.1 | EC17: 1008.9 | ED17: 800.9 | EE17: 675.2 | EF17: 606 | EG17: 566.4 | EH17: 537.3 | EI17: 492.9 | EJ17: 1165 | EK17: 924 | EL17: 777.4 | EM17: 677.8 | EN17: 617.1 | EO17: 577.7 | EP17: 524.8
A18: NED2/04 | B18: NED_219 | C18: NED 219 | D18: DEEP END | E18: First Class 12 | F18: Beneteau | G18: G.Frers | H18: 1991 | I18: 259557 | J18: C.T.J.,van den Berg | K18: IMS | M18: 625 | N18: 20 4 2004 | O18: 11:39:04 | P18: 11.953 | Q18: 10.053 | R18: 2.124 | S18: 3.741 | T18: 5985 | U18: 117.9 | V18: 0.02 | W18: 607.3 | X18: 0.9966 | Y18: 677.3 | Z18: 0.787 | AA18: 72.3 | AB18: 1018.6 | AC18: 826.2 | AD18: 722.6 | AE18: 660.1 | AF18: 619.5 | AG18: 592.3 | AH18: 559.2 | AI18: 945.9 | AJ18: 775.4 | AK18: 688.2 | AL18: 638.3 | AM18: 606.1 | AN18: 584 | AO18: 556.2 | AP18: 830.3 | AQ18: 673.7 | AR18: 589.9 | AS18: 541 | AT18: 510.3 | AU18: 489.5 | AV18: 462.3 | AW18: 897.8 | AX18: 720.7 | AY18: 624.3 | AZ18: 567 | BA18: 530.8 | BB18: 506.7 | BC18: 476.3 | BD18: 941 | BE18: 740.1 | BF18: 626.4 | BG18: 555.4 | BH18: 507.5 | BI18: 473.2 | BJ18: 425.3 | BK18: 44.5 | BL18: 43.3 | BM18: 41.2 | BN18: 39.7 | BO18: 38.7 | BP18: 38.2 | BQ18: 37.9 | BR18: 142.3 | BS18: 146 | BT18: 151.3 | BU18: 160.6 | BV18: 168 | BW18: 171.9 | BX18: 173.6 | BY18: 998.7 | BZ18: 838.4 | CA18: 762.3 | CB18: 721.2 | CC18: 696.8 | CD18: 682.1 | CE18: 671.1 | CF18: 643.3 | CG18: 550.3 | CH18: 514.6 | CI18: 496.3 | CJ18: 485.1 | CK18: 478 | CL18: 471.4 | CM18: 601.8 | CN18: 524.8 | CO18: 493 | CP18: 477.2 | CQ18: 466.9 | CR18: 460.1 | CS18: 453 | CT18: 571.8 | CU18: 506.3 | CV18: 474.5 | CW18: 455 | CX18: 443.6 | CY18: 435.9 | CZ18: 426.6 | DA18: 572.9 | DB18: 498.6 | DC18: 465.9 | DD18: 448.4 | DE18: 434 | DF18: 421 | DG18: 405.7 | DH18: 584.7 | DI18: 505.9 | DJ18: 467.5 | DK18: 441.2 | DL18: 421.8 | DM18: 407.3 | DN18: 388.6 | DO18: 621 | DP18: 524.6 | DQ18: 478.7 | DR18: 448.1 | DS18: 424.2 | DT18: 404.7 | DU18: 374 | DV18: 719.9 | DW18: 579.4 | DX18: 511.2 | DY18: 472.4 | DZ18: 443.3 | EA18: 418.9 | EB18: 376.8 | EC18: 864.2 | ED18: 681.1 | EE18: 573.8 | EF18: 513 | EG18: 475.7 | EH18: 447.5 | EI18: 402 | EJ18: 997.9 | EK18: 786.5 | EL18: 662.3 | EM18: 582.4 | EN18: 527.6 | EO18: 489.5 | EP18: 436.7
A19: NED2/04 | B19: NED_2201 | C19: NED 2201 | D19: BALANS | E19: Pion (OOD) | F19: Lewin B.V. | G19: v/d Stadt & Prtnrs | H19: 1973 | I19: 237072 | J19: W.D.E.,Brand | K19: IMS_1DSN | L19: C | M19: 467 | N19: 20 4 2004 | O19: 11:39:05 | P19: 9.084 | Q19: 7.54 | R19: 1.779 | S19: 2.896 | T19: 4280 | U19: 127 | V19: 0.71 | W19: 735.7 | X19: 0.8198 | Y19: 823.4 | Z19: 0.659 | AA19: 81.1 | AB19: 1237.7 | AC19: 995.7 | AD19: 864.3 | AE19: 788.8 | AF19: 744 | AG19: 715.4 | AH19: 681 | AI19: 1158.4 | AJ19: 941 | AK19: 831.3 | AL19: 772.1 | AM19: 736.2 | AN19: 712 | AO19: 683.3 | AP19: 1008 | AQ19: 816 | AR19: 714.1 | AS19: 655.5 | AT19: 619.6 | AU19: 596.3 | AV19: 566.6 | AW19: 1083.4 | AX19: 868.1 | AY19: 751.6 | AZ19: 683.8 | BA19: 642 | BB19: 614.9 | BC19: 581.6 | BD19: 1141.1 | BE19: 897 | BF19: 759.5 | BG19: 674.5 | BH19: 618.1 | BI19: 578.3 | BJ19: 524.3 | BK19: 44.7 | BL19: 44.9 | BM19: 42.8 | BN19: 41 | BO19: 39.9 | BP19: 39.2 | BQ19: 39 | BR19: 145.5 | BS19: 149.9 | BT19: 154.3 | BU19: 166 | BV19: 172.8 | BW19: 174.6 | BX19: 175.3 | BY19: 1246.4 | BZ19: 1032.5 | CA19: 930.6 | CB19: 881.6 | CC19: 852.4 | CD19: 834.5 | CE19: 821.6 | CF19: 799.1 | CG19: 667.9 | CH19: 622.6 | CI19: 602.4 | CJ19: 589.7 | CK19: 581.3 | CL19: 573 | CM19: 743.9 | CN19: 636.9 | CO19: 599.6 | CP19: 579.2 | CQ19: 567.5 | CR19: 559.3 | CS19: 550.6 | CT19: 699.4 | CU19: 615.3 | CV19: 580.3 | CW19: 557.1 | CX19: 541.2 | CY19: 530.8 | CZ19: 519.5 | DA19: 685.3 | DB19: 601.4 | DC19: 564.8 | DD19: 541.4 | DE19: 526 | DF19: 516.8 | DG19: 500.8 | DH19: 712.5 | DI19: 613.6 | DJ19: 570.4 | DK19: 540.2 | DL19: 517.1 | DM19: 499 | DN19: 474.4 | DO19: 760.2 | DP19: 631.9 | DQ19: 582.3 | DR19: 548.2 | DS19: 521.5 | DT19: 499.8 | DU19: 467.6 | DV19: 866 | DW19: 689.3 | DX19: 612.5 | DY19: 572.3 | DZ19: 541.8 | EA19: 516.1 | EB19: 474.4 | EC19: 1024 | ED19: 803 | EE19: 670.6 | EF19: 608.4 | EG19: 571.2 | EH19: 542.1 | EI19: 495.5 | EJ19: 1182.4 | EK19: 927.2 | EL19: 771.3 | EM19: 674.5 | EN19: 617.9 | EO19: 580.9 | EP19: 527.8
A20: NED2/04 | B20: NED_2216 | C20: NED 2216 | D20: MUSTANG | E20: Extension MK II | F20: Jw.Middelharnis | G20: Jac. de Ridder | H20: 1975 | I20: 144480 | J20: R.W.,van Mourik | K20: IMS | M20: 348 | N20: 20 4 2004 | O20: 11:39:05 | P20: 7.495 | Q20: 6.874 | R20: 1.497 | S20: 2.825 | T20: 2265 | U20: 108.7 | V20: 0.59 | W20: 728.8 | X20: 0.8349 | Y20: 808.5 | Z20: 0.67 | AA20: 84.8 | AB20: 1219.8 | AC20: 974.8 | AD20: 848.3 | AE20: 777.8 | AF20: 735.2 | AG20: 706.8 | AH20: 669.9 | AI20: 1137 | AJ20: 918.2 | AK20: 814.9 | AL20: 759.7 | AM20: 724.8 | AN20: 700.3 | AO20: 667.2 | AP20: 995.6 | AQ20: 807.3 | AR20: 707.6 | AS20: 650.3 | AT20: 614.8 | AU20: 591 | AV20: 558.6 | AW20: 1075.4 | AX20: 862.1 | AY20: 747.3 | AZ20: 680.2 | BA20: 638.9 | BB20: 611.7 | BC20: 576.7 | BD20: 1127.8 | BE20: 887.4 | BF20: 752.5 | BG20: 669 | BH20: 613.6 | BI20: 574.1 | BJ20: 518.6 | BK20: 44 | BL20: 42.8 | BM20: 39.9 | BN20: 38.1 | BO20: 37 | BP20: 36.3 | BQ20: 36 | BR20: 144.5 | BS20: 147 | BT20: 156.5 | BU20: 167.8 | BV20: 173.1 | BW20: 174.4 | BX20: 174.7 | BY20: 1209.5 | BZ20: 988 | CA20: 900.1 | CB20: 855.5 | CC20: 828.5 | CD20: 811.5 | CE20: 796.5 | CF20: 776.2 | CG20: 660.5 | CH20: 620.8 | CI20: 601.1 | CJ20: 588.4 | CK20: 579.9 | CL20: 571.2 | CM20: 722.3 | CN20: 636.6 | CO20: 600 | CP20: 579.2 | CQ20: 567.5 | CR20: 559.2 | CS20: 550.2 | CT20: 688.1 | CU20: 619.1 | CV20: 582.5 | CW20: 557.4 | CX20: 540.5 | CY20: 530.8 | CZ20: 519.3 | DA20: 679 | DB20: 604.9 | DC20: 566.3 | DD20: 541.9 | DE20: 527.9 | DF20: 519.3 | DG20: 497.3 | DH20: 701.3 | DI20: 618.7 | DJ20: 574.7 | DK20: 541.3 | DL20: 515.2 | DM20: 494.9 | DN20: 469.2 | DO20: 748.9 | DP20: 636.6 | DQ20: 587.7 | DR20: 551.7 | DS20: 521.5 | DT20: 495.9 | DU20: 453.9 | DV20: 864.6 | DW20: 687.1 | DX20: 619 | DY20: 577.9 | DZ20: 545.4 | EA20: 517.2 | EB20: 465.4 | EC20: 1027.6 | ED20: 801.6 | EE20: 673 | EF20: 615.5 | EG20: 577.2 | EH20: 546.3 | EI20: 494.5 | EJ20: 1186.6 | EK20: 925.6 | EL20: 770.3 | EM20: 679.3 | EN20: 625 | EO20: 587.4 | EP20: 530.8
A21: NED2/04 | B21: NED_2220 | C21: NED 2220 | D21: INFLEXIBLE | E21: Contest 30 (Mod.) | F21: Conyplex BV | G21: Dick Zaal | H21: 1976 | I21: 173912 | J21: D.,Zaal | K21: IMS | L21: C | M21: 505 | N21: 20 4 2004 | O21: 11:39:06 | P21: 9.14 | Q21: 7.615 | R21: 1.876 | S21: 3.046 | T21: 4894 | U21: 134.8 | V21: 0.68 | W21: 721 | X21: 0.8421 | Y21: 801.6 | Z21: 0.682 | AA21: 88.3 | AB21: 1191.6 | AC21: 969.3 | AD21: 845.3 | AE21: 772.4 | AF21: 728.5 | AG21: 700.1 | AH21: 666.1 | AI21: 1115.7 | AJ21: 916.2 | AK21: 811.7 | AL21: 754.1 | AM21: 718.9 | AN21: 695.4 | AO21: 667.7 | AP21: 983.6 | AQ21: 798.6 | AR21: 700.2 | AS21: 643.4 | AT21: 608.4 | AU21: 585.5 | AV21: 556.7 | AW21: 1063.6 | AX21: 854.5 | AY21: 741.1 | AZ21: 674.5 | BA21: 633 | BB21: 605.9 | BC21: 572.5 | BD21: 1112.4 | BE21: 876.7 | BF21: 744.1 | BG21: 661.9 | BH21: 607.4 | BI21: 569 | BJ21: 517.2 | BK21: 42.8 | BL21: 42.9 | BM21: 41.5 | BN21: 39.8 | BO21: 38.7 | BP21: 38.1 | BQ21: 37.9 | BR21: 145.5 | BS21: 151.6 | BT21: 155.7 | BU21: 165.4 | BV21: 171.5 | BW21: 173.7 | BX21: 174.8 | BY21: 1193.2 | BZ21: 1001.9 | CA21: 902.1 | CB21: 855.4 | CC21: 827.5 | CD21: 810.5 | CE21: 798.1 | CF21: 781.6 | CG21: 660.1 | CH21: 613.1 | CI21: 590.4 | CJ21: 577.9 | CK21: 569.6 | CL21: 561.6 | CM21: 735.9 | CN21: 632.6 | CO21: 592.5 | CP21: 569.8 | CQ21: 556.9 | CR21: 548.9 | CS21: 540.2 | CT21: 699.7 | CU21: 612.9 | CV21: 575.3 | CW21: 551 | CX21: 534 | CY21: 522.6 | CZ21: 510.9 | DA21: 683.6 | DB21: 597.2 | DC21: 559.2 | DD21: 535.9 | DE21: 521 | DF21: 511.6 | DG21: 495.8 | DH21: 706.1 | DI21: 608.2 | DJ21: 563.4 | DK21: 533.4 | DL21: 511.1 | DM21: 494.2 | DN21: 471.5 | DO21: 748.3 | DP21: 626.3 | DQ21: 574.6 | DR21: 540.1 | DS21: 514.3 | DT21: 493.9 | DU21: 464.5 | DV21: 841.1 | DW21: 680.8 | DX21: 605.2 | DY21: 563.9 | DZ21: 533.3 | EA21: 508.3 | EB21: 469.8 | EC21: 988.4 | ED21: 787.1 | EE21: 663.9 | EF21: 601.7 | EG21: 563.5 | EH21: 534.3 | EI21: 489.4 | EJ21: 1141.3 | EK21: 908.6 | EL21: 762.4 | EM21: 668.9 | EN21: 612.4 | EO21: 574.6 | EP21: 521.6
A22: NED2/04 | B22: NED_2270 | C22: NED 2270 | D22: SPINDRIFT | E22: Contention 33 | F22: Sunship B.V. | G22: D.Peterson | H22: 1977 | I22: 158931 | J22: J.,Soeteman | K22: IMS | L22: C | M22: 450 | N22: 20 4 2004 | O22: 11:39:07 | P22: 10.011 | Q22: 8.349 | R22: 1.905 | S22: 3.155 | T22: 5666 | U22: 129.2 | V22: 0.49 | W22: 695.3 | X22: 0.8702 | Y22: 775.7 | Z22: 0.704 | AA22: 85.4 | AB22: 1148.8 | AC22: 942.9 | AD22: 824.1 | AE22: 751.4 | AF22: 706.9 | AG22: 678.1 | AH22: 643.3 | AI22: 1074.8 | AJ22: 890.1 | AK22: 789.8 | AL22: 732.1 | AM22: 696.6 | AN22: 672.9 | AO22: 644.9 | AP22: 947.1 | AQ22: 769.9 | AR22: 675.5 | AS22: 620.7 | AT22: 586.8 | AU22: 564.5 | AV22: 536.3 | AW22: 1027.9 | AX22: 826.5 | AY22: 717 | AZ22: 652.1 | BA22: 611.3 | BB22: 584.5 | BC22: 551.4 | BD22: 1072.5 | BE22: 845.8 | BF22: 717.8 | BG22: 638.2 | BH22: 585.1 | BI22: 547.5 | BJ22: 496.1 | BK22: 43.3 | BL22: 44.4 | BM22: 42.8 | BN22: 41 | BO22: 39.8 | BP22: 39.1 | BQ22: 38.7 | BR22: 144.5 | BS22: 151.3 | BT22: 151.6 | BU22: 162.8 | BV22: 170 | BW22: 172.7 | BX22: 174.2 | BY22: 1147.2 | BZ22: 979.5 | CA22: 884.4 | CB22: 836 | CC22: 807.3 | CD22: 789.7 | CE22: 775.8 | CF22: 750.3 | CG22: 633.1 | CH22: 590.2 | CI22: 570.5 | CJ22: 558 | CK22: 549.8 | CL22: 541.7 | CM22: 704.9 | CN22: 603.2 | CO22: 566.9 | CP22: 548.5 | CQ22: 537.1 | CR22: 529.3 | CS22: 520.8 | CT22: 666.6 | CU22: 582.8 | CV22: 547.7 | CW22: 525.9 | CX22: 511.8 | CY22: 503.1 | CZ22: 492.6 | DA22: 656.5 | DB22: 571.2 | DC22: 535.9 | DD22: 515.6 | DE22: 503.7 | DF22: 492.6 | DG22: 475.1 | DH22: 677.7 | DI22: 579.1 | DJ22: 537.1 | DK22: 509.1 | DL22: 489.1 | DM22: 474.5 | DN22: 455.8 | DO22: 720.7 | DP22: 597.2 | DQ22: 547.1 | DR22: 514.5 | DS22: 490.3 | DT22: 471.8 | DU22: 445.2 | DV22: 809.3 | DW22: 655.1 | DX22: 578 | DY22: 537.2 | DZ22: 507.2 | EA22: 483.2 | EB22: 446.7 | EC22: 953.1 | ED22: 763.9 | EE22: 640.8 | EF22: 576.7 | EG22: 538.6 | EH22: 509.6 | EI22: 465.7 | EJ22: 1100.5 | EK22: 881.9 | EL22: 739.5 | EM22: 646.9 | EN22: 589.9 | EO22: 551.7 | EP22: 498.7
A23: NED2/04 | B23: NED_2405 | C23: NED 2405 | D23: SCORPIUS | E23: She 36 | F23: Southhants Mar. | G23: S & S | H23: 1976 | I23: 204728 | J23: H.J.M.,van den Bergh | K23: IMS | M23: 615 | N23: 20 4 2004 | O23: 11:39:14 | P23: 10.803 | Q23: 8.746 | R23: 1.958 | S23: 3.129 | T23: 7029 | U23: 128.7 | V23: 0.98 | W23: 708.1 | X23: 0.8488 | Y23: 795.2 | Z23: 0.674 | AA23: 73.3 | AB23: 1204.3 | AC23: 972.2 | AD23: 837.4 | AE23: 758.2 | AF23: 711.7 | AG23: 683.2 | AH23: 649.5 | AI23: 1129.6 | AJ23: 919.5 | AK23: 803.7 | AL23: 740.2 | AM23: 703.2 | AN23: 679.1 | AO23: 651 | AP23: 977 | AQ23: 787.9 | AR23: 686.7 | AS23: 628.4 | AT23: 592.9 | AU23: 570 | AV23: 541.9 | AW23: 1061 | AX23: 846.4 | AY23: 729.2 | AZ23: 659.9 | BA23: 617.1 | BB23: 589.6 | BC23: 556.9 | BD23: 1103.6 | BE23: 865.5 | BF23: 730.8 | BG23: 647.4 | BH23: 592.4 | BI23: 553.9 | BJ23: 501.9 | BK23: 45.1 | BL23: 44.7 | BM23: 44.5 | BN23: 42.1 | BO23: 40.6 | BP23: 39.7 | BQ23: 39.2 | BR23: 144.2 | BS23: 150.4 | BT23: 149.6 | BU23: 161.9 | BV23: 170.7 | BW23: 173.7 | BX23: 174.8 | BY23: 1228.4 | BZ23: 1024.8 | CA23: 903.3 | CB23: 846.9 | CC23: 814.5 | CD23: 795 | CE23: 780.5 | CF23: 787.7 | CG23: 649.2 | CH23: 594.4 | CI23: 573.3 | CJ23: 561.1 | CK23: 553.1 | CL23: 545.5 | CM23: 735 | CN23: 610.2 | CO23: 571.3 | CP23: 551.4 | CQ23: 540.5 | CR23: 533 | CS23: 525.1 | CT23: 689.9 | CU23: 586.1 | CV23: 552.4 | CW23: 530.9 | CX23: 516.1 | CY23: 506.9 | CZ23: 497.1 | DA23: 672.9 | DB23: 573.3 | DC23: 539 | DD23: 518.6 | DE23: 506.4 | DF23: 498.8 | DG23: 480.8 | DH23: 695.1 | DI23: 582 | DJ23: 542.1 | DK23: 515 | DL23: 494.6 | DM23: 479.3 | DN23: 459.5 | DO23: 736.7 | DP23: 599.4 | DQ23: 552.1 | DR23: 521.2 | DS23: 497.4 | DT23: 478.3 | DU23: 450.8 | DV23: 828.8 | DW23: 663.6 | DX23: 579.8 | DY23: 542.8 | DZ23: 515.2 | EA23: 492.2 | EB23: 455.2 | EC23: 981.5 | ED23: 775.6 | EE23: 645.1 | EF23: 578.3 | EG23: 543.8 | EH23: 517.2 | EI23: 475.2 | EJ23: 1133.4 | EK23: 895.6 | EL23: 744.9 | EM23: 648.4 | EN23: 591.6 | EO23: 556.1 | EP23: 507
A24: NED2/04 | B24: NED_2431 | C24: NED 2431 | D24: VERONIER II | E24: ----- | F24: Visser/Lewin B.V. | G24: E.G.v/d. Stadt | H24: 1974 | I24: 169346 | J24: C.J.,Vroege | K24: IMS | L24: C | M24: 443 | N24: 20 4 2004 | O24: 11:39:14 | P24: 11.23 | Q24: 9.044 | R24: 2.154 | S24: 3.507 | T24: 7939 | U24: 136.9 | V24: 0.59 | W24: 674.7 | X24: 0.898 | Y24: 751.7 | Z24: 0.722 | AA24: 84.1 | AB24: 1133 | AC24: 914.9 | AD24: 792.2 | AE24: 721.4 | AF24: 679 | AG24: 652 | AH24: 618.2 | AI24: 1059.6 | AJ24: 862.6 | AK24: 759.8 | AL24: 703.8 | AM24: 669.7 | AN24: 646.9 | AO24: 618.7 | AP24: 923.6 | AQ24: 748.2 | AR24: 654.9 | AS24: 601.2 | AT24: 568.1 | AU24: 546.4 | AV24: 518.6 | AW24: 1004 | AX24: 803.7 | AY24: 694.7 | AZ24: 630.6 | BA24: 591.1 | BB24: 565.2 | BC24: 533.5 | BD24: 1045.9 | BE24: 822.4 | BF24: 696.7 | BG24: 619 | BH24: 567.7 | BI24: 531.7 | BJ24: 483 | BK24: 44.6 | BL24: 45.5 | BM24: 42.8 | BN24: 40.6 | BO24: 39.2 | BP24: 38.3 | BQ24: 37.7 | BR24: 143.9 | BS24: 147.6 | BT24: 151.2 | BU24: 163.2 | BV24: 171.2 | BW24: 173.7 | BX24: 174.7 | BY24: 1141.1 | BZ24: 949.1 | CA24: 847.3 | CB24: 798.3 | CC24: 769.1 | CD24: 750.8 | CE24: 734.4 | CF24: 734.8 | CG24: 611.3 | CH24: 569.3 | CI24: 550.2 | CJ24: 538.3 | CK24: 530.1 | CL24: 521.2 | CM24: 684.8 | CN24: 583.9 | CO24: 550.6 | CP24: 531.6 | CQ24: 520 | CR24: 512.2 | CS24: 502.9 | CT24: 642.2 | CU24: 565.6 | CV24: 535 | CW24: 514.4 | CX24: 499.5 | CY24: 489 | CZ24: 477.5 | DA24: 634 | DB24: 555.1 | DC24: 523 | DD24: 502.6 | DE24: 489 | DF24: 480.5 | DG24: 464.1 | DH24: 650.8 | DI24: 561.8 | DJ24: 525.5 | DK24: 499.9 | DL24: 480.3 | DM24: 464.7 | DN24: 443 | DO24: 694.4 | DP24: 576.8 | DQ24: 534.4 | DR24: 505.5 | DS24: 482.9 | DT24: 464.5 | DU24: 436.7 | DV24: 788.9 | DW24: 628.4 | DX24: 560.3 | DY24: 525.5 | DZ24: 498.9 | EA24: 476.8 | EB24: 441.7 | EC24: 936.1 | ED24: 740.4 | EE24: 616.8 | EF24: 559.6 | EG24: 526.7 | EH24: 501 | EI24: 460 | EJ24: 1081 | EK24: 854.9 | EL24: 711.8 | EM24: 625.1 | EN24: 572.8 | EO24: 538.9 | EP24: 491
A25: NED2/04 | B25: NED_2472 | C25: NED 2472 | D25: PIETERNEL | E25: Pion (OOD) | F25: Meyer Balk | G25: v/d Stadt & Prtnrs | H25: 1973 | I25: 183051 | J25: R.,Punt | K25: IMS_1DSN | L25: C | M25: 467 | N25: 20 4 2004 | O25: 11:39:16 | P25: 9.084 | Q25: 7.54 | R25: 1.779 | S25: 2.896 | T25: 4280 | U25: 127 | V25: 0.71 | W25: 735.7 | X25: 0.8198 | Y25: 823.4 | Z25: 0.659 | AA25: 81.1 | AB25: 1237.7 | AC25: 995.7 | AD25: 864.3 | AE25: 788.8 | AF25: 744 | AG25: 715.4 | AH25: 681 | AI25: 1158.4 | AJ25: 941 | AK25: 831.3 | AL25: 772.1 | AM25: 736.2 | AN25: 712 | AO25: 683.3 | AP25: 1008 | AQ25: 816 | AR25: 714.1 | AS25: 655.5 | AT25: 619.6 | AU25: 596.3 | AV25: 566.6 | AW25: 1083.4 | AX25: 868.1 | AY25: 751.6 | AZ25: 683.8 | BA25: 642 | BB25: 614.9 | BC25: 581.6 | BD25: 1141.1 | BE25: 897 | BF25: 759.5 | BG25: 674.5 | BH25: 618.1 | BI25: 578.3 | BJ25: 524.3 | BK25: 44.7 | BL25: 44.9 | BM25: 42.8 | BN25: 41 | BO25: 39.9 | BP25: 39.2 | BQ25: 39 | BR25: 145.5 | BS25: 149.9 | BT25: 154.3 | BU25: 166 | BV25: 172.8 | BW25: 174.6 | BX25: 175.3 | BY25: 1246.4 | BZ25: 1032.5 | CA25: 930.6 | CB25: 881.6 | CC25: 852.4 | CD25: 834.5 | CE25: 821.6 | CF25: 799.1 | CG25: 667.9 | CH25: 622.6 | CI25: 602.4 | CJ25: 589.7 | CK25: 581.3 | CL25: 573 | CM25: 743.9 | CN25: 636.9 | CO25: 599.6 | CP25: 579.2 | CQ25: 567.5 | CR25: 559.3 | CS25: 550.6 | CT25: 699.4 | CU25: 615.3 | CV25: 580.3 | CW25: 557.1 | CX25: 541.2 | CY25: 530.8 | CZ25: 519.5 | DA25: 685.3 | DB25: 601.4 | DC25: 564.8 | DD25: 541.4 | DE25: 526 | DF25: 516.8 | DG25: 500.8 | DH25: 712.5 | DI25: 613.6 | DJ25: 570.4 | DK25: 540.2 | DL25: 517.1 | DM25: 499 | DN25: 474.4 | DO25: 760.2 | DP25: 631.9 | DQ25: 582.3 | DR25: 548.2 | DS25: 521.5 | DT25: 499.8 | DU25: 467.6 | DV25: 866 | DW25: 689.3 | DX25: 612.5 | DY25: 572.3 | DZ25: 541.8 | EA25: 516.1 | EB25: 474.4 | EC25: 1024 | ED25: 803 | EE25: 670.6 | EF25: 608.4 | EG25: 571.2 | EH25: 542.1 | EI25: 495.5 | EJ25: 1182.4 | EK25: 927.2 | EL25: 771.3 | EM25: 674.5 | EN25: 617.9 | EO25: 580.9 | EP25: 527.8
A26: NED2/04 | B26: NED_2484 | C26: NED 2484 | D26: PENTA | E26: Piewiet 820 | F26: v.d. Rest Nautic | G26: H. v.d. Rest | H26: 1971 | I26: 146047 | J26: R.P.,Nijziel | K26: IMS | L26: C | M26: 402 | N26: 20 4 2004 | O26: 11:39:16 | P26: 8.16 | Q26: 6.913 | R26: 1.458 | S26: 2.709 | T26: 2978 | U26: 81.2 | V26: 0.91 | W26: 813.7 | X26: 0.7285 | Y26: 926.5 | Z26: 0.565 | AA26: 53.7 | AB26: 1420.1 | AC26: 1131.2 | AD26: 966.4 | AE26: 870.7 | AF26: 816.1 | AG26: 783.6 | AH26: 748.8 | AI26: 1341 | AJ26: 1076.6 | AK26: 931.7 | AL26: 853.8 | AM26: 809.6 | AN26: 782.1 | AO26: 753.2 | AP26: 1138 | AQ26: 910.3 | AR26: 787.7 | AS26: 716.9 | AT26: 674.4 | AU26: 647.7 | AV26: 617 | AW26: 1229.1 | AX26: 974 | AY26: 834.1 | AZ26: 751.5 | BA26: 701 | BB26: 669.1 | BC26: 633 | BD26: 1280.9 | BE26: 998.5 | BF26: 838.2 | BG26: 738.5 | BH26: 672.6 | BI26: 626.5 | BJ26: 565.1 | BK26: 45.9 | BL26: 45.5 | BM26: 46.1 | BN26: 44 | BO26: 42.6 | BP26: 41.8 | BQ26: 41.6 | BR26: 147.7 | BS26: 153 | BT26: 152.9 | BU26: 163.8 | BV26: 171.9 | BW26: 174.2 | BX26: 175.2 | BY26: 1487.4 | BZ26: 1217.9 | CA26: 1063.1 | CB26: 992.6 | CC26: 954.8 | CD26: 933.9 | CE26: 925.8 | CF26: 942.1 | CG26: 771.1 | CH26: 683.4 | CI26: 654.3 | CJ26: 640.2 | CK26: 632.2 | CL26: 627.3 | CM26: 871.1 | CN26: 710.8 | CO26: 649.9 | CP26: 624.2 | CQ26: 612.4 | CR26: 605.1 | CS26: 599.2 | CT26: 814.9 | CU26: 673.5 | CV26: 623.2 | CW26: 594.9 | CX26: 577.9 | CY26: 570.1 | CZ26: 561.9 | DA26: 775.4 | DB26: 647.9 | DC26: 602.2 | DD26: 578.1 | DE26: 567.5 | DF26: 553.6 | DG26: 537.8 | DH26: 808.4 | DI26: 662.3 | DJ26: 608.5 | DK26: 572.2 | DL26: 546.2 | DM26: 529.4 | DN26: 512.1 | DO26: 854.6 | DP26: 684.9 | DQ26: 620.9 | DR26: 581.6 | DS26: 551.1 | DT26: 526.2 | DU26: 494.6 | DV26: 962 | DW26: 760.8 | DX26: 654.8 | DY26: 607.6 | DZ26: 573.3 | EA26: 545.4 | EB26: 497.6 | EC26: 1128.3 | ED26: 879.2 | EE26: 727.6 | EF26: 648 | EG26: 605.5 | EH26: 573.2 | EI26: 522.6 | EJ26: 1302.9 | EK26: 1014.5 | EL26: 839.4 | EM26: 723.2 | EN26: 657 | EO26: 615.6 | EP26: 557.7
A27: NED2/04 | B27: NED_249 | C27: NED 249 | D27: DIAMOND | E27: Ufo 34 (C.) | F27: Colvic | G27: Holman & Pye | H27: 1975 | I27: 111510 | J27: L.,van Capel | K27: IMS | L27: C | M27: 411 | N27: 20 4 2004 | O27: 11:39:17 | P27: 10.445 | Q27: 8.563 | R27: 1.946 | S27: 3.336 | T27: 6831 | U27: 123.5 | V27: 0.9 | W27: 701.3 | X27: 0.8605 | Y27: 784.4 | Z27: 0.693 | AA27: 83 | AB27: 1186.9 | AC27: 953.2 | AD27: 822.3 | AE27: 748.5 | AF27: 705.3 | AG27: 677.8 | AH27: 644.3 | AI27: 1111.9 | AJ27: 900.2 | AK27: 790 | AL27: 731.7 | AM27: 697 | AN27: 673.9 | AO27: 645.6 | AP27: 963.1 | AQ27: 778.5 | AR27: 680.4 | AS27: 624.3 | AT27: 590.2 | AU27: 568.2 | AV27: 540.6 | AW27: 1052.8 | AX27: 840 | AY27: 724.3 | AZ27: 656.5 | BA27: 614.9 | BB27: 588.2 | BC27: 556.1 | BD27: 1090.1 | BE27: 856.2 | BF27: 724.6 | BG27: 643.5 | BH27: 590.2 | BI27: 553 | BJ27: 502.9 | BK27: 44.8 | BL27: 45.4 | BM27: 43.2 | BN27: 41 | BO27: 39.6 | BP27: 38.7 | BQ27: 38.2 | BR27: 143.9 | BS27: 147.9 | BT27: 151.5 | BU27: 163.7 | BV27: 171.7 | BW27: 174.1 | BX27: 174.9 | BY27: 1207.8 | BZ27: 997 | CA27: 884 | CB27: 833.9 | CC27: 804.1 | CD27: 785.3 | CE27: 769.3 | CF27: 775.2 | CG27: 638.6 | CH27: 592.1 | CI27: 571.9 | CJ27: 560.1 | CK27: 552.3 | CL27: 544 | CM27: 721.2 | CN27: 607.5 | CO27: 571.7 | CP27: 552 | CQ27: 540.7 | CR27: 533.3 | CS27: 524.9 | CT27: 675.4 | CU27: 586.6 | CV27: 554.5 | CW27: 533.5 | CX27: 518.6 | CY27: 508.6 | CZ27: 498.3 | DA27: 654.4 | DB27: 572.1 | DC27: 539.8 | DD27: 520.3 | DE27: 508.2 | DF27: 500.9 | DG27: 483.5 | DH27: 674.8 | DI27: 579.9 | DJ27: 542.6 | DK27: 516.6 | DL27: 496.9 | DM27: 482.1 | DN27: 463.1 | DO27: 720.3 | DP27: 595.5 | DQ27: 551.9 | DR27: 522.4 | DS27: 499.3 | DT27: 480.8 | DU27: 454 | DV27: 818.1 | DW27: 648.9 | DX27: 578.2 | DY27: 543 | DZ27: 516.1 | EA27: 493.6 | EB27: 457.5 | EC27: 971.3 | ED27: 764.9 | EE27: 635.3 | EF27: 577 | EG27: 543.9 | EH27: 518 | EI27: 476.5 | EJ27: 1121.5 | EK27: 883.2 | EL27: 733.1 | EM27: 642.9 | EN27: 589.7 | EO27: 555.6 | EP27: 507.7
A28: NED2/04 | B28: NED_2583 | C28: NED 2583 | D28: CAPRICE | E28: Baltic 39 SD | F28: Baltic Yachts | G28: C & C | H28: 1977 | I28: 213645 | J28: J.,Beelen | K28: IMS | M28: 722 | N28: 20 4 2004 | O28: 11:39:18 | P28: 11.915 | Q28: 9.632 | R28: 2.141 | S28: 3.842 | T28: 8655 | U28: 124.1 | V28: 0.35 | W28: 640.3 | X28: 0.9451 | Y28: 714.2 | Z28: 0.775 | AA28: 93.7 | AB28: 1061.3 | AC28: 863.2 | AD28: 753.5 | AE28: 689.8 | AF28: 651.1 | AG28: 626.2 | AH28: 595.8 | AI28: 991.5 | AJ28: 812.9 | AK28: 721.9 | AL28: 671.9 | AM28: 641 | AN28: 620.4 | AO28: 595.8 | AP28: 869.6 | AQ28: 707.7 | AR28: 622.2 | AS28: 573 | AT28: 542.9 | AU28: 523.1 | AV28: 498 | AW28: 943.9 | AX28: 759.2 | AY28: 659.4 | AZ28: 600.8 | BA28: 564.6 | BB28: 541 | BC28: 512 | BD28: 987.3 | BE28: 779 | BF28: 662.1 | BG28: 589.7 | BH28: 541.9 | BI28: 508 | BJ28: 461.7 | BK28: 44.5 | BL28: 45.5 | BM28: 42.3 | BN28: 40.3 | BO28: 39.1 | BP28: 38.4 | BQ28: 38.1 | BR28: 143.6 | BS28: 146.1 | BT28: 151.4 | BU28: 162.8 | BV28: 170.5 | BW28: 173.1 | BX28: 174.3 | BY28: 1061.8 | BZ28: 889.3 | CA28: 803.8 | CB28: 761.3 | CC28: 736.6 | CD28: 722 | CE28: 711.4 | CF28: 683.2 | CG28: 576.5 | CH28: 542.8 | CI28: 526.3 | CJ28: 515.9 | CK28: 509 | CL28: 502.5 | CM28: 633.6 | CN28: 552.7 | CO28: 523.5 | CP28: 508.1 | CQ28: 498.3 | CR28: 491.6 | CS28: 484.4 | CT28: 596.8 | CU28: 536.3 | CV28: 507.7 | CW28: 488.7 | CX28: 476.2 | CY28: 468.6 | CZ28: 459.2 | DA28: 599.2 | DB28: 528.9 | DC28: 498.2 | DD28: 480.3 | DE28: 469.6 | DF28: 458.6 | DG28: 442.5 | DH28: 609.8 | DI28: 534.7 | DJ28: 499.7 | DK28: 474.9 | DL28: 456.4 | DM28: 442.6 | DN28: 425.3 | DO28: 650.5 | DP28: 549.3 | DQ28: 508.9 | DR28: 480.6 | DS28: 458.4 | DT28: 440.8 | DU28: 415 | DV28: 743 | DW28: 595.8 | DX28: 535.2 | DY28: 501.3 | DZ28: 475 | EA28: 453 | EB28: 418.1 | EC28: 881.3 | ED28: 703 | EE28: 588.9 | EF28: 535.9 | EG28: 503.6 | EH28: 478.1 | EI28: 437.7 | EJ28: 1017.6 | EK28: 811.8 | EL28: 679.5 | EM28: 600.3 | EN28: 550.4 | EO28: 516.8 | EP28: 469.3
A29: NED2/04 | B29: NED_2587 | C29: NED 2587 | D29: Horizon | E29: Shamrock 30 | F29: Southcoast Cork | G29: R.Holland | H29: 1973 | I29: 138777 | J29: T.A.J.,de Leeuw | K29: IMS | L29: C | M29: 463 | N29: 20 4 2004 | O29: 11:39:18 | P29: 9.046 | Q29: 7.45 | R29: 1.726 | S29: 3.076 | T29: 4210 | U29: 114.4 | V29: 0.54 | W29: 723.5 | X29: 0.833 | Y29: 810.3 | Z29: 0.7 | AA29: 104.9 | AB29: 1185.9 | AC29: 964.5 | AD29: 846.9 | AE29: 780.2 | AF29: 740.5 | AG29: 715.2 | AH29: 686.2 | AI29: 1109.9 | AJ29: 912 | AK29: 816.1 | AL29: 764.8 | AM29: 733.4 | AN29: 712.5 | AO29: 689.9 | AP29: 978 | AQ29: 797.5 | AR29: 703 | AS29: 649.5 | AT29: 617.3 | AU29: 596.7 | AV29: 571.5 | AW29: 1054.5 | AX29: 850.2 | AY29: 740.8 | AZ29: 677.7 | BA29: 639.3 | BB29: 614.9 | BC29: 585.5 | BD29: 1110.9 | BE29: 878.4 | BF29: 748.4 | BG29: 668.4 | BH29: 615.7 | BI29: 578.4 | BJ29: 527.4 | BK29: 43.9 | BL29: 44.2 | BM29: 42 | BN29: 40.6 | BO29: 39.8 | BP29: 39.4 | BQ29: 39.6 | BR29: 145.1 | BS29: 149.1 | BT29: 156.2 | BU29: 166.8 | BV29: 172.5 | BW29: 174.2 | BX29: 175 | BY29: 1188.4 | BZ29: 997 | CA29: 915 | CB29: 876.2 | CC29: 853.5 | CD29: 840.7 | CE29: 837 | CF29: 767.8 | CG29: 654.2 | CH29: 617.7 | CI29: 601.4 | CJ29: 591.2 | CK29: 584.7 | CL29: 580 | CM29: 716.2 | CN29: 627.5 | CO29: 595 | CP29: 579 | CQ29: 569.4 | CR29: 563 | CS29: 557.1 | CT29: 679.3 | CU29: 607.8 | CV29: 575.1 | CW29: 554.8 | CX29: 542.1 | CY29: 534.5 | CZ29: 525.6 | DA29: 670.3 | DB29: 595.3 | DC29: 562.1 | DD29: 543.2 | DE29: 532.3 | DF29: 520.7 | DG29: 504.9 | DH29: 690.2 | DI29: 605.1 | DJ29: 563.6 | DK29: 535.5 | DL29: 515.6 | DM29: 501.3 | DN29: 483.4 | DO29: 733.9 | DP29: 621.8 | DQ29: 574.4 | DR29: 541.2 | DS29: 516.2 | DT29: 497.2 | DU29: 471.2 | DV29: 833.8 | DW29: 671 | DX29: 603.4 | DY29: 564.4 | DZ29: 534.5 | EA29: 509.5 | EB29: 470.4 | EC29: 983.3 | ED29: 779.3 | EE29: 656.8 | EF29: 600 | EG29: 563.9 | EH29: 535.3 | EI29: 490.1 | EJ29: 1135.5 | EK29: 899.9 | EL29: 752.8 | EM29: 663.6 | EN29: 610.4 | EO29: 574.3 | EP29: 522.2
A30: NED2/04 | B30: NED_2689 | C30: NED 2689 | D30: ANNE MAZURKA | E30: ------ | F30: Jachtw. Kesteloo | G30: J.W.Kesteloo | H30: 1978 | I30: 174021 | J30: L.J.,van de Zande | K30: IMS | L30: C | M30: 719 | N30: 20 4 2004 | O30: 11:39:20 | P30: 12.191 | Q30: 10.22 | R30: 2.395 | S30: 4.007 | T30: 8267 | U30: 121.6 | V30: 0.12 | W30: 620.6 | X30: 0.9767 | Y30: 691.1 | Z30: 0.795 | AA30: 90.7 | AB30: 1038.1 | AC30: 837.8 | AD30: 728.9 | AE30: 666.3 | AF30: 628.1 | AG30: 603.3 | AH30: 572.9 | AI30: 966 | AJ30: 786.5 | AK30: 696.4 | AL30: 647.3 | AM30: 616.9 | AN30: 596.4 | AO30: 571.4 | AP30: 845.6 | AQ30: 686.8 | AR30: 602.8 | AS30: 554.6 | AT30: 525.1 | AU30: 505.7 | AV30: 481.1 | AW30: 916.3 | AX30: 735.5 | AY30: 637.7 | AZ30: 580.3 | BA30: 545 | BB30: 522 | BC30: 494 | BD30: 959.7 | BE30: 756 | BF30: 641.7 | BG30: 571.1 | BH30: 524.4 | BI30: 491.7 | BJ30: 447.4 | BK30: 44.8 | BL30: 44.9 | BM30: 41.6 | BN30: 39.5 | BO30: 38.2 | BP30: 37.4 | BQ30: 37 | BR30: 143.1 | BS30: 145.4 | BT30: 150.5 | BU30: 161.7 | BV30: 170.1 | BW30: 173.1 | BX30: 174.2 | BY30: 1025.9 | BZ30: 853.2 | CA30: 770.5 | CB30: 729.3 | CC30: 705.6 | CD30: 691.3 | CE30: 680.9 | CF30: 657.8 | CG30: 555.8 | CH30: 525.2 | CI30: 509.7 | CJ30: 500.1 | CK30: 493.8 | CL30: 488.2 | CM30: 609.9 | CN30: 533.3 | CO30: 507 | CP30: 493.3 | CQ30: 484.2 | CR30: 478.2 | CS30: 472.2 | CT30: 574.8 | CU30: 517.7 | CV30: 490.7 | CW30: 473.7 | CX30: 463.7 | CY30: 457 | CZ30: 448.7 | DA30: 579.3 | DB30: 512.7 | DC30: 484 | DD30: 468.4 | DE30: 455 | DF30: 443.6 | DG30: 430.8 | DH30: 592.5 | DI30: 517.9 | DJ30: 484.3 | DK30: 460.7 | DL30: 443.3 | DM30: 430.5 | DN30: 414.7 | DO30: 633.7 | DP30: 532.7 | DQ30: 493.3 | DR30: 465.7 | DS30: 444.1 | DT30: 426.4 | DU30: 401.2 | DV30: 732.1 | DW30: 581.5 | DX30: 519.9 | DY30: 486.2 | DZ30: 460.1 | EA30: 437.8 | EB30: 400.8 | EC30: 875 | ED30: 689.4 | EE30: 575.5 | EF30: 521.2 | EG30: 488.9 | EH30: 463.5 | EI30: 421.5 | EJ30: 1010.4 | EK30: 796 | EL30: 664.4 | EM30: 586.1 | EN30: 535.9 | EO30: 502.2 | EP30: 454.4
A31: NED2/04 | B31: NED_2695 | C31: NED 2695 | D31: BREEZAND | E31: Standfast 40 | F31: Jachtw. Maas | G31: F.Maas | H31: 1979 | I31: 181961 | J31: H.C.,Jorissen | K31: IMS | L31: C | M31: 780 | N31: 20 4 2004 | O31: 11:39:21 | P31: 12.203 | Q31: 9.984 | R31: 2.14 | S31: 3.983 | T31: 11224 | U31: 134.9 | V31: 0.98 | W31: 673 | X31: 0.8926 | Y31: 756.2 | Z31: 0.692 | AA31: 59.8 | AB31: 1151.2 | AC31: 927.4 | AD31: 803.6 | AE31: 727.7 | AF31: 679.4 | AG31: 647.9 | AH31: 611.2 | AI31: 1080.7 | AJ31: 878 | AK31: 770.1 | AL31: 707.9 | AM31: 668.9 | AN31: 642.8 | AO31: 611.8 | AP31: 931.4 | AQ31: 750.4 | AR31: 652.8 | AS31: 595.6 | AT31: 559.9 | AU31: 536.4 | AV31: 506.7 | AW31: 1018.9 | AX31: 811.5 | AY31: 697.5 | AZ31: 629.2 | BA31: 586.1 | BB31: 557.6 | BC31: 522.6 | BD31: 1051.4 | BE31: 823 | BF31: 693.3 | BG31: 612.1 | BH31: 557.9 | BI31: 519.7 | BJ31: 468.6 | BK31: 45.6 | BL31: 44.5 | BM31: 44.3 | BN31: 42.7 | BO31: 41.4 | BP31: 40.5 | BQ31: 39.8 | BR31: 143.7 | BS31: 148.2 | BT31: 151.7 | BU31: 160.6 | BV31: 167.9 | BW31: 172.2 | BX31: 174.5 | BY31: 1182.7 | BZ31: 977.2 | CA31: 870.4 | CB31: 812.1 | CC31: 776.5 | CD31: 753.7 | CE31: 732.1 | CF31: 753.3 | CG31: 628.4 | CH31: 568.6 | CI31: 540.8 | CJ31: 525.7 | CK31: 515.9 | CL31: 505.1 | CM31: 700.3 | CN31: 589.8 | CO31: 543.1 | CP31: 518.6 | CQ31: 504.2 | CR31: 495.5 | CS31: 485.2 | CT31: 659.4 | CU31: 563.3 | CV31: 523.2 | CW31: 499.7 | CX31: 483.6 | CY31: 472.2 | CZ31: 459 | DA31: 640.5 | DB31: 544.7 | DC31: 506.6 | DD31: 484.8 | DE31: 470.8 | DF31: 461.8 | DG31: 448.3 | DH31: 655.2 | DI31: 553.7 | DJ31: 510.2 | DK31: 483.2 | DL31: 463.2 | DM31: 447.9 | DN31: 426.8 | DO31: 692.3 | DP31: 573.1 | DQ31: 520.9 | DR31: 489.6 | DS31: 466.7 | DT31: 448.4 | DU31: 421.7 | DV31: 784.3 | DW31: 632.1 | DX31: 551.9 | DY31: 511.7 | DZ31: 484.3 | EA31: 462.4 | EB31: 427.7 | EC31: 931.6 | ED31: 734.9 | EE31: 619 | EF31: 551.4 | EG31: 513.7 | EH31: 487.2 | EI31: 447.2 | EJ31: 1075.7 | EK31: 848.6 | EL31: 714.5 | EM31: 624.4 | EN31: 566 | EO31: 527.6 | EP31: 478.3
A32: NED2/04 | B32: NED_2731 | C32: NED 2731 | D32: ALL RIGHT NOW | E32: Baltic 39 | F32: Baltic Yachts | G32: C&C | H32: 1977 | I32: 4011339 | J32: P.M.,Burns | K32: IMS | L32: C | M32: 640 | N32: 20 4 2004 | O32: 11:39:21 | P32: 11.915 | Q32: 9.78 | R32: 2.196 | S32: 3.842 | T32: 9847 | U32: 117.7 | V32: 0.56 | W32: 653.2 | X32: 0.9247 | Y32: 730 | Z32: 0.752 | AA32: 88.8 | AB32: 1091.1 | AC32: 887.6 | AD32: 770.3 | AE32: 701.8 | AF32: 661.1 | AG32: 635.5 | AH32: 604.7 | AI32: 1020 | AJ32: 836.4 | AK32: 738 | AL32: 684 | AM32: 651.7 | AN32: 630.3 | AO32: 605.5 | AP32: 891.2 | AQ32: 723.4 | AR32: 634.3 | AS32: 583.1 | AT32: 551.9 | AU32: 531.7 | AV32: 506.4 | AW32: 969.7 | AX32: 777.8 | AY32: 673.6 | AZ32: 612.3 | BA32: 574.3 | BB32: 549.7 | BC32: 520.4 | BD32: 1010.4 | BE32: 795.9 | BF32: 675.2 | BG32: 600.5 | BH32: 551.4 | BI32: 516.8 | BJ32: 470.1 | BK32: 44.6 | BL32: 46.4 | BM32: 43.3 | BN32: 41.1 | BO32: 39.7 | BP32: 38.9 | BQ32: 38.4 | BR32: 143.5 | BS32: 148.2 | BT32: 149.9 | BU32: 161.8 | BV32: 170.3 | BW32: 173.4 | BX32: 174.5 | BY32: 1096 | BZ32: 922.2 | CA32: 824.5 | CB32: 777.4 | CC32: 750.5 | CD32: 734.5 | CE32: 722.7 | CF32: 707.3 | CG32: 588.8 | CH32: 550.8 | CI32: 533.9 | CJ32: 523.5 | CK32: 516.6 | CL32: 510.1 | CM32: 659.1 | CN32: 561.1 | CO32: 530.8 | CP32: 515.4 | CQ32: 505.8 | CR32: 499.1 | CS32: 492.1 | CT32: 616 | CU32: 543.3 | CV32: 514.6 | CW32: 495.9 | CX32: 483.8 | CY32: 476.3 | CZ32: 467 | DA32: 613.3 | DB32: 535 | DC32: 505 | DD32: 487.6 | DE32: 477.4 | DF32: 466.7 | DG32: 451 | DH32: 628.2 | DI32: 540.7 | DJ32: 506.2 | DK32: 482 | DL32: 464.1 | DM32: 450.8 | DN32: 434 | DO32: 671 | DP32: 555.6 | DQ32: 514.9 | DR32: 487.2 | DS32: 465.7 | DT32: 448.5 | DU32: 424 | DV32: 760.1 | DW32: 608.3 | DX32: 540.7 | DY32: 507.1 | DZ32: 481.5 | EA32: 460.1 | EB32: 426.4 | EC32: 901.9 | ED32: 719.3 | EE32: 598.7 | EF32: 541.3 | EG32: 509.3 | EH32: 484.5 | EI32: 445 | EJ32: 1041.4 | EK32: 830.6 | EL32: 691.4 | EM32: 607.6 | EN32: 555.8 | EO32: 522.6 | EP32: 476
A33: NED2/04 | B33: NED_2760 | C33: NED 2760 | D33: SAVILI | E33: Huisman 37 | F33: Jachtw. Huisman | G33: Jac. de Ridder | H33: 1980 | I33: 112256 | J33: E.J.,van Cortenberghe | K33: IMS | M33: 625 | N33: 20 4 2004 | O33: 11:39:22 | P33: 11.22 | Q33: 9.238 | R33: 2.032 | S33: 3.603 | T33: 7688 | U33: 126 | V33: 0.42 | W33: 662.2 | X33: 0.9109 | Y33: 741 | Z33: 0.754 | AA33: 97.4 | AB33: 1095.2 | AC33: 892.3 | AD33: 779.9 | AE33: 714.3 | AF33: 674.8 | AG33: 649.9 | AH33: 620.9 | AI33: 1023.2 | AJ33: 841.5 | AK33: 748.4 | AL33: 697.2 | AM33: 666 | AN33: 645.6 | AO33: 622.8 | AP33: 898 | AQ33: 731.2 | AR33: 643.3 | AS33: 593 | AT33: 562.6 | AU33: 542.8 | AV33: 518.4 | AW33: 976.2 | AX33: 784.9 | AY33: 681.6 | AZ33: 621.4 | BA33: 584.3 | BB33: 560.5 | BC33: 532.3 | BD33: 1020 | BE33: 805.3 | BF33: 684.8 | BG33: 610.5 | BH33: 561.5 | BI33: 526.9 | BJ33: 479.9 | BK33: 44.6 | BL33: 45.5 | BM33: 42.8 | BN33: 41 | BO33: 39.9 | BP33: 39.3 | BQ33: 39.1 | BR33: 143.5 | BS33: 147.2 | BT33: 151.7 | BU33: 163.1 | BV33: 170.7 | BW33: 173.4 | BX33: 174.5 | BY33: 1095.8 | BZ33: 924.6 | CA33: 838.2 | CB33: 795.3 | CC33: 770.7 | CD33: 756.6 | CE33: 749 | CF33: 705.6 | CG33: 596.9 | CH33: 561.7 | CI33: 545.1 | CJ33: 535 | CK33: 528.5 | CL33: 523.3 | CM33: 656.7 | CN33: 570.3 | CO33: 540.7 | CP33: 525.8 | CQ33: 516.5 | CR33: 510.3 | CS33: 504.1 | CT33: 618.5 | CU33: 552.4 | CV33: 523.5 | CW33: 505.3 | CX33: 493.6 | CY33: 486.3 | CZ33: 477.5 | DA33: 617 | DB33: 543.9 | DC33: 514 | DD33: 496.8 | DE33: 486.5 | DF33: 475.4 | DG33: 460.1 | DH33: 630.3 | DI33: 549.4 | DJ33: 514.3 | DK33: 490.2 | DL33: 472.2 | DM33: 458.8 | DN33: 441.7 | DO33: 672.2 | DP33: 564.7 | DQ33: 522.8 | DR33: 494.7 | DS33: 473.1 | DT33: 455.8 | DU33: 431 | DV33: 765.6 | DW33: 614 | DX33: 549.2 | DY33: 514.6 | DZ33: 488.3 | EA33: 466.4 | EB33: 432 | EC33: 908.9 | ED33: 722.1 | EE33: 604.7 | EF33: 549.1 | EG33: 516.3 | EH33: 490.9 | EI33: 450.3 | EJ33: 1049.5 | EK33: 833.8 | EL33: 697.5 | EM33: 614.5 | EN33: 563 | EO33: 529 | EP33: 481.4
A34: NED2/04 | B34: NED_2795 | C34: NED 2795 | D34: NEFERTETE | E34: Baltic 37 | F34: Baltic Yachts | G34: C & C | H34: 1980 | I34: 101482 | J34: K.Y.,Auw Yang | K34: IMS | M34: 560 | N34: 20 4 2004 | O34: 11:39:23 | P34: 11.195 | Q34: 8.955 | R34: 2.127 | S34: 3.637 | T34: 7551 | U34: 119.8 | V34: 0.39 | W34: 658.4 | X34: 0.9221 | Y34: 732 | Z34: 0.775 | AA34: 109.1 | AB34: 1078.1 | AC34: 878.4 | AD34: 768.9 | AE34: 706.4 | AF34: 669.3 | AG34: 645.5 | AH34: 616.3 | AI34: 1006.6 | AJ34: 827.3 | AK34: 738.2 | AL34: 689.9 | AM34: 660.3 | AN34: 640.5 | AO34: 617.2 | AP34: 888.1 | AQ34: 725.4 | AR34: 640 | AS34: 591.5 | AT34: 562.1 | AU34: 542.8 | AV34: 518.5 | AW34: 960.3 | AX34: 775 | AY34: 675.5 | AZ34: 617.7 | BA34: 582.4 | BB34: 559.6 | BC34: 531.9 | BD34: 1010 | BE34: 799.2 | BF34: 681.4 | BG34: 609.1 | BH34: 561.6 | BI34: 528.1 | BJ34: 482.8 | BK34: 43.7 | BL34: 44.7 | BM34: 41.3 | BN34: 39.4 | BO34: 38.2 | BP34: 37.6 | BQ34: 37.3 | BR34: 144.2 | BS34: 145.6 | BT34: 152.9 | BU34: 165.1 | BV34: 172.2 | BW34: 174 | BX34: 174.7 | BY34: 1071.6 | BZ34: 900.4 | CA34: 820 | CB34: 780.6 | CC34: 757.9 | CD34: 744.6 | CE34: 736.4 | CF34: 692.3 | CG34: 591 | CH34: 562 | CI34: 546.9 | CJ34: 537.4 | CK34: 531.2 | CL34: 525.7 | CM34: 641.3 | CN34: 569.3 | CO34: 543.4 | CP34: 529.5 | CQ34: 520.4 | CR34: 514.1 | CS34: 507.8 | CT34: 608.8 | CU34: 554.2 | CV34: 526.9 | CW34: 509.3 | CX34: 498.2 | CY34: 491.1 | CZ34: 482.3 | DA34: 610.4 | DB34: 547.1 | DC34: 518.5 | DD34: 501.8 | DE34: 491 | DF34: 479 | DG34: 464.4 | DH34: 622.5 | DI34: 552.8 | DJ34: 518.7 | DK34: 494.5 | DL34: 476.5 | DM34: 463.1 | DN34: 446.3 | DO34: 664.9 | DP34: 566.7 | DQ34: 527.4 | DR34: 499.2 | DS34: 477.2 | DT34: 459.9 | DU34: 434.8 | DV34: 761.5 | DW34: 610 | DX34: 553 | DY34: 519.3 | DZ34: 492.8 | EA34: 470.5 | EB34: 435.3 | EC34: 900.7 | ED34: 718.6 | EE34: 602.4 | EF34: 552.6 | EG34: 520.8 | EH34: 495.1 | EI34: 453.7 | EJ34: 1040.1 | EK34: 829.8 | EL34: 693.5 | EM34: 613.5 | EN34: 565.2 | EO34: 532.6 | EP34: 484.9
A35: NED2/04 | B35: NED_2798 | C35: NED 2798 | D35: TWEE GEZUSTERS | E35: OOD 34 | F35: J.Rogers | G35: D.Peterson | H35: 1980 | I35: 174816 | J35: H.D.D.,Zuiderbaan | K35: IMS | L35: C | M35: 567 | N35: 20 4 2004 | O35: 11:39:23 | P35: 10.257 | Q35: 8.817 | R35: 1.964 | S35: 3.395 | T35: 5106 | U35: 111.9 | V35: 0.57 | W35: 686.6 | X35: 0.8747 | Y35: 771.7 | Z35: 0.682 | AA35: 62.7 | AB35: 1179.9 | AC35: 942.2 | AD35: 814.2 | AE35: 739.5 | AF35: 693.4 | AG35: 663.5 | AH35: 628.1 | AI35: 1102.4 | AJ35: 888.1 | AK35: 778.9 | AL35: 719 | AM35: 682.2 | AN35: 657.4 | AO35: 627.9 | AP35: 950.6 | AQ35: 765.2 | AR35: 665.8 | AS35: 608.1 | AT35: 572.7 | AU35: 549.4 | AV35: 520.4 | AW35: 1030.7 | AX35: 820.8 | AY35: 706.2 | AZ35: 638.4 | BA35: 596.3 | BB35: 568.7 | BC35: 535.2 | BD35: 1073.8 | BE35: 840.2 | BF35: 708 | BG35: 625.7 | BH35: 570.9 | BI35: 532.1 | BJ35: 479.2 | BK35: 45.3 | BL35: 44.7 | BM35: 43.1 | BN35: 41.4 | BO35: 40.2 | BP35: 39.5 | BQ35: 39.1 | BR35: 144 | BS35: 147.3 | BT35: 151.4 | BU35: 161.6 | BV35: 169.1 | BW35: 172.4 | BX35: 173.9 | BY35: 1188.2 | BZ35: 973.1 | CA35: 871.2 | CB35: 820.4 | CC35: 790.2 | CD35: 771.6 | CE35: 757.5 | CF35: 756.6 | CG35: 626.4 | CH35: 576.7 | CI35: 555.4 | CJ35: 542.7 | CK35: 534.4 | CL35: 526.7 | CM35: 701.2 | CN35: 592.6 | CO35: 552.4 | CP35: 532.5 | CQ35: 521.2 | CR35: 513.7 | CS35: 505.9 | CT35: 657.8 | CU35: 568.9 | CV35: 532.2 | CW35: 509.2 | CX35: 494.8 | CY35: 486.6 | CZ35: 477 | DA35: 649.9 | DB35: 557 | DC35: 519.2 | DD35: 497.9 | DE35: 486.4 | DF35: 474.6 | DG35: 457.1 | DH35: 671.4 | DI35: 568.2 | DJ35: 523.5 | DK35: 494 | DL35: 472.3 | DM35: 456.5 | DN35: 437.8 | DO35: 716 | DP35: 588.2 | DQ35: 535.7 | DR35: 501.6 | DS35: 475.6 | DT35: 454.9 | DU35: 425.2 | DV35: 821.3 | DW35: 649.9 | DX35: 568.1 | DY35: 526.2 | DZ35: 495.8 | EA35: 470.8 | EB35: 429.4 | EC35: 978.3 | ED35: 762.3 | EE35: 634.6 | EF35: 566.6 | EG35: 527.6 | EH35: 498.4 | EI35: 452.6 | EJ35: 1129.7 | EK35: 880.2 | EL35: 732.5 | EM35: 639.1 | EN35: 580 | EO35: 540.7 | EP35: 486.9
A36: NED2/04 | B36: NED_2804 | C36: NED 2804 | D36: KOLME | E36: Sigma 33 OOD | F36: Sigma Yachts | G36: D.Thomas | H36: 1978 | I36: 219661 | J36: H.,Haarbosch | K36: IMS | L36: C | M36: 543 | N36: 20 4 2004 | O36: 11:39:24 | P36: 9.868 | Q36: 8.241 | R36: 1.833 | S36: 3.196 | T36: 4958 | U36: 117.7 | V36: 0.53 | W36: 700.8 | X36: 0.8586 | Y36: 786.2 | Z36: 0.703 | AA36: 90.2 | AB36: 1171.8 | AC36: 944.6 | AD36: 824.2 | AE36: 755 | AF36: 713.5 | AG36: 687.5 | AH36: 657.5 | AI36: 1092.9 | AJ36: 890.7 | AK36: 791.7 | AL36: 738.7 | AM36: 706.3 | AN36: 685 | AO36: 660.9 | AP36: 955 | AQ36: 775.3 | AR36: 680.4 | AS36: 626.5 | AT36: 593.9 | AU36: 572.8 | AV36: 546.4 | AW36: 1020.3 | AX36: 819.9 | AY36: 712.4 | AZ36: 650.1 | BA36: 612.3 | BB36: 588 | BC36: 558.7 | BD36: 1083.7 | BE36: 853.7 | BF36: 724.5 | BG36: 644.8 | BH36: 592.2 | BI36: 555 | BJ36: 504.1 | BK36: 44.7 | BL36: 44.4 | BM36: 42.4 | BN36: 40.9 | BO36: 40.1 | BP36: 39.6 | BQ36: 39.7 | BR36: 144.3 | BS36: 149 | BT36: 154.1 | BU36: 166.1 | BV36: 173.2 | BW36: 175.1 | BX36: 175.8 | BY36: 1165.6 | BZ36: 970.2 | CA36: 885.4 | CB36: 844.2 | CC36: 820.3 | CD36: 806.4 | CE36: 800.1 | CF36: 747.6 | CG36: 631.7 | CH36: 593.9 | CI36: 576.9 | CJ36: 566.2 | CK36: 559.3 | CL36: 553.8 | CM36: 695.3 | CN36: 603.1 | CO36: 571 | CP36: 554.9 | CQ36: 545.1 | CR36: 538.3 | CS36: 531.9 | CT36: 654.9 | CU36: 582.2 | CV36: 551 | CW36: 531.7 | CX36: 518.8 | CY36: 510.9 | CZ36: 501.5 | DA36: 646.9 | DB36: 570.8 | DC36: 538 | DD36: 518.2 | DE36: 505.1 | DF36: 497.1 | DG36: 481.2 | DH36: 670.5 | DI36: 582.6 | DJ36: 542.5 | DK36: 514.9 | DL36: 494.5 | DM36: 479 | DN36: 457.1 | DO36: 717.4 | DP36: 600.7 | DQ36: 554.2 | DR36: 522.4 | DS36: 497.4 | DT36: 477.8 | DU36: 449.8 | DV36: 824.7 | DW36: 657.1 | DX36: 584.2 | DY36: 545.8 | DZ36: 516.9 | EA36: 492.6 | EB36: 453 | EC36: 981.6 | ED36: 767.7 | EE36: 641.7 | EF36: 581.1 | EG36: 545.2 | EH36: 517.5 | EI36: 473 | EJ36: 1133.4 | EK36: 886.5 | EL36: 738.2 | EM36: 645.4 | EN36: 589.8 | EO36: 553.7 | EP36: 502.8
A37: NED2/04 | B37: NED_2815 | C37: NED 2815 | D37: WHITE WITCH | E37: Kalik 33 (Mod.) | F37: Lewin | G37: Jac. de Ridder | H37: 1980 | I37: 110200 | J37: T.J.J.,van Bruggen | K37: IMS | M37: 565 | N37: 20 4 2004 | O37: 11:39:25 | P37: 9.96 | Q37: 8.379 | R37: 1.915 | S37: 3.32 | T37: 5675 | U37: 129.2 | V37: 0.57 | W37: 692.8 | X37: 0.8734 | Y37: 772.8 | Z37: 0.703 | AA37: 83.2 | AB37: 1160.4 | AC37: 937.7 | AD37: 814.7 | AE37: 743 | AF37: 699.6 | AG37: 671.6 | AH37: 637.5 | AI37: 1085.9 | AJ37: 885.2 | AK37: 781.7 | AL37: 724.8 | AM37: 689.8 | AN37: 666.3 | AO37: 637.9 | AP37: 948 | AQ37: 768.2 | AR37: 672.6 | AS37: 617.4 | AT37: 583.5 | AU37: 561.2 | AV37: 532.8 | AW37: 1031.3 | AX37: 825.8 | AY37: 714.2 | AZ37: 648.5 | BA37: 607.8 | BB37: 581.2 | BC37: 548.5 | BD37: 1073.1 | BE37: 844.3 | BF37: 715.3 | BG37: 635.5 | BH37: 582.7 | BI37: 545.4 | BJ37: 494.7 | BK37: 44.4 | BL37: 44.7 | BM37: 42.4 | BN37: 40.4 | BO37: 39.1 | BP37: 38.4 | BQ37: 37.9 | BR37: 144.2 | BS37: 148.4 | BT37: 152.6 | BU37: 163.8 | BV37: 170.9 | BW37: 173.4 | BX37: 174.5 | BY37: 1169.8 | BZ37: 972.1 | CA37: 872.9 | CB37: 823.7 | CC37: 794.6 | CD37: 776.7 | CE37: 762 | CF37: 754.2 | CG37: 630.6 | CH37: 586.8 | CI37: 566.8 | CJ37: 554.4 | CK37: 546.1 | CL37: 537.5 | CM37: 703.8 | CN37: 602.2 | CO37: 565.9 | CP37: 546.2 | CQ37: 534.7 | CR37: 526.7 | CS37: 517.8 | CT37: 663.7 | CU37: 582.6 | CV37: 548.5 | CW37: 526.7 | CX37: 511.8 | CY37: 501.6 | CZ37: 490.6 | DA37: 651.3 | DB37: 569.2 | DC37: 534.8 | DD37: 514.1 | DE37: 500.8 | DF37: 492.6 | DG37: 475.1 | DH37: 669.6 | DI37: 578.1 | DJ37: 537.3 | DK37: 509.6 | DL37: 489.2 | DM37: 473.9 | DN37: 452.6 | DO37: 712.7 | DP37: 595 | DQ37: 547.9 | DR37: 515.9 | DS37: 491.5 | DT37: 472.3 | DU37: 444.4 | DV37: 808.4 | DW37: 647.8 | DX37: 576.7 | DY37: 538.5 | DZ37: 509.8 | EA37: 486 | EB37: 447.8 | EC37: 957.6 | ED37: 757.7 | EE37: 634.7 | EF37: 575.2 | EG37: 539.5 | EH37: 512 | EI37: 468.6 | EJ37: 1105.7 | EK37: 874.9 | EL37: 731.5 | EM37: 642.4 | EN37: 588 | EO37: 552 | EP37: 501.2
A38: NED2/04 | B38: NED_2884 | C38: NED 2884 | D38: SCHAAKMAT | E38: Pion (OOD) | F38: Lewin B.V. | G38: v/d Stadt & Prtnrs | H38: 1973 | I38: 145994 | J38: B.A.,de Nijs | K38: IMS | L38: C | M38: 460 | N38: 20 4 2004 | O38: 11:39:26 | P38: 9.084 | Q38: 7.538 | R38: 1.778 | S38: 2.896 | T38: 4273 | U38: 127 | V38: 0.74 | W38: 738 | X38: 0.8168 | Y38: 826.4 | Z38: 0.655 | AA38: 79.2 | AB38: 1244 | AC38: 1000.2 | AD38: 867.5 | AE38: 791.2 | AF38: 745.9 | AG38: 717.1 | AH38: 682.5 | AI38: 1164.4 | AJ38: 945.3 | AK38: 834.3 | AL38: 774.4 | AM38: 738 | AN38: 713.7 | AO38: 684.7 | AP38: 1012.2 | AQ38: 818.9 | AR38: 716.2 | AS38: 657.1 | AT38: 620.9 | AU38: 597.4 | AV38: 567.6 | AW38: 1089.2 | AX38: 872 | AY38: 754.6 | AZ38: 685.9 | BA38: 643.7 | BB38: 616.3 | BC38: 582.8 | BD38: 1145.6 | BE38: 900.1 | BF38: 761.8 | BG38: 676.1 | BH38: 619.3 | BI38: 579.3 | BJ38: 525.1 | BK38: 44.7 | BL38: 44.8 | BM38: 42.9 | BN38: 41.1 | BO38: 40 | BP38: 39.3 | BQ38: 39.1 | BR38: 145.5 | BS38: 150 | BT38: 154.1 | BU38: 165.7 | BV38: 172.7 | BW38: 174.5 | BX38: 175.2 | BY38: 1253.4 | BZ38: 1037.7 | CA38: 934.1 | CB38: 884.6 | CC38: 854.9 | CD38: 836.7 | CE38: 823.7 | CF38: 803.7 | CG38: 670.6 | CH38: 624.1 | CI38: 603.5 | CJ38: 590.6 | CK38: 582.2 | CL38: 573.8 | CM38: 748.3 | CN38: 638.8 | CO38: 600.8 | CP38: 580.1 | CQ38: 568.3 | CR38: 560.1 | CS38: 551.2 | CT38: 703.7 | CU38: 616.8 | CV38: 581.4 | CW38: 558 | CX38: 541.9 | CY38: 531.4 | CZ38: 520.1 | DA38: 688.1 | DB38: 602.5 | DC38: 565.6 | DD38: 542.1 | DE38: 526.6 | DF38: 517.3 | DG38: 501.5 | DH38: 716.1 | DI38: 614.9 | DJ38: 571.4 | DK38: 541 | DL38: 517.8 | DM38: 499.6 | DN38: 475 | DO38: 763.9 | DP38: 633.4 | DQ38: 583.2 | DR38: 548.9 | DS38: 522.2 | DT38: 500.4 | DU38: 468.2 | DV38: 870 | DW38: 692.1 | DX38: 613.7 | DY38: 573.1 | DZ38: 542.5 | EA38: 516.7 | EB38: 475 | EC38: 1028.8 | ED38: 806.2 | EE38: 672.9 | EF38: 609.6 | EG38: 572.1 | EH38: 542.9 | EI38: 496.2 | EJ38: 1187.9 | EK38: 930.9 | EL38: 774.1 | EM38: 676.3 | EN38: 619.2 | EO38: 581.9 | EP38: 528.7
A39: NED2/04 | B39: NED_2918 | C39: NED 2918 | D39: BLEI | E39: Huisman 37 | F39: Jachtw. Huisman | G39: Jac de Ridder | H39: 1981 | I39: 105334 | J39: W.J.,Blenken Blijdenstein | K39: IMS | L39: C | M39: 633 | N39: 20 4 2004 | O39: 11:39:27 | P39: 11.22 | Q39: 9.224 | R39: 2.026 | S39: 3.603 | T39: 7584 | U39: 128 | V39: 0.4 | W39: 662.2 | X39: 0.9102 | Y39: 741.6 | Z39: 0.752 | AA39: 96 | AB39: 1095.6 | AC39: 892.7 | AD39: 780.6 | AE39: 715.3 | AF39: 675.8 | AG39: 650.7 | AH39: 621.8 | AI39: 1023.9 | AJ39: 842.1 | AK39: 749.2 | AL39: 698.1 | AM39: 667 | AN39: 646.5 | AO39: 623.6 | AP39: 898.3 | AQ39: 731.3 | AR39: 643.3 | AS39: 593 | AT39: 562.4 | AU39: 542.6 | AV39: 518.1 | AW39: 976.9 | AX39: 785.4 | AY39: 682 | AZ39: 621.6 | BA39: 584.5 | BB39: 560.5 | BC39: 532.2 | BD39: 1020.2 | BE39: 805.4 | BF39: 684.8 | BG39: 610.3 | BH39: 561.1 | BI39: 526.3 | BJ39: 478.8 | BK39: 44.7 | BL39: 45.6 | BM39: 43 | BN39: 41.3 | BO39: 40.2 | BP39: 39.6 | BQ39: 39.5 | BR39: 143.5 | BS39: 147.2 | BT39: 151.7 | BU39: 163 | BV39: 170.5 | BW39: 173.3 | BX39: 174.4 | BY39: 1097.6 | BZ39: 925.7 | CA39: 839.9 | CB39: 797.3 | CC39: 772.7 | CD39: 758.6 | CE39: 751.1 | CF39: 706.4 | CG39: 597.3 | CH39: 561.5 | CI39: 544.7 | CJ39: 534.5 | CK39: 528 | CL39: 522.8 | CM39: 657.3 | CN39: 570.4 | CO39: 540.3 | CP39: 525.1 | CQ39: 515.6 | CR39: 509.3 | CS39: 503.2 | CT39: 619 | CU39: 552.4 | CV39: 523.1 | CW39: 504.6 | CX39: 492.5 | CY39: 485.1 | CZ39: 476.3 | DA39: 617.1 | DB39: 543.5 | DC39: 513.2 | DD39: 495.5 | DE39: 485.2 | DF39: 474.4 | DG39: 458.7 | DH39: 630.3 | DI39: 549.1 | DJ39: 513.7 | DK39: 489.2 | DL39: 471.1 | DM39: 457.4 | DN39: 440.3 | DO39: 672 | DP39: 564.5 | DQ39: 522.3 | DR39: 494 | DS39: 472.2 | DT39: 454.7 | DU39: 429.5 | DV39: 765.1 | DW39: 613.7 | DX39: 548.9 | DY39: 514.1 | DZ39: 487.6 | EA39: 465.6 | EB39: 430.9 | EC39: 908.1 | ED39: 721.7 | EE39: 604.5 | EF39: 548.8 | EG39: 515.8 | EH39: 490.3 | EI39: 449.5 | EJ39: 1048.5 | EK39: 833.4 | EL39: 697.3 | EM39: 614.4 | EN39: 562.8 | EO39: 528.6 | EP39: 480.9
A40: NED2/04 | B40: NED_2947 | C40: NED 2947 | D40: FIDELTA | E40: She 36 | F40: South Hants Marine | G40: S & S | H40: 1979 | I40: 108154 | J40: B.H.B.,Bot | K40: IMS | L40: C | M40: 622 | N40: 20 4 2004 | O40: 11:39:27 | P40: 10.803 | Q40: 8.754 | R40: 1.946 | S40: 3.129 | T40: 6927 | U40: 129.5 | V40: 0.98 | W40: 713.2 | X40: 0.8408 | Y40: 802.8 | Z40: 0.661 | AA40: 66.6 | AB40: 1224.3 | AC40: 983.2 | AD40: 845 | AE40: 763.7 | AF40: 715.8 | AG40: 686.1 | AH40: 651.1 | AI40: 1149.9 | AJ40: 931 | AK40: 811.3 | AL40: 745.9 | AM40: 707.3 | AN40: 682.3 | AO40: 652.8 | AP40: 988.2 | AQ40: 795 | AR40: 691.3 | AS40: 631.5 | AT40: 595 | AU40: 571.5 | AV40: 542.5 | AW40: 1078.6 | AX40: 857.8 | AY40: 736.8 | AZ40: 665.2 | BA40: 620.8 | BB40: 592.3 | BC40: 558.3 | BD40: 1115.3 | BE40: 872.8 | BF40: 735.7 | BG40: 650.5 | BH40: 594.3 | BI40: 554.9 | BJ40: 502.2 | BK40: 45.5 | BL40: 44.7 | BM40: 45 | BN40: 42.6 | BO40: 41 | BP40: 40.1 | BQ40: 39.6 | BR40: 144.2 | BS40: 149.7 | BT40: 149.7 | BU40: 161.7 | BV40: 170.4 | BW40: 173.6 | BX40: 174.7 | BY40: 1260 | BZ40: 1042 | CA40: 916.3 | CB40: 856.4 | CC40: 821.8 | CD40: 800.9 | CE40: 784.3 | CF40: 804 | CG40: 661.3 | CH40: 599.1 | CI40: 575.7 | CJ40: 562.8 | CK40: 554.3 | CL40: 545.9 | CM40: 748.4 | CN40: 617.5 | CO40: 574.7 | CP40: 553.3 | CQ40: 541.5 | CR40: 533.7 | CS40: 525.2 | CT40: 702.8 | CU40: 591.2 | CV40: 555 | CW40: 532.7 | CX40: 517.3 | CY40: 507.3 | CZ40: 497 | DA40: 675.3 | DB40: 573.9 | DC40: 539 | DD40: 518.4 | DE40: 506.1 | DF40: 498.4 | DG40: 481.2 | DH40: 697.3 | DI40: 582.8 | DJ40: 541.9 | DK40: 514.5 | DL40: 494.2 | DM40: 479 | DN40: 459.1 | DO40: 739.3 | DP40: 600.7 | DQ40: 552 | DR40: 520.7 | DS40: 496.7 | DT40: 477.6 | DU40: 450.3 | DV40: 834.6 | DW40: 665.7 | DX40: 580.3 | DY40: 542.6 | DZ40: 514.6 | EA40: 491.5 | EB40: 454.1 | EC40: 989.6 | ED40: 778.5 | EE40: 646.9 | EF40: 578.8 | EG40: 543.5 | EH40: 516.7 | EI40: 474.3 | EJ40: 1142.7 | EK40: 898.9 | EL40: 747 | EM40: 649.8 | EN40: 592.1 | EO40: 556 | EP40: 506.4
A41: NED2/04 | B41: NED_2965 | C41: NED 2965 | D41: FORTUNE | E41: Pion (OOD) | F41: Meijer Balk | G41: v/d Stadt & Prtnrs | H41: 1973 | I41: 121025 | J41: R.A.,de Groot | K41: IMS_1DSN | L41: C | M41: 467 | N41: 20 4 2004 | O41: 11:39:28 | P41: 9.084 | Q41: 7.54 | R41: 1.779 | S41: 2.896 | T41: 4280 | U41: 127 | V41: 0.71 | W41: 735.7 | X41: 0.8198 | Y41: 823.4 | Z41: 0.659 | AA41: 81.1 | AB41: 1237.7 | AC41: 995.7 | AD41: 864.3 | AE41: 788.8 | AF41: 744 | AG41: 715.4 | AH41: 681 | AI41: 1158.4 | AJ41: 941 | AK41: 831.3 | AL41: 772.1 | AM41: 736.2 | AN41: 712 | AO41: 683.3 | AP41: 1008 | AQ41: 816 | AR41: 714.1 | AS41: 655.5 | AT41: 619.6 | AU41: 596.3 | AV41: 566.6 | AW41: 1083.4 | AX41: 868.1 | AY41: 751.6 | AZ41: 683.8 | BA41: 642 | BB41: 614.9 | BC41: 581.6 | BD41: 1141.1 | BE41: 897 | BF41: 759.5 | BG41: 674.5 | BH41: 618.1 | BI41: 578.3 | BJ41: 524.3 | BK41: 44.7 | BL41: 44.9 | BM41: 42.8 | BN41: 41 | BO41: 39.9 | BP41: 39.2 | BQ41: 39 | BR41: 145.5 | BS41: 149.9 | BT41: 154.3 | BU41: 166 | BV41: 172.8 | BW41: 174.6 | BX41: 175.3 | BY41: 1246.4 | BZ41: 1032.5 | CA41: 930.6 | CB41: 881.6 | CC41: 852.4 | CD41: 834.5 | CE41: 821.6 | CF41: 799.1 | CG41: 667.9 | CH41: 622.6 | CI41: 602.4 | CJ41: 589.7 | CK41: 581.3 | CL41: 573 | CM41: 743.9 | CN41: 636.9 | CO41: 599.6 | CP41: 579.2 | CQ41: 567.5 | CR41: 559.3 | CS41: 550.6 | CT41: 699.4 | CU41: 615.3 | CV41: 580.3 | CW41: 557.1 | CX41: 541.2 | CY41: 530.8 | CZ41: 519.5 | DA41: 685.3 | DB41: 601.4 | DC41: 564.8 | DD41: 541.4 | DE41: 526 | DF41: 516.8 | DG41: 500.8 | DH41: 712.5 | DI41: 613.6 | DJ41: 570.4 | DK41: 540.2 | DL41: 517.1 | DM41: 499 | DN41: 474.4 | DO41: 760.2 | DP41: 631.9 | DQ41: 582.3 | DR41: 548.2 | DS41: 521.5 | DT41: 499.8 | DU41: 467.6 | DV41: 866 | DW41: 689.3 | DX41: 612.5 | DY41: 572.3 | DZ41: 541.8 | EA41: 516.1 | EB41: 474.4 | EC41: 1024 | ED41: 803 | EE41: 670.6 | EF41: 608.4 | EG41: 571.2 | EH41: 542.1 | EI41: 495.5 | EJ41: 1182.4 | EK41: 927.2 | EL41: 771.3 | EM41: 674.5 | EN41: 617.9 | EO41: 580.9 | EP41: 527.8
A42: NED2/04 | B42: NED_297 | C42: NED 297 | D42: CAIMAN | E42: One Off | F42: J.Rogers | G42: D.Peterson | H42: 1981 | I42: 138691 | J42: R.J.,Leerling | K42: IMS | M42: 825 | N42: 20 4 2004 | O42: 11:39:29 | P42: 12.96 | Q42: 10.695 | R42: 2.543 | S42: 3.988 | T42: 10498 | U42: 128 | V42: 0.27 | W42: 607.4 | X42: 1.0013 | Y42: 674.1 | Z42: 0.803 | AA42: 84 | AB42: 1012.3 | AC42: 824.7 | AD42: 718.1 | AE42: 654.3 | AF42: 614.3 | AG42: 588 | AH42: 555.7 | AI42: 942 | AJ42: 773.6 | AK42: 683.8 | AL42: 633 | AM42: 601.4 | AN42: 579.9 | AO42: 553.8 | AP42: 828.9 | AQ42: 673.2 | AR42: 590 | AS42: 541.8 | AT42: 511.7 | AU42: 491.8 | AV42: 466.4 | AW42: 897.4 | AX42: 720.9 | AY42: 625 | AZ42: 567.9 | BA42: 532.2 | BB42: 508.4 | BC42: 479.1 | BD42: 939.2 | BE42: 739.7 | BF42: 627.2 | BG42: 557.3 | BH42: 511 | BI42: 478.2 | BJ42: 433.9 | BK42: 43.5 | BL42: 44.5 | BM42: 41.4 | BN42: 39.2 | BO42: 37.9 | BP42: 37 | BQ42: 36.4 | BR42: 142.9 | BS42: 147.2 | BT42: 149.6 | BU42: 160.1 | BV42: 168.3 | BW42: 172.1 | BX42: 174 | BY42: 995.9 | BZ42: 837.5 | CA42: 752.6 | CB42: 709.3 | CC42: 683.9 | CD42: 668.3 | CE42: 654.8 | CF42: 646.8 | CG42: 546.2 | CH42: 511.9 | CI42: 494.7 | CJ42: 484 | CK42: 476.9 | CL42: 469.8 | CM42: 603.5 | CN42: 523.1 | CO42: 493.3 | CP42: 478 | CQ42: 468.2 | CR42: 461.5 | CS42: 454 | CT42: 569.7 | CU42: 507.4 | CV42: 478 | CW42: 459.5 | CX42: 448.2 | CY42: 441 | CZ42: 431.8 | DA42: 575.6 | DB42: 503.1 | DC42: 471.4 | DD42: 453.7 | DE42: 442.3 | DF42: 430.5 | DG42: 416.1 | DH42: 590.3 | DI42: 509.2 | DJ42: 473.7 | DK42: 449 | DL42: 431.1 | DM42: 417.9 | DN42: 401.6 | DO42: 629.2 | DP42: 525.7 | DQ42: 483.6 | DR42: 455.4 | DS42: 433.7 | DT42: 416.5 | DU42: 391.7 | DV42: 717.9 | DW42: 579.1 | DX42: 512.1 | DY42: 476.8 | DZ42: 450.7 | EA42: 429.2 | EB42: 395.3 | EC42: 854.8 | ED42: 683.4 | EE42: 573.2 | EF42: 514.2 | EG42: 480.4 | EH42: 454.7 | EI42: 415.1 | EJ42: 987.1 | EK42: 789.2 | EL42: 661.8 | EM42: 582.4 | EN42: 530.1 | EO42: 494.7 | EP42: 446.5
A43: NED2/04 | B43: NED_2974 | C43: NED 2974 | D43: JASON | E43: Norlin 37 A (SD) | F43: Rex Marin | G43: P.Norlin | H43: 1983 | I43: 144363 | J43: W.,Morsman | K43: IMS | L43: C | M43: 500 | N43: 20 4 2004 | O43: 11:39:29 | P43: 11.033 | Q43: 9.055 | R43: 2.113 | S43: 3.589 | T43: 8978 | U43: 133.8 | V43: 0.45 | W43: 654 | X43: 0.9289 | Y43: 726.7 | Z43: 0.786 | AA43: 113.2 | AB43: 1067.1 | AC43: 868.9 | AD43: 762.8 | AE43: 702.2 | AF43: 665.7 | AG43: 642.3 | AH43: 613.2 | AI43: 996.4 | AJ43: 819 | AK43: 733 | AL43: 686.3 | AM43: 657.4 | AN43: 637.9 | AO43: 614.6 | AP43: 880.2 | AQ43: 719.7 | AR43: 635.8 | AS43: 588.2 | AT43: 559.4 | AU43: 540.5 | AV43: 516.4 | AW43: 951.4 | AX43: 768.6 | AY43: 670.7 | AZ43: 614.1 | BA43: 579.4 | BB43: 557 | BC43: 529.5 | BD43: 1001.7 | BE43: 793.3 | BF43: 677 | BG43: 605.8 | BH43: 558.9 | BI43: 526 | BJ43: 481 | BK43: 44.2 | BL43: 44.5 | BM43: 41.3 | BN43: 39.5 | BO43: 38.4 | BP43: 37.7 | BQ43: 37.5 | BR43: 144.1 | BS43: 145.3 | BT43: 153.6 | BU43: 165.7 | BV43: 172.5 | BW43: 174.3 | BX43: 175 | BY43: 1062.1 | BZ43: 890.2 | CA43: 814.1 | CB43: 776.1 | CC43: 753.7 | CD43: 740.4 | CE43: 730.9 | CF43: 682.8 | CG43: 586.6 | CH43: 557.8 | CI43: 543.3 | CJ43: 533.8 | CK43: 527.4 | CL43: 521.3 | CM43: 633.5 | CN43: 566.1 | CO43: 540 | CP43: 526 | CQ43: 517 | CR43: 510.7 | CS43: 503.7 | CT43: 603.5 | CU43: 551.8 | CV43: 525 | CW43: 507.1 | CX43: 495.5 | CY43: 488.1 | CZ43: 478.8 | DA43: 605.2 | DB43: 544.5 | DC43: 516 | DD43: 499 | DE43: 488.8 | DF43: 477.8 | DG43: 462.5 | DH43: 616 | DI43: 550.6 | DJ43: 517.6 | DK43: 493.7 | DL43: 475.6 | DM43: 462.3 | DN43: 445.1 | DO43: 654.4 | DP43: 563.9 | DQ43: 526.1 | DR43: 498.9 | DS43: 477.2 | DT43: 460 | DU43: 435.7 | DV43: 751.7 | DW43: 605.2 | DX43: 550.7 | DY43: 518.2 | DZ43: 492.6 | EA43: 471.2 | EB43: 437.4 | EC43: 890.6 | ED43: 709.4 | EE43: 598.3 | EF43: 550.2 | EG43: 519.3 | EH43: 494.5 | EI43: 454.5 | EJ43: 1028.3 | EK43: 819.2 | EL43: 687.9 | EM43: 609.7 | EN43: 562.3 | EO43: 530.6 | EP43: 484.2
A44: NED2/04 | B44: NED_2985 | C44: NED 2985 | D44: FLYING FORTY II | E44: Trintella 42 | F44: Jachtw. A.Wever | G44: v.d. Stadt & Prtnr | H44: 1983 | I44: 116943 | J44: C.M.,Elenbaas | K44: IMS | M44: 845 | N44: 20 4 2004 | O44: 11:39:30 | P44: 12.96 | Q44: 11.079 | R44: 2.187 | S44: 3.999 | T44: 11501 | U44: 117.3 | V44: 0.54 | W44: 628.4 | X44: 0.9595 | Y44: 703.5 | Z44: 0.742 | AA44: 61 | AB44: 1084.4 | AC44: 871.5 | AD44: 749.2 | AE44: 675.6 | AF44: 630.2 | AG44: 601.3 | AH44: 566.4 | AI44: 1009.7 | AJ44: 818.6 | AK44: 713 | AL44: 653.8 | AM44: 618 | AN44: 594.3 | AO44: 564.9 | AP44: 871.2 | AQ44: 700.9 | AR44: 609.3 | AS44: 555.8 | AT44: 522.7 | AU44: 501 | AV44: 473.6 | AW44: 944.9 | AX44: 752.6 | AY44: 646.8 | AZ44: 583.8 | BA44: 544.1 | BB44: 518.1 | BC44: 486.4 | BD44: 984.2 | BE44: 769.7 | BF44: 648 | BG44: 572.3 | BH44: 522 | BI44: 486.6 | BJ44: 439.1 | BK44: 45.8 | BL44: 45.7 | BM44: 44 | BN44: 41.5 | BO44: 39.8 | BP44: 38.7 | BQ44: 37.7 | BR44: 142.6 | BS44: 147 | BT44: 146.9 | BU44: 157.7 | BV44: 167.6 | BW44: 172.7 | BX44: 174.6 | BY44: 1078 | BZ44: 897 | CA44: 792.6 | CB44: 739.2 | CC44: 708.2 | CD44: 689 | CE44: 670.7 | CF44: 686.8 | CG44: 567.1 | CH44: 523 | CI44: 503.7 | CJ44: 492.1 | CK44: 484.3 | CL44: 475.9 | CM44: 637.3 | CN44: 533.7 | CO44: 501 | CP44: 485.1 | CQ44: 474.7 | CR44: 467.5 | CS44: 459.3 | CT44: 595.7 | CU44: 513.3 | CV44: 483.5 | CW44: 464.7 | CX44: 453.2 | CY44: 445.7 | CZ44: 436.1 | DA44: 599.8 | DB44: 508.1 | DC44: 476.2 | DD44: 458.3 | DE44: 447.4 | DF44: 435.2 | DG44: 420.1 | DH44: 618.1 | DI44: 515.7 | DJ44: 479.2 | DK44: 454.5 | DL44: 436.1 | DM44: 422.4 | DN44: 405.3 | DO44: 660.1 | DP44: 534.6 | DQ44: 489.5 | DR44: 461.2 | DS44: 439.3 | DT44: 421.7 | DU44: 395.4 | DV44: 759.1 | DW44: 604.1 | DX44: 519.2 | DY44: 483 | DZ44: 456.8 | EA44: 435.4 | EB44: 400.4 | EC44: 909.3 | ED44: 712.8 | EE44: 591.6 | EF44: 521.3 | EG44: 486.3 | EH44: 460.8 | EI44: 421.1 | EJ44: 1049.9 | EK44: 823.1 | EL44: 683.1 | EM44: 594 | EN44: 536.7 | EO44: 500.1 | EP44: 452
A45: NED3/04 | B45: NED_3 | C45: NED 3 | D45: BIERKAAI | E45: Lutra 40 | F45: Kesteloo | G45: Lutra Lutra | H45: 1992 | I45: 242701 | J45: S.,Beers | K45: IMS | L45: C | M45: 800 | N45: 20 4 2004 | O45: 11:39:30 | P45: 12.201 | Q45: 11.095 | R45: 2.669 | S45: 3.661 | T45: 6420 | U45: 124.6 | V45: 0 | W45: 581.3 | X45: 1.0447 | Y45: 646.1 | Z45: 0.808 | AA45: 63.2 | AB45: 985.2 | AC45: 794.3 | AD45: 693.2 | AE45: 632.3 | AF45: 592.1 | AG45: 564.8 | AH45: 531.2 | AI45: 908.6 | AJ45: 740.8 | AK45: 656.1 | AL45: 607.7 | AM45: 576 | AN45: 553.7 | AO45: 525.1 | AP45: 798.3 | AQ45: 646.1 | AR45: 564.4 | AS45: 516.4 | AT45: 485.9 | AU45: 465.2 | AV45: 437.6 | AW45: 857.6 | AX45: 687.5 | AY45: 594.7 | AZ45: 539.4 | BA45: 504.3 | BB45: 480.7 | BC45: 450.3 | BD45: 904.1 | BE45: 709.4 | BF45: 599.1 | BG45: 529.9 | BH45: 483.1 | BI45: 449.5 | BJ45: 402.9 | BK45: 44.4 | BL45: 42 | BM45: 39.9 | BN45: 38.4 | BO45: 37.4 | BP45: 36.8 | BQ45: 36.5 | BR45: 141.8 | BS45: 144.8 | BT45: 150 | BU45: 158.3 | BV45: 166.3 | BW45: 171 | BX45: 172.4 | BY45: 938.4 | BZ45: 786.1 | CA45: 716.5 | CB45: 678.6 | CC45: 656 | CD45: 642.3 | CE45: 631.8 | CF45: 606.8 | CG45: 521.6 | CH45: 489.8 | CI45: 472.9 | CJ45: 462.5 | CK45: 455.9 | CL45: 449.8 | CM45: 570 | CN45: 498 | CO45: 470.3 | CP45: 455.4 | CQ45: 445.9 | CR45: 439.5 | CS45: 432.9 | CT45: 542.4 | CU45: 480.3 | CV45: 449.9 | CW45: 433.8 | CX45: 423.6 | CY45: 416.1 | CZ45: 406.5 | DA45: 547.7 | DB45: 476.6 | DC45: 443.1 | DD45: 425.9 | DE45: 408.8 | DF45: 397.6 | DG45: 384.7 | DH45: 565.6 | DI45: 485.6 | DJ45: 446.7 | DK45: 419.1 | DL45: 397.5 | DM45: 382.4 | DN45: 363.8 | DO45: 603.1 | DP45: 506.3 | DQ45: 459.7 | DR45: 428.5 | DS45: 402.1 | DT45: 379.9 | DU45: 348.8 | DV45: 713.3 | DW45: 566.8 | DX45: 495.7 | DY45: 455.5 | DZ45: 425.8 | EA45: 399.1 | EB45: 353.1 | EC45: 861.1 | ED45: 670.8 | EE45: 563.4 | EF45: 499.2 | EG45: 460.2 | EH45: 431.4 | EI45: 382.2 | EJ45: 994.4 | EK45: 774.6 | EL45: 650.5 | EM45: 570.4 | EN45: 514.4 | EO45: 474.9 | EP45: 420.4
A46: NED2/04 | B46: NED_3008 | C46: NED 3008 | D46: Komedie | E46: OOD 34 | F46: J.Rodgers | G46: D.Peterson | H46: 1979 | I46: 250826 | J46: A.,Overgaauw | K46: IMS | L46: C | M46: 576 | N46: 20 4 2004 | O46: 11:39:32 | P46: 10.257 | Q46: 8.814 | R46: 1.963 | S46: 3.395 | T46: 5084 | U46: 113.7 | V46: 0.6 | W46: 688.3 | X46: 0.8738 | Y46: 772.5 | Z46: 0.674 | AA46: 58.5 | AB46: 1189.2 | AC46: 946.8 | AD46: 815.6 | AE46: 739.1 | AF46: 691.8 | AG46: 661.3 | AH46: 624.9 | AI46: 1110.6 | AJ46: 891.7 | AK46: 779.3 | AL46: 717.8 | AM46: 680 | AN46: 654.7 | AO46: 624 | AP46: 956.6 | AQ46: 768.3 | AR46: 667.2 | AS46: 608.4 | AT46: 572.2 | AU46: 548.3 | AV46: 518.3 | AW46: 1039.6 | AX46: 826.2 | AY46: 709.3 | AZ46: 640 | BA46: 596.8 | BB46: 568.4 | BC46: 533.9 | BD46: 1079 | BE46: 843 | BF46: 709.3 | BG46: 626.1 | BH46: 570.7 | BI46: 531.6 | BJ46: 478.2 | BK46: 45.1 | BL46: 44.4 | BM46: 42.9 | BN46: 41.1 | BO46: 39.8 | BP46: 39 | BQ46: 38.6 | BR46: 144 | BS46: 147.4 | BT46: 151.2 | BU46: 161.3 | BV46: 168.9 | BW46: 172.4 | BX46: 174 | BY46: 1196.1 | BZ46: 975 | CA46: 868.5 | CB46: 815.9 | CC46: 784.6 | CD46: 765.3 | CE46: 749.6 | CF46: 762.9 | CG46: 628.9 | CH46: 576.6 | CI46: 554.1 | CJ46: 540.9 | CK46: 532.4 | CL46: 524.1 | CM46: 708.1 | CN46: 595.3 | CO46: 553.1 | CP46: 531.5 | CQ46: 519.8 | CR46: 512.1 | CS46: 503.8 | CT46: 665.7 | CU46: 572.1 | CV46: 533.8 | CW46: 509.9 | CX46: 494.4 | CY46: 485.5 | CZ46: 475.6 | DA46: 656 | DB46: 559.1 | DC46: 520.3 | DD46: 497.8 | DE46: 485.5 | DF46: 475.4 | DG46: 456.5 | DH46: 678.3 | DI46: 571.1 | DJ46: 525.3 | DK46: 495.1 | DL46: 472.9 | DM46: 456.3 | DN46: 436.7 | DO46: 723.3 | DP46: 591.8 | DQ46: 537.7 | DR46: 503.2 | DS46: 476.7 | DT46: 455.6 | DU46: 424.9 | DV46: 829.5 | DW46: 655.4 | DX46: 570.9 | DY46: 528.1 | DZ46: 497.4 | EA46: 472.2 | EB46: 430.5 | EC46: 988 | ED46: 768.8 | EE46: 639.2 | EF46: 569.2 | EG46: 529.5 | EH46: 500.1 | EI46: 454 | EJ46: 1140.9 | EK46: 887.8 | EL46: 737.9 | EM46: 642.7 | EN46: 582.6 | EO46: 542.7 | EP46: 488.5
A47: NED2/04 | B47: NED_306 | C47: NED 306 | D47: CAET MOSSEL | E47: Phillips 43 | F47: Phillips | G47: Holman & Pye | H47: 1974 | I47: 173530 | J47: C.,Wolzak | K47: IMS | L47: C | M47: 818 | N47: 20 4 2004 | O47: 11:39:32 | P47: 12.958 | Q47: 10.23 | R47: 2.164 | S47: 3.907 | T47: 12923 | U47: 124.3 | V47: 1.08 | W47: 683.2 | X47: 0.875 | Y47: 771.4 | Z47: 0.673 | AA47: 54 | AB47: 1188 | AC47: 951.4 | AD47: 818 | AE47: 735.6 | AF47: 684.6 | AG47: 652.8 | AH47: 616.9 | AI47: 1114.7 | AJ47: 900.4 | AK47: 783.1 | AL47: 715.6 | AM47: 674.9 | AN47: 648.6 | AO47: 618.4 | AP47: 952.7 | AQ47: 764 | AR47: 662 | AS47: 602.4 | AT47: 565.7 | AU47: 542 | AV47: 513 | AW47: 1043.2 | AX47: 827.4 | AY47: 708.1 | AZ47: 636.8 | BA47: 591.9 | BB47: 562.7 | BC47: 528.1 | BD47: 1073.8 | BE47: 837.9 | BF47: 703.8 | BG47: 620.1 | BH47: 564.6 | BI47: 525.9 | BJ47: 474.4 | BK47: 46.4 | BL47: 44.9 | BM47: 46 | BN47: 43.7 | BO47: 42.1 | BP47: 41 | BQ47: 40.2 | BR47: 143.5 | BS47: 148.9 | BT47: 148.6 | BU47: 158.5 | BV47: 167.7 | BW47: 172.7 | BX47: 174.8 | BY47: 1222.5 | BZ47: 1006.8 | CA47: 888.1 | CB47: 822.7 | CC47: 784.7 | CD47: 761.5 | CE47: 740.7 | CF47: 773.6 | CG47: 640.8 | CH47: 571.2 | CI47: 544.4 | CJ47: 530.2 | CK47: 521.2 | CL47: 511.7 | CM47: 718.1 | CN47: 592.7 | CO47: 544 | CP47: 521.5 | CQ47: 509.2 | CR47: 501.3 | CS47: 492.3 | CT47: 674.9 | CU47: 562.6 | CV47: 523.9 | CW47: 502.2 | CX47: 487.2 | CY47: 477.2 | CZ47: 466.7 | DA47: 653.3 | DB47: 545.3 | DC47: 509.2 | DD47: 489.1 | DE47: 476.9 | DF47: 469.3 | DG47: 453.9 | DH47: 672 | DI47: 554.6 | DJ47: 512.5 | DK47: 486.8 | DL47: 467.8 | DM47: 453.4 | DN47: 434.3 | DO47: 711.1 | DP47: 575.7 | DQ47: 522.7 | DR47: 492.9 | DS47: 470.9 | DT47: 453.3 | DU47: 427.8 | DV47: 806.5 | DW47: 645.5 | DX47: 553.2 | DY47: 513.9 | DZ47: 487.6 | EA47: 466.4 | EB47: 433 | EC47: 961.2 | ED47: 751.5 | EE47: 628.7 | EF47: 552.6 | EG47: 515.8 | EH47: 490.3 | EI47: 451.5 | EJ47: 1109.8 | EK47: 867.8 | EL47: 726 | EM47: 628.1 | EN47: 567.2 | EO47: 529.3 | EP47: 481.6
A48: NED2/04 | B48: NED_3076 | C48: NED 3076 | D48: Smooth Operator | E48: X-402 MK II | F48: X-Yachts | G48: N.Jeppesen | H48: 1984 | I48: 159602 | J48: C.P.,Spuij | K48: IMS | L48: C | M48: 673 | N48: 20 4 2004 | O48: 11:39:33 | P48: 12.04 | Q48: 10.089 | R48: 2.131 | S48: 4.035 | T48: 7137 | U48: 101.5 | V48: 0.13 | W48: 627 | X48: 0.9639 | Y48: 700.3 | Z48: 0.756 | AA48: 68.4 | AB48: 1061.1 | AC48: 852 | AD48: 744.5 | AE48: 680.2 | AF48: 637.8 | AG48: 609.3 | AH48: 575.4 | AI48: 985.7 | AJ48: 800.4 | AK48: 709.3 | AL48: 657.4 | AM48: 623.7 | AN48: 600.5 | AO48: 573 | AP48: 861.8 | AQ48: 696.8 | AR48: 608.6 | AS48: 557.1 | AT48: 525 | AU48: 503.6 | AV48: 476.5 | AW48: 937.2 | AX48: 749.6 | AY48: 647.3 | AZ48: 586.5 | BA48: 548.1 | BB48: 522.7 | BC48: 491.1 | BD48: 975.1 | BE48: 765.2 | BF48: 646.5 | BG48: 572.4 | BH48: 522.7 | BI48: 487.4 | BJ48: 439.1 | BK48: 46.3 | BL48: 43.1 | BM48: 41.2 | BN48: 40 | BO48: 39 | BP48: 38.4 | BQ48: 38.1 | BR48: 143.6 | BS48: 145.7 | BT48: 152.9 | BU48: 160.8 | BV48: 166.8 | BW48: 170.9 | BX48: 173 | BY48: 1040.7 | BZ48: 861.8 | CA48: 784.6 | CB48: 741.4 | CC48: 715.2 | CD48: 699.3 | CE48: 686.8 | CF48: 662.7 | CG48: 568.2 | CH48: 527.1 | CI48: 507.6 | CJ48: 495.9 | CK48: 488.6 | CL48: 482.1 | CM48: 622.3 | CN48: 542.3 | CO48: 504.8 | CP48: 487.7 | CQ48: 477.4 | CR48: 470.7 | CS48: 463.7 | CT48: 594.8 | CU48: 523.9 | CV48: 488 | CW48: 466.1 | CX48: 454.2 | CY48: 446.6 | CZ48: 437.4 | DA48: 598.5 | DB48: 516.4 | DC48: 478.7 | DD48: 459.8 | DE48: 447 | DF48: 432.7 | DG48: 418.3 | DH48: 610.6 | DI48: 525.8 | DJ48: 483.2 | DK48: 454.6 | DL48: 433 | DM48: 418.4 | DN48: 402.5 | DO48: 646 | DP48: 545.9 | DQ48: 495.3 | DR48: 462.8 | DS48: 437.3 | DT48: 416.5 | DU48: 390.1 | DV48: 753.7 | DW48: 600.8 | DX48: 529 | DY48: 487.6 | DZ48: 458.1 | EA48: 433.3 | EB48: 394.6 | EC48: 902.7 | ED48: 701.1 | EE48: 593.4 | EF48: 530.4 | EG48: 491.1 | EH48: 462.5 | EI48: 417.4 | EJ48: 1042.3 | EK48: 809.5 | EL48: 684 | EM48: 602.2 | EN48: 545.5 | EO48: 506 | EP48: 452.8
A49: NED2/04 | B49: NED_3104 | C49: NED 3104 | D49: Pagan | E49: Zeester | F49: Hoffman | G49: v.d.Stadt | H49: 1977 | I49: 144857 | J49: J.E.J.,Muller | K49: IMS | M49: 320 | N49: 20 4 2004 | O49: 11:39:34 | P49: 9 | Q49: 7.331 | R49: 1.631 | S49: 2.822 | T49: 4025 | U49: 123.5 | V49: 0.94 | W49: 778.5 | X49: 0.765 | Y49: 882.4 | Z49: 0.594 | AA49: 56.5 | AB49: 1347.4 | AC49: 1079.8 | AD49: 924.8 | AE49: 834.3 | AF49: 782 | AG49: 749.9 | AH49: 713.6 | AI49: 1270.7 | AJ49: 1027.3 | AK49: 892.3 | AL49: 818.1 | AM49: 775.2 | AN49: 747.8 | AO49: 717.6 | AP49: 1084.4 | AQ49: 869.8 | AR49: 754.2 | AS49: 687.1 | AT49: 646.3 | AU49: 620.1 | AV49: 588.7 | AW49: 1185.9 | AX49: 940.6 | AY49: 805.7 | AZ49: 725.5 | BA49: 675.9 | BB49: 644.1 | BC49: 606.9 | BD49: 1221.7 | BE49: 953.9 | BF49: 801.9 | BG49: 707.3 | BH49: 644.4 | BI49: 600.3 | BJ49: 541 | BK49: 46.2 | BL49: 44.6 | BM49: 46.1 | BN49: 43.9 | BO49: 42.5 | BP49: 41.6 | BQ49: 41.3 | BR49: 144.8 | BS49: 153 | BT49: 151.1 | BU49: 163.3 | BV49: 171 | BW49: 173.4 | BX49: 174.5 | BY49: 1410.9 | BZ49: 1167.7 | CA49: 1021.5 | CB49: 951.6 | CC49: 912.5 | CD49: 889.7 | CE49: 875 | CF49: 896.4 | CG49: 739.9 | CH49: 658.4 | CI49: 628.2 | CJ49: 612.9 | CK49: 603.2 | CL49: 595.1 | CM49: 835.8 | CN49: 682.4 | CO49: 627.7 | CP49: 600.5 | CQ49: 586.3 | CR49: 577.6 | CS49: 569.1 | CT49: 786 | CU49: 648.2 | CV49: 602.4 | CW49: 576.7 | CX49: 557.6 | CY49: 545.4 | CZ49: 534.6 | DA49: 739 | DB49: 622.8 | DC49: 581.6 | DD49: 556.6 | DE49: 542.7 | DF49: 534.3 | DG49: 515.5 | DH49: 766 | DI49: 632.1 | DJ49: 584.4 | DK49: 552.5 | DL49: 528.3 | DM49: 510.3 | DN49: 488.6 | DO49: 809.1 | DP49: 650.9 | DQ49: 594.6 | DR49: 558.8 | DS49: 531.7 | DT49: 509.8 | DU49: 477 | DV49: 904.2 | DW49: 718.3 | DX49: 625.1 | DY49: 582.2 | DZ49: 550.5 | EA49: 524.6 | EB49: 483.7 | EC49: 1068.9 | ED49: 836.7 | EE49: 691.7 | EF49: 620.6 | EG49: 581.4 | EH49: 551.3 | EI49: 504.6 | EJ49: 1234.2 | EK49: 965.2 | EL49: 798.5 | EM49: 692.8 | EN49: 632.3 | EO49: 593.4 | EP49: 538.7
A50: NED2/04 | B50: NED_3112 | C50: NED 3112 | D50: BATAAF | E50: Baltic 39 SD | F50: Baltic Yachts | G50: C & C | H50: 1977 | I50: 4018269 | J50: R.F.M.,de Kuyper | K50: IMS | M50: 560 | N50: 20 4 2004 | O50: 11:39:34 | P50: 11.915 | Q50: 9.647 | R50: 2.148 | S50: 3.842 | T50: 8797 | U50: 122.9 | V50: 0.37 | W50: 645.9 | X50: 0.9358 | Y50: 721.3 | Z50: 0.765 | AA50: 91.2 | AB50: 1073.8 | AC50: 873.1 | AD50: 760.8 | AE50: 695.4 | AF50: 655.9 | AG50: 630.5 | AH50: 599.9 | AI50: 1003.6 | AJ50: 822.6 | AK50: 729.1 | AL50: 677.6 | AM50: 646.1 | AN50: 625.2 | AO50: 600.6 | AP50: 878.8 | AQ50: 714.5 | AR50: 627.3 | AS50: 577.3 | AT50: 546.7 | AU50: 526.7 | AV50: 501.7 | AW50: 953.9 | AX50: 766.4 | AY50: 664.8 | AZ50: 605.2 | BA50: 568.3 | BB50: 544.4 | BC50: 515.4 | BD50: 997.2 | BE50: 786.2 | BF50: 667.6 | BG50: 594.3 | BH50: 545.7 | BI50: 511.6 | BJ50: 465 | BK50: 44.5 | BL50: 45.8 | BM50: 42.7 | BN50: 40.7 | BO50: 39.4 | BP50: 38.7 | BQ50: 38.4 | BR50: 143.6 | BS50: 146.6 | BT50: 151 | BU50: 162.6 | BV50: 170.4 | BW50: 173.1 | BX50: 174.3 | BY50: 1077 | BZ50: 903.5 | CA50: 814.3 | CB50: 770.2 | CC50: 744.7 | CD50: 729.7 | CE50: 719.3 | CF50: 694.1 | CG50: 582.6 | CH50: 547.1 | CI50: 530.4 | CJ50: 519.8 | CK50: 513.1 | CL50: 506.7 | CM50: 645.3 | CN50: 556.9 | CO50: 527.1 | CP50: 511.8 | CQ50: 502 | CR50: 495.4 | CS50: 488.5 | CT50: 605.6 | CU50: 539.8 | CV50: 510.7 | CW50: 491.8 | CX50: 479.6 | CY50: 472.2 | CZ50: 463 | DA50: 605.6 | DB50: 532 | DC50: 501.4 | DD50: 483.7 | DE50: 473.3 | DF50: 461.4 | DG50: 445.7 | DH50: 617.1 | DI50: 537.1 | DJ50: 501.9 | DK50: 477.2 | DL50: 459 | DM50: 445.4 | DN50: 428.5 | DO50: 658.4 | DP50: 551.7 | DQ50: 510.7 | DR50: 482.3 | DS50: 460.4 | DT50: 443 | DU50: 417.8 | DV50: 749.7 | DW50: 599.8 | DX50: 536.7 | DY50: 502.4 | DZ50: 475.9 | EA50: 454.2 | EB50: 419.9 | EC50: 889.4 | ED50: 708.4 | EE50: 592 | EF50: 537.3 | EG50: 504.6 | EH50: 478.9 | EI50: 438.4 | EJ50: 1027 | EK50: 818 | EL50: 683.3 | EM50: 602.4 | EN50: 551.6 | EO50: 517.7 | EP50: 469.8
A51: NED2/04 | B51: NED_3125 | C51: NED 3125 | D51: NITA | E51: Optima 106 | F51: Dehler B.B. | G51: v.d.Stadt & Prtnrs | H51: 1999 | I51: 181243 | J51: L.A.,Kramer-Seijffardt | K51: IMS | L51: C | M51: 545 | N51: 20 4 2004 | O51: 11:39:35 | P51: 10.112 | Q51: 8.51 | R51: 1.797 | S51: 3.403 | T51: 4883 | U51: 113.9 | V51: 0.63 | W51: 682.5 | X51: 0.8857 | Y51: 762.1 | Z51: 0.691 | AA51: 66.6 | AB51: 1166.7 | AC51: 930.4 | AD51: 804.3 | AE51: 731.2 | AF51: 686.5 | AG51: 657.9 | AH51: 622.9 | AI51: 1086.8 | AJ51: 874.9 | AK51: 769.1 | AL51: 711.7 | AM51: 676.2 | AN51: 652.3 | AO51: 622.4 | AP51: 941.7 | AQ51: 759.5 | AR51: 662.1 | AS51: 605.4 | AT51: 570.4 | AU51: 547.2 | AV51: 517 | AW51: 1008.7 | AX51: 805.9 | AY51: 695.8 | AZ51: 631.1 | BA51: 590.8 | BB51: 564.3 | BC51: 531.1 | BD51: 1064.8 | BE51: 834.1 | BF51: 703.8 | BG51: 622.7 | BH51: 568.6 | BI51: 530.3 | BJ51: 477.8 | BK51: 45.3 | BL51: 44.3 | BM51: 42 | BN51: 40.1 | BO51: 39 | BP51: 38.2 | BQ51: 37.9 | BR51: 144.9 | BS51: 148 | BT51: 153.1 | BU51: 164.5 | BV51: 172.2 | BW51: 174.5 | BX51: 175.3 | BY51: 1156.4 | BZ51: 945.1 | CA51: 850.2 | CB51: 802.8 | CC51: 774.5 | CD51: 757 | CE51: 742.3 | CF51: 736.6 | CG51: 615.9 | CH51: 572.1 | CI51: 551.7 | CJ51: 539 | CK51: 530.7 | CL51: 522 | CM51: 683.9 | CN51: 588 | CO51: 551 | CP51: 530 | CQ51: 518.5 | CR51: 510.6 | CS51: 501.7 | CT51: 644.2 | CU51: 568.4 | CV51: 533.6 | CW51: 510.2 | CX51: 493.8 | CY51: 483.8 | CZ51: 472.8 | DA51: 640 | DB51: 558.3 | DC51: 520.9 | DD51: 496.6 | DE51: 480.9 | DF51: 471.8 | DG51: 453.8 | DH51: 666 | DI51: 572.3 | DJ51: 530.2 | DK51: 499.9 | DL51: 476.1 | DM51: 456.8 | DN51: 430.9 | DO51: 713.6 | DP51: 592.3 | DQ51: 543.3 | DR51: 510.1 | DS51: 483.3 | DT51: 460.6 | DU51: 425.7 | DV51: 826.4 | DW51: 653.5 | DX51: 575.3 | DY51: 535.1 | DZ51: 505.2 | EA51: 480.1 | EB51: 437.6 | EC51: 983.9 | ED51: 765.5 | EE51: 637.3 | EF51: 572.6 | EG51: 535 | EH51: 506.4 | EI51: 460.4 | EJ51: 1136.1 | EK51: 884 | EL51: 734.4 | EM51: 640 | EN51: 582.2 | EO51: 544.5 | EP51: 492.1
A52: NED2/04 | B52: NED_3144 | C52: NED 3144 | D52: DOLCE VITA | E52: Pion (OOD) | F52: Lewin B.V. | G52: v/d Stadt & Prtnrs | H52: 1973 | I52: 217907 | J52: P.,Buitendijk | K52: IMS_1DSN | L52: C | M52: 467 | N52: 20 4 2004 | O52: 11:39:35 | P52: 9.084 | Q52: 7.54 | R52: 1.779 | S52: 2.896 | T52: 4280 | U52: 127 | V52: 0.71 | W52: 735.7 | X52: 0.8198 | Y52: 823.4 | Z52: 0.659 | AA52: 81.1 | AB52: 1237.7 | AC52: 995.7 | AD52: 864.3 | AE52: 788.8 | AF52: 744 | AG52: 715.4 | AH52: 681 | AI52: 1158.4 | AJ52: 941 | AK52: 831.3 | AL52: 772.1 | AM52: 736.2 | AN52: 712 | AO52: 683.3 | AP52: 1008 | AQ52: 816 | AR52: 714.1 | AS52: 655.5 | AT52: 619.6 | AU52: 596.3 | AV52: 566.6 | AW52: 1083.4 | AX52: 868.1 | AY52: 751.6 | AZ52: 683.8 | BA52: 642 | BB52: 614.9 | BC52: 581.6 | BD52: 1141.1 | BE52: 897 | BF52: 759.5 | BG52: 674.5 | BH52: 618.1 | BI52: 578.3 | BJ52: 524.3 | BK52: 44.7 | BL52: 44.9 | BM52: 42.8 | BN52: 41 | BO52: 39.9 | BP52: 39.2 | BQ52: 39 | BR52: 145.5 | BS52: 149.9 | BT52: 154.3 | BU52: 166 | BV52: 172.8 | BW52: 174.6 | BX52: 175.3 | BY52: 1246.4 | BZ52: 1032.5 | CA52: 930.6 | CB52: 881.6 | CC52: 852.4 | CD52: 834.5 | CE52: 821.6 | CF52: 799.1 | CG52: 667.9 | CH52: 622.6 | CI52: 602.4 | CJ52: 589.7 | CK52: 581.3 | CL52: 573 | CM52: 743.9 | CN52: 636.9 | CO52: 599.6 | CP52: 579.2 | CQ52: 567.5 | CR52: 559.3 | CS52: 550.6 | CT52: 699.4 | CU52: 615.3 | CV52: 580.3 | CW52: 557.1 | CX52: 541.2 | CY52: 530.8 | CZ52: 519.5 | DA52: 685.3 | DB52: 601.4 | DC52: 564.8 | DD52: 541.4 | DE52: 526 | DF52: 516.8 | DG52: 500.8 | DH52: 712.5 | DI52: 613.6 | DJ52: 570.4 | DK52: 540.2 | DL52: 517.1 | DM52: 499 | DN52: 474.4 | DO52: 760.2 | DP52: 631.9 | DQ52: 582.3 | DR52: 548.2 | DS52: 521.5 | DT52: 499.8 | DU52: 467.6 | DV52: 866 | DW52: 689.3 | DX52: 612.5 | DY52: 572.3 | DZ52: 541.8 | EA52: 516.1 | EB52: 474.4 | EC52: 1024 | ED52: 803 | EE52: 670.6 | EF52: 608.4 | EG52: 571.2 | EH52: 542.1 | EI52: 495.5 | EJ52: 1182.4 | EK52: 927.2 | EL52: 771.3 | EM52: 674.5 | EN52: 617.9 | EO52: 580.9 | EP52: 527.8
A53: NED2/04 | B53: NED_3155 | C53: NED 3155 | D53: CHRISTINA | E53: Liberty 47 | F53: E.Cancrinus | G53: Jac. de Ridder | H53: 1987 | I53: 152879 | J53: S.C.M.H.,van Roessel | K53: IMS | L53: C | M53: 947 | N53: 20 4 2004 | O53: 11:39:36 | P53: 14.27 | Q53: 12.793 | R53: 1.932 | S53: 3.786 | T53: 9330 | U53: 115.8 | V53: 0.73 | W53: 606.5 | X53: 0.9795 | Y53: 689.1 | Z53: 0.701 | AA53: 15.1 | AB53: 1104 | AC53: 867.1 | AD53: 739.5 | AE53: 663.7 | AF53: 613.9 | AG53: 579.8 | AH53: 540.4 | AI53: 1026.8 | AJ53: 811.7 | AK53: 700.6 | AL53: 637.3 | AM53: 597.2 | AN53: 569.9 | AO53: 536.7 | AP53: 861.2 | AQ53: 684 | AR53: 586.9 | AS53: 529.2 | AT53: 492.6 | AU53: 468 | AV53: 436.6 | AW53: 927.8 | AX53: 730.7 | AY53: 621.2 | AZ53: 555.1 | BA53: 512.9 | BB53: 484.6 | BC53: 449.6 | BD53: 968.7 | BE53: 748.7 | BF53: 622.2 | BG53: 542.3 | BH53: 488.1 | BI53: 449.3 | BJ53: 396.2 | BK53: 47.5 | BL53: 46.8 | BM53: 45 | BN53: 43.5 | BO53: 42.5 | BP53: 41.8 | BQ53: 41.3 | BR53: 141.7 | BS53: 143.4 | BT53: 148.2 | BU53: 154 | BV53: 161.7 | BW53: 168 | BX53: 173.4 | BY53: 1104.3 | BZ53: 884.2 | CA53: 782.9 | CB53: 726.8 | CC53: 692.3 | CD53: 670.6 | CE53: 650.3 | CF53: 689.7 | CG53: 558 | CH53: 501.6 | CI53: 474.1 | CJ53: 458.2 | CK53: 448.2 | CL53: 438.3 | CM53: 624.7 | CN53: 516.8 | CO53: 469.2 | CP53: 447.7 | CQ53: 435.2 | CR53: 426.8 | CS53: 417.7 | CT53: 576 | CU53: 485.6 | CV53: 445.1 | CW53: 422.3 | CX53: 409 | CY53: 400.8 | CZ53: 390.3 | DA53: 578.9 | DB53: 478.1 | DC53: 434.9 | DD53: 411.2 | DE53: 398.1 | DF53: 387.9 | DG53: 371.3 | DH53: 597.8 | DI53: 491.9 | DJ53: 442.9 | DK53: 414 | DL53: 392 | DM53: 374.2 | DN53: 350.9 | DO53: 647.5 | DP53: 519.4 | DQ53: 458.9 | DR53: 424.9 | DS53: 399.9 | DT53: 379 | DU53: 344 | DV53: 767.8 | DW53: 593.8 | DX53: 503.5 | DY53: 453.9 | DZ53: 423.2 | EA53: 399.3 | EB53: 358.7 | EC53: 926.4 | ED53: 710.9 | EE53: 584.1 | EF53: 507.1 | EG53: 459.6 | EH53: 428.8 | EI53: 384.8 | EJ53: 1069.7 | EK53: 820.8 | EL53: 674.4 | EM53: 584 | EN53: 520.8 | EO53: 475.8 | EP53: 419
A54: NED2/04 | B54: NED_3160 | C54: NED 3160 | D54: POPOV | E54: Gib'Sea 414 DK | F54: Gibert Marine | G54: R.Humphreys | H54: 1994 | I54: 161638 | J54: J.A.N.,Tak | K54: IMS | L54: C | M54: 600 | N54: 20 4 2004 | O54: 11:39:37 | P54: 12.155 | Q54: 10.866 | R54: 2.316 | S54: 3.941 | T54: 8632 | U54: 118.6 | V54: 0.31 | W54: 609.3 | X54: 0.9931 | Y54: 679.7 | Z54: 0.771 | AA54: 64.9 | AB54: 1044.8 | AC54: 833.8 | AD54: 721.9 | AE54: 656.1 | AF54: 614.2 | AG54: 586.6 | AH54: 553.3 | AI54: 969.4 | AJ54: 780.8 | AK54: 686.1 | AL54: 633.7 | AM54: 600.7 | AN54: 578.4 | AO54: 550.5 | AP54: 841.8 | AQ54: 678.5 | AR54: 591 | AS54: 540.1 | AT54: 508.5 | AU54: 487.5 | AV54: 460.5 | AW54: 912.2 | AX54: 727.3 | AY54: 626.4 | AZ54: 566.5 | BA54: 529 | BB54: 504.3 | BC54: 473.8 | BD54: 951.8 | BE54: 745.2 | BF54: 628.4 | BG54: 555.7 | BH54: 507.2 | BI54: 473 | BJ54: 426 | BK54: 45.3 | BL54: 44 | BM54: 41.6 | BN54: 39.7 | BO54: 38.5 | BP54: 37.7 | BQ54: 37.1 | BR54: 142.4 | BS54: 145 | BT54: 149.9 | BU54: 159.4 | BV54: 167.6 | BW54: 172.2 | BX54: 174.2 | BY54: 1024.2 | BZ54: 839 | CA54: 754.9 | CB54: 710.5 | CC54: 684 | CD54: 667.8 | CE54: 653.3 | CF54: 653 | CG54: 547.3 | CH54: 508.4 | CI54: 490.2 | CJ54: 479 | CK54: 471.6 | CL54: 464.1 | CM54: 607.2 | CN54: 521.9 | CO54: 488.6 | CP54: 472 | CQ54: 462 | CR54: 455.1 | CS54: 447.4 | CT54: 573.4 | CU54: 504.3 | CV54: 473.1 | CW54: 453.2 | CX54: 440.5 | CY54: 432.9 | CZ54: 423.3 | DA54: 580 | DB54: 499.2 | DC54: 465.4 | DD54: 446 | DE54: 435 | DF54: 422.8 | DG54: 405.8 | DH54: 594.6 | DI54: 507.9 | DJ54: 470 | DK54: 444.3 | DL54: 424.7 | DM54: 409.6 | DN54: 390.5 | DO54: 635 | DP54: 526.8 | DQ54: 481.4 | DR54: 452.1 | DS54: 429.2 | DT54: 410.2 | DU54: 381.5 | DV54: 741.6 | DW54: 585.7 | DX54: 512.7 | DY54: 475.2 | DZ54: 448.2 | EA54: 425.9 | EB54: 388.7 | EC54: 890.7 | ED54: 692.5 | EE54: 578.2 | EF54: 514.5 | EG54: 478.5 | EH54: 452.3 | EI54: 410.9 | EJ54: 1028.5 | EK54: 799.7 | EL54: 667.6 | EM54: 585 | EN54: 529.5 | EO54: 492.4 | EP54: 443
A55: NED2/04 | B55: NED_317 | C55: NED 317 | D55: CISNE | E55: Swan 43 | F55: Nautor | G55: S & S | H55: 1970 | I55: 153119 | J55: Th.F.M.,van Rongen | K55: IMS | L55: C | M55: 658 | N55: 20 4 2004 | O55: 11:39:38 | P55: 13.045 | Q55: 10.069 | R55: 2.229 | S55: 3.542 | T55: 11503 | U55: 138.5 | V55: 0.55 | W55: 662.4 | X55: 0.9076 | Y55: 743.7 | Z55: 0.717 | AA55: 69.4 | AB55: 1110.6 | AC55: 908.8 | AD55: 793.8 | AE55: 720.3 | AF55: 673.3 | AG55: 642.8 | AH55: 607.6 | AI55: 1042.7 | AJ55: 861.3 | AK55: 761.4 | AL55: 701.2 | AM55: 663.3 | AN55: 638.1 | AO55: 609.3 | AP55: 908.4 | AQ55: 735.9 | AR55: 643.2 | AS55: 588.7 | AT55: 554.7 | AU55: 532.1 | AV55: 503.8 | AW55: 978.1 | AX55: 784.9 | AY55: 679.2 | AZ55: 616 | BA55: 576 | BB55: 549.4 | BC55: 516.8 | BD55: 1027.5 | BE55: 807.6 | BF55: 682.9 | BG55: 604.7 | BH55: 552.2 | BI55: 514.9 | BJ55: 463.9 | BK55: 45.7 | BL55: 44.5 | BM55: 44.6 | BN55: 43 | BO55: 41.6 | BP55: 40.8 | BQ55: 40.1 | BR55: 144 | BS55: 150 | BT55: 151 | BU55: 160.5 | BV55: 168.4 | BW55: 172.5 | BX55: 174.7 | BY55: 1133.4 | BZ55: 960.7 | CA55: 864 | CB55: 807.1 | CC55: 772.9 | CD55: 751.7 | CE55: 733.7 | CF55: 725.5 | CG55: 615.3 | CH55: 561.4 | CI55: 537.2 | CJ55: 523 | CK55: 513.9 | CL55: 505 | CM55: 678.1 | CN55: 576.2 | CO55: 534.3 | CP55: 514.1 | CQ55: 502 | CR55: 493.8 | CS55: 485 | CT55: 639 | CU55: 550.2 | CV55: 513.9 | CW55: 492.3 | CX55: 477.9 | CY55: 469.1 | CZ55: 458.5 | DA55: 632.1 | DB55: 539.2 | DC55: 502.7 | DD55: 482 | DE55: 469.8 | DF55: 459.7 | DG55: 442 | DH55: 645.4 | DI55: 545.8 | DJ55: 504 | DK55: 477.5 | DL55: 458.2 | DM55: 443.6 | DN55: 425 | DO55: 679.8 | DP55: 564.1 | DQ55: 513.5 | DR55: 483.1 | DS55: 460.6 | DT55: 442.9 | DU55: 417.2 | DV55: 762.1 | DW55: 622.1 | DX55: 543.4 | DY55: 503.9 | DZ55: 476.4 | EA55: 454.6 | EB55: 421.3 | EC55: 901.2 | ED55: 719.5 | EE55: 608.9 | EF55: 542.9 | EG55: 505.8 | EH55: 479.1 | EI55: 439.1 | EJ55: 1040.6 | EK55: 830.9 | EL55: 703 | EM55: 614.7 | EN55: 557.3 | EO55: 519.4 | EP55: 469.8
A56: NED2/04 | B56: NED_3173 | C56: NED 3173 | D56: FOXY | E56: X-342 | F56: X-Yachts | G56: N.Jeppesen | H56: 1989 | I56: 168618 | J56: W.H.G.,Vos | K56: IMS | M56: 558 | N56: 20 4 2004 | O56: 11:39:38 | P56: 10.23 | Q56: 8.541 | R56: 1.927 | S56: 3.251 | T56: 5168 | U56: 119.7 | V56: 0.27 | W56: 667.7 | X56: 0.9086 | Y56: 742.9 | Z56: 0.728 | AA56: 81.8 | AB56: 1116.3 | AC56: 900.9 | AD56: 785.1 | AE56: 717.1 | AF56: 675.1 | AG56: 648 | AH56: 615.2 | AI56: 1039.6 | AJ56: 847.4 | AK56: 750.8 | AL56: 697.1 | AM56: 663.7 | AN56: 641.3 | AO56: 613.8 | AP56: 912.9 | AQ56: 740.2 | AR56: 648.3 | AS56: 595.1 | AT56: 562.3 | AU56: 540.5 | AV56: 512.7 | AW56: 984.5 | AX56: 790 | AY56: 684.5 | AZ56: 622.5 | BA56: 583.9 | BB56: 558.7 | BC56: 527.3 | BD56: 1033.6 | BE56: 813.3 | BF56: 689.1 | BG56: 612.2 | BH56: 561 | BI56: 524.7 | BJ56: 474.8 | BK56: 44.2 | BL56: 43.6 | BM56: 41.1 | BN56: 39.3 | BO56: 38.2 | BP56: 37.5 | BQ56: 37.2 | BR56: 143.9 | BS56: 147.9 | BT56: 153.4 | BU56: 164 | BV56: 170.9 | BW56: 173.5 | BX56: 174.5 | BY56: 1101.5 | BZ56: 914.7 | CA56: 828.8 | CB56: 784.5 | CC56: 758.7 | CD56: 743.4 | CE56: 732.3 | CF56: 710.8 | CG56: 602.9 | CH56: 563.2 | CI56: 544.8 | CJ56: 533.4 | CK56: 526.1 | CL56: 519.5 | CM56: 665.2 | CN56: 578.7 | CO56: 542.8 | CP56: 525.2 | CQ56: 514.7 | CR56: 507.7 | CS56: 500.3 | CT56: 633 | CU56: 562 | CV56: 527.3 | CW56: 504.4 | CX56: 490.6 | CY56: 482.7 | CZ56: 472.8 | DA56: 631.4 | DB56: 552.4 | DC56: 515.7 | DD56: 494.5 | DE56: 482.9 | DF56: 470.9 | DG56: 453.5 | DH56: 649.7 | DI56: 563.5 | DJ56: 521.8 | DK56: 492.3 | DL56: 469.7 | DM56: 453.3 | DN56: 433.2 | DO56: 691.7 | DP56: 581.8 | DQ56: 533.9 | DR56: 501 | DS56: 474.9 | DT56: 453.5 | DU56: 421.8 | DV56: 792.3 | DW56: 635.7 | DX56: 564.9 | DY56: 525.5 | DZ56: 496 | EA56: 471.4 | EB56: 429.9 | EC56: 942.4 | ED56: 742.3 | EE56: 623.7 | EF56: 563.5 | EG56: 526.7 | EH56: 498.4 | EI56: 453.7 | EJ56: 1088.2 | EK56: 857.2 | EL56: 718.4 | EM56: 630.8 | EN56: 575.6 | EO56: 538.5 | EP56: 486.7
A57: NED2/04 | B57: NED_3271 | C57: NED 3271 | D57: JORAN | E57: J-35 | F57: Tillotson-Pearson | G57: R.Johnstone | H57: 1983 | I57: 167388 | J57: W.M.J.,Visser | K57: IMS | L57: C | M57: 625 | N57: 20 4 2004 | O57: 11:39:39 | P57: 10.79 | Q57: 9.37 | R57: 2.158 | S57: 3.653 | T57: 5467 | U57: 109.5 | V57: 0 | W57: 634.7 | X57: 0.9535 | Y57: 707.9 | Z57: 0.756 | AA57: 75.1 | AB57: 1064.7 | AC57: 860.1 | AD57: 752.7 | AE57: 688.1 | AF57: 645.7 | AG57: 617.3 | AH57: 583 | AI57: 989.6 | AJ57: 809.2 | AK57: 718.4 | AL57: 666.2 | AM57: 632.4 | AN57: 609 | AO57: 580.5 | AP57: 868.1 | AQ57: 704 | AR57: 616.4 | AS57: 565.4 | AT57: 533.4 | AU57: 512 | AV57: 484.6 | AW57: 934 | AX57: 749.9 | AY57: 649.9 | AZ57: 590.6 | BA57: 553.4 | BB57: 528.6 | BC57: 497.6 | BD57: 983.5 | BE57: 773.5 | BF57: 654.7 | BG57: 580.6 | BH57: 531.2 | BI57: 495.9 | BJ57: 447.7 | BK57: 45.9 | BL57: 43 | BM57: 41 | BN57: 39.7 | BO57: 38.7 | BP57: 38.1 | BQ57: 37.7 | BR57: 142.9 | BS57: 146.6 | BT57: 153 | BU57: 161.3 | BV57: 167.8 | BW57: 171.8 | BX57: 173.3 | BY57: 1048 | BZ57: 876.4 | CA57: 796.8 | CB57: 753 | CC57: 726.4 | CD57: 710 | CE57: 697.1 | CF57: 668.9 | CG57: 575.9 | CH57: 537.7 | CI57: 518.2 | CJ57: 506.5 | CK57: 499.1 | CL57: 492.4 | CM57: 626.7 | CN57: 548.3 | CO57: 515.4 | CP57: 499 | CQ57: 488.5 | CR57: 481.6 | CS57: 474.5 | CT57: 596.5 | CU57: 528.4 | CV57: 495.4 | CW57: 476.3 | CX57: 465.5 | CY57: 457.7 | CZ57: 448.4 | DA57: 600.4 | DB57: 524.2 | DC57: 488.8 | DD57: 471 | DE57: 453.8 | DF57: 441.4 | DG57: 428.7 | DH57: 616.6 | DI57: 532.3 | DJ57: 490.8 | DK57: 462.8 | DL57: 442.3 | DM57: 428.3 | DN57: 411.7 | DO57: 650.9 | DP57: 551.3 | DQ57: 502.1 | DR57: 469.8 | DS57: 444.5 | DT57: 424.4 | DU57: 397.1 | DV57: 750.6 | DW57: 604.9 | DX57: 534.2 | DY57: 494 | DZ57: 464.3 | EA57: 439.1 | EB57: 398.3 | EC57: 901 | ED57: 703.7 | EE57: 596.8 | EF57: 535 | EG57: 496.9 | EH57: 468.2 | EI57: 422.3 | EJ57: 1040.4 | EK57: 812.5 | EL57: 688 | EM57: 606.1 | EN57: 549.9 | EO57: 511.1 | EP57: 457.6
A58: NED2/04 | B58: NED_3314 | C58: NED 3314 | D58: HIGHWAYMAN | E58: She 38 | F58: South Hants M. | G58: R.Humphries | H58: 1981 | I58: 181948 | J58: T.J.J.,Dijkstra | K58: IMS | L58: C | M58: 628 | N58: 20 4 2004 | O58: 11:39:40 | P58: 11.65 | Q58: 9.706 | R58: 2.094 | S58: 3.49 | T58: 7433 | U58: 119.5 | V58: 0.54 | W58: 656.3 | X58: 0.9209 | Y58: 733 | Z58: 0.736 | AA58: 79.9 | AB58: 1112 | AC58: 894.6 | AD58: 772.6 | AE58: 702 | AF58: 659.8 | AG58: 633.6 | AH58: 602 | AI58: 1036.8 | AJ58: 840.8 | AK58: 738.2 | AL58: 682.7 | AM58: 649.4 | AN58: 627.6 | AO58: 601 | AP58: 901.8 | AQ58: 728.9 | AR58: 636.8 | AS58: 583.8 | AT58: 551.6 | AU58: 530.7 | AV58: 504.2 | AW58: 977.7 | AX58: 781.2 | AY58: 674.5 | AZ58: 611.8 | BA58: 573 | BB58: 548.1 | BC58: 518.1 | BD58: 1020.7 | BE58: 801.4 | BF58: 678 | BG58: 601.7 | BH58: 551.4 | BI58: 516.1 | BJ58: 468.4 | BK58: 44.6 | BL58: 45.8 | BM58: 42.7 | BN58: 40.3 | BO58: 38.9 | BP58: 38 | BQ58: 37.5 | BR58: 143.6 | BS58: 147.4 | BT58: 149.3 | BU58: 161.1 | BV58: 170.3 | BW58: 173.6 | BX58: 174.6 | BY58: 1106.6 | BZ58: 917.3 | CA58: 818.6 | CB58: 770.9 | CC58: 743.7 | CD58: 727.5 | CE58: 715.2 | CF58: 710.1 | CG58: 588.6 | CH58: 550.3 | CI58: 533.4 | CJ58: 522.9 | CK58: 515.9 | CL58: 509.2 | CM58: 660.8 | CN58: 561.5 | CO58: 530.6 | CP58: 515.1 | CQ58: 505.3 | CR58: 498.7 | CS58: 491.7 | CT58: 618.1 | CU58: 543.4 | CV58: 514.3 | CW58: 495.3 | CX58: 483.2 | CY58: 475.8 | CZ58: 466.7 | DA58: 620.8 | DB58: 536.9 | DC58: 505.7 | DD58: 487.3 | DE58: 476.5 | DF58: 465.8 | DG58: 449.6 | DH58: 640.2 | DI58: 544.5 | DJ58: 508.6 | DK58: 483.4 | DL58: 464.3 | DM58: 449.7 | DN58: 430.6 | DO58: 684 | DP58: 561 | DQ58: 518.4 | DR58: 489.6 | DS58: 467.1 | DT58: 448.3 | DU58: 420.1 | DV58: 782.2 | DW58: 620.6 | DX58: 545.6 | DY58: 511 | DZ58: 484.6 | EA58: 462.4 | EB58: 424.4 | EC58: 931.4 | ED58: 733.2 | EE58: 608 | EF58: 545.8 | EG58: 513 | EH58: 487.4 | EI58: 446.2 | EJ58: 1075.5 | EK58: 846.6 | EL58: 702.1 | EM58: 614.1 | EN58: 560 | EO58: 525.8 | EP58: 478.2
A59: NED2/04 | B59: NED_332 | C59: NED 332 | D59: COLORS | E59: Mumm 30 | F59: Carroll Marine | G59: B.Farr | H59: 1996 | I59: 158053 | J59: F.A.M.,Sluijters | K59: IMS_1DSN | M59: 525 | N59: 20 4 2004 | O59: 11:39:40 | P59: 9.435 | Q59: 9.079 | R59: 2.204 | S59: 3.039 | T59: 3105 | U59: 122.5 | V59: 0 | W59: 594.8 | X59: 1.0246 | Y59: 658.8 | Z59: 0.839 | AA59: 94.1 | AB59: 960.8 | AC59: 785.5 | AD59: 697.7 | AE59: 646.4 | AF59: 612.3 | AG59: 588.1 | AH59: 549.6 | AI59: 897.2 | AJ59: 743 | AK59: 669.4 | AL59: 627 | AM59: 598.1 | AN59: 576.4 | AO59: 545.7 | AP59: 798.3 | AQ59: 654.4 | AR59: 578.9 | AS59: 535.1 | AT59: 506.9 | AU59: 486.7 | AV59: 456.3 | AW59: 891.2 | AX59: 717.2 | AY59: 623.3 | AZ59: 568.2 | BA59: 533.5 | BB59: 510 | BC59: 478.7 | BD59: 908.1 | BE59: 719.8 | BF59: 613.9 | BG59: 547.9 | BH59: 502.8 | BI59: 469.6 | BJ59: 421.2 | BK59: 42.8 | BL59: 40.8 | BM59: 38.4 | BN59: 36.9 | BO59: 36.1 | BP59: 35.7 | BQ59: 35.8 | BR59: 140.9 | BS59: 145.8 | BT59: 153.2 | BU59: 162.7 | BV59: 168.8 | BW59: 170.2 | BX59: 150.5 | BY59: 971.6 | BZ59: 816.5 | CA59: 752.1 | CB59: 718.2 | CC59: 698.9 | CD59: 688.1 | CE59: 682.5 | CF59: 634.7 | CG59: 552.3 | CH59: 524.7 | CI59: 509.7 | CJ59: 500.6 | CK59: 495 | CL59: 489.3 | CM59: 598.4 | CN59: 530.8 | CO59: 505.8 | CP59: 492.1 | CQ59: 483.1 | CR59: 477.3 | CS59: 470.6 | CT59: 572.6 | CU59: 513.6 | CV59: 484.4 | CW59: 468.2 | CX59: 457.9 | CY59: 450.5 | CZ59: 440.5 | DA59: 547.2 | DB59: 500.6 | DC59: 481.6 | DD59: 457.9 | DE59: 440.1 | DF59: 427.6 | DG59: 412.2 | DH59: 546.8 | DI59: 492.5 | DJ59: 462.8 | DK59: 444.4 | DL59: 429.9 | DM59: 416.5 | DN59: 389.6 | DO59: 568.4 | DP59: 502.9 | DQ59: 465.7 | DR59: 438 | DS59: 416.4 | DT59: 398.9 | DU59: 365.1 | DV59: 652.5 | DW59: 542 | DX59: 491.6 | DY59: 454.2 | DZ59: 421.3 | EA59: 388 | EB59: 332.6 | EC59: 787.9 | ED59: 626.9 | EE59: 542.2 | EF59: 495.1 | EG59: 459.5 | EH59: 427 | EI59: 353.2 | EJ59: 909.8 | EK59: 723.8 | EL59: 624.2 | EM59: 558.9 | EN59: 512.2 | EO59: 476.4 | EP59: 407.9
A60: NED2/04 | B60: NED_3405 | C60: NED 3405 | D60: INTERNATIONAL | H60: 1996 | I60: 184930 | J60: J.,Mast | K60: IMS_1DSN | M60: 525 | N60: 20 4 2004 | O60: 11:39:41 | P60: 9.435 | Q60: 9.079 | R60: 2.204 | S60: 3.039 | T60: 3105 | U60: 122.5 | V60: 0 | W60: 594.8 | X60: 1.0246 | Y60: 658.8 | Z60: 0.839 | AA60: 94.1 | AB60: 960.8 | AC60: 785.5 | AD60: 697.7 | AE60: 646.4 | AF60: 612.3 | AG60: 588.1 | AH60: 549.6 | AI60: 897.2 | AJ60: 743 | AK60: 669.4 | AL60: 627 | AM60: 598.1 | AN60: 576.4 | AO60: 545.7 | AP60: 798.3 | AQ60: 654.4 | AR60: 578.9 | AS60: 535.1 | AT60: 506.9 | AU60: 486.7 | AV60: 456.3 | AW60: 891.2 | AX60: 717.2 | AY60: 623.3 | AZ60: 568.2 | BA60: 533.5 | BB60: 510 | BC60: 478.7 | BD60: 908.1 | BE60: 719.8 | BF60: 613.9 | BG60: 547.9 | BH60: 502.8 | BI60: 469.6 | BJ60: 421.2 | BK60: 42.8 | BL60: 40.8 | BM60: 38.4 | BN60: 36.9 | BO60: 36.1 | BP60: 35.7 | BQ60: 35.8 | BR60: 140.9 | BS60: 145.8 | BT60: 153.2 | BU60: 162.7 | BV60: 168.8 | BW60: 170.2 | BX60: 150.5 | BY60: 971.6 | BZ60: 816.5 | CA60: 752.1 | CB60: 718.2 | CC60: 698.9 | CD60: 688.1 | CE60: 682.5 | CF60: 634.7 | CG60: 552.3 | CH60: 524.7 | CI60: 509.7 | CJ60: 500.6 | CK60: 495 | CL60: 489.3 | CM60: 598.4 | CN60: 530.8 | CO60: 505.8 | CP60: 492.1 | CQ60: 483.1 | CR60: 477.3 | CS60: 470.6 | CT60: 572.6 | CU60: 513.6 | CV60: 484.4 | CW60: 468.2 | CX60: 457.9 | CY60: 450.5 | CZ60: 440.5 | DA60: 547.2 | DB60: 500.6 | DC60: 481.6 | DD60: 457.9 | DE60: 440.1 | DF60: 427.6 | DG60: 412.2 | DH60: 546.8 | DI60: 492.5 | DJ60: 462.8 | DK60: 444.4 | DL60: 429.9 | DM60: 416.5 | DN60: 389.6 | DO60: 568.4 | DP60: 502.9 | DQ60: 465.7 | DR60: 438 | DS60: 416.4 | DT60: 398.9 | DU60: 365.1 | DV60: 652.5 | DW60: 542 | DX60: 491.6 | DY60: 454.2 | DZ60: 421.3 | EA60: 388 | EB60: 332.6 | EC60: 787.9 | ED60: 626.9 | EE60: 542.2 | EF60: 495.1 | EG60: 459.5 | EH60: 427 | EI60: 353.2 | EJ60: 909.8 | EK60: 723.8 | EL60: 624.2 | EM60: 558.9 | EN60: 512.2 | EO60: 476.4 | EP60: 407.9
A61: NED2/04 | B61: NED_3418 | C61: NED 3418 | D61: ENIGMA | E61: Sigma 38 | F61: Marine Prj. | G61: D.Thomas | H61: 1987 | I61: 159491 | J61: J.A.,van Sprang | K61: IMS | L61: C | M61: 659 | N61: 20 4 2004 | O61: 11:39:42 | P61: 11.552 | Q61: 10.028 | R61: 2.092 | S61: 3.681 | T61: 7834 | U61: 119.2 | V61: 0.47 | W61: 641.5 | X61: 0.9429 | Y61: 715.9 | Z61: 0.749 | AA61: 76.8 | AB61: 1088.6 | AC61: 875.5 | AD61: 759.2 | AE61: 690 | AF61: 647.5 | AG61: 620.8 | AH61: 589.2 | AI61: 1009.4 | AJ61: 820.2 | AK61: 723.3 | AL61: 669.9 | AM61: 637.2 | AN61: 615.6 | AO61: 589.3 | AP61: 880 | AQ61: 712.1 | AR61: 622.6 | AS61: 570.9 | AT61: 539.1 | AU61: 518.2 | AV61: 491.4 | AW61: 936.5 | AX61: 750.9 | AY61: 650.6 | AZ61: 591.7 | BA61: 555.3 | BB61: 531.6 | BC61: 502.4 | BD61: 997.5 | BE61: 783.3 | BF61: 662.6 | BG61: 587.7 | BH61: 538 | BI61: 503 | BJ61: 455.2 | BK61: 44.9 | BL61: 44.6 | BM61: 42 | BN61: 40.1 | BO61: 38.9 | BP61: 38.2 | BQ61: 37.9 | BR61: 143.4 | BS61: 147.3 | BT61: 150.6 | BU61: 162 | BV61: 171.5 | BW61: 174.6 | BX61: 175.7 | BY61: 1058.3 | BZ61: 881.2 | CA61: 797.1 | CB61: 754 | CC61: 728.9 | CD61: 713.9 | CE61: 702.8 | CF61: 677.4 | CG61: 572.1 | CH61: 537.5 | CI61: 520.8 | CJ61: 510.3 | CK61: 503.4 | CL61: 496.8 | CM61: 629.9 | CN61: 546.2 | CO61: 516.9 | CP61: 502 | CQ61: 492.2 | CR61: 485.6 | CS61: 478.5 | CT61: 592.7 | CU61: 528.1 | CV61: 499.2 | CW61: 481 | CX61: 469.4 | CY61: 462 | CZ61: 452.7 | DA61: 596.3 | DB61: 521.9 | DC61: 490.2 | DD61: 470.6 | DE61: 458 | DF61: 450 | DG61: 434 | DH61: 620.7 | DI61: 533.6 | DJ61: 497 | DK61: 471.4 | DL61: 451.4 | DM61: 435.4 | DN61: 412.9 | DO61: 667.9 | DP61: 553.2 | DQ61: 509.3 | DR61: 479.8 | DS61: 456.9 | DT61: 437.4 | DU61: 407.3 | DV61: 779.8 | DW61: 618.3 | DX61: 540.5 | DY61: 503.5 | DZ61: 476.4 | EA61: 453.7 | EB61: 415.3 | EC61: 933.6 | ED61: 728.9 | EE61: 605.6 | EF61: 539.6 | EG61: 504.5 | EH61: 478 | EI61: 436 | EJ61: 1078 | EK61: 841.7 | EL61: 699.2 | EM61: 607.7 | EN61: 550.2 | EO61: 514.1 | EP61: 465
A62: NED2/04 | B62: NED_3474 | C62: NED 3474 | D62: 'K BAENNER | E62: Banner 1/2 Ton | F62: Banner Danmark | G62: Judel / Vrolijk | H62: 1985 | I62: 174391 | J62: J.,Zetzema | K62: IMS | L62: R | M62: 350 | N62: 20 4 2004 | O62: 11:39:43 | P62: 9.185 | Q62: 7.516 | R62: 1.75 | S62: 3.21 | T62: 3259 | U62: 109.9 | V62: 0.01 | W62: 682.6 | X62: 0.8938 | Y62: 755.2 | Z62: 0.754 | AA62: 113.7 | AB62: 1106.8 | AC62: 899.8 | AD62: 793 | AE62: 732.5 | AF62: 696.2 | AG62: 672.2 | AH62: 642.1 | AI62: 1026.4 | AJ62: 847.4 | AK62: 763.1 | AL62: 717.1 | AM62: 688.1 | AN62: 668.1 | AO62: 643.5 | AP62: 916.1 | AQ62: 750.5 | AR62: 663.9 | AS62: 614.8 | AT62: 584.6 | AU62: 564.5 | AV62: 538 | AW62: 973.3 | AX62: 789.7 | AY62: 692.2 | AZ62: 636.2 | BA62: 601.9 | BB62: 579.4 | BC62: 550.7 | BD62: 1042.9 | BE62: 826.8 | BF62: 706.2 | BG62: 632.1 | BH62: 583.2 | BI62: 548.4 | BJ62: 499.8 | BK62: 43.9 | BL62: 41.7 | BM62: 39.1 | BN62: 37.7 | BO62: 36.9 | BP62: 36.5 | BQ62: 36.7 | BR62: 144 | BS62: 147.2 | BT62: 158.5 | BU62: 170.9 | BV62: 174.9 | BW62: 175.8 | BX62: 176 | BY62: 1070.2 | BZ62: 907 | CA62: 841.6 | CB62: 808.3 | CC62: 789.1 | CD62: 778.4 | CE62: 774.1 | CF62: 692 | CG62: 615.4 | CH62: 588.7 | CI62: 573.9 | CJ62: 564.3 | CK62: 558.2 | CL62: 553.1 | CM62: 655.4 | CN62: 595.6 | CO62: 569.1 | CP62: 554.9 | CQ62: 545.5 | CR62: 539.2 | CS62: 532.9 | CT62: 633.2 | CU62: 580.7 | CV62: 550.4 | CW62: 531 | CX62: 519.8 | CY62: 512.1 | CZ62: 502.7 | DA62: 627.2 | DB62: 569.1 | DC62: 536.9 | DD62: 517.1 | DE62: 505.7 | DF62: 494.4 | DG62: 479.1 | DH62: 644.9 | DI62: 581.1 | DJ62: 542.7 | DK62: 513.9 | DL62: 491.1 | DM62: 473.8 | DN62: 451.9 | DO62: 681.6 | DP62: 598.1 | DQ62: 555.1 | DR62: 522.4 | DS62: 495.9 | DT62: 473.7 | DU62: 439.5 | DV62: 795.2 | DW62: 643.6 | DX62: 585.2 | DY62: 547.2 | DZ62: 516.7 | EA62: 490 | EB62: 445.2 | EC62: 951.5 | ED62: 744.7 | EE62: 633 | EF62: 581.5 | EG62: 545.6 | EH62: 516.4 | EI62: 467.2 | EJ62: 1098.7 | EK62: 859.9 | EL62: 720.9 | EM62: 637.2 | EN62: 587.5 | EO62: 551.9 | EP62: 497.9
A63: NED2/04 | B63: NED_3496 | C63: NED 3496 | D63: CERES | E63: X-372 | F63: X-Yachts | G63: N.Jeppesen | H63: 1986 | I63: 145747 | J63: A.,van Nieuwenhuijzen | K63: IMS | L63: C | M63: 623 | N63: 20 4 2004 | O63: 11:39:43 | P63: 11.022 | Q63: 9.191 | R63: 2.053 | S63: 3.573 | T63: 6130 | U63: 122.7 | V63: 0.16 | W63: 650.4 | X63: 0.9312 | Y63: 724.9 | Z63: 0.743 | AA63: 78.9 | AB63: 1095.7 | AC63: 878.5 | AD63: 764.5 | AE63: 698.3 | AF63: 657.3 | AG63: 630.6 | AH63: 598.2 | AI63: 1019.8 | AJ63: 826.1 | AK63: 730.7 | AL63: 678.5 | AM63: 645.7 | AN63: 623.6 | AO63: 596.6 | AP63: 891.5 | AQ63: 721.6 | AR63: 631.3 | AS63: 579.2 | AT63: 547 | AU63: 525.7 | AV63: 498.4 | AW63: 963.9 | AX63: 771.7 | AY63: 667.6 | AZ63: 606.3 | BA63: 568.4 | BB63: 543.5 | BC63: 512.8 | BD63: 1009.3 | BE63: 793.1 | BF63: 671.4 | BG63: 595.9 | BH63: 545.8 | BI63: 510.3 | BJ63: 461.4 | BK63: 45.4 | BL63: 44 | BM63: 41.5 | BN63: 39.6 | BO63: 38.5 | BP63: 37.8 | BQ63: 37.4 | BR63: 143.4 | BS63: 146.2 | BT63: 152.3 | BU63: 162.9 | BV63: 170.2 | BW63: 173.1 | BX63: 174.2 | BY63: 1084.2 | BZ63: 893.3 | CA63: 808.3 | CB63: 764.5 | CC63: 738.8 | CD63: 723.5 | CE63: 712.1 | CF63: 693.2 | CG63: 586.4 | CH63: 547.9 | CI63: 529.9 | CJ63: 518.8 | CK63: 511.7 | CL63: 504.9 | CM63: 646.9 | CN63: 562.3 | CO63: 528.5 | CP63: 511.3 | CQ63: 501 | CR63: 493.9 | CS63: 486.5 | CT63: 614.3 | CU63: 545.7 | CV63: 513.2 | CW63: 491.8 | CX63: 478.1 | CY63: 469.9 | CZ63: 460 | DA63: 616.3 | DB63: 537.9 | DC63: 503 | DD63: 482.4 | DE63: 470.5 | DF63: 458.9 | DG63: 441 | DH63: 630.3 | DI63: 546.4 | DJ63: 506.8 | DK63: 479.1 | DL63: 457.7 | DM63: 441.6 | DN63: 421.8 | DO63: 670.2 | DP63: 563.4 | DQ63: 517.7 | DR63: 486.3 | DS63: 461.5 | DT63: 441 | DU63: 411 | DV63: 773.1 | DW63: 615.2 | DX63: 547 | DY63: 509.4 | DZ63: 481 | EA63: 456.9 | EB63: 417 | EC63: 924 | ED63: 721 | EE63: 605.4 | EF63: 546.8 | EG63: 511.3 | EH63: 484 | EI63: 439.8 | EJ63: 1066.9 | EK63: 832.5 | EL63: 698.1 | EM63: 614 | EN63: 560.2 | EO63: 523.9 | EP63: 473.2
A64: NED2/04 | B64: NED_3535 | C64: NED 3535 | D64: BWANA | E64: HOD 35 | F64: Bwana Yachting | G64: R.Humphreys | H64: 1998 | I64: 118009 | J64: R.,Farenhorst | K64: IMS | L64: C | M64: 640 | N64: 20 4 2004 | O64: 11:39:44 | P64: 10.671 | Q64: 9.893 | R64: 2.214 | S64: 3.45 | T64: 5722 | U64: 116.5 | V64: 0.14 | W64: 620.2 | X64: 0.9777 | Y64: 690.4 | Z64: 0.771 | AA64: 73.6 | AB64: 1046 | AC64: 841.7 | AD64: 734.1 | AE64: 669.9 | AF64: 628.6 | AG64: 601.2 | AH64: 568.4 | AI64: 968.7 | AJ64: 788.5 | AK64: 698.2 | AL64: 647.2 | AM64: 614.6 | AN64: 592.6 | AO64: 565.6 | AP64: 850.7 | AQ64: 688.7 | AR64: 602.1 | AS64: 551.8 | AT64: 520.5 | AU64: 499.6 | AV64: 472.9 | AW64: 917.9 | AX64: 735.3 | AY64: 636 | AZ64: 577.2 | BA64: 540.4 | BB64: 516.1 | BC64: 486.1 | BD64: 963.1 | BE64: 756.5 | BF64: 639.8 | BG64: 567.2 | BH64: 518.7 | BI64: 484.3 | BJ64: 437.4 | BK64: 44.7 | BL64: 42.4 | BM64: 40.2 | BN64: 38.7 | BO64: 37.7 | BP64: 37.1 | BQ64: 36.9 | BR64: 142.6 | BS64: 145.9 | BT64: 151.6 | BU64: 160.5 | BV64: 167.8 | BW64: 172 | BX64: 173.6 | BY64: 1012.6 | BZ64: 844.1 | CA64: 767.8 | CB64: 726.7 | CC64: 702.5 | CD64: 688.2 | CE64: 678.1 | CF64: 651.9 | CG64: 558.2 | CH64: 523 | CI64: 505.2 | CJ64: 494.6 | CK64: 488 | CL64: 482.1 | CM64: 611.7 | CN64: 533.4 | CO64: 502.1 | CP64: 487 | CQ64: 477.3 | CR64: 470.9 | CS64: 464.6 | CT64: 583 | CU64: 515.4 | CV64: 483.5 | CW64: 465 | CX64: 454.7 | CY64: 447.4 | CZ64: 438.7 | DA64: 589.9 | DB64: 511.4 | DC64: 477.5 | DD64: 460.1 | DE64: 444.1 | DF64: 431.7 | DG64: 418.6 | DH64: 605.7 | DI64: 520 | DJ64: 479.8 | DK64: 452.9 | DL64: 432.9 | DM64: 418.5 | DN64: 400.7 | DO64: 644.1 | DP64: 539.8 | DQ64: 491.3 | DR64: 459.9 | DS64: 435.4 | DT64: 415.5 | DU64: 386.7 | DV64: 749.9 | DW64: 597.2 | DX64: 524.4 | DY64: 484.2 | DZ64: 455 | EA64: 430.2 | EB64: 389.2 | EC64: 900.7 | ED64: 700.9 | EE64: 589 | EF64: 525.4 | EG64: 487.3 | EH64: 458.9 | EI64: 413.2 | EJ64: 1040 | EK64: 809.3 | EL64: 679.7 | EM64: 596.3 | EN64: 539.7 | EO64: 501 | EP64: 448
A65: NED2/04 | B65: NED_3546 | C65: NED 3546 | D65: REBEL | E65: Dehler38 racing | F65: Dehler | G65: v/d Stadt | H65: 1988 | I65: 151866 | J65: C.,Revelman | K65: IMS | L65: R | M65: 667 | N65: 20 4 2004 | O65: 11:39:45 | P65: 11.414 | Q65: 9.618 | R65: 2.095 | S65: 3.765 | T65: 6914 | U65: 117 | V65: 0.12 | W65: 621.6 | X65: 0.9787 | Y65: 689.7 | Z65: 0.784 | AA65: 83 | AB65: 1037.7 | AC65: 840.4 | AD65: 732.9 | AE65: 669.4 | AF65: 630 | AG65: 604.4 | AH65: 572.5 | AI65: 963 | AJ65: 788.1 | AK65: 699.9 | AL65: 650.4 | AM65: 619.2 | AN65: 597.9 | AO65: 571 | AP65: 846.2 | AQ65: 688.2 | AR65: 604.1 | AS65: 555.1 | AT65: 524.6 | AU65: 503.9 | AV65: 476.9 | AW65: 896.2 | AX65: 722.7 | AY65: 629.3 | AZ65: 574.4 | BA65: 540 | BB65: 517.2 | BC65: 488 | BD65: 960.6 | BE65: 756.8 | BF65: 641.9 | BG65: 570.5 | BH65: 522.7 | BI65: 488.8 | BJ65: 441.8 | BK65: 44.5 | BL65: 43.7 | BM65: 40.6 | BN65: 38.7 | BO65: 37.5 | BP65: 36.8 | BQ65: 36.5 | BR65: 143.4 | BS65: 147.6 | BT65: 152.9 | BU65: 165.5 | BV65: 173.5 | BW65: 175.3 | BX65: 175.9 | BY65: 1012.2 | BZ65: 845.8 | CA65: 768.1 | CB65: 727.9 | CC65: 704.3 | CD65: 690 | CE65: 679 | CF65: 650.6 | CG65: 558 | CH65: 526.7 | CI65: 509.5 | CJ65: 498.7 | CK65: 491.4 | CL65: 484.5 | CM65: 605.7 | CN65: 536.1 | CO65: 506.8 | CP65: 491.4 | CQ65: 481.1 | CR65: 474.2 | CS65: 466.7 | CT65: 576.3 | CU65: 520.4 | CV65: 489.6 | CW65: 469.5 | CX65: 458.1 | CY65: 450.2 | CZ65: 440.3 | DA65: 576.6 | DB65: 513 | DC65: 479.2 | DD65: 457.9 | DE65: 446.2 | DF65: 435 | DG65: 420.1 | DH65: 593.6 | DI65: 525 | DJ65: 488.2 | DK65: 460.5 | DL65: 437.7 | DM65: 419.7 | DN65: 397.7 | DO65: 634.3 | DP65: 542.6 | DQ65: 501.3 | DR65: 470.9 | DS65: 445.7 | DT65: 424.1 | DU65: 389.3 | DV65: 739.4 | DW65: 594.7 | DX65: 532 | DY65: 495.8 | DZ65: 467.9 | EA65: 443.9 | EB65: 402.7 | EC65: 885.3 | ED65: 699.7 | EE65: 587 | EF65: 531.4 | EG65: 496.8 | EH65: 469.8 | EI65: 425.9 | EJ65: 1022.2 | EK65: 808 | EL65: 676.1 | EM65: 593.4 | EN65: 540.8 | EO65: 505.6 | EP65: 455.6
A66: NED2/04 | B66: NED_3650 | C66: NED 3650 | D66: TESS | E66: Contessa 35 | F66: J. Rogers | G66: D. Peterson | H66: 1974 | I66: 103727 | J66: E.J.,van den Berg | K66: IMS | L66: R | M66: 413 | N66: 20 4 2004 | O66: 11:39:45 | P66: 10.826 | Q66: 9.226 | R66: 2.078 | S66: 3.493 | T66: 7785 | U66: 124.4 | V66: 0.75 | W66: 679.9 | X66: 0.8849 | Y66: 762.8 | Z66: 0.716 | AA66: 83.3 | AB66: 1135.2 | AC66: 932.5 | AD66: 814.1 | AE66: 741.3 | AF66: 695.8 | AG66: 666.8 | AH66: 633.1 | AI66: 1059.9 | AJ66: 876.1 | AK66: 775.8 | AL66: 718.4 | AM66: 683.2 | AN66: 660.1 | AO66: 633.8 | AP66: 926.7 | AQ66: 753.1 | AR66: 660.4 | AS66: 606.8 | AT66: 573.8 | AU66: 552.3 | AV66: 525.5 | AW66: 1022.3 | AX66: 818.9 | AY66: 707.7 | AZ66: 641.7 | BA66: 600.3 | BB66: 573.4 | BC66: 541.1 | BD66: 1051.6 | BE66: 828.6 | BF66: 702.6 | BG66: 624.2 | BH66: 572.1 | BI66: 535.3 | BJ66: 485.4 | BK66: 43.9 | BL66: 43.7 | BM66: 43.7 | BN66: 41.8 | BO66: 40.5 | BP66: 39.8 | BQ66: 39.5 | BR66: 141.2 | BS66: 144 | BT66: 147.1 | BU66: 159 | BV66: 168.1 | BW66: 172.1 | BX66: 174 | BY66: 1142.8 | BZ66: 969.7 | CA66: 871.3 | CB66: 821.1 | CC66: 792 | CD66: 774.6 | CE66: 761.9 | CF66: 743.5 | CG66: 622.4 | CH66: 575.2 | CI66: 555.8 | CJ66: 544 | CK66: 536.3 | CL66: 529 | CM66: 698.2 | CN66: 588.6 | CO66: 551.7 | CP66: 533.9 | CQ66: 523.3 | CR66: 516.1 | CS66: 508.4 | CT66: 659.8 | CU66: 566.6 | CV66: 532.6 | CW66: 512 | CX66: 498.6 | CY66: 490.3 | CZ66: 480.8 | DA66: 623.3 | DB66: 546.2 | DC66: 515.6 | DD66: 498.3 | DE66: 487.8 | DF66: 480.5 | DG66: 464.1 | DH66: 642.1 | DI66: 553.1 | DJ66: 516 | DK66: 490.9 | DL66: 472.8 | DM66: 459.4 | DN66: 441.9 | DO66: 686.6 | DP66: 569.7 | DQ66: 525.5 | DR66: 496.2 | DS66: 474.1 | DT66: 456.9 | DU66: 432.7 | DV66: 779.7 | DW66: 630.2 | DX66: 556.6 | DY66: 520.4 | DZ66: 493.7 | EA66: 472.1 | EB66: 438.8 | EC66: 933.7 | ED66: 755.3 | EE66: 634.6 | EF66: 565.3 | EG66: 528.4 | EH66: 501.3 | EI66: 459.7 | EJ66: 1078.1 | EK66: 872.2 | EL66: 732.7 | EM66: 642.6 | EN66: 582.6 | EO66: 544.2 | EP66: 493.1
A67: NED2/04 | B67: NED_3665 | C67: NED3665 | D67: DERBY | E67: Dehler 36/37 DB | F67: dehler | G67: Stadt van de | H67: 1989 | I67: 157350 | J67: J.H.,Sijm | K67: IMS | L67: C | M67: 540 | N67: 20 4 2004 | O67: 11:39:46 | P67: 11.01 | Q67: 9.632 | R67: 2.106 | S67: 3.503 | T67: 6400 | U67: 110 | V67: 0.56 | W67: 645.5 | X67: 0.9344 | Y67: 722.4 | Z67: 0.73 | AA67: 66.7 | AB67: 1107.3 | AC67: 884.2 | AD67: 763.3 | AE67: 693.7 | AF67: 651.1 | AG67: 624 | AH67: 591.2 | AI67: 1030.7 | AJ67: 830.1 | AK67: 728.4 | AL67: 673.9 | AM67: 640.7 | AN67: 618.4 | AO67: 590.5 | AP67: 890.8 | AQ67: 718.3 | AR67: 626.1 | AS67: 572.7 | AT67: 539.8 | AU67: 518.1 | AV67: 490.2 | AW67: 966 | AX67: 770.2 | AY67: 663.6 | AZ67: 600.9 | BA67: 561.9 | BB67: 536.4 | BC67: 504.9 | BD67: 1008 | BE67: 789.5 | BF67: 666.1 | BG67: 589.3 | BH67: 538.3 | BI67: 502 | BJ67: 452 | BK67: 43.8 | BL67: 43.7 | BM67: 41.6 | BN67: 39.8 | BO67: 38.6 | BP67: 38 | BQ67: 37.8 | BR67: 143.8 | BS67: 147.6 | BT67: 151.2 | BU67: 163.2 | BV67: 172.2 | BW67: 174.7 | BX67: 175.5 | BY67: 1099.9 | BZ67: 899.2 | CA67: 805.3 | CB67: 762 | CC67: 736.6 | CD67: 721.6 | CE67: 710.6 | CF67: 708.6 | CG67: 586.4 | CH67: 543 | CI67: 525.2 | CJ67: 514.1 | CK67: 506.9 | CL67: 500.1 | CM67: 660.8 | CN67: 559.4 | CO67: 522.3 | CP67: 504.4 | CQ67: 494.2 | CR67: 487.3 | CS67: 480.2 | CT67: 622.5 | CU67: 537.2 | CV67: 501.7 | CW67: 482.7 | CX67: 468.6 | CY67: 460.9 | CZ67: 451.7 | DA67: 592.6 | DB67: 520.3 | DC67: 486.4 | DD67: 467.2 | DE67: 457.1 | DF67: 448.6 | DG67: 429.7 | DH67: 616.7 | DI67: 533.6 | DJ67: 494.8 | DK67: 466.8 | DL67: 444.6 | DM67: 427.7 | DN67: 408.3 | DO67: 665.6 | DP67: 553.4 | DQ67: 508.3 | DR67: 476.8 | DS67: 451.6 | DT67: 429.6 | DU67: 396.6 | DV67: 778 | DW67: 616.5 | DX67: 541.2 | DY67: 502.5 | DZ67: 473.6 | EA67: 449 | EB67: 406.1 | EC67: 931.4 | ED67: 728 | EE67: 604.4 | EF67: 540.3 | EG67: 503.5 | EH67: 475.5 | EI67: 430.1 | EJ67: 1075.5 | EK67: 840.7 | EL67: 697.7 | EM67: 607.1 | EN67: 549.9 | EO67: 512.8 | EP67: 461.3
A68: NED2/04 | B68: NED_3692 | C68: NED 3692 | D68: LADY JANE | E68: Baltic 43 | F68: Baltic | G68: Judel/Vrolijk | H68: 1984 | I68: 116525 | J68: T.M.J.L.,van Eeuwijk | K68: IMS | L68: C | M68: 590 | N68: 20 4 2004 | O68: 11:39:47 | P68: 13.207 | Q68: 11.091 | R68: 2.48 | S68: 4.181 | T68: 10953 | U68: 123.8 | V68: 0.39 | W68: 604.8 | X68: 1.0031 | Y68: 672.9 | Z68: 0.783 | AA68: 68.8 | AB68: 1029.3 | AC68: 826.8 | AD68: 716.3 | AE68: 650.7 | AF68: 609.2 | AG68: 582.1 | AH68: 548.5 | AI68: 956 | AJ68: 774.4 | AK68: 680.6 | AL68: 628.3 | AM68: 595.5 | AN68: 573.3 | AO68: 545.2 | AP68: 833.4 | AQ68: 672.9 | AR68: 586.9 | AS68: 536.7 | AT68: 505.6 | AU68: 484.8 | AV68: 457.9 | AW68: 907 | AX68: 724.3 | AY68: 624.4 | AZ68: 564.9 | BA68: 527.5 | BB68: 502.7 | BC68: 471.8 | BD68: 942.4 | BE68: 738.9 | BF68: 623.9 | BG68: 552.3 | BH68: 504.6 | BI68: 470.8 | BJ68: 424.6 | BK68: 44.5 | BL68: 44.2 | BM68: 41.6 | BN68: 39.5 | BO68: 38.1 | BP68: 37.2 | BQ68: 36.5 | BR68: 142.5 | BS68: 145.8 | BT68: 149.2 | BU68: 159.3 | BV68: 167.7 | BW68: 172 | BX68: 173.9 | BY68: 1011.6 | BZ68: 834.1 | CA68: 747.6 | CB68: 702.7 | CC68: 676 | CD68: 659.3 | CE68: 643.7 | CF68: 650.1 | CG68: 543.7 | CH68: 505.4 | CI68: 487.3 | CJ68: 476 | CK68: 468.4 | CL68: 460.3 | CM68: 606.2 | CN68: 519.4 | CO68: 486.8 | CP68: 469.9 | CQ68: 459.5 | CR68: 452.5 | CS68: 444.3 | CT68: 572.5 | CU68: 503.4 | CV68: 472.3 | CW68: 452.4 | CX68: 439.2 | CY68: 431.4 | CZ68: 421.6 | DA68: 576.8 | DB68: 496.9 | DC68: 463.9 | DD68: 444.8 | DE68: 434 | DF68: 422.9 | DG68: 405.8 | DH68: 589.8 | DI68: 505 | DJ68: 468.1 | DK68: 442.7 | DL68: 423.6 | DM68: 409.2 | DN68: 391.3 | DO68: 629.7 | DP68: 523 | DQ68: 479.3 | DR68: 450.4 | DS68: 427.7 | DT68: 409.4 | DU68: 382.4 | DV68: 728.7 | DW68: 581.1 | DX68: 509.7 | DY68: 473.5 | DZ68: 446.9 | EA68: 424.9 | EB68: 388.6 | EC68: 873.4 | ED68: 687 | EE68: 574.7 | EF68: 512.2 | EG68: 477.4 | EH68: 451.6 | EI68: 411.1 | EJ68: 1008.5 | EK68: 793.2 | EL68: 663.6 | EM68: 582.1 | EN68: 527.9 | EO68: 491.9 | EP68: 443.4
A69: NED2/04 | B69: NED_3750 | C69: NED 3750 | D69: STAG | E69: One Off | F69: ---- | G69: ---- | H69: 1998 | I69: 118923 | J69: A.S.,Fukken | K69: IMS | L69: R | M69: 762 | N69: 20 4 2004 | O69: 11:39:47 | P69: 12.15 | Q69: 11.397 | R69: 2.349 | S69: 3.789 | T69: 7664 | U69: 112.3 | V69: 0.17 | W69: 583.3 | X69: 1.0343 | Y69: 652.6 | Z69: 0.801 | AA69: 61.3 | AB69: 996.6 | AC69: 798.5 | AD69: 695.4 | AE69: 634 | AF69: 593.4 | AG69: 565.7 | AH69: 531.2 | AI69: 927.2 | AJ69: 749.8 | AK69: 661.3 | AL69: 610.9 | AM69: 578 | AN69: 555.2 | AO69: 526.4 | AP69: 804.6 | AQ69: 649.2 | AR69: 566.1 | AS69: 517.3 | AT69: 486.9 | AU69: 466.3 | AV69: 439.5 | AW69: 887.9 | AX69: 707.1 | AY69: 608 | AZ69: 548.7 | BA69: 511.1 | BB69: 486.1 | BC69: 454.6 | BD69: 910.2 | BE69: 713 | BF69: 601.3 | BG69: 531.4 | BH69: 484.4 | BI69: 450.9 | BJ69: 405 | BK69: 44.8 | BL69: 42.9 | BM69: 40.8 | BN69: 39.4 | BO69: 38.3 | BP69: 37.6 | BQ69: 37.2 | BR69: 141.5 | BS69: 144.6 | BT69: 149.5 | BU69: 156.4 | BV69: 163.4 | BW69: 167.7 | BX69: 169.7 | BY69: 994.1 | BZ69: 815.7 | CA69: 736.6 | CB69: 692.8 | CC69: 666.3 | CD69: 649.9 | CE69: 635.7 | CF69: 636.4 | CG69: 535.8 | CH69: 495.8 | CI69: 476.1 | CJ69: 464.3 | CK69: 456.9 | CL69: 449.7 | CM69: 594.4 | CN69: 508.8 | CO69: 473.6 | CP69: 457.4 | CQ69: 446.9 | CR69: 440.1 | CS69: 432.9 | CT69: 563.6 | CU69: 489 | CV69: 454.5 | CW69: 435.4 | CX69: 424.9 | CY69: 417.4 | CZ69: 408.3 | DA69: 551.1 | DB69: 474.2 | DC69: 444.3 | DD69: 430 | DE69: 414.3 | DF69: 402 | DG69: 389.2 | DH69: 558 | DI69: 478.1 | DJ69: 440.6 | DK69: 416.4 | DL69: 400 | DM69: 389.5 | DN69: 372.9 | DO69: 590.4 | DP69: 496.3 | DQ69: 451 | DR69: 421.6 | DS69: 398.9 | DT69: 381.2 | DU69: 358.8 | DV69: 690.9 | DW69: 551.7 | DX69: 483.7 | DY69: 445.2 | DZ69: 416.7 | EA69: 392.7 | EB69: 352.5 | EC69: 833.9 | ED69: 651 | EE69: 549.6 | EF69: 488.4 | EG69: 450.9 | EH69: 423.2 | EI69: 377.8 | EJ69: 962.9 | EK69: 751.7 | EL69: 634.6 | EM69: 559.6 | EN69: 506.5 | EO69: 469 | EP69: 416.6
A70: NED2/04 | B70: NED_3773 | C70: ned 3773 | D70: SQUIFFY | E70: FF-110 | F70: FF Boats | G70: de Ridder | H70: 1990 | I70: 134768 | J70: E.B.M.,de Koning | K70: IMS | L70: C | M70: 575 | N70: 20 4 2004 | O70: 11:39:48 | P70: 11.01 | Q70: 10.361 | R70: 2.039 | S70: 3.183 | T70: 4916 | U70: 112.3 | V70: 0.55 | W70: 631.8 | X70: 0.9484 | Y70: 711.7 | Z70: 0.713 | AA70: 43 | AB70: 1111.2 | AC70: 879.3 | AD70: 758.4 | AE70: 687.3 | AF70: 640.8 | AG70: 609.7 | AH70: 574.6 | AI70: 1028.9 | AJ70: 821.6 | AK70: 719.1 | AL70: 662 | AM70: 625.6 | AN70: 600.9 | AO70: 571.3 | AP70: 882.6 | AQ70: 707 | AR70: 612.2 | AS70: 556.6 | AT70: 521.9 | AU70: 499 | AV70: 470 | AW70: 944.3 | AX70: 750 | AY70: 643.6 | AZ70: 580.4 | BA70: 540.7 | BB70: 514.5 | BC70: 482.2 | BD70: 996.2 | BE70: 775.8 | BF70: 650.3 | BG70: 571.6 | BH70: 518.8 | BI70: 481.2 | BJ70: 430.2 | BK70: 45.7 | BL70: 43.7 | BM70: 41.6 | BN70: 40.4 | BO70: 39.6 | BP70: 39.1 | BQ70: 39 | BR70: 142.9 | BS70: 144.5 | BT70: 151.2 | BU70: 159.1 | BV70: 166.1 | BW70: 171.4 | BX70: 173.8 | BY70: 1079.8 | BZ70: 877.5 | CA70: 794.2 | CB70: 749.1 | CC70: 722.2 | CD70: 706.3 | CE70: 696.1 | CF70: 682.9 | CG70: 570 | CH70: 527.1 | CI70: 506.1 | CJ70: 494 | CK70: 486.8 | CL70: 481 | CM70: 631.8 | CN70: 537.2 | CO70: 500.2 | CP70: 483.5 | CQ70: 473.2 | CR70: 466.6 | CS70: 460.6 | CT70: 594.6 | CU70: 512.5 | CV70: 475.4 | CW70: 457 | CX70: 446.7 | CY70: 439.6 | CZ70: 431.4 | DA70: 597.8 | DB70: 505.3 | DC70: 465.7 | DD70: 446.3 | DE70: 431.8 | DF70: 420.4 | DG70: 408.6 | DH70: 621 | DI70: 520.9 | DJ70: 473.6 | DK70: 443.1 | DL70: 419.8 | DM70: 403 | DN70: 383.9 | DO70: 670.2 | DP70: 547.8 | DQ70: 489.4 | DR70: 454.1 | DS70: 426.6 | DT70: 403.2 | DU70: 368.3 | DV70: 796.5 | DW70: 619 | DX70: 531.8 | DY70: 483.6 | DZ70: 451.2 | EA70: 424.5 | EB70: 376.7 | EC70: 958 | ED70: 734.7 | EE70: 607 | EF70: 532.1 | EG70: 486.6 | EH70: 455.2 | EI70: 405.5 | EJ70: 1106.2 | EK70: 848.3 | EL70: 700.7 | EM70: 608.3 | EN70: 544 | EO70: 499.5 | EP70: 441.6
A71: NED3/04 | B71: NED_3797 | C71: NED 3797 | D71: ALDEBARAN V | E71: J-35 | F71: Bashford | G71: R.Johnstone | H71: 1983 | I71: 152019 | J71: K.,de Ridder | K71: IMS | L71: C | M71: 575 | N71: 20 4 2004 | O71: 11:39:49 | P71: 10.79 | Q71: 9.41 | R71: 2.163 | S71: 3.653 | T71: 5502 | U71: 112 | V71: 0 | W71: 630.6 | X71: 0.9603 | Y71: 702.9 | Z71: 0.765 | AA71: 77.4 | AB71: 1054.8 | AC71: 852.7 | AD71: 747.1 | AE71: 683.5 | AF71: 641.9 | AG71: 614 | AH71: 579.7 | AI71: 981 | AJ71: 802.7 | AK71: 713.5 | AL71: 662.1 | AM71: 628.7 | AN71: 605.6 | AO71: 577.1 | AP71: 861.5 | AQ71: 699.1 | AR71: 612.6 | AS71: 562.2 | AT71: 530.6 | AU71: 509.4 | AV71: 482.2 | AW71: 932 | AX71: 748.2 | AY71: 648.3 | AZ71: 589.1 | BA71: 552 | BB71: 527.2 | BC71: 496.1 | BD71: 976.2 | BE71: 768.1 | BF71: 650.6 | BG71: 577.4 | BH71: 528.3 | BI71: 493.5 | BJ71: 445.5 | BK71: 45.7 | BL71: 42.9 | BM71: 40.9 | BN71: 39.6 | BO71: 38.6 | BP71: 37.9 | BQ71: 37.6 | BR71: 142.6 | BS71: 146.6 | BT71: 153 | BU71: 161.5 | BV71: 168.2 | BW71: 172 | BX71: 173.4 | BY71: 1042.4 | BZ71: 871 | CA71: 791.9 | CB71: 748.5 | CC71: 722.2 | CD71: 706.1 | CE71: 693 | CF71: 666.9 | CG71: 573.5 | CH71: 535.3 | CI71: 516.2 | CJ71: 504.6 | CK71: 497.2 | CL71: 490.4 | CM71: 625.7 | CN71: 547.1 | CO71: 513.5 | CP71: 497.2 | CQ71: 486.8 | CR71: 479.9 | CS71: 472.6 | CT71: 596.4 | CU71: 528.2 | CV71: 494.8 | CW71: 474.9 | CX71: 463.9 | CY71: 456.1 | CZ71: 446.5 | DA71: 597.9 | DB71: 520.4 | DC71: 486.1 | DD71: 469 | DE71: 453.2 | DF71: 440.3 | DG71: 426.8 | DH71: 608.9 | DI71: 527.9 | DJ71: 487.7 | DK71: 460.1 | DL71: 440 | DM71: 426.6 | DN71: 410 | DO71: 642.2 | DP71: 546.3 | DQ71: 498.8 | DR71: 467 | DS71: 442 | DT71: 422 | DU71: 395.4 | DV71: 739.6 | DW71: 598.4 | DX71: 530.4 | DY71: 491.1 | DZ71: 461.7 | EA71: 436.7 | EB71: 395.8 | EC71: 888.8 | ED71: 695.7 | EE71: 591.4 | EF71: 531.4 | EG71: 494.2 | EH71: 465.8 | EI71: 420.1 | EJ71: 1026.3 | EK71: 803.3 | EL71: 681.7 | EM71: 601.5 | EN71: 546.5 | EO71: 508.5 | EP71: 455.4
A72: NED2/04 | B72: NED_3882 | C72: NED 3882 | D72: HARLEKIJN | E72: HB 31 | F72: Hunter Boats | G72: v.d.Stadt | H72: 1983 | I72: 4288 | J72: ,ZEEZEILSCHOOL SCHEVENINGEN | K72: IMS | L72: C | M72: 445 | N72: 20 4 2004 | O72: 11:39:51 | P72: 9.255 | Q72: 7.711 | R72: 1.79 | S72: 3.052 | T72: 3523 | U72: 108.9 | V72: 0.29 | W72: 700.7 | X72: 0.8663 | Y72: 779.2 | Z72: 0.704 | AA72: 90.2 | AB72: 1167.7 | AC72: 938.7 | AD72: 818.6 | AE72: 750.2 | AF72: 709.4 | AG72: 683.3 | AH72: 651.5 | AI72: 1085.2 | AJ72: 882.3 | AK72: 784.9 | AL72: 732.8 | AM72: 700.5 | AN72: 678.7 | AO72: 652 | AP72: 954.6 | AQ72: 775.3 | AR72: 680.5 | AS72: 626.3 | AT72: 593.1 | AU72: 571.2 | AV72: 542.7 | AW72: 1016.8 | AX72: 818.2 | AY72: 711.7 | AZ72: 649.9 | BA72: 612.1 | BB72: 587.3 | BC72: 556.4 | BD72: 1082.5 | BE72: 852.8 | BF72: 724 | BG72: 644.4 | BH72: 591.7 | BI72: 554.4 | BJ72: 502.7 | BK72: 44.1 | BL72: 43.1 | BM72: 40.5 | BN72: 38.9 | BO72: 37.9 | BP72: 37.4 | BQ72: 37.4 | BR72: 145.6 | BS72: 149.6 | BT72: 155.5 | BU72: 168 | BV72: 174.1 | BW72: 175.4 | BX72: 175.7 | BY72: 1139.7 | BZ72: 944.2 | CA72: 864.7 | CB72: 825.9 | CC72: 803.1 | CD72: 789.7 | CE72: 782.5 | CF72: 736.2 | CG72: 629 | CH72: 594.2 | CI72: 577.7 | CJ72: 567.1 | CK72: 560.2 | CL72: 554.5 | CM72: 688 | CN72: 606.4 | CO72: 573.6 | CP72: 557.2 | CQ72: 547.1 | CR72: 540.2 | CS72: 533.6 | CT72: 656.1 | CU72: 589.8 | CV72: 556.4 | CW72: 534.1 | CX72: 520.7 | CY72: 512.6 | CZ72: 502.8 | DA72: 648.5 | DB72: 577.8 | DC72: 542 | DD72: 519 | DE72: 505.5 | DF72: 497.2 | DG72: 479.6 | DH72: 674.6 | DI72: 592.8 | DJ72: 551.2 | DK72: 520.4 | DL72: 495.8 | DM72: 476.4 | DN72: 452.3 | DO72: 724.5 | DP72: 611.7 | DQ72: 564.7 | DR72: 530.8 | DS72: 502.6 | DT72: 478.7 | DU72: 442.8 | DV72: 839.2 | DW72: 667.6 | DX72: 596.4 | DY72: 556.4 | DZ72: 525.4 | EA72: 498.5 | EB72: 452.4 | EC72: 997.7 | ED72: 779.4 | EE72: 651.8 | EF72: 592.4 | EG72: 554.9 | EH72: 525.4 | EI72: 476 | EJ72: 1152.1 | EK72: 899.9 | EL72: 748 | EM72: 654.3 | EN72: 599.3 | EO72: 562.3 | EP72: 508.1
A73: NED2/04 | B73: NED_39 | C73: NED 39 | D73: QUADRA | E73: Swan 391 | F73: Nautor | G73: R.Holland | H73: 1983 | I73: 154097 | J73: K.,Ruiter | K73: IMS | M73: 786 | N73: 20 4 2004 | O73: 11:39:53 | P73: 12.189 | Q73: 10.433 | R73: 2.301 | S73: 3.833 | T73: 10512 | U73: 119.8 | V73: 0.66 | W73: 637.3 | X73: 0.9488 | Y73: 711.4 | Z73: 0.75 | AA73: 74.1 | AB73: 1084.2 | AC73: 872.5 | AD73: 753.7 | AE73: 683.5 | AF73: 640.6 | AG73: 613.5 | AH73: 581 | AI73: 1009.5 | AJ73: 819.3 | AK73: 718.2 | AL73: 662.7 | AM73: 629.1 | AN73: 606.9 | AO73: 579.8 | AP73: 878 | AQ73: 708.7 | AR73: 618.3 | AS73: 565.9 | AT73: 533.9 | AU73: 512.9 | AV73: 486.6 | AW73: 954 | AX73: 761.7 | AY73: 656.7 | AZ73: 594.5 | BA73: 555.8 | BB73: 530.6 | BC73: 500.1 | BD73: 992.9 | BE73: 778.8 | BF73: 657.9 | BG73: 583.1 | BH73: 533.5 | BI73: 498.8 | BJ73: 452.1 | BK73: 44.7 | BL73: 45.1 | BM73: 42.7 | BN73: 40.4 | BO73: 39 | BP73: 38.1 | BQ73: 37.5 | BR73: 142.8 | BS73: 147.5 | BT73: 148.7 | BU73: 159.8 | BV73: 168.9 | BW73: 173 | BX73: 174.5 | BY73: 1075.4 | BZ73: 891.9 | CA73: 794.5 | CB73: 746.6 | CC73: 718.7 | CD73: 701.7 | CE73: 687 | CF73: 691.5 | CG73: 573.1 | CH73: 532.2 | CI73: 514.5 | CJ73: 503.5 | CK73: 496.3 | CL73: 488.8 | CM73: 644.2 | CN73: 545.5 | CO73: 512.8 | CP73: 496.3 | CQ73: 486.4 | CR73: 479.5 | CS73: 472 | CT73: 604.4 | CU73: 527.3 | CV73: 497.3 | CW73: 477.9 | CX73: 465.3 | CY73: 457.6 | CZ73: 448.2 | DA73: 605.8 | DB73: 520.3 | DC73: 488.2 | DD73: 469.6 | DE73: 458.9 | DF73: 449.2 | DG73: 433 | DH73: 623.5 | DI73: 528.3 | DJ73: 492.1 | DK73: 467.2 | DL73: 448.5 | DM73: 434.5 | DN73: 416.8 | DO73: 665.8 | DP73: 546 | DQ73: 502.4 | DR73: 474 | DS73: 452 | DT73: 434.2 | DU73: 408.3 | DV73: 762.2 | DW73: 608 | DX73: 531 | DY73: 495.6 | DZ73: 469.8 | EA73: 448.2 | EB73: 413.6 | EC73: 911 | ED73: 717.3 | EE73: 597.2 | EF73: 532.1 | EG73: 498.3 | EH73: 473.2 | EI73: 433.6 | EJ73: 1051.9 | EK73: 828.3 | EL73: 689.6 | EM73: 602.2 | EN73: 547 | EO73: 511.7 | EP73: 464.5
A74: NED2/04 | B74: NED_3925 | C74: NED 3925 | D74: ITCH | E74: 1/4 ton | F74: Broager G. | G74: A.Mohnhaupt | H74: 1979 | I74: 223145 | J74: B.P.,Aarts | K74: IMS | M74: 307 | N74: 20 4 2004 | O74: 11:39:53 | P74: 8.084 | Q74: 6.437 | R74: 1.565 | S74: 2.849 | T74: 1912 | U74: 97.2 | V74: 0.03 | W74: 732.1 | X74: 0.8282 | Y74: 815 | Z74: 0.696 | AA74: 107.8 | AB74: 1190.5 | AC74: 966.8 | AD74: 852.6 | AE74: 788.8 | AF74: 750.5 | AG74: 725.7 | AH74: 697.1 | AI74: 1105.1 | AJ74: 911.3 | AK74: 821.2 | AL74: 773.1 | AM74: 742.9 | AN74: 722.4 | AO74: 697.8 | AP74: 985.8 | AQ74: 805.8 | AR74: 711.7 | AS74: 658.5 | AT74: 626.1 | AU74: 604.8 | AV74: 577.5 | AW74: 1041.3 | AX74: 844.3 | AY74: 739.7 | AZ74: 679.9 | BA74: 643.6 | BB74: 620 | BC74: 591 | BD74: 1120.6 | BE74: 887.3 | BF74: 757.1 | BG74: 676.9 | BH74: 623.6 | BI74: 585.7 | BJ74: 532.7 | BK74: 44 | BL74: 41.8 | BM74: 39.7 | BN74: 38.6 | BO74: 38.1 | BP74: 37.9 | BQ74: 38.4 | BR74: 145.7 | BS74: 149.8 | BT74: 160.4 | BU74: 171 | BV74: 174.6 | BW74: 175.4 | BX74: 175.5 | BY74: 1147.4 | BZ74: 973 | CA74: 908.9 | CB74: 877.4 | CC74: 859.8 | CD74: 851.1 | CE74: 854.8 | CF74: 743.5 | CG74: 657.3 | CH74: 629 | CI74: 614.2 | CJ74: 605.1 | CK74: 599.8 | CL74: 597.4 | CM74: 704.8 | CN74: 634.4 | CO74: 606.4 | CP74: 592.3 | CQ74: 583.2 | CR74: 577.6 | CS74: 573.1 | CT74: 680.6 | CU74: 616.9 | CV74: 582.9 | CW74: 563.9 | CX74: 553.5 | CY74: 546.2 | CZ74: 538.1 | DA74: 677.6 | DB74: 606.5 | DC74: 569.1 | DD74: 548.3 | DE74: 536 | DF74: 523.5 | DG74: 511.4 | DH74: 703.2 | DI74: 623.4 | DJ74: 577.5 | DK74: 543.3 | DL74: 517.8 | DM74: 499.4 | DN74: 477.3 | DO74: 747.2 | DP74: 643.4 | DQ74: 592.3 | DR74: 554.3 | DS74: 523 | DT74: 497 | DU74: 457.1 | DV74: 865.5 | DW74: 696 | DX74: 626 | DY74: 582.3 | DZ74: 547.7 | EA74: 517.8 | EB74: 460.6 | EC74: 1027.1 | ED74: 800.7 | EE74: 678.9 | EF74: 619.6 | EG74: 579.1 | EH74: 546.4 | EI74: 490.8 | EJ74: 1186 | EK74: 924.6 | EL74: 770.8 | EM74: 679.4 | EN74: 624.3 | EO74: 584.9 | EP74: 525.7
A75: NED2/04 | B75: NED_3939 | C75: NED 3939 | D75: OSTOYA | E75: Hood 50 | F75: Tyler Boat Co. | G75: T.Hood | H75: 1968 | I75: 132681 | J75: J.A.,Keuning | K75: IMS | L75: C | M75: 973 | N75: 20 4 2004 | O75: 11:39:54 | P75: 15.6 | Q75: 11.99 | R75: 2.038 | S75: 4.003 | T75: 22613 | U75: 126.3 | V75: 1.08 | W75: 657.5 | X75: 0.8952 | Y75: 754 | Z75: 0.686 | AA75: 44.7 | AB75: 1155.7 | AC75: 931.9 | AD75: 803.8 | AE75: 718.8 | AF75: 666.1 | AG75: 633.9 | AH75: 600 | AI75: 1091.6 | AJ75: 887.6 | AK75: 773.3 | AL75: 701.6 | AM75: 658.2 | AN75: 631.2 | AO75: 602.1 | AP75: 916.4 | AQ75: 735.5 | AR75: 637.4 | AS75: 579.6 | AT75: 543.8 | AU75: 520.6 | AV75: 492.5 | AW75: 984.3 | AX75: 782.8 | AY75: 671.4 | AZ75: 604.6 | BA75: 562.5 | BB75: 535.1 | BC75: 503.4 | BD75: 1036.4 | BE75: 808 | BF75: 677.6 | BG75: 595.6 | BH75: 540.8 | BI75: 502.1 | BJ75: 450.1 | BK75: 50.2 | BL75: 47.1 | BM75: 50.7 | BN75: 47.7 | BO75: 45.6 | BP75: 44.3 | BQ75: 43.3 | BR75: 141.8 | BS75: 148 | BT75: 144.7 | BU75: 154.4 | BV75: 164.5 | BW75: 171.7 | BX75: 175.1 | BY75: 1234.7 | BZ75: 1021.2 | CA75: 907.5 | CB75: 823.3 | CC75: 777.4 | CD75: 750.3 | CE75: 726.9 | CF75: 761.8 | CG75: 638.7 | CH75: 559.8 | CI75: 522.8 | CJ75: 506.4 | CK75: 496.7 | CL75: 487 | CM75: 685.4 | CN75: 568.6 | CO75: 514.9 | CP75: 495.3 | CQ75: 483.7 | CR75: 475.7 | CS75: 466.6 | CT75: 629.5 | CU75: 521.1 | CV75: 489.3 | CW75: 471.6 | CX75: 459.1 | CY75: 450.7 | CZ75: 440.2 | DA75: 616.4 | DB75: 509.3 | DC75: 478.2 | DD75: 461.1 | DE75: 450.1 | DF75: 441.3 | DG75: 425.4 | DH75: 620.3 | DI75: 511.5 | DJ75: 479.1 | DK75: 458.4 | DL75: 442.5 | DM75: 429.7 | DN75: 411.3 | DO75: 654.4 | DP75: 529.4 | DQ75: 487.5 | DR75: 464 | DS75: 445.8 | DT75: 430.8 | DU75: 407.3 | DV75: 744.8 | DW75: 604.4 | DX75: 514.3 | DY75: 482.1 | DZ75: 460.5 | EA75: 442.6 | EB75: 413.7 | EC75: 894 | ED75: 705 | EE75: 591.8 | EF75: 517.5 | EG75: 485.6 | EH75: 464.3 | EI75: 431.3 | EJ75: 1032.3 | EK75: 814 | EL75: 683.4 | EM75: 593.1 | EN75: 537.9 | EO75: 502.9 | EP75: 460.8
A76: NED2/04 | B76: NED_3965 | C76: NED 3965 | D76: AD FUNDUM | E76: Grand Surprise | F76: Archambault | G76: Joubert/Nivel | H76: 2000 | I76: 230241 | J76: C.A.R.,Hilhorst | K76: IMS | M76: 510 | N76: 20 4 2004 | O76: 11:39:55 | P76: 9.55 | Q76: 9.61 | R76: 2.149 | S76: 2.968 | T76: 3849 | U76: 108.2 | V76: 0.1 | W76: 632.5 | X76: 0.9537 | Y76: 707.8 | Z76: 0.708 | AA76: 39.3 | AB76: 1101.8 | AC76: 879.4 | AD76: 756.2 | AE76: 683.5 | AF76: 637.3 | AG76: 606.5 | AH76: 569.3 | AI76: 1024 | AJ76: 824 | AK76: 717.8 | AL76: 658.8 | AM76: 622.1 | AN76: 596.7 | AO76: 559.3 | AP76: 883.2 | AQ76: 708 | AR76: 613 | AS76: 556.9 | AT76: 521.4 | AU76: 497.1 | AV76: 463.9 | AW76: 961.5 | AX76: 762.8 | AY76: 653.3 | AZ76: 587.7 | BA76: 546 | BB76: 518.1 | BC76: 483.2 | BD76: 994.9 | BE76: 775.5 | BF76: 650.4 | BG76: 571.5 | BH76: 517.9 | BI76: 479 | BJ76: 423.5 | BK76: 43.6 | BL76: 42.9 | BM76: 41.7 | BN76: 39.9 | BO76: 38.8 | BP76: 38.1 | BQ76: 37.7 | BR76: 142 | BS76: 147.5 | BT76: 149.4 | BU76: 158.9 | BV76: 167.4 | BW76: 171.9 | BX76: 173.7 | BY76: 1090.7 | BZ76: 893.3 | CA76: 792.8 | CB76: 745.3 | CC76: 717.2 | CD76: 700.3 | CE76: 687.1 | CF76: 709.7 | CG76: 582.8 | CH76: 530.7 | CI76: 509.6 | CJ76: 497 | CK76: 489 | CL76: 481.4 | CM76: 665.5 | CN76: 552.3 | CO76: 507.5 | CP76: 488.4 | CQ76: 477 | CR76: 469.4 | CS76: 461.5 | CT76: 629 | CU76: 530.3 | CV76: 488.6 | CW76: 464.2 | CX76: 451.1 | CY76: 443 | CZ76: 432.8 | DA76: 596.9 | DB76: 508 | DC76: 470.7 | DD76: 453.3 | DE76: 441.1 | DF76: 425.4 | DG76: 407.8 | DH76: 619.4 | DI76: 519.8 | DJ76: 474.5 | DK76: 444.7 | DL76: 422.6 | DM76: 406.1 | DN76: 380.1 | DO76: 666.5 | DP76: 543.7 | DQ76: 489 | DR76: 453.7 | DS76: 426.6 | DT76: 401.6 | DU76: 351.9 | DV76: 773.6 | DW76: 614.2 | DX76: 528.4 | DY76: 482.8 | DZ76: 450.1 | EA76: 422.3 | EB76: 354.4 | EC76: 929.9 | ED76: 726.8 | EE76: 602.9 | EF76: 529.5 | EG76: 486.2 | EH76: 454.5 | EI76: 401 | EJ76: 1073.8 | EK76: 839.2 | EL76: 696.2 | EM76: 604.3 | EN76: 542.1 | EO76: 499.1 | EP76: 440.6
A77: NED2/04 | B77: NED_3968 | C77: NED 3968 | D77: FREGATVOGEL | E77: Bashford 36 | F77: Bashford | G77: - | H77: 1995 | I77: 259556 | J77: S.,Tavenier | K77: IMS | L77: C | M77: 672 | N77: 20 4 2004 | O77: 11:39:56 | P77: 10.98 | Q77: 10.229 | R77: 2.314 | S77: 3.392 | T77: 5795 | U77: 117.4 | V77: 0.05 | W77: 602.2 | X77: 1.0057 | Y77: 671.2 | Z77: 0.798 | AA77: 76.6 | AB77: 1017.6 | AC77: 815.7 | AD77: 710.8 | AE77: 650 | AF77: 611.3 | AG77: 585.8 | AH77: 554.7 | AI77: 942.3 | AJ77: 763.7 | AK77: 676.2 | AL77: 628 | AM77: 597.4 | AN77: 576.4 | AO77: 549.6 | AP77: 824.9 | AQ77: 668 | AR77: 584.5 | AS77: 536.4 | AT77: 506.6 | AU77: 486.7 | AV77: 461 | AW77: 894.9 | AX77: 716.4 | AY77: 619.6 | AZ77: 562.5 | BA77: 527 | BB77: 503.7 | BC77: 474.6 | BD77: 935 | BE77: 734.6 | BF77: 621.7 | BG77: 551.5 | BH77: 504.8 | BI77: 471.6 | BJ77: 425.9 | BK77: 45.1 | BL77: 42.9 | BM77: 40.2 | BN77: 38.4 | BO77: 37.3 | BP77: 36.7 | BQ77: 36.4 | BR77: 141.7 | BS77: 144.6 | BT77: 150.7 | BU77: 160.5 | BV77: 168.3 | BW77: 172 | BX77: 173 | BY77: 990.4 | BZ77: 819 | CA77: 743.8 | CB77: 704.9 | CC77: 682.6 | CD77: 670 | CE77: 662.2 | CF77: 634.3 | CG77: 540.9 | CH77: 509.9 | CI77: 493.8 | CJ77: 484.3 | CK77: 478.4 | CL77: 473.4 | CM77: 592.2 | CN77: 517.5 | CO77: 490.7 | CP77: 476.7 | CQ77: 467.9 | CR77: 462.2 | CS77: 456.4 | CT77: 562.9 | CU77: 501 | CV77: 470.8 | CW77: 455.1 | CX77: 445.7 | CY77: 439.1 | CZ77: 430.8 | DA77: 567.4 | DB77: 495 | DC77: 465.3 | DD77: 448 | DE77: 431.5 | DF77: 421.2 | DG77: 409.9 | DH77: 578.4 | DI77: 502.4 | DJ77: 464.9 | DK77: 438.7 | DL77: 420.6 | DM77: 409.1 | DN77: 391.5 | DO77: 615.7 | DP77: 520.1 | DQ77: 476.5 | DR77: 445.8 | DS77: 421 | DT77: 401 | DU77: 374.9 | DV77: 723.2 | DW77: 573.4 | DX77: 508 | DY77: 470.7 | DZ77: 442 | EA77: 416.6 | EB77: 370.6 | EC77: 872.7 | ED77: 677.6 | EE77: 568.8 | EF77: 510.3 | EG77: 474.6 | EH77: 446.9 | EI77: 399.9 | EJ77: 1007.7 | EK77: 782.5 | EL77: 656.8 | EM77: 578.6 | EN77: 525.7 | EO77: 488.9 | EP77: 436.8
A78: NED2/04 | B78: NED_3970 | C78: NED 3970 | D78: THE FOX | E78: X-412 | F78: X-Yachts | G78: N.Jeppesen | H78: 1991 | I78: 238301 | J78: V.,Lendering | K78: IMS | L78: C | M78: 560 | N78: 20 4 2004 | O78: 11:39:56 | P78: 12.52 | Q78: 10.608 | R78: 2.161 | S78: 3.885 | T78: 8704 | U78: 119.2 | V78: 0.17 | W78: 612.3 | X78: 0.9866 | Y78: 684.2 | Z78: 0.784 | AA78: 75 | AB78: 1026.6 | AC78: 836.1 | AD78: 729.9 | AE78: 665.2 | AF78: 623.8 | AG78: 596.7 | AH78: 564.3 | AI78: 955.1 | AJ78: 785.5 | AK78: 695.6 | AL78: 643.7 | AM78: 611.1 | AN78: 589.2 | AO78: 563 | AP78: 837.1 | AQ78: 679.2 | AR78: 594.6 | AS78: 545.3 | AT78: 514.5 | AU78: 494.1 | AV78: 468.3 | AW78: 904.1 | AX78: 726 | AY78: 628.9 | AZ78: 571.1 | BA78: 534.8 | BB78: 510.7 | BC78: 481.1 | BD78: 948.7 | BE78: 746.3 | BF78: 631.8 | BG78: 560.2 | BH78: 512.4 | BI78: 478.4 | BJ78: 432 | BK78: 44.5 | BL78: 44 | BM78: 42.1 | BN78: 40.5 | BO78: 39.4 | BP78: 38.7 | BQ78: 38.3 | BR78: 142.6 | BS78: 146.9 | BT78: 150.1 | BU78: 159.6 | BV78: 167.3 | BW78: 171.6 | BX78: 173.8 | BY78: 1011.4 | BZ78: 854.8 | CA78: 772.8 | CB78: 728.9 | CC78: 703.1 | CD78: 687.6 | CE78: 676 | CF78: 651.1 | CG78: 553.8 | CH78: 516.8 | CI78: 498.2 | CJ78: 486.9 | CK78: 479.8 | CL78: 473.4 | CM78: 607.4 | CN78: 525.6 | CO78: 494.5 | CP78: 478.9 | CQ78: 468.8 | CR78: 462.2 | CS78: 455.3 | CT78: 573.5 | CU78: 506.5 | CV78: 475.2 | CW78: 456.7 | CX78: 446.3 | CY78: 439 | CZ78: 430.2 | DA78: 578.8 | DB78: 502.2 | DC78: 468.8 | DD78: 451.5 | DE78: 437.1 | DF78: 425.3 | DG78: 412.1 | DH78: 593.7 | DI78: 509.2 | DJ78: 470.9 | DK78: 445.2 | DL78: 426.4 | DM78: 412.9 | DN78: 396.1 | DO78: 631.6 | DP78: 527.3 | DQ78: 481.6 | DR78: 452.1 | DS78: 429.4 | DT78: 411 | DU78: 384.1 | DV78: 724.4 | DW78: 583.9 | DX78: 512.5 | DY78: 474.4 | DZ78: 447 | EA78: 424.8 | EB78: 388.4 | EC78: 865.8 | ED78: 686.3 | EE78: 576.9 | EF78: 514.3 | EG78: 477.8 | EH78: 451.1 | EI78: 409.8 | EJ78: 999.7 | EK78: 792.5 | EL78: 666.2 | EM78: 584.7 | EN78: 529.8 | EO78: 492.4 | EP78: 442.1
A79: NED2/04 | B79: NED_4007 | C79: NED 4007 | D79: FIQAS | E79: X-99 | F79: X-Yachts | G79: N.Jeppesen | H79: 1985 | I79: 104810 | J79: D.J.,Biesheuvel | K79: IMS_1DSN | L79: C | M79: 512 | N79: 20 4 2004 | O79: 11:39:57 | P79: 10.007 | Q79: 8.87 | R79: 1.844 | S79: 2.971 | T79: 3773 | U79: 112 | V79: 0.06 | W79: 643.8 | X79: 0.9402 | Y79: 717.9 | Z79: 0.757 | AA79: 83.3 | AB79: 1072 | AC79: 869.4 | AD79: 763 | AE79: 700 | AF79: 660.1 | AG79: 634.1 | AH79: 602.8 | AI79: 988.9 | AJ79: 813.7 | AK79: 727.4 | AL79: 679 | AM79: 648 | AN79: 626.7 | AO79: 600.3 | AP79: 874.6 | AQ79: 711.8 | AR79: 625.6 | AS79: 575.6 | AT79: 544.5 | AU79: 523.7 | AV79: 496.5 | AW79: 927.7 | AX79: 748.7 | AY79: 652.5 | AZ79: 596.1 | BA79: 561.1 | BB79: 537.9 | BC79: 508.4 | BD79: 993.8 | BE79: 783.4 | BF79: 664.9 | BG79: 591.1 | BH79: 541.6 | BI79: 506.1 | BJ79: 456.6 | BK79: 44.5 | BL79: 42.3 | BM79: 40.3 | BN79: 39 | BO79: 38.3 | BP79: 37.9 | BQ79: 38.1 | BR79: 142.9 | BS79: 146.7 | BT79: 153.4 | BU79: 164.2 | BV79: 171.5 | BW79: 174 | BX79: 174.2 | BY79: 1018.3 | BZ79: 867.2 | CA79: 801 | CB79: 766.5 | CC79: 746.6 | CD79: 735.7 | CE79: 732.4 | CF79: 657.3 | CG79: 576.6 | CH79: 547.8 | CI79: 532.2 | CJ79: 522.7 | CK79: 517.1 | CL79: 512.7 | CM79: 618 | CN79: 550.8 | CO79: 526.3 | CP79: 512.2 | CQ79: 503.3 | CR79: 497.7 | CS79: 491.9 | CT79: 591 | CU79: 531.3 | CV79: 501.7 | CW79: 487.1 | CX79: 477.1 | CY79: 470 | CZ79: 461.1 | DA79: 596.6 | DB79: 525.8 | DC79: 491.9 | DD79: 475 | DE79: 458.4 | DF79: 448.7 | DG79: 436.6 | DH79: 617.5 | DI79: 539.4 | DJ79: 498.1 | DK79: 467.7 | DL79: 443.9 | DM79: 427.9 | DN79: 408.2 | DO79: 660.3 | DP79: 560.5 | DQ79: 512.7 | DR79: 478.5 | DS79: 449.6 | DT79: 425.2 | DU79: 391 | DV79: 777.8 | DW79: 619.8 | DX79: 548.4 | DY79: 507.1 | DZ79: 475.3 | EA79: 446.9 | EB79: 396 | EC79: 937.9 | ED79: 727.9 | EE79: 610.7 | EF79: 547.8 | EG79: 508.6 | EH79: 478 | EI79: 425.7 | EJ79: 1083 | EK79: 840.6 | EL79: 703.5 | EM79: 615.6 | EN79: 558 | EO79: 518.7 | EP79: 462
A80: NED2/04 | B80: NED_406 | C80: NED 406 | D80: GRANNY'S FEAR | E80: Dehler 37 DB | F80: Dehler Yachtbau | G80: Dehler/v.d.Stadt | H80: 1991 | I80: 162801 | J80: J.W.,Toetenel jr. | K80: IMS | L80: C | M80: 500 | N80: 20 4 2004 | O80: 11:39:58 | P80: 11.01 | Q80: 9.561 | R80: 2.091 | S80: 3.503 | T80: 6154 | U80: 111.6 | V80: 0.5 | W80: 639.5 | X80: 0.9446 | Y80: 714.6 | Z80: 0.744 | AA80: 71.3 | AB80: 1091.2 | AC80: 872.5 | AD80: 754.8 | AE80: 687 | AF80: 645.8 | AG80: 619.2 | AH80: 587 | AI80: 1015.2 | AJ80: 818.8 | AK80: 720.6 | AL80: 667.7 | AM80: 635.2 | AN80: 613.4 | AO80: 586.1 | AP80: 880.1 | AQ80: 710.8 | AR80: 620.5 | AS80: 568.3 | AT80: 536.2 | AU80: 514.9 | AV80: 487.5 | AW80: 955.1 | AX80: 762.6 | AY80: 657.9 | AZ80: 596.5 | BA80: 558.2 | BB80: 533.2 | BC80: 502.2 | BD80: 996.6 | BE80: 781.5 | BF80: 660.2 | BG80: 584.9 | BH80: 534.9 | BI80: 499.2 | BJ80: 450.1 | BK80: 43.7 | BL80: 43.6 | BM80: 41.1 | BN80: 39.2 | BO80: 38.1 | BP80: 37.5 | BQ80: 37.3 | BR80: 143.4 | BS80: 147.3 | BT80: 151.5 | BU80: 163.7 | BV80: 172.4 | BW80: 174.6 | BX80: 175.4 | BY80: 1082 | BZ80: 885.5 | CA80: 795.9 | CB80: 753.8 | CC80: 729.4 | CD80: 714.9 | CE80: 704.7 | CF80: 698.6 | CG80: 580.5 | CH80: 540 | CI80: 522.7 | CJ80: 511.8 | CK80: 504.9 | CL80: 498.3 | CM80: 651.5 | CN80: 555.3 | CO80: 519.6 | CP80: 502.4 | CQ80: 492.4 | CR80: 485.7 | CS80: 478.7 | CT80: 614.2 | CU80: 534.4 | CV80: 500.1 | CW80: 480.7 | CX80: 467.1 | CY80: 459.7 | CZ80: 450.5 | DA80: 586.5 | DB80: 517.5 | DC80: 484.3 | DD80: 466 | DE80: 456.1 | DF80: 446.8 | DG80: 428.7 | DH80: 607.7 | DI80: 530 | DJ80: 492 | DK80: 464.3 | DL80: 442.5 | DM80: 426.2 | DN80: 407.2 | DO80: 655.5 | DP80: 549.1 | DQ80: 505.3 | DR80: 474.2 | DS80: 449 | DT80: 427.4 | DU80: 394.5 | DV80: 766.9 | DW80: 608.3 | DX80: 537.6 | DY80: 499.6 | DZ80: 470.8 | EA80: 446.3 | EB80: 403.5 | EC80: 919.1 | ED80: 719.7 | EE80: 598.1 | EF80: 536.9 | EG80: 500.7 | EH80: 472.9 | EI80: 427.5 | EJ80: 1061.3 | EK80: 831 | EL80: 690.1 | EM80: 602.2 | EN80: 546.6 | EO80: 510 | EP80: 458.6
A81: NED2/04 | B81: NED_413 | C81: NED 413 | D81: DANAE | E81: DB 1 | F81: Dehler B.B. | G81: vd Stadt & Prtnrs | H81: 1980 | I81: 218102 | J81: P.J.,Schoorl | K81: IMS | M81: 529 | N81: 20 4 2004 | O81: 11:39:59 | P81: 10.107 | Q81: 8.58 | R81: 1.958 | S81: 3.366 | T81: 4841 | U81: 109.4 | V81: 0.15 | W81: 670.2 | X81: 0.907 | Y81: 744.2 | Z81: 0.726 | AA81: 83 | AB81: 1127.1 | AC81: 904.3 | AD81: 786 | AE81: 717.2 | AF81: 675.5 | AG81: 649 | AH81: 616.6 | AI81: 1044.3 | AJ81: 846.9 | AK81: 750.2 | AL81: 697.6 | AM81: 665.2 | AN81: 643.3 | AO81: 616.1 | AP81: 916.7 | AQ81: 743 | AR81: 650.6 | AS81: 597.5 | AT81: 564.8 | AU81: 543.1 | AV81: 515.1 | AW81: 972.2 | AX81: 781.3 | AY81: 678.4 | AZ81: 618.4 | BA81: 581.5 | BB81: 557.2 | BC81: 526.9 | BD81: 1038.9 | BE81: 816.9 | BF81: 692.1 | BG81: 614.9 | BH81: 563.8 | BI81: 527.6 | BJ81: 478 | BK81: 44.6 | BL81: 43.5 | BM81: 40.7 | BN81: 38.8 | BO81: 37.7 | BP81: 37.1 | BQ81: 36.8 | BR81: 144.6 | BS81: 148.4 | BT81: 153.1 | BU81: 165.8 | BV81: 173.5 | BW81: 175.3 | BX81: 175.8 | BY81: 1087.6 | BZ81: 900.4 | CA81: 820.9 | CB81: 780.8 | CC81: 757.3 | CD81: 743.3 | CE81: 733.8 | CF81: 700.2 | CG81: 596.7 | CH81: 563.8 | CI81: 547.4 | CJ81: 536.9 | CK81: 530 | CL81: 523.7 | CM81: 653.8 | CN81: 574.9 | CO81: 544.1 | CP81: 528.7 | CQ81: 518.8 | CR81: 512 | CS81: 504.8 | CT81: 623 | CU81: 559.4 | CV81: 527.4 | CW81: 506.9 | CX81: 494.9 | CY81: 487 | CZ81: 477 | DA81: 624.2 | DB81: 552.1 | DC81: 516.9 | DD81: 494.7 | DE81: 481.5 | DF81: 472.2 | DG81: 456.1 | DH81: 650.4 | DI81: 566.6 | DJ81: 526.5 | DK81: 497 | DL81: 473.6 | DM81: 455.1 | DN81: 431.8 | DO81: 700.6 | DP81: 586.2 | DQ81: 540 | DR81: 507.5 | DS81: 480.9 | DT81: 458.1 | DU81: 424 | DV81: 816.4 | DW81: 646.6 | DX81: 572.3 | DY81: 533.1 | DZ81: 503.3 | EA81: 477.9 | EB81: 434.3 | EC81: 974.3 | ED81: 759.3 | EE81: 631.8 | EF81: 569.5 | EG81: 532.7 | EH81: 504.1 | EI81: 457.4 | EJ81: 1125 | EK81: 876.8 | EL81: 727.8 | EM81: 634.2 | EN81: 577.5 | EO81: 540.7 | EP81: 488.3
A82: NED2/04 | B82: NED_4159 | C82: NED 4159 | D82: TOYS FOR BOYS | E82: Breehorn 37 | F82: v/d Berg Elahuizen | G82: D.Koopmans | H82: 1976 | I82: 205643 | J82: J.A.,Kwekkeboom | K82: IMS | L82: C | M82: 495 | N82: 20 4 2004 | O82: 11:39:59 | P82: 11.274 | Q82: 9.351 | R82: 2.03 | S82: 3.521 | T82: 9345 | U82: 133.4 | V82: 0.72 | W82: 687.7 | X82: 0.8741 | Y82: 772.2 | Z82: 0.695 | AA82: 73 | AB82: 1156 | AC82: 946.9 | AD82: 827.4 | AE82: 751.2 | AF82: 702.2 | AG82: 670.7 | AH82: 635.3 | AI82: 1079.7 | AJ82: 890.8 | AK82: 788.1 | AL82: 727.3 | AM82: 689.2 | AN82: 664.4 | AO82: 635.9 | AP82: 941.4 | AQ82: 763.5 | AR82: 667.9 | AS82: 612.1 | AT82: 577.3 | AU82: 554.4 | AV82: 526 | AW82: 1023.8 | AX82: 820.2 | AY82: 708.9 | AZ82: 642.6 | BA82: 600.8 | BB82: 573.4 | BC82: 540.1 | BD82: 1066.9 | BE82: 839 | BF82: 709.7 | BG82: 628.9 | BH82: 575 | BI82: 536.8 | BJ82: 485.3 | BK82: 45.2 | BL82: 44.5 | BM82: 44.2 | BN82: 42.4 | BO82: 41.2 | BP82: 40.4 | BQ82: 39.9 | BR82: 141.3 | BS82: 145.7 | BT82: 148.7 | BU82: 159.5 | BV82: 168.2 | BW82: 172.8 | BX82: 175.1 | BY82: 1165.9 | BZ82: 984.5 | CA82: 885.5 | CB82: 830.2 | CC82: 797.5 | CD82: 777.6 | CE82: 761.4 | CF82: 748.7 | CG82: 632.2 | CH82: 579 | CI82: 556.2 | CJ82: 542.6 | CK82: 534 | CL82: 525.5 | CM82: 700.6 | CN82: 595.1 | CO82: 553.6 | CP82: 533 | CQ82: 521.3 | CR82: 513.5 | CS82: 504.8 | CT82: 662.2 | CU82: 570.7 | CV82: 534 | CW82: 512.2 | CX82: 497.5 | CY82: 487.9 | CZ82: 477.4 | DA82: 641 | DB82: 553.5 | DC82: 518.4 | DD82: 498 | DE82: 485.1 | DF82: 476.9 | DG82: 462.1 | DH82: 660.5 | DI82: 562.6 | DJ82: 521.6 | DK82: 495 | DL82: 475.4 | DM82: 460.3 | DN82: 439.3 | DO82: 699.9 | DP82: 581.7 | DQ82: 532 | DR82: 501.6 | DS82: 478.9 | DT82: 460.9 | DU82: 434.3 | DV82: 792.5 | DW82: 645.4 | DX82: 565.7 | DY82: 526.7 | DZ82: 499.8 | EA82: 478.2 | EB82: 444.4 | EC82: 949.8 | ED82: 764.3 | EE82: 647.3 | EF82: 573.8 | EG82: 534.2 | EH82: 506.7 | EI82: 465.8 | EJ82: 1096.7 | EK82: 882.5 | EL82: 747.4 | EM82: 653 | EN82: 589.5 | EO82: 548.7 | EP82: 497.3
A83: NED2/04 | B83: NED_4171 | C83: NED 4171 | D83: BINGO | E83: Dehler 38 SD | F83: Dehler B.B. | G83: v.d.Stadt & Prtnrs | H83: 1989 | I83: 151830 | J83: J.,de Reus | K83: IMS | L83: C | M83: 668 | N83: 20 4 2004 | O83: 11:40:00 | P83: 11.414 | Q83: 9.897 | R83: 2.009 | S83: 3.765 | T83: 7316 | U83: 110.2 | V83: 0.57 | W83: 658.4 | X83: 0.9187 | Y83: 734.7 | Z83: 0.7 | AA83: 54.4 | AB83: 1136.2 | AC83: 911 | AD83: 783.9 | AE83: 705.8 | AF83: 657.3 | AG83: 627 | AH83: 590.5 | AI83: 1058.5 | AJ83: 855.7 | AK83: 745.6 | AL83: 683 | AM83: 644.9 | AN83: 620 | AO83: 588.2 | AP83: 915.5 | AQ83: 735.6 | AR83: 638.3 | AS83: 581.1 | AT83: 545.5 | AU83: 521.7 | AV83: 491.1 | AW83: 976.8 | AX83: 778.5 | AY83: 669.9 | AZ83: 605.2 | BA83: 564.5 | BB83: 537.6 | BC83: 504.3 | BD83: 1032.1 | BE83: 806.3 | BF83: 677.9 | BG83: 597.7 | BH83: 544.3 | BI83: 506.3 | BJ83: 454.4 | BK83: 44.5 | BL83: 44 | BM83: 43 | BN83: 40.6 | BO83: 39 | BP83: 38.1 | BQ83: 37.4 | BR83: 144.6 | BS83: 149.2 | BT83: 152.1 | BU83: 160.1 | BV83: 170 | BW83: 174 | BX83: 175.4 | BY83: 1123.8 | BZ83: 926.1 | CA83: 820.8 | CB83: 766.2 | CC83: 734.7 | CD83: 715.5 | CE83: 698.2 | CF83: 719.8 | CG83: 594.8 | CH83: 545.9 | CI83: 525.2 | CJ83: 512.5 | CK83: 504.1 | CL83: 495.3 | CM83: 671 | CN83: 562.8 | CO83: 524.1 | CP83: 505.1 | CQ83: 493.6 | CR83: 485.7 | CS83: 477.2 | CT83: 632.4 | CU83: 542.2 | CV83: 507.1 | CW83: 484.3 | CX83: 470 | CY83: 461.8 | CZ83: 451.5 | DA83: 631.2 | DB83: 534.8 | DC83: 497.1 | DD83: 473.7 | DE83: 459.9 | DF83: 451.8 | DG83: 432.2 | DH83: 657.9 | DI83: 549.3 | DJ83: 506.6 | DK83: 477.1 | DL83: 454.4 | DM83: 435.4 | DN83: 410.5 | DO83: 702.1 | DP83: 572.6 | DQ83: 520 | DR83: 487.2 | DS83: 461.8 | DT83: 439.7 | DU83: 403.9 | DV83: 806.9 | DW83: 645.9 | DX83: 554.3 | DY83: 512.8 | DZ83: 483.3 | EA83: 459.5 | EB83: 416.7 | EC83: 958.2 | ED83: 752.6 | EE83: 628.5 | EF83: 552.5 | EG83: 513.7 | EH83: 485.4 | EI83: 441.3 | EJ83: 1106.4 | EK83: 869.1 | EL83: 725.6 | EM83: 626.2 | EN83: 563.4 | EO83: 524.2 | EP83: 472.4
A84: NED2/04 | B84: NED_4172 | C84: NED 4172 | D84: NERISSA | E84: Breehorn 37 | F84: Jachtw. Elahuizen | G84: D.Koopmans | H84: 1989 | I84: 114474 | J84: G.R.,van Dis | K84: IMS | L84: C | M84: 684 | N84: 20 4 2004 | O84: 11:40:01 | P84: 11.194 | Q84: 9.268 | R84: 1.621 | S84: 3.583 | T84: 9352 | U84: 128.2 | V84: 0.84 | W84: 707.4 | X84: 0.8362 | Y84: 807.2 | Z84: 0.669 | AA84: 67.5 | AB84: 1190.2 | AC84: 976.4 | AD84: 855.7 | AE84: 778.1 | AF84: 729.5 | AG84: 699.4 | AH84: 668.3 | AI84: 1122.4 | AJ84: 930.4 | AK84: 825.8 | AL84: 762.5 | AM84: 723.5 | AN84: 698.9 | AO84: 674.3 | AP84: 968.1 | AQ84: 785 | AR84: 686.9 | AS84: 629.7 | AT84: 594.3 | AU84: 571.6 | AV84: 544.3 | AW84: 1042.5 | AX84: 837.3 | AY84: 725.4 | AZ84: 658.8 | BA84: 617.1 | BB84: 590 | BC84: 558.2 | BD84: 1097.6 | BE84: 863 | BF84: 729.7 | BG84: 646 | BH84: 589.6 | BI84: 549.2 | BJ84: 493.3 | BK84: 47.8 | BL84: 46.3 | BM84: 47.2 | BN84: 45.9 | BO84: 44.9 | BP84: 44.3 | BQ84: 44.4 | BR84: 144.4 | BS84: 151.7 | BT84: 152.6 | BU84: 161.5 | BV84: 169.1 | BW84: 172.7 | BX84: 174.7 | BY84: 1239.5 | BZ84: 1057 | CA84: 957.8 | CB84: 897.5 | CC84: 862.8 | CD84: 843.4 | CE84: 833.9 | CF84: 778.9 | CG84: 664.8 | CH84: 604.7 | CI84: 577.1 | CJ84: 561.9 | CK84: 552.8 | CL84: 545.9 | CM84: 720.4 | CN84: 611.1 | CO84: 565.9 | CP84: 545.5 | CQ84: 533.2 | CR84: 525.2 | CS84: 517.6 | CT84: 673.8 | CU84: 577 | CV84: 538.8 | CW84: 516.6 | CX84: 502.5 | CY84: 493.9 | CZ84: 483.9 | DA84: 660.3 | DB84: 562.6 | DC84: 525.1 | DD84: 504.2 | DE84: 491.8 | DF84: 482.9 | DG84: 465.3 | DH84: 677.1 | DI84: 570.8 | DJ84: 526.3 | DK84: 498.8 | DL84: 479 | DM84: 464.1 | DN84: 444.8 | DO84: 713.6 | DP84: 590.5 | DQ84: 536.7 | DR84: 504.6 | DS84: 481.2 | DT84: 462.9 | DU84: 436.7 | DV84: 798.6 | DW84: 652.1 | DX84: 567.9 | DY84: 526.5 | DZ84: 498.1 | EA84: 475.5 | EB84: 440.7 | EC84: 943.5 | ED84: 750.6 | EE84: 634.9 | EF84: 565.5 | EG84: 527.2 | EH84: 499.8 | EI84: 458.9 | EJ84: 1089.5 | EK84: 866.2 | EL84: 732.5 | EM84: 637.6 | EN84: 578.2 | EO84: 539.6 | EP84: 489.4
A85: NED2/04 | B85: NED_4191 | C85: NED 4191 | D85: DAN MAID | E85: Faurby 39 | F85: Faurby Yachts | G85: N.P.Faurby | H85: 1989 | I85: 101230 | J85: C.,van Arkel | K85: IMS | M85: 641 | N85: 20 4 2004 | O85: 11:40:01 | P85: 11.964 | Q85: 10.384 | R85: 1.928 | S85: 3.172 | T85: 6948 | U85: 125.4 | V85: 0.43 | W85: 635.8 | X85: 0.9443 | Y85: 714.8 | Z85: 0.739 | AA85: 65.3 | AB85: 1095.8 | AC85: 876.3 | AD85: 755.6 | AE85: 685.2 | AF85: 641.8 | AG85: 614.1 | AH85: 581 | AI85: 1022.6 | AJ85: 825 | AK85: 722.3 | AL85: 665.5 | AM85: 630.8 | AN85: 607.8 | AO85: 579.7 | AP85: 878.2 | AQ85: 707.9 | AR85: 616.6 | AS85: 563.7 | AT85: 531.2 | AU85: 509.8 | AV85: 482.8 | AW85: 945.8 | AX85: 754.2 | AY85: 649.8 | AZ85: 588.2 | BA85: 550 | BB85: 525.2 | BC85: 495.1 | BD85: 994.3 | BE85: 778.3 | BF85: 656.2 | BG85: 580.2 | BH85: 529.7 | BI85: 494.2 | BJ85: 446 | BK85: 46.4 | BL85: 45.6 | BM85: 43.5 | BN85: 41.3 | BO85: 39.9 | BP85: 39 | BQ85: 38.5 | BR85: 142.4 | BS85: 145.5 | BT85: 149.2 | BU85: 159.7 | BV85: 169.1 | BW85: 173.2 | BX85: 174.6 | BY85: 1104.5 | BZ85: 910 | CA85: 809.7 | CB85: 758 | CC85: 728.4 | CD85: 710.8 | CE85: 696.7 | CF85: 696.7 | CG85: 577.8 | CH85: 535.1 | CI85: 515.4 | CJ85: 503.8 | CK85: 496.3 | CL85: 489.2 | CM85: 640.5 | CN85: 543.3 | CO85: 511.6 | CP85: 495.5 | CQ85: 485.2 | CR85: 478.3 | CS85: 471.1 | CT85: 593.4 | CU85: 520.5 | CV85: 490.7 | CW85: 472.7 | CX85: 462 | CY85: 454.6 | CZ85: 445.3 | DA85: 596.5 | DB85: 514.4 | DC85: 482.7 | DD85: 465 | DE85: 452.5 | DF85: 440.6 | DG85: 426.6 | DH85: 610.7 | DI85: 520.5 | DJ85: 484.3 | DK85: 459.2 | DL85: 440.2 | DM85: 425.6 | DN85: 407 | DO85: 652.2 | DP85: 537.6 | DQ85: 494.3 | DR85: 465.6 | DS85: 442.9 | DT85: 423.9 | DU85: 394.8 | DV85: 756.5 | DW85: 596.2 | DX85: 523.1 | DY85: 487.4 | DZ85: 460.8 | EA85: 438.2 | EB85: 399.1 | EC85: 907.2 | ED85: 706.4 | EE85: 587.3 | EF85: 524.4 | EG85: 490.2 | EH85: 464.5 | EI85: 422.1 | EJ85: 1047.6 | EK85: 815.7 | EL85: 678.2 | EM85: 594.4 | EN85: 539.6 | EO85: 503.7 | EP85: 454.9
A86: NED2/04 | B86: NED_42 | C86: NED 42 | D86: GOUDEN RUITER | E86: Pion (OOD) | F86: Meyer Balk | G86: v/d Stadt & Prtnrs | H86: 1973 | I86: 153599 | J86: R.M.,Rosen Jacobson | K86: IMS_1DSN | L86: C | M86: 467 | N86: 20 4 2004 | O86: 11:40:02 | P86: 9.084 | Q86: 7.54 | R86: 1.779 | S86: 2.896 | T86: 4280 | U86: 127 | V86: 0.71 | W86: 735.7 | X86: 0.8198 | Y86: 823.4 | Z86: 0.659 | AA86: 81.1 | AB86: 1237.7 | AC86: 995.7 | AD86: 864.3 | AE86: 788.8 | AF86: 744 | AG86: 715.4 | AH86: 681 | AI86: 1158.4 | AJ86: 941 | AK86: 831.3 | AL86: 772.1 | AM86: 736.2 | AN86: 712 | AO86: 683.3 | AP86: 1008 | AQ86: 816 | AR86: 714.1 | AS86: 655.5 | AT86: 619.6 | AU86: 596.3 | AV86: 566.6 | AW86: 1083.4 | AX86: 868.1 | AY86: 751.6 | AZ86: 683.8 | BA86: 642 | BB86: 614.9 | BC86: 581.6 | BD86: 1141.1 | BE86: 897 | BF86: 759.5 | BG86: 674.5 | BH86: 618.1 | BI86: 578.3 | BJ86: 524.3 | BK86: 44.7 | BL86: 44.9 | BM86: 42.8 | BN86: 41 | BO86: 39.9 | BP86: 39.2 | BQ86: 39 | BR86: 145.5 | BS86: 149.9 | BT86: 154.3 | BU86: 166 | BV86: 172.8 | BW86: 174.6 | BX86: 175.3 | BY86: 1246.4 | BZ86: 1032.5 | CA86: 930.6 | CB86: 881.6 | CC86: 852.4 | CD86: 834.5 | CE86: 821.6 | CF86: 799.1 | CG86: 667.9 | CH86: 622.6 | CI86: 602.4 | CJ86: 589.7 | CK86: 581.3 | CL86: 573 | CM86: 743.9 | CN86: 636.9 | CO86: 599.6 | CP86: 579.2 | CQ86: 567.5 | CR86: 559.3 | CS86: 550.6 | CT86: 699.4 | CU86: 615.3 | CV86: 580.3 | CW86: 557.1 | CX86: 541.2 | CY86: 530.8 | CZ86: 519.5 | DA86: 685.3 | DB86: 601.4 | DC86: 564.8 | DD86: 541.4 | DE86: 526 | DF86: 516.8 | DG86: 500.8 | DH86: 712.5 | DI86: 613.6 | DJ86: 570.4 | DK86: 540.2 | DL86: 517.1 | DM86: 499 | DN86: 474.4 | DO86: 760.2 | DP86: 631.9 | DQ86: 582.3 | DR86: 548.2 | DS86: 521.5 | DT86: 499.8 | DU86: 467.6 | DV86: 866 | DW86: 689.3 | DX86: 612.5 | DY86: 572.3 | DZ86: 541.8 | EA86: 516.1 | EB86: 474.4 | EC86: 1024 | ED86: 803 | EE86: 670.6 | EF86: 608.4 | EG86: 571.2 | EH86: 542.1 | EI86: 495.5 | EJ86: 1182.4 | EK86: 927.2 | EL86: 771.3 | EM86: 674.5 | EN86: 617.9 | EO86: 580.9 | EP86: 527.8
A87: NED2/04 | B87: NED_4204 | C87: NED 4204 | D87: SWANTA | E87: Grand Soleil 343 | F87: Cantiere del Pardo | G87: Jezequel | H87: 1986 | I87: 131161 | J87: H.,Jorritsma | K87: IMS | L87: C | M87: 578 | N87: 20 4 2004 | O87: 11:40:03 | P87: 10.415 | Q87: 9.052 | R87: 1.849 | S87: 3.4 | T87: 6275 | U87: 108.1 | V87: 0.66 | W87: 678.1 | X87: 0.8829 | Y87: 764.5 | Z87: 0.716 | AA87: 82.3 | AB87: 1142.5 | AC87: 918.9 | AD87: 802.2 | AE87: 734.4 | AF87: 692.4 | AG87: 665.6 | AH87: 635.6 | AI87: 1068.6 | AJ87: 868.2 | AK87: 770.1 | AL87: 716.4 | AM87: 683.2 | AN87: 661.4 | AO87: 637.6 | AP87: 927.8 | AQ87: 751.5 | AR87: 658.2 | AS87: 604.9 | AT87: 572.5 | AU87: 551.6 | AV87: 526.2 | AW87: 1009.3 | AX87: 807.7 | AY87: 698.5 | AZ87: 634.8 | BA87: 595.5 | BB87: 570.3 | BC87: 540.4 | BD87: 1052 | BE87: 827.2 | BF87: 700.6 | BG87: 622.5 | BH87: 570.5 | BI87: 533.9 | BJ87: 483.9 | BK87: 45.6 | BL87: 44.4 | BM87: 42.8 | BN87: 41.3 | BO87: 40.4 | BP87: 39.9 | BQ87: 40 | BR87: 143.8 | BS87: 146.8 | BT87: 152.9 | BU87: 162.6 | BV87: 169.3 | BW87: 172.4 | BX87: 173.7 | BY87: 1156.3 | BZ87: 955.7 | CA87: 868.2 | CB87: 823.3 | CC87: 797.1 | CD87: 782.3 | CE87: 775.3 | CF87: 734.4 | CG87: 618.6 | CH87: 575.6 | CI87: 556.8 | CJ87: 545.5 | CK87: 538.6 | CL87: 533.6 | CM87: 681.9 | CN87: 586.8 | CO87: 550.4 | CP87: 533.8 | CQ87: 523.9 | CR87: 517.5 | CS87: 511.8 | CT87: 643 | CU87: 563.9 | CV87: 529.8 | CW87: 509.4 | CX87: 497.3 | CY87: 490.3 | CZ87: 482 | DA87: 631.9 | DB87: 550.6 | DC87: 517.4 | DD87: 500.1 | DE87: 489.9 | DF87: 476.9 | DG87: 461.8 | DH87: 646.9 | DI87: 558.4 | DJ87: 518.2 | DK87: 491.8 | DL87: 472.8 | DM87: 459.2 | DN87: 443 | DO87: 686.2 | DP87: 576 | DQ87: 528.3 | DR87: 497.2 | DS87: 473.7 | DT87: 455.2 | DU87: 429.9 | DV87: 788.5 | DW87: 629.5 | DX87: 558.1 | DY87: 519.5 | DZ87: 491.2 | EA87: 467.6 | EB87: 430.1 | EC87: 940.4 | ED87: 734.9 | EE87: 618.4 | EF87: 557.4 | EG87: 521 | EH87: 493.8 | EI87: 450.4 | EJ87: 1085.9 | EK87: 848.6 | EL87: 712.7 | EM87: 626.2 | EN87: 571.1 | EO87: 534.4 | EP87: 483.8
A88: NED2/04 | B88: NED_4209 | C88: NED 4209 | D88: INSPIRATION | E88: Optima 106 | F88: Dehler B.B. | G88: v.d.Stadt & Prtnrs | H88: 1989 | I88: 141334 | J88: J.C.,Majoor | K88: IMS | L88: C | M88: 556 | N88: 20 4 2004 | O88: 11:40:03 | P88: 10.112 | Q88: 8.623 | R88: 1.811 | S88: 3.403 | T88: 5218 | U88: 110.3 | V88: 0.71 | W88: 687.1 | X88: 0.8773 | Y88: 769.4 | Z88: 0.689 | AA88: 68.9 | AB88: 1174.8 | AC88: 937.7 | AD88: 810.3 | AE88: 736.8 | AF88: 692.2 | AG88: 663.7 | AH88: 629.3 | AI88: 1097 | AJ88: 883.3 | AK88: 776.1 | AL88: 717.9 | AM88: 682.3 | AN88: 658.5 | AO88: 629.1 | AP88: 947.9 | AQ88: 764.4 | AR88: 666.4 | AS88: 609.7 | AT88: 574.9 | AU88: 551.9 | AV88: 522.5 | AW88: 1018.5 | AX88: 813.3 | AY88: 701.8 | AZ88: 636.3 | BA88: 595.8 | BB88: 569.3 | BC88: 536.6 | BD88: 1072 | BE88: 839.9 | BF88: 708.8 | BG88: 627.5 | BH88: 573.4 | BI88: 535.2 | BJ88: 482.6 | BK88: 45.2 | BL88: 44.6 | BM88: 42.4 | BN88: 40.5 | BO88: 39.3 | BP88: 38.6 | BQ88: 38.2 | BR88: 144.9 | BS88: 148.1 | BT88: 152.7 | BU88: 164 | BV88: 171.6 | BW88: 173.9 | BX88: 174.8 | BY88: 1177.5 | BZ88: 962 | CA88: 862.9 | CB88: 814.1 | CC88: 785.2 | CD88: 767.7 | CE88: 754 | CF88: 749.3 | CG88: 622.8 | CH88: 577.6 | CI88: 557.7 | CJ88: 545.3 | CK88: 537.1 | CL88: 529 | CM88: 694.8 | CN88: 592.8 | CO88: 555.3 | CP88: 535.6 | CQ88: 524.4 | CR88: 516.6 | CS88: 508.5 | CT88: 652.3 | CU88: 572 | CV88: 536.9 | CW88: 513.9 | CX88: 498.8 | CY88: 489.8 | CZ88: 479.6 | DA88: 641.6 | DB88: 559.2 | DC88: 522.7 | DD88: 500.1 | DE88: 486.4 | DF88: 478.6 | DG88: 459.7 | DH88: 666.4 | DI88: 572.3 | DJ88: 530.4 | DK88: 500.7 | DL88: 477.7 | DM88: 459.6 | DN88: 437.1 | DO88: 713.1 | DP88: 591.6 | DQ88: 543.1 | DR88: 510.2 | DS88: 483.7 | DT88: 461.5 | DU88: 428.7 | DV88: 823.3 | DW88: 652.1 | DX88: 574.6 | DY88: 534.8 | DZ88: 505.2 | EA88: 480.2 | EB88: 437.7 | EC88: 979.2 | ED88: 763.7 | EE88: 636 | EF88: 572 | EG88: 534.9 | EH88: 506.5 | EI88: 460.6 | EJ88: 1130.7 | EK88: 881.8 | EL88: 733.3 | EM88: 639.7 | EN88: 582.5 | EO88: 545.3 | EP88: 493.2
A89: NED2/04 | B89: NED_4211 | C89: NED 4211 | D89: CHACA CHA CARA | E89: Oceaan 25 | F89: K & S Polyboat | G89: v.d.Stadt & Prtnrs | H89: 1978 | I89: 139772 | J89: W.A.,van der Linde | K89: IMS | L89: C | M89: 365 | N89: 20 4 2004 | O89: 11:40:04 | P89: 7.565 | Q89: 6.647 | R89: 1.478 | S89: 2.815 | T89: 2684 | U89: 102.3 | V89: 0.82 | W89: 780.1 | X89: 0.7679 | Y89: 879 | Z89: 0.619 | AA89: 79.8 | AB89: 1324 | AC89: 1055.1 | AD89: 912 | AE89: 834 | AF89: 788.9 | AG89: 760.4 | AH89: 727.6 | AI89: 1245.1 | AJ89: 1001.6 | AK89: 881 | AL89: 818.9 | AM89: 782.1 | AN89: 758 | AO89: 730.7 | AP89: 1073.1 | AQ89: 866.1 | AR89: 756.5 | AS89: 694.1 | AT89: 656.6 | AU89: 632.7 | AV89: 603.3 | AW89: 1165.1 | AX89: 929.2 | AY89: 801.7 | AZ89: 727.7 | BA89: 682.9 | BB89: 654.3 | BC89: 620.4 | BD89: 1213.7 | BE89: 952.4 | BF89: 805.6 | BG89: 715 | BH89: 655.3 | BI89: 613.3 | BJ89: 555.7 | BK89: 45.3 | BL89: 45.2 | BM89: 43.1 | BN89: 41.4 | BO89: 40.3 | BP89: 39.7 | BQ89: 39.8 | BR89: 145.4 | BS89: 149.1 | BT89: 156.7 | BU89: 167.1 | BV89: 172.7 | BW89: 174.2 | BX89: 174.8 | BY89: 1367.5 | BZ89: 1113.3 | CA89: 994.2 | CB89: 942.6 | CC89: 912.7 | CD89: 895.8 | CE89: 888.3 | CF89: 871.7 | CG89: 717.1 | CH89: 663.2 | CI89: 639.7 | CJ89: 627.1 | CK89: 619.3 | CL89: 613.5 | CM89: 807.4 | CN89: 681.6 | CO89: 637.6 | CP89: 614.1 | CQ89: 602.4 | CR89: 595 | CS89: 588.2 | CT89: 755.6 | CU89: 656.9 | CV89: 615 | CW89: 590 | CX89: 572.6 | CY89: 562.9 | CZ89: 553.3 | DA89: 725.7 | DB89: 635.5 | DC89: 595.6 | DD89: 572.1 | DE89: 559.6 | DF89: 551.8 | DG89: 531.2 | DH89: 750.5 | DI89: 647.1 | DJ89: 600.3 | DK89: 567 | DL89: 542.6 | DM89: 525.1 | DN89: 504.9 | DO89: 797.5 | DP89: 664.4 | DQ89: 611.8 | DR89: 575.4 | DS89: 546 | DT89: 523 | DU89: 490.7 | DV89: 904.7 | DW89: 717.4 | DX89: 641.9 | DY89: 599.8 | DZ89: 567.6 | EA89: 540.3 | EB89: 494.9 | EC89: 1068.9 | ED89: 833.5 | EE89: 697.9 | EF89: 636.8 | EG89: 598.2 | EH89: 567.6 | EI89: 518.5 | EJ89: 1234.2 | EK89: 962.4 | EL89: 798.9 | EM89: 702.8 | EN89: 646.6 | EO89: 608.7 | EP89: 553.2
A90: NED2/04 | B90: NED_4235 | C90: NED 4235 | D90: KOPJE KLEINER | E90: Banner 41 | F90: Banner Bade | G90: Judel/Vrolijk | H90: 1987 | I90: 169572 | J90: J.,de Waal | K90: IMS | L90: C | M90: 458 | N90: 20 4 2004 | O90: 11:40:04 | P90: 12.337 | Q90: 10.963 | R90: 1.927 | S90: 3.224 | T90: 6723 | U90: 128.3 | V90: 0.49 | W90: 621.9 | X90: 0.9643 | Y90: 700 | Z90: 0.75 | AA90: 61.5 | AB90: 1074 | AC90: 862.1 | AD90: 745.4 | AE90: 675.4 | AF90: 631.5 | AG90: 603.7 | AH90: 571.9 | AI90: 994.7 | AJ90: 806.8 | AK90: 708.2 | AL90: 652.9 | AM90: 619.1 | AN90: 597 | AO90: 570.9 | AP90: 859.1 | AQ90: 692.6 | AR90: 603.3 | AS90: 551.3 | AT90: 519.2 | AU90: 498.2 | AV90: 472 | AW90: 917.3 | AX90: 733 | AY90: 632.5 | AZ90: 573.1 | BA90: 536.1 | BB90: 512 | BC90: 483 | BD90: 973.3 | BE90: 761.7 | BF90: 641.8 | BG90: 567 | BH90: 517.1 | BI90: 481.8 | BJ90: 434.1 | BK90: 45.5 | BL90: 44.6 | BM90: 43 | BN90: 41.1 | BO90: 40 | BP90: 39.4 | BQ90: 39.2 | BR90: 141.9 | BS90: 145.9 | BT90: 148.3 | BU90: 158.1 | BV90: 168 | BW90: 172.9 | BX90: 174.8 | BY90: 1044.6 | BZ90: 872.2 | CA90: 786.1 | CB90: 741 | CC90: 715.5 | CD90: 701 | CE90: 692.5 | CF90: 663.8 | CG90: 558.1 | CH90: 520.8 | CI90: 502.8 | CJ90: 492.3 | CK90: 485.9 | CL90: 480.8 | CM90: 613.7 | CN90: 524.9 | CO90: 497 | CP90: 482.3 | CQ90: 473 | CR90: 467 | CS90: 461.3 | CT90: 572 | CU90: 502 | CV90: 473.1 | CW90: 458 | CX90: 448.6 | CY90: 441.9 | CZ90: 434.1 | DA90: 578 | DB90: 498.3 | DC90: 465.9 | DD90: 449.4 | DE90: 435.1 | DF90: 425 | DG90: 413.7 | DH90: 603.1 | DI90: 508.5 | DJ90: 470.3 | DK90: 444.3 | DL90: 424.9 | DM90: 410.4 | DN90: 392.1 | DO90: 649.9 | DP90: 530.1 | DQ90: 482.7 | DR90: 452.7 | DS90: 429.2 | DT90: 409.5 | DU90: 379 | DV90: 764.3 | DW90: 602.3 | DX90: 517.5 | DY90: 477.5 | DZ90: 449.1 | EA90: 425.6 | EB90: 384.5 | EC90: 920.9 | ED90: 714.4 | EE90: 591.6 | EF90: 519 | EG90: 480.4 | EH90: 452.5 | EI90: 408.1 | EJ90: 1063.3 | EK90: 825 | EL90: 683.1 | EM90: 592 | EN90: 532.2 | EO90: 492.8 | EP90: 440.6
A91: NED2/04 | B91: NED_4236 | C91: NED 4236 | D91: MAXMA | E91: X-99 SMALL SPI | F91: X-YACHTS | G91: JEPPESEN | H91: 1985 | I91: 235767 | J91: M.R.,van Bruggen | K91: IMS_1DSN | L91: C | M91: 512 | N91: 20 4 2004 | O91: 11:40:05 | P91: 10.007 | Q91: 8.87 | R91: 1.844 | S91: 2.971 | T91: 3773 | U91: 112 | V91: 0.06 | W91: 643.8 | X91: 0.9402 | Y91: 717.9 | Z91: 0.757 | AA91: 83.3 | AB91: 1072 | AC91: 869.4 | AD91: 763 | AE91: 700 | AF91: 660.1 | AG91: 634.1 | AH91: 602.8 | AI91: 988.9 | AJ91: 813.7 | AK91: 727.4 | AL91: 679 | AM91: 648 | AN91: 626.7 | AO91: 600.3 | AP91: 874.6 | AQ91: 711.8 | AR91: 625.6 | AS91: 575.6 | AT91: 544.5 | AU91: 523.7 | AV91: 496.5 | AW91: 927.7 | AX91: 748.7 | AY91: 652.5 | AZ91: 596.1 | BA91: 561.1 | BB91: 537.9 | BC91: 508.4 | BD91: 993.8 | BE91: 783.4 | BF91: 664.9 | BG91: 591.1 | BH91: 541.6 | BI91: 506.1 | BJ91: 456.6 | BK91: 44.5 | BL91: 42.3 | BM91: 40.3 | BN91: 39 | BO91: 38.3 | BP91: 37.9 | BQ91: 38.1 | BR91: 142.9 | BS91: 146.7 | BT91: 153.4 | BU91: 164.2 | BV91: 171.5 | BW91: 174 | BX91: 174.2 | BY91: 1018.3 | BZ91: 867.2 | CA91: 801 | CB91: 766.5 | CC91: 746.6 | CD91: 735.7 | CE91: 732.4 | CF91: 657.3 | CG91: 576.6 | CH91: 547.8 | CI91: 532.2 | CJ91: 522.7 | CK91: 517.1 | CL91: 512.7 | CM91: 618 | CN91: 550.8 | CO91: 526.3 | CP91: 512.2 | CQ91: 503.3 | CR91: 497.7 | CS91: 491.9 | CT91: 591 | CU91: 531.3 | CV91: 501.7 | CW91: 487.1 | CX91: 477.1 | CY91: 470 | CZ91: 461.1 | DA91: 596.6 | DB91: 525.8 | DC91: 491.9 | DD91: 475 | DE91: 458.4 | DF91: 448.7 | DG91: 436.6 | DH91: 617.5 | DI91: 539.4 | DJ91: 498.1 | DK91: 467.7 | DL91: 443.9 | DM91: 427.9 | DN91: 408.2 | DO91: 660.3 | DP91: 560.5 | DQ91: 512.7 | DR91: 478.5 | DS91: 449.6 | DT91: 425.2 | DU91: 391 | DV91: 777.8 | DW91: 619.8 | DX91: 548.4 | DY91: 507.1 | DZ91: 475.3 | EA91: 446.9 | EB91: 396 | EC91: 937.9 | ED91: 727.9 | EE91: 610.7 | EF91: 547.8 | EG91: 508.6 | EH91: 478 | EI91: 425.7 | EJ91: 1083 | EK91: 840.6 | EL91: 703.5 | EM91: 615.6 | EN91: 558 | EO91: 518.7 | EP91: 462
A92: NED2/04 | B92: NED_4243 | C92: NED 4243 | D92: BLUE NOSE | E92: X-99 | F92: X-Yachts | G92: N.Jeppesen | H92: 1985 | I92: 251750 | J92: H.A.,Streefland | K92: IMS_1DSN | L92: C | M92: 512 | N92: 20 4 2004 | O92: 11:40:06 | P92: 10.007 | Q92: 8.87 | R92: 1.844 | S92: 2.971 | T92: 3773 | U92: 112 | V92: 0.06 | W92: 643.8 | X92: 0.9402 | Y92: 717.9 | Z92: 0.757 | AA92: 83.3 | AB92: 1072 | AC92: 869.4 | AD92: 763 | AE92: 700 | AF92: 660.1 | AG92: 634.1 | AH92: 602.8 | AI92: 988.9 | AJ92: 813.7 | AK92: 727.4 | AL92: 679 | AM92: 648 | AN92: 626.7 | AO92: 600.3 | AP92: 874.6 | AQ92: 711.8 | AR92: 625.6 | AS92: 575.6 | AT92: 544.5 | AU92: 523.7 | AV92: 496.5 | AW92: 927.7 | AX92: 748.7 | AY92: 652.5 | AZ92: 596.1 | BA92: 561.1 | BB92: 537.9 | BC92: 508.4 | BD92: 993.8 | BE92: 783.4 | BF92: 664.9 | BG92: 591.1 | BH92: 541.6 | BI92: 506.1 | BJ92: 456.6 | BK92: 44.5 | BL92: 42.3 | BM92: 40.3 | BN92: 39 | BO92: 38.3 | BP92: 37.9 | BQ92: 38.1 | BR92: 142.9 | BS92: 146.7 | BT92: 153.4 | BU92: 164.2 | BV92: 171.5 | BW92: 174 | BX92: 174.2 | BY92: 1018.3 | BZ92: 867.2 | CA92: 801 | CB92: 766.5 | CC92: 746.6 | CD92: 735.7 | CE92: 732.4 | CF92: 657.3 | CG92: 576.6 | CH92: 547.8 | CI92: 532.2 | CJ92: 522.7 | CK92: 517.1 | CL92: 512.7 | CM92: 618 | CN92: 550.8 | CO92: 526.3 | CP92: 512.2 | CQ92: 503.3 | CR92: 497.7 | CS92: 491.9 | CT92: 591 | CU92: 531.3 | CV92: 501.7 | CW92: 487.1 | CX92: 477.1 | CY92: 470 | CZ92: 461.1 | DA92: 596.6 | DB92: 525.8 | DC92: 491.9 | DD92: 475 | DE92: 458.4 | DF92: 448.7 | DG92: 436.6 | DH92: 617.5 | DI92: 539.4 | DJ92: 498.1 | DK92: 467.7 | DL92: 443.9 | DM92: 427.9 | DN92: 408.2 | DO92: 660.3 | DP92: 560.5 | DQ92: 512.7 | DR92: 478.5 | DS92: 449.6 | DT92: 425.2 | DU92: 391 | DV92: 777.8 | DW92: 619.8 | DX92: 548.4 | DY92: 507.1 | DZ92: 475.3 | EA92: 446.9 | EB92: 396 | EC92: 937.9 | ED92: 727.9 | EE92: 610.7 | EF92: 547.8 | EG92: 508.6 | EH92: 478 | EI92: 425.7 | EJ92: 1083 | EK92: 840.6 | EL92: 703.5 | EM92: 615.6 | EN92: 558 | EO92: 518.7 | EP92: 462
A93: NED2/04 | B93: NED_4357 | C93: NED 4357 | D93: C'EST NOUS C'EST TO | E93: First30E SD | F93: Beneteau | G93: J.Berret | H93: 1989 | I93: 161141 | J93: E.J.,van der Stroom | K93: IMS | M93: 456 | N93: 20 4 2004 | O93: 11:40:07 | P93: 9.256 | Q93: 7.923 | R93: 1.4 | S93: 3.234 | T93: 4388 | U93: 108.1 | V93: 0.76 | W93: 711.3 | X93: 0.8514 | Y93: 792.8 | Z93: 0.676 | AA93: 77 | AB93: 1208.5 | AC93: 962.4 | AD93: 831 | AE93: 756.6 | AF93: 712.3 | AG93: 684.1 | AH93: 649.4 | AI93: 1129 | AJ93: 907.1 | AK93: 796.4 | AL93: 737.6 | AM93: 701.9 | AN93: 678.1 | AO93: 648.5 | AP93: 980.6 | AQ93: 790.8 | AR93: 689.8 | AS93: 631.8 | AT93: 596.3 | AU93: 573.3 | AV93: 543.7 | AW93: 1064.8 | AX93: 848.9 | AY93: 731.6 | AZ93: 662.9 | BA93: 620.7 | BB93: 593.2 | BC93: 559.7 | BD93: 1107.7 | BE93: 868.7 | BF93: 734.1 | BG93: 651 | BH93: 596.2 | BI93: 557.9 | BJ93: 505.6 | BK93: 44.3 | BL93: 43.6 | BM93: 41.2 | BN93: 39.2 | BO93: 37.9 | BP93: 37.1 | BQ93: 36.8 | BR93: 144.9 | BS93: 148.3 | BT93: 153.6 | BU93: 164.3 | BV93: 171.1 | BW93: 173.3 | BX93: 174.1 | BY93: 1212.9 | BZ93: 986.1 | CA93: 881.7 | CB93: 832.2 | CC93: 803.1 | CD93: 785.7 | CE93: 771.5 | CF93: 779.2 | CG93: 646.6 | CH93: 600.1 | CI93: 578.9 | CJ93: 566.7 | CK93: 558.7 | CL93: 550.6 | CM93: 726.6 | CN93: 618.9 | CO93: 579.9 | CP93: 558.5 | CQ93: 547 | CR93: 539.3 | CS93: 530.9 | CT93: 686.6 | CU93: 600 | CV93: 563.3 | CW93: 539.5 | CX93: 523.2 | CY93: 513.1 | CZ93: 502.5 | DA93: 671 | DB93: 585.1 | DC93: 548.3 | DD93: 526.1 | DE93: 512.9 | DF93: 504.8 | DG93: 485.1 | DH93: 695 | DI93: 596.9 | DJ93: 553.9 | DK93: 523.9 | DL93: 501.1 | DM93: 484 | DN93: 462.3 | DO93: 740.9 | DP93: 615.2 | DQ93: 565.7 | DR93: 532.1 | DS93: 505.4 | DT93: 483.7 | DU93: 452.6 | DV93: 848 | DW93: 671.8 | DX93: 595.8 | DY93: 556 | DZ93: 526 | EA93: 500.7 | EB93: 458.6 | EC93: 1006.4 | ED93: 784.8 | EE93: 655 | EF93: 592.8 | EG93: 555.8 | EH93: 527.2 | EI93: 481.3 | EJ93: 1162.1 | EK93: 906.2 | EL93: 754.1 | EM93: 660.4 | EN93: 604.6 | EO93: 567.7 | EP93: 515.4
A94: NED3/04 | B94: NED_4372 | C94: NED 4372 | D94: GAMBIET | E94: Piaon OOD | F94: Lewin B.V. | G94: v.d.Stadt & Prtnrs | H94: 1973 | I94: 166815 | J94: G.J.,Vink | K94: IMS_1DSN | L94: C | M94: 467 | N94: 20 4 2004 | O94: 11:40:07 | P94: 9.084 | Q94: 7.54 | R94: 1.779 | S94: 2.896 | T94: 4280 | U94: 127 | V94: 0.71 | W94: 735.7 | X94: 0.8198 | Y94: 823.4 | Z94: 0.659 | AA94: 81.1 | AB94: 1237.7 | AC94: 995.7 | AD94: 864.3 | AE94: 788.8 | AF94: 744 | AG94: 715.4 | AH94: 681 | AI94: 1158.4 | AJ94: 941 | AK94: 831.3 | AL94: 772.1 | AM94: 736.2 | AN94: 712 | AO94: 683.3 | AP94: 1008 | AQ94: 816 | AR94: 714.1 | AS94: 655.5 | AT94: 619.6 | AU94: 596.3 | AV94: 566.6 | AW94: 1083.4 | AX94: 868.1 | AY94: 751.6 | AZ94: 683.8 | BA94: 642 | BB94: 614.9 | BC94: 581.6 | BD94: 1141.1 | BE94: 897 | BF94: 759.5 | BG94: 674.5 | BH94: 618.1 | BI94: 578.3 | BJ94: 524.3 | BK94: 44.7 | BL94: 44.9 | BM94: 42.8 | BN94: 41 | BO94: 39.9 | BP94: 39.2 | BQ94: 39 | BR94: 145.5 | BS94: 149.9 | BT94: 154.3 | BU94: 166 | BV94: 172.8 | BW94: 174.6 | BX94: 175.3 | BY94: 1246.4 | BZ94: 1032.5 | CA94: 930.6 | CB94: 881.6 | CC94: 852.4 | CD94: 834.5 | CE94: 821.6 | CF94: 799.1 | CG94: 667.9 | CH94: 622.6 | CI94: 602.4 | CJ94: 589.7 | CK94: 581.3 | CL94: 573 | CM94: 743.9 | CN94: 636.9 | CO94: 599.6 | CP94: 579.2 | CQ94: 567.5 | CR94: 559.3 | CS94: 550.6 | CT94: 699.4 | CU94: 615.3 | CV94: 580.3 | CW94: 557.1 | CX94: 541.2 | CY94: 530.8 | CZ94: 519.5 | DA94: 685.3 | DB94: 601.4 | DC94: 564.8 | DD94: 541.4 | DE94: 526 | DF94: 516.8 | DG94: 500.8 | DH94: 712.5 | DI94: 613.6 | DJ94: 570.4 | DK94: 540.2 | DL94: 517.1 | DM94: 499 | DN94: 474.4 | DO94: 760.2 | DP94: 631.9 | DQ94: 582.3 | DR94: 548.2 | DS94: 521.5 | DT94: 499.8 | DU94: 467.6 | DV94: 866 | DW94: 689.3 | DX94: 612.5 | DY94: 572.3 | DZ94: 541.8 | EA94: 516.1 | EB94: 474.4 | EC94: 1024 | ED94: 803 | EE94: 670.6 | EF94: 608.4 | EG94: 571.2 | EH94: 542.1 | EI94: 495.5 | EJ94: 1182.4 | EK94: 927.2 | EL94: 771.3 | EM94: 674.5 | EN94: 617.9 | EO94: 580.9 | EP94: 527.8
A95: NED2/04 | B95: NED_44 | C95: NED 44 | D95: MAGMUMM | E95: Mumm 30 | F95: Carroll Marine | G95: B.Farr | H95: 1996 | I95: 119821 | J95: W.P.,Geurts | K95: IMS_1DSN | M95: 525 | N95: 20 4 2004 | O95: 11:40:08 | P95: 9.435 | Q95: 9.079 | R95: 2.204 | S95: 3.039 | T95: 3105 | U95: 122.5 | V95: 0 | W95: 594.8 | X95: 1.0246 | Y95: 658.8 | Z95: 0.839 | AA95: 94.1 | AB95: 960.8 | AC95: 785.5 | AD95: 697.7 | AE95: 646.4 | AF95: 612.3 | AG95: 588.1 | AH95: 549.6 | AI95: 897.2 | AJ95: 743 | AK95: 669.4 | AL95: 627 | AM95: 598.1 | AN95: 576.4 | AO95: 545.7 | AP95: 798.3 | AQ95: 654.4 | AR95: 578.9 | AS95: 535.1 | AT95: 506.9 | AU95: 486.7 | AV95: 456.3 | AW95: 891.2 | AX95: 717.2 | AY95: 623.3 | AZ95: 568.2 | BA95: 533.5 | BB95: 510 | BC95: 478.7 | BD95: 908.1 | BE95: 719.8 | BF95: 613.9 | BG95: 547.9 | BH95: 502.8 | BI95: 469.6 | BJ95: 421.2 | BK95: 42.8 | BL95: 40.8 | BM95: 38.4 | BN95: 36.9 | BO95: 36.1 | BP95: 35.7 | BQ95: 35.8 | BR95: 140.9 | BS95: 145.8 | BT95: 153.2 | BU95: 162.7 | BV95: 168.8 | BW95: 170.2 | BX95: 150.5 | BY95: 971.6 | BZ95: 816.5 | CA95: 752.1 | CB95: 718.2 | CC95: 698.9 | CD95: 688.1 | CE95: 682.5 | CF95: 634.7 | CG95: 552.3 | CH95: 524.7 | CI95: 509.7 | CJ95: 500.6 | CK95: 495 | CL95: 489.3 | CM95: 598.4 | CN95: 530.8 | CO95: 505.8 | CP95: 492.1 | CQ95: 483.1 | CR95: 477.3 | CS95: 470.6 | CT95: 572.6 | CU95: 513.6 | CV95: 484.4 | CW95: 468.2 | CX95: 457.9 | CY95: 450.5 | CZ95: 440.5 | DA95: 547.2 | DB95: 500.6 | DC95: 481.6 | DD95: 457.9 | DE95: 440.1 | DF95: 427.6 | DG95: 412.2 | DH95: 546.8 | DI95: 492.5 | DJ95: 462.8 | DK95: 444.4 | DL95: 429.9 | DM95: 416.5 | DN95: 389.6 | DO95: 568.4 | DP95: 502.9 | DQ95: 465.7 | DR95: 438 | DS95: 416.4 | DT95: 398.9 | DU95: 365.1 | DV95: 652.5 | DW95: 542 | DX95: 491.6 | DY95: 454.2 | DZ95: 421.3 | EA95: 388 | EB95: 332.6 | EC95: 787.9 | ED95: 626.9 | EE95: 542.2 | EF95: 495.1 | EG95: 459.5 | EH95: 427 | EI95: 353.2 | EJ95: 909.8 | EK95: 723.8 | EL95: 624.2 | EM95: 558.9 | EN95: 512.2 | EO95: 476.4 | EP95: 407.9
A96: NED2/04 | B96: NED_4430 | C96: NED 4430 | D96: SOPHIA | E96: C & C 44 WK | F96: C & C | G96: R.Ball | H96: 1989 | I96: 117951 | J96: J.,Faber | K96: IMS | L96: C | M96: 600 | N96: 20 4 2004 | O96: 11:40:09 | P96: 13.408 | Q96: 11.143 | R96: 2.139 | S96: 4.027 | T96: 12164 | U96: 127.1 | V96: 0.53 | W96: 620.8 | X96: 0.9746 | Y96: 692.6 | Z96: 0.756 | AA96: 64.4 | AB96: 1066 | AC96: 853.3 | AD96: 736.9 | AE96: 667.1 | AF96: 623 | AG96: 594.5 | AH96: 560.6 | AI96: 989.6 | AJ96: 799 | AK96: 699.6 | AL96: 643.9 | AM96: 609.5 | AN96: 586.6 | AO96: 558.6 | AP96: 860.1 | AQ96: 692.2 | AR96: 602 | AS96: 549.6 | AT96: 517.1 | AU96: 495.9 | AV96: 469 | AW96: 940.2 | AX96: 747.9 | AY96: 642.4 | AZ96: 579.5 | BA96: 540.1 | BB96: 514.1 | BC96: 482.6 | BD96: 971 | BE96: 759.9 | BF96: 640.3 | BG96: 565.9 | BH96: 516.6 | BI96: 482.1 | BJ96: 435.5 | BK96: 44.4 | BL96: 43.7 | BM96: 42.2 | BN96: 40.2 | BO96: 38.8 | BP96: 37.9 | BQ96: 37.1 | BR96: 142.4 | BS96: 145.9 | BT96: 148.4 | BU96: 158 | BV96: 166.2 | BW96: 171 | BX96: 173.4 | BY96: 1045.4 | BZ96: 861.6 | CA96: 771.5 | CB96: 723.5 | CC96: 695.1 | CD96: 677.5 | CE96: 661 | CF96: 672.6 | CG96: 558.9 | CH96: 516.5 | CI96: 497.9 | CJ96: 486.4 | CK96: 478.9 | CL96: 470.8 | CM96: 628.5 | CN96: 531.2 | CO96: 496.6 | CP96: 480 | CQ96: 469.8 | CR96: 462.8 | CS96: 454.8 | CT96: 594.7 | CU96: 513.2 | CV96: 481.1 | CW96: 461.8 | CX96: 449.4 | CY96: 441.8 | CZ96: 432.3 | DA96: 595.6 | DB96: 506.6 | DC96: 473.5 | DD96: 455.4 | DE96: 444.9 | DF96: 433.2 | DG96: 417.2 | DH96: 612.3 | DI96: 514.6 | DJ96: 476.4 | DK96: 451.8 | DL96: 433.6 | DM96: 420.1 | DN96: 402.7 | DO96: 654.2 | DP96: 534.4 | DQ96: 486.9 | DR96: 458.1 | DS96: 436.4 | DT96: 419 | DU96: 393.9 | DV96: 756.9 | DW96: 599.7 | DX96: 518.2 | DY96: 479.9 | DZ96: 453.4 | EA96: 431.9 | EB96: 397.8 | EC96: 907.6 | ED96: 708 | EE96: 589.7 | EF96: 520.1 | EG96: 483.4 | EH96: 457.4 | EI96: 417.4 | EJ96: 1048.1 | EK96: 817.5 | EL96: 681 | EM96: 593.2 | EN96: 535.8 | EO96: 498.3 | EP96: 449.6
A97: NED2/04 | B97: NED_4501 | C97: NED 4501 | D97: SCHEURIJZER | E97: J-24 (OOD) | F97: Westerly Marine | G97: R.Johnstone | H97: 1985 | I97: 4002581 | J97: J.,Nieuwkoop | K97: IMS_1DSN | M97: 362 | N97: 20 4 2004 | O97: 11:40:09 | P97: 7.318 | Q97: 6.731 | R97: 1.28 | S97: 2.694 | T97: 1806 | U97: 95.9 | V97: 0.23 | W97: 732.6 | X97: 0.8202 | Y97: 823 | Z97: 0.647 | AA97: 67.9 | AB97: 1236 | AC97: 991.1 | AD97: 866.4 | AE97: 794.4 | AF97: 749 | AG97: 719.1 | AH97: 682.4 | AI97: 1154.5 | AJ97: 938.2 | AK97: 834.4 | AL97: 776.7 | AM97: 739.6 | AN97: 713.8 | AO97: 681.2 | AP97: 1003.9 | AQ97: 813.1 | AR97: 711.3 | AS97: 652.1 | AT97: 615.2 | AU97: 590.2 | AV97: 557.1 | AW97: 1069.6 | AX97: 858.9 | AY97: 745.2 | AZ97: 678.5 | BA97: 636.9 | BB97: 609.2 | BC97: 573.9 | BD97: 1137.3 | BE97: 893.3 | BF97: 755.3 | BG97: 669 | BH97: 610.7 | BI97: 568.7 | BJ97: 509.2 | BK97: 46.6 | BL97: 44.2 | BM97: 42.6 | BN97: 41.4 | BO97: 40.5 | BP97: 40 | BQ97: 40 | BR97: 144.1 | BS97: 148.8 | BT97: 158.7 | BU97: 167.4 | BV97: 172.6 | BW97: 174.2 | BX97: 174.4 | BY97: 1243.4 | BZ97: 1026.8 | CA97: 937.7 | CB97: 890.6 | CC97: 862.2 | CD97: 845.2 | CE97: 835.7 | CF97: 786.9 | CG97: 669.7 | CH97: 623.3 | CI97: 601.7 | CJ97: 588.2 | CK97: 579.8 | CL97: 572.9 | CM97: 731.8 | CN97: 637.8 | CO97: 596.2 | CP97: 575.5 | CQ97: 563.1 | CR97: 554.8 | CS97: 547 | CT97: 692.5 | CU97: 614.7 | CV97: 573.4 | CW97: 546.5 | CX97: 530.9 | CY97: 521.4 | CZ97: 510.2 | DA97: 684.1 | DB97: 600.3 | DC97: 556.4 | DD97: 529 | DE97: 515.2 | DF97: 501.5 | DG97: 483.1 | DH97: 704.9 | DI97: 614.5 | DJ97: 565.7 | DK97: 528.8 | DL97: 499.2 | DM97: 476.2 | DN97: 450.2 | DO97: 745.4 | DP97: 634.5 | DQ97: 579.9 | DR97: 540.6 | DS97: 507.5 | DT97: 478.2 | DU97: 430.5 | DV97: 856.6 | DW97: 689.4 | DX97: 614.4 | DY97: 569.1 | DZ97: 533.7 | EA97: 502.9 | EB97: 445.1 | EC97: 1024.9 | ED97: 794.1 | EE97: 673.7 | EF97: 610 | EG97: 568.1 | EH97: 534.5 | EI97: 477.7 | EJ97: 1183.4 | EK97: 917 | EL97: 770.1 | EM97: 677.7 | EN97: 618.6 | EO97: 577.5 | EP97: 516.2
A98: NED2/04 | B98: NED_4565 | C98: NED 4565 | D98: CHALLENGE | E98: Dehler 36 DB-OD | F98: Dehler Yachtbau | G98: Dehler/v.d.Stadt | H98: 1990 | I98: 123647 | J98: F.P.,Hartman | K98: IMS | L98: C | M98: 590 | N98: 20 4 2004 | O98: 11:40:10 | P98: 11.01 | Q98: 9.541 | R98: 2.018 | S98: 3.499 | T98: 6078 | U98: 113.4 | V98: 0.51 | W98: 638.1 | X98: 0.9482 | Y98: 711.9 | Z98: 0.74 | AA98: 67.4 | AB98: 1092 | AC98: 872.3 | AD98: 753 | AE98: 684.8 | AF98: 643 | AG98: 616 | AH98: 582.8 | AI98: 1015.5 | AJ98: 818.1 | AK98: 718.1 | AL98: 664.6 | AM98: 631.8 | AN98: 609.5 | AO98: 581.1 | AP98: 880.1 | AQ98: 710 | AR98: 619 | AS98: 566.2 | AT98: 533.6 | AU98: 512 | AV98: 483.7 | AW98: 955 | AX98: 761.9 | AY98: 656.8 | AZ98: 594.7 | BA98: 556.1 | BB98: 530.6 | BC98: 498.9 | BD98: 995.7 | BE98: 780.1 | BF98: 658.4 | BG98: 582.7 | BH98: 532.2 | BI98: 496.4 | BJ98: 446.5 | BK98: 43.4 | BL98: 43.4 | BM98: 40.8 | BN98: 38.9 | BO98: 37.8 | BP98: 37.1 | BQ98: 36.9 | BR98: 143.4 | BS98: 147.6 | BT98: 151.5 | BU98: 163.5 | BV98: 172.2 | BW98: 174.5 | BX98: 175.3 | BY98: 1080.6 | BZ98: 883 | CA98: 790 | CB98: 748 | CC98: 723.4 | CD98: 708.4 | CE98: 697.1 | CF98: 699.5 | CG98: 580.3 | CH98: 537.7 | CI98: 519.8 | CJ98: 508.5 | CK98: 501.3 | CL98: 494.2 | CM98: 653 | CN98: 555.4 | CO98: 518 | CP98: 499.5 | CQ98: 489.2 | CR98: 482.3 | CS98: 474.9 | CT98: 616.1 | CU98: 533.9 | CV98: 497.7 | CW98: 478.8 | CX98: 464.1 | CY98: 456.2 | CZ98: 446.6 | DA98: 587.8 | DB98: 517.1 | DC98: 482.6 | DD98: 462.9 | DE98: 452.6 | DF98: 444.4 | DG98: 424.8 | DH98: 610 | DI98: 530.5 | DJ98: 491.4 | DK98: 463 | DL98: 440.4 | DM98: 423.1 | DN98: 403.1 | DO98: 658.4 | DP98: 550.1 | DQ98: 505.2 | DR98: 473.4 | DS98: 447.6 | DT98: 425.5 | DU98: 390.7 | DV98: 769.3 | DW98: 610.7 | DX98: 538.2 | DY98: 499.6 | DZ98: 470.3 | EA98: 445.4 | EB98: 401.7 | EC98: 921.8 | ED98: 722.1 | EE98: 600 | EF98: 537.5 | EG98: 500.7 | EH98: 472.4 | EI98: 426.6 | EJ98: 1064.4 | EK98: 833.8 | EL98: 692.3 | EM98: 603.6 | EN98: 547.3 | EO98: 510.2 | EP98: 458
A99: NED2/04 | B99: NED_4597 | C99: NED 4597 | D99: LET'S DANCE | E99: Waarschip 36'LD | F99: Waarschip/B.Maase | G99: K.T.Kremer | H99: 1992 | I99: 141115 | J99: B.,Maase | K99: IMS | M99: 609 | N99: 20 4 2004 | O99: 11:40:11 | P99: 10.765 | Q99: 9.96 | R99: 2.2 | S99: 3.385 | T99: 5151 | U99: 134.2 | V99: 0.35 | W99: 607.9 | X99: 0.9931 | Y99: 679.7 | Z99: 0.793 | AA99: 78 | AB99: 1022.6 | AC99: 822.8 | AD99: 720.2 | AE99: 660.4 | AF99: 622.4 | AG99: 597.6 | AH99: 567.8 | AI99: 946.4 | AJ99: 770.3 | AK99: 686.2 | AL99: 640 | AM99: 610.3 | AN99: 589.9 | AO99: 563.8 | AP99: 829.5 | AQ99: 673.2 | AR99: 590.4 | AS99: 542.6 | AT99: 513.1 | AU99: 493.1 | AV99: 467 | AW99: 909.1 | AX99: 727.8 | AY99: 629.7 | AZ99: 571.9 | BA99: 536.1 | BB99: 512.6 | BC99: 483.4 | BD99: 942 | BE99: 741.1 | BF99: 627.9 | BG99: 557.6 | BH99: 510.4 | BI99: 476.4 | BJ99: 428.6 | BK99: 43.6 | BL99: 42 | BM99: 40 | BN99: 38.7 | BO99: 37.9 | BP99: 37.5 | BQ99: 37.8 | BR99: 140.8 | BS99: 144.7 | BT99: 151.5 | BU99: 162 | BV99: 170.1 | BW99: 173.3 | BX99: 173.8 | BY99: 995.7 | BZ99: 826.3 | CA99: 759.5 | CB99: 724.5 | CC99: 704.4 | CD99: 693.1 | CE99: 688.9 | CF99: 644.8 | CG99: 550 | CH99: 518.8 | CI99: 503.3 | CJ99: 493.8 | CK99: 488.1 | CL99: 483.5 | CM99: 604.7 | CN99: 526.8 | CO99: 497.5 | CP99: 483.8 | CQ99: 475 | CR99: 469.3 | CS99: 463.7 | CT99: 576.3 | CU99: 510.2 | CV99: 478.4 | CW99: 459.4 | CX99: 449.4 | CY99: 442.5 | CZ99: 434.3 | DA99: 556.4 | DB99: 491.5 | DC99: 462.9 | DD99: 448.8 | DE99: 438 | DF99: 424.4 | DG99: 410.1 | DH99: 570 | DI99: 500.9 | DJ99: 464.9 | DK99: 438.4 | DL99: 418.6 | DM99: 404.5 | DN99: 385 | DO99: 608.7 | DP99: 519.9 | DQ99: 477.9 | DR99: 447.3 | DS99: 421.8 | DT99: 400 | DU99: 366.1 | DV99: 722.8 | DW99: 575.9 | DX99: 511.1 | DY99: 473.9 | DZ99: 444.8 | EA99: 418.8 | EB99: 368.4 | EC99: 875.7 | ED99: 682.4 | EE99: 572.2 | EF99: 513.2 | EG99: 477.1 | EH99: 448.9 | EI99: 400.1 | EJ99: 1011.1 | EK99: 788 | EL99: 660.5 | EM99: 579.8 | EN99: 525.8 | EO99: 488.9 | EP99: 436
A100: NED2/04 | B100: NED_4599 | C100: NED 4599 | D100: PATAPSCO | E100: J-27 | F100: Tillotson | G100: R.Johnstone | H100: 1985 | I100: 141829 | J100: J.A.,Martijnse | K100: IMS | M100: 407 | N100: 20 4 2004 | O100: 11:40:12 | P100: 8.824 | Q100: 7.672 | R100: 1.561 | S100: 2.6 | T100: 2281 | U100: 98.2 | V100: 0.09 | W100: 682.6 | X100: 0.8811 | Y100: 766.1 | Z100: 0.7 | AA100: 71.8 | AB100: 1145.6 | AC100: 924 | AD100: 811 | AE100: 744.4 | AF100: 701.6 | AG100: 673.2 | AH100: 639 | AI100: 1063.2 | AJ100: 870.1 | AK100: 776.3 | AL100: 723.5 | AM100: 689.2 | AN100: 665.4 | AO100: 636.4 | AP100: 932.9 | AQ100: 756.6 | AR100: 662.9 | AS100: 608.5 | AT100: 574.5 | AU100: 551.8 | AV100: 522.3 | AW100: 991.9 | AX100: 798 | AY100: 693.4 | AZ100: 632 | BA100: 593.7 | BB100: 568.1 | BC100: 535.6 | BD100: 1057.6 | BE100: 831.7 | BF100: 704 | BG100: 624.2 | BH100: 570.4 | BI100: 531.5 | BJ100: 477.1 | BK100: 45.7 | BL100: 43 | BM100: 41.2 | BN100: 40.1 | BO100: 39.5 | BP100: 39.1 | BQ100: 39.2 | BR100: 143.1 | BS100: 147.9 | BT100: 155.9 | BU100: 164.4 | BV100: 170.6 | BW100: 172.9 | BX100: 172.9 | BY100: 1122.5 | BZ100: 940.9 | CA100: 865.3 | CB100: 825.7 | CC100: 802.5 | CD100: 789.5 | CE100: 785.8 | CF100: 718.5 | CG100: 618.5 | CH100: 582.5 | CI100: 564 | CJ100: 552.9 | CK100: 546.3 | CL100: 542.1 | CM100: 673.7 | CN100: 588.5 | CO100: 556.9 | CP100: 540.6 | CQ100: 530.3 | CR100: 523.7 | CS100: 518 | CT100: 640.5 | CU100: 566.2 | CV100: 529.5 | CW100: 511.4 | CX100: 499.9 | CY100: 491.8 | CZ100: 482.4 | DA100: 639.3 | DB100: 556.3 | DC100: 517.1 | DD100: 498.7 | DE100: 478.9 | DF100: 468.1 | DG100: 455.3 | DH100: 658.9 | DI100: 570.6 | DJ100: 522.6 | DK100: 487 | DL100: 461.4 | DM100: 446.1 | DN100: 425.7 | DO100: 698.3 | DP100: 592.3 | DQ100: 538.2 | DR100: 498.7 | DS100: 465.6 | DT100: 439.2 | DU100: 406.6 | DV100: 808.4 | DW100: 650.9 | DX100: 575.1 | DY100: 529.7 | DZ100: 493.8 | EA100: 462.3 | EB100: 405.9 | EC100: 974.3 | ED100: 754.6 | EE100: 638.9 | EF100: 573.3 | EG100: 530.9 | EH100: 497 | EI100: 439.6 | EJ100: 1125 | EK100: 871.3 | EL100: 734.3 | EM100: 644.4 | EN100: 584.3 | EO100: 542.4 | EP100: 480.1
A101: NED2/04 | B101: NED_4626 | C101: NED 4626 | D101: KNEEL | E101: Spirit 36 DD | F101: v. Heygen | G101: Jac. de Ridder | H101: 1991 | I101: 119415 | J101: R.E.,van Gelder | K101: IMS | M101: 658 | N101: 20 4 2004 | O101: 11:40:12 | P101: 11.01 | Q101: 9.657 | R101: 2.048 | S101: 3.668 | T101: 7483 | U101: 113.4 | V101: 0.42 | W101: 642.7 | X101: 0.9409 | Y101: 717.4 | Z101: 0.761 | AA101: 86 | AB101: 1080.7 | AC101: 869.6 | AD101: 756.2 | AE101: 690.3 | AF101: 649.8 | AG101: 623.9 | AH101: 592.8 | AI101: 1006.4 | AJ101: 817.7 | AK101: 723 | AL101: 670.9 | AM101: 638.9 | AN101: 617.7 | AO101: 592.2 | AP101: 878.6 | AQ101: 712.2 | AR101: 623.9 | AS101: 573.2 | AT101: 542.3 | AU101: 522.1 | AV101: 496.8 | AW101: 953.8 | AX101: 763.9 | AY101: 661.1 | AZ101: 600.7 | BA101: 563.4 | BB101: 539.3 | BC101: 510.2 | BD101: 996.1 | BE101: 783.6 | BF101: 664.1 | BG101: 590.3 | BH101: 541.7 | BI101: 507.5 | BJ101: 461.4 | BK101: 45.1 | BL101: 44.7 | BM101: 41.7 | BN101: 39.7 | BO101: 38.5 | BP101: 37.7 | BQ101: 37.4 | BR101: 143 | BS101: 145.8 | BT101: 151.1 | BU101: 162 | BV101: 169.9 | BW101: 173.1 | BX101: 174.3 | BY101: 1072.6 | BZ101: 889.1 | CA101: 802.5 | CB101: 758.1 | CC101: 732.5 | CD101: 717.5 | CE101: 706.5 | CF101: 685.3 | CG101: 578.4 | CH101: 542.9 | CI101: 525.8 | CJ101: 515.3 | CK101: 508.7 | CL101: 502.7 | CM101: 636.4 | CN101: 553 | CO101: 522.5 | CP101: 507.6 | CQ101: 498 | CR101: 491.8 | CS101: 485.4 | CT101: 600.8 | CU101: 535.4 | CV101: 505.7 | CW101: 487 | CX101: 476 | CY101: 468.9 | CZ101: 460.5 | DA101: 604.2 | DB101: 528.7 | DC101: 497.5 | DD101: 480.4 | DE101: 469.2 | DF101: 457.1 | DG101: 442.9 | DH101: 617.6 | DI101: 535.6 | DJ101: 499.1 | DK101: 474.1 | DL101: 455.5 | DM101: 442.1 | DN101: 425.9 | DO101: 658.7 | DP101: 551.9 | DQ101: 508.9 | DR101: 479.9 | DS101: 457.5 | DT101: 439.3 | DU101: 413.7 | DV101: 759.3 | DW101: 603.7 | DX101: 536.8 | DY101: 501.3 | DZ101: 474.6 | EA101: 452.1 | EB101: 415.9 | EC101: 907.6 | ED101: 711.4 | EE101: 595.1 | EF101: 537.3 | EG101: 503.6 | EH101: 477.7 | EI101: 436.3 | EJ101: 1048.1 | EK101: 821.5 | EL101: 686.9 | EM101: 604.3 | EN101: 551.6 | EO101: 516.7 | EP101: 468.3
A102: NED2/04 | B102: NED_4627 | C102: NED 4627 | D102: NOORDWIND | E102: Raider | F102: Jachtw. Visser | G102: F.Maas | H102: 1970 | I102: 100739 | J102: R.A.,van Aller | K102: IMS | L102: C | M102: 569 | N102: 20 4 2004 | O102: 11:40:13 | P102: 10.635 | Q102: 7.932 | R102: 1.511 | S102: 3.183 | T102: 6736 | U102: 126 | V102: 1.22 | W102: 768.5 | X102: 0.7732 | Y102: 873 | Z102: 0.601 | AA102: 55.5 | AB102: 1319.3 | AC102: 1066.6 | AD102: 921 | AE102: 831 | AF102: 777.3 | AG102: 744.5 | AH102: 707.6 | AI102: 1247.5 | AJ102: 1017.9 | AK102: 890.2 | AL102: 816.4 | AM102: 772.3 | AN102: 744.2 | AO102: 712.9 | AP102: 1065.1 | AQ102: 857.4 | AR102: 745.2 | AS102: 679.5 | AT102: 639 | AU102: 612.8 | AV102: 580.8 | AW102: 1144.4 | AX102: 913.2 | AY102: 786.3 | AZ102: 710.7 | BA102: 663.6 | BB102: 633 | BC102: 596.2 | BD102: 1202.2 | BE102: 940.4 | BF102: 791.3 | BG102: 697.9 | BH102: 635.4 | BI102: 591.2 | BJ102: 531.7 | BK102: 47.1 | BL102: 46.1 | BM102: 47.5 | BN102: 45.5 | BO102: 44.1 | BP102: 43.2 | BQ102: 42.8 | BR102: 146.2 | BS102: 153.7 | BT102: 152.2 | BU102: 163.5 | BV102: 171.8 | BW102: 174.5 | BX102: 175.4 | BY102: 1389.7 | BZ102: 1161 | CA102: 1027 | CB102: 954.7 | CC102: 912.9 | CD102: 887.7 | CE102: 868.9 | CF102: 874.5 | CG102: 730.8 | CH102: 650.9 | CI102: 618.8 | CJ102: 602 | CK102: 591.2 | CL102: 580.8 | CM102: 808 | CN102: 669.3 | CO102: 615.8 | CP102: 589.1 | CQ102: 573.4 | CR102: 563.8 | CS102: 553.2 | CT102: 753.6 | CU102: 632.3 | CV102: 589.7 | CW102: 564.5 | CX102: 545.7 | CY102: 532.2 | CZ102: 518.1 | DA102: 726.6 | DB102: 612.3 | DC102: 571.7 | DD102: 545.9 | DE102: 528.2 | DF102: 517 | DG102: 503.4 | DH102: 750.6 | DI102: 623.4 | DJ102: 576.6 | DK102: 545.4 | DL102: 521.8 | DM102: 502.9 | DN102: 476.6 | DO102: 790.3 | DP102: 643.2 | DQ102: 587.3 | DR102: 553.2 | DS102: 526.6 | DT102: 505.3 | DU102: 473.1 | DV102: 882.1 | DW102: 711.2 | DX102: 617.3 | DY102: 575.8 | DZ102: 545.9 | EA102: 521.5 | EB102: 482.5 | EC102: 1036.6 | ED102: 818 | EE102: 684.6 | EF102: 612.4 | EG102: 574.5 | EH102: 546.1 | EI102: 502.3 | EJ102: 1197 | EK102: 942.9 | EL102: 789.9 | EM102: 683.5 | EN102: 622.3 | EO102: 584.6 | EP102: 532.9
A103: NED2/04 | B103: NED_4645 | C103: NED 4645 | D103: DUTCH COURAGE | E103: Spirit 36 SD | F103: V.Heijgen | G103: Jac. de Ridder | H103: 1991 | I103: 157242 | J103: E.J.,Siebring | K103: IMS | M103: 654 | N103: 20 4 2004 | O103: 11:40:14 | P103: 11.01 | Q103: 9.556 | R103: 1.785 | S103: 3.668 | T103: 6888 | U103: 117.3 | V103: 0.38 | W103: 650.8 | X103: 0.9206 | Y103: 733.2 | Z103: 0.74 | AA103: 78 | AB103: 1099.3 | AC103: 887 | AD103: 772.5 | AE103: 705.6 | AF103: 664.4 | AG103: 638 | AH103: 607.7 | AI103: 1027.2 | AJ103: 837 | AK103: 740.6 | AL103: 687.2 | AM103: 654.4 | AN103: 632.9 | AO103: 608.5 | AP103: 890.7 | AQ103: 721.7 | AR103: 631.8 | AS103: 580 | AT103: 548.4 | AU103: 527.8 | AV103: 502.3 | AW103: 966.7 | AX103: 774.3 | AY103: 669.8 | AZ103: 608.4 | BA103: 570.5 | BB103: 545.8 | BC103: 516.4 | BD103: 1010.3 | BE103: 794.1 | BF103: 672.2 | BG103: 596.6 | BH103: 546.2 | BI103: 510.5 | BJ103: 461.7 | BK103: 46.3 | BL103: 45.9 | BM103: 43.5 | BN103: 41.8 | BO103: 40.7 | BP103: 40.1 | BQ103: 40 | BR103: 143.1 | BS103: 146.1 | BT103: 151.4 | BU103: 161.8 | BV103: 169.2 | BW103: 172.6 | BX103: 174 | BY103: 1108.7 | BZ103: 922.9 | CA103: 833.4 | CB103: 787.4 | CC103: 761.2 | CD103: 746.2 | CE103: 738.2 | CF103: 701.8 | CG103: 590.5 | CH103: 550.8 | CI103: 531.9 | CJ103: 520.8 | CK103: 513.9 | CL103: 508.5 | CM103: 648.3 | CN103: 559.2 | CO103: 526.3 | CP103: 510.4 | CQ103: 500.4 | CR103: 493.9 | CS103: 487.7 | CT103: 608.2 | CU103: 538 | CV103: 506.5 | CW103: 486.8 | CX103: 475.3 | CY103: 468 | CZ103: 459.3 | DA103: 608.1 | DB103: 529.4 | DC103: 496.6 | DD103: 478.8 | DE103: 467.5 | DF103: 454.8 | DG103: 440 | DH103: 620.5 | DI103: 536.2 | DJ103: 497.9 | DK103: 471.8 | DL103: 452.6 | DM103: 438.6 | DN103: 421.8 | DO103: 660.4 | DP103: 553 | DQ103: 508 | DR103: 477.9 | DS103: 454.6 | DT103: 436 | DU103: 409.1 | DV103: 759.5 | DW103: 605.5 | DX103: 537 | DY103: 499.9 | DZ103: 472.4 | EA103: 449.3 | EB103: 411.8 | EC103: 907.3 | ED103: 711.9 | EE103: 596.6 | EF103: 537.3 | EG103: 502.2 | EH103: 475.5 | EI103: 433.2 | EJ103: 1047.7 | EK103: 822.1 | EL103: 688.5 | EM103: 605.3 | EN103: 551.8 | EO103: 515.8 | EP103: 465.8
A104: NED2/04 | B104: NED_4669 | C104: NED 4669 | D104: RIETJE | E104: Banner 41 | F104: Banner Ba. | G104: Judel/Vrolijk | H104: 1987 | I104: 129098 | J104: H.C.,Innemee | K104: IMS | L104: C | M104: 705 | N104: 20 4 2004 | O104: 11:40:14 | P104: 12.337 | Q104: 10.992 | R104: 1.931 | S104: 3.224 | T104: 6814 | U104: 130 | V104: 0.59 | W104: 628.6 | X104: 0.9523 | Y104: 708.8 | Z104: 0.723 | AA104: 47.7 | AB104: 1103 | AC104: 877.5 | AD104: 753.7 | AE104: 679.7 | AF104: 633.6 | AG104: 604.4 | AH104: 571 | AI104: 1024.7 | AJ104: 822.5 | AK104: 715.9 | AL104: 656.7 | AM104: 620.8 | AN104: 597.3 | AO104: 569.3 | AP104: 877.4 | AQ104: 703.1 | AR104: 609 | AS104: 554.1 | AT104: 520.1 | AU104: 497.8 | AV104: 470 | AW104: 937.4 | AX104: 745 | AY104: 639.5 | AZ104: 577 | BA104: 537.8 | BB104: 512.4 | BC104: 481.7 | BD104: 990.3 | BE104: 771.8 | BF104: 647.6 | BG104: 569.8 | BH104: 517.9 | BI104: 481.2 | BJ104: 431.5 | BK104: 45.8 | BL104: 45.3 | BM104: 43.8 | BN104: 41.7 | BO104: 40.4 | BP104: 39.6 | BQ104: 39.3 | BR104: 142.3 | BS104: 146.1 | BT104: 148 | BU104: 157.4 | BV104: 167.5 | BW104: 172.8 | BX104: 174.8 | BY104: 1090.2 | BZ104: 893.4 | CA104: 795.4 | CB104: 744.9 | CC104: 716.1 | CD104: 699.6 | CE104: 688.1 | CF104: 690.5 | CG104: 568 | CH104: 522 | CI104: 502 | CJ104: 490.4 | CK104: 483.2 | CL104: 477.1 | CM104: 636.7 | CN104: 532.5 | CO104: 496.8 | CP104: 480.7 | CQ104: 470.5 | CR104: 463.8 | CS104: 457.5 | CT104: 591.9 | CU104: 508.4 | CV104: 475.5 | CW104: 456.1 | CX104: 445.6 | CY104: 438.5 | CZ104: 429.9 | DA104: 597.2 | DB104: 503.2 | DC104: 467.4 | DD104: 447.4 | DE104: 435.5 | DF104: 422.9 | DG104: 409.2 | DH104: 618.8 | DI104: 514.1 | DJ104: 473.3 | DK104: 446.2 | DL104: 425.1 | DM104: 408.6 | DN104: 388 | DO104: 664.5 | DP104: 536.7 | DQ104: 486.2 | DR104: 454.8 | DS104: 430.7 | DT104: 410.1 | DU104: 376.6 | DV104: 776.1 | DW104: 610.4 | DX104: 521.1 | DY104: 480.1 | DZ104: 451.5 | EA104: 427.8 | EB104: 386.1 | EC104: 933.2 | ED104: 722.2 | EE104: 597.4 | EF104: 522.1 | EG104: 483 | EH104: 454.9 | EI104: 410.9 | EJ104: 1077.6 | EK104: 834 | EL104: 689.9 | EM104: 596.6 | EN104: 535.5 | EO104: 495.6 | EP104: 443.3
A105: NED2/04 | B105: NED_4686 | C105: NED 4686 | D105: SPORTHOTEL | E105: Dehler 37 DB | F105: Dehler Yachtbau | G105: Dehler/v.d.Stadt | H105: 1992 | I105: 164722 | J105: P.W.,van der Velden | K105: IMS | L105: C | M105: 580 | N105: 20 4 2004 | O105: 11:40:15 | P105: 11.01 | Q105: 9.528 | R105: 2.085 | S105: 3.503 | T105: 6027 | U105: 111.5 | V105: 0.5 | W105: 634.5 | X105: 0.953 | Y105: 708.3 | Z105: 0.756 | AA105: 75.3 | AB105: 1076.7 | AC105: 862.4 | AD105: 748 | AE105: 682.4 | AF105: 642.2 | AG105: 616.3 | AH105: 584.7 | AI105: 1001.4 | AJ105: 809.3 | AK105: 714.3 | AL105: 663.2 | AM105: 631.6 | AN105: 610.2 | AO105: 583.5 | AP105: 870.7 | AQ105: 704.3 | AR105: 615.8 | AS105: 564.7 | AT105: 533.3 | AU105: 512.4 | AV105: 485.4 | AW105: 944.7 | AX105: 755.6 | AY105: 653 | AZ105: 592.6 | BA105: 555.2 | BB105: 530.7 | BC105: 500.3 | BD105: 986.6 | BE105: 774.6 | BF105: 655.2 | BG105: 581.1 | BH105: 531.8 | BI105: 496.7 | BJ105: 448 | BK105: 43.6 | BL105: 43.3 | BM105: 40.7 | BN105: 38.9 | BO105: 37.9 | BP105: 37.3 | BQ105: 37.2 | BR105: 143.2 | BS105: 146.9 | BT105: 152 | BU105: 164.1 | BV105: 172.4 | BW105: 174.6 | BX105: 175.3 | BY105: 1066.4 | BZ105: 873.9 | CA105: 788.1 | CB105: 747.9 | CC105: 724.6 | CD105: 710.7 | CE105: 701.6 | CF105: 689 | CG105: 576 | CH105: 536.9 | CI105: 520.1 | CJ105: 509.4 | CK105: 502.6 | CL105: 496.5 | CM105: 642.4 | CN105: 552.1 | CO105: 516.9 | CP105: 500 | CQ105: 490.2 | CR105: 483.7 | CS105: 476.9 | CT105: 606.6 | CU105: 531.8 | CV105: 497.7 | CW105: 478.5 | CX105: 464.9 | CY105: 457.5 | CZ105: 448.6 | DA105: 581.9 | DB105: 515 | DC105: 481.9 | DD105: 463.8 | DE105: 454.1 | DF105: 444.7 | DG105: 426.6 | DH105: 600.8 | DI105: 527.4 | DJ105: 489.7 | DK105: 462.1 | DL105: 440 | DM105: 423.7 | DN105: 405.1 | DO105: 646.2 | DP105: 546.1 | DQ105: 503 | DR105: 472.1 | DS105: 446.8 | DT105: 425 | DU105: 391.7 | DV105: 756.6 | DW105: 602.2 | DX105: 535 | DY105: 497.6 | DZ105: 469 | EA105: 444.5 | EB105: 401.2 | EC105: 907.4 | ED105: 712.1 | EE105: 593.4 | EF105: 534.6 | EG105: 498.9 | EH105: 471.2 | EI105: 425.8 | EJ105: 1047.8 | EK105: 822.3 | EL105: 684.5 | EM105: 598.9 | EN105: 544.6 | EO105: 508.4 | EP105: 457.2
A106: NED3/04 | B106: NED_4736 | C106: NED 4736 | D106: FATAL FLIRT | E106: F & F 95 STD | F106: F&F Boats | G106: Jac. de Ridder | H106: 1989 | I106: 189334 | J106: A.J.,Snel | K106: IMS_1DSN | L106: C | M106: 460 | N106: 20 4 2004 | O106: 11:40:16 | P106: 9.495 | Q106: 8.855 | R106: 1.812 | S106: 2.831 | T106: 3224 | U106: 106 | V106: 0.53 | W106: 669.1 | X106: 0.8982 | Y106: 751.5 | Z106: 0.676 | AA106: 44.9 | AB106: 1168.6 | AC106: 927.5 | AD106: 799.9 | AE106: 724.2 | AF106: 675.6 | AG106: 643.7 | AH106: 606.8 | AI106: 1083.9 | AJ106: 868.6 | AK106: 760.1 | AL106: 699.3 | AM106: 661.1 | AN106: 635.2 | AO106: 602.5 | AP106: 933.9 | AQ106: 748.5 | AR106: 648.4 | AS106: 589.6 | AT106: 552.8 | AU106: 528.3 | AV106: 497 | AW106: 995.7 | AX106: 792 | AY106: 680.5 | AZ106: 614.2 | BA106: 572.6 | BB106: 545.1 | BC106: 511 | BD106: 1052.9 | BE106: 820.7 | BF106: 688.4 | BG106: 605.5 | BH106: 549.8 | BI106: 510.1 | BJ106: 455.9 | BK106: 45 | BL106: 43.6 | BM106: 41.7 | BN106: 40.2 | BO106: 39.3 | BP106: 38.7 | BQ106: 38.6 | BR106: 144 | BS106: 147.5 | BT106: 152.6 | BU106: 161.1 | BV106: 168.1 | BW106: 172.5 | BX106: 174.2 | BY106: 1139.9 | BZ106: 929.5 | CA106: 838.2 | CB106: 790.4 | CC106: 762 | CD106: 745.4 | CE106: 734.5 | CF106: 727.2 | CG106: 605.2 | CH106: 558.2 | CI106: 536.8 | CJ106: 524.3 | CK106: 516.6 | CL106: 510.8 | CM106: 675.4 | CN106: 572.4 | CO106: 531 | CP106: 513.5 | CQ106: 502.6 | CR106: 495.7 | CS106: 489.4 | CT106: 636.7 | CU106: 547.8 | CV106: 507.5 | CW106: 485.7 | CX106: 474.8 | CY106: 467.3 | CZ106: 458.8 | DA106: 636.7 | DB106: 539 | DC106: 496.2 | DD106: 473.7 | DE106: 460.6 | DF106: 447.3 | DG106: 434.7 | DH106: 665.3 | DI106: 557.2 | DJ106: 506.2 | DK106: 472.5 | DL106: 447 | DM106: 427.5 | DN106: 405 | DO106: 715.9 | DP106: 584.7 | DQ106: 522.7 | DR106: 484.4 | DS106: 454.5 | DT106: 428.5 | DU106: 384.7 | DV106: 837.3 | DW106: 657.4 | DX106: 565.1 | DY106: 514.8 | DZ106: 480.4 | EA106: 451.9 | EB106: 396.4 | EC106: 1002.7 | ED106: 772.9 | EE106: 640.3 | EF106: 562.7 | EG106: 516.1 | EH106: 483.1 | EI106: 429.9 | EJ106: 1157.8 | EK106: 892.5 | EL106: 738.5 | EM106: 639.6 | EN106: 573 | EO106: 527.6 | EP106: 467.3
